Workbook

Sheet Y7G
A1: Total Number of Runners | B1: Race Complete (Y/N) | C1: Y | E1: Y | G1: Y | I1: Y | K1: N | L1: =COUNTIF(C1:K1,"=Y") -> 4 | R1: Total Eligible for League | T1: =IF(K1="Y",1,0) -> 0 | V1: =SUM(S1:T1) -> 0
A2: =COUNTA(A5:A300) -> 65 | B2: No of Finishers | C2: 39 | D2: =MAX(D5:D151) -> 39 | E2: 41 | F2: 41 | G2: 35 | H2: 35 | I2: 33 | J2: 33 | R2: =COUNTIF(R5:R200,"Yes") -> 31
A3: Year 7 Girls | B3: Number of results recorded | C3: =COUNTIF(C5:C150,">0") -> 39 | E3: =COUNTIF(F5:F150,">0") -> 41 | G3: =COUNTIF(H5:H150,">0") -> 35 | I3: =COUNTIF(J5:J150,">0") -> 33 | K3: 0
A4: Name | B4: School | C4: Race 1 | D4: Normalised result -1 | E4: Race 2 | F4: Normalised result -2 | G4: Race 3 | H4: Normalised result -3 | I4: Race 4 | J4: Normalised result -4 | K4: Race 5 | L4: Normalised result -5 | M4: School duplicate column | N4: Total (All Races) | O4: Lowest Place Finish | P4: Final Total | Q4: League contender? (No. of races - missed) | R4: Eligible For League Title | S4: Competed 1 | T4: Competed 2 | U4: Competed 3 | V4: Competed 4 | W4: Competed 5 | X4: Competed Count
A5: Elsie Robinson | B5: Lutterworth High School | C5: 1 | D5: =IF(C5="-",0,C5) -> 1 | E5: - | F5: =IF(E5="-",0,E5) -> 0 | G5: 1 | H5: =IF(G5="-",0,G5) -> 1 | I5: 1 | J5: =IF(I5="-",0,I5) -> 1 | K5: - | L5: =IF(K5="-",0,K5) -> 0 | M5: =Table10[[#This Row],[School]] -> Lutterworth High School | N5: =D5+F5+H5+J5+L5 -> 3 | O5: =MAX(C5,E5,G5,I5,K5) -> 1 | P5: =IF(Q5=1,N5,IF(Q5=0,(N5-O5),"-")) -> 3 | Q5: =$L$1-Table10[Competed Count] -> 1 | R5: =IF(Q5<2,"Yes","No") -> Yes | S5: =AND($C$1="Y",D5>0) -> TRUE | T5: =AND($E$1="Y",F5>0) -> FALSE | U5: =AND($G$1="Y",H5>0) -> TRUE | V5: =AND($I$1="Y",J5>0) -> TRUE | W5: =AND($K$1="Y",L5>0) -> FALSE | X5: =COUNTIF(Table10[[#This Row],[Competed 1]:[Competed 5]],"=TRUE") -> 3
A6: Isobel Orencas | B6: Bosworth Academy | C6: 5 | D6: =IF(C6="-",0,C6) -> 5 | E6: 1 | F6: =IF(E6="-",0,E6) -> 1 | G6: - | H6: =IF(G6="-",0,G6) -> 0 | I6: 2 | J6: =IF(I6="-",0,I6) -> 2 | K6: - | L6: =IF(K6="-",0,K6) -> 0 | M6: =Table10[[#This Row],[School]] -> Bosworth Academy | N6: =D6+F6+H6+J6+L6 -> 8 | O6: =MAX(C6,E6,G6,I6,K6) -> 5 | P6: =IF(Q6=1,N6,IF(Q6=0,(N6-O6),"-")) -> 8 | Q6: =$L$1-Table10[Competed Count] -> 1 | R6: =IF(Q6<2,"Yes","No") -> Yes | S6: =AND($C$1="Y",D6>0) -> TRUE | T6: =AND($E$1="Y",F6>0) -> TRUE | U6: =AND($G$1="Y",H6>0) -> FALSE | V6: =AND($I$1="Y",J6>0) -> TRUE | W6: =AND($K$1="Y",L6>0) -> FALSE | X6: =COUNTIF(Table10[[#This Row],[Competed 1]:[Competed 5]],"=TRUE") -> 3
A7: Rebecca Cullen | B7: Uppingham CC | C7: 3 | D7: =IF(C7="-",0,C7) -> 3 | E7: - | F7: =IF(E7="-",0,E7) -> 0 | G7: 3 | H7: =IF(G7="-",0,G7) -> 3 | I7: 3 | J7: =IF(I7="-",0,I7) -> 3 | K7: - | L7: =IF(K7="-",0,K7) -> 0 | M7: =Table10[[#This Row],[School]] -> Uppingham CC | N7: =D7+F7+H7+J7+L7 -> 9 | O7: =MAX(C7,E7,G7,I7,K7) -> 3 | P7: =IF(Q7=1,N7,IF(Q7=0,(N7-O7),"-")) -> 9 | Q7: =$L$1-Table10[Competed Count] -> 1 | R7: =IF(Q7<2,"Yes","No") -> Yes | S7: =AND($C$1="Y",D7>0) -> TRUE | T7: =AND($E$1="Y",F7>0) -> FALSE | U7: =AND($G$1="Y",H7>0) -> TRUE | V7: =AND($I$1="Y",J7>0) -> TRUE | W7: =AND($K$1="Y",L7>0) -> FALSE | X7: =COUNTIF(Table10[[#This Row],[Competed 1]:[Competed 5]],"=TRUE") -> 3
A8: Eliza Weselby | B8: Gartree High School | C8: 2 | D8: =IF(C8="-",0,C8) -> 2 | E8: - | F8: =IF(E8="-",0,E8) -> 0 | G8: 2 | H8: =IF(G8="-",0,G8) -> 2 | I8: 4 | J8: =IF(I8="-",0,I8) -> 4 | K8: - | L8: =IF(K8="-",0,K8) -> 0 | M8: =Table10[[#This Row],[School]] -> Gartree High School | N8: =D8+F8+H8+J8+L8 -> 8 | O8: =MAX(C8,E8,G8,I8,K8) -> 4 | P8: =IF(Q8=1,N8,IF(Q8=0,(N8-O8),"-")) -> 8 | Q8: =$L$1-Table10[Competed Count] -> 1 | R8: =IF(Q8<2,"Yes","No") -> Yes | S8: =AND($C$1="Y",D8>0) -> TRUE | T8: =AND($E$1="Y",F8>0) -> FALSE | U8: =AND($G$1="Y",H8>0) -> TRUE | V8: =AND($I$1="Y",J8>0) -> TRUE | W8: =AND($K$1="Y",L8>0) -> FALSE | X8: =COUNTIF(Table10[[#This Row],[Competed 1]:[Competed 5]],"=TRUE") -> 3
A9: Lucy Morrison | B9: Ivanhoe College | C9: 4 | D9: =IF(C9="-",0,C9) -> 4 | E9: - | F9: =IF(E9="-",0,E9) -> 0 | G9: 4 | H9: =IF(G9="-",0,G9) -> 4 | I9: 5 | J9: =IF(I9="-",0,I9) -> 5 | K9: - | L9: =IF(K9="-",0,K9) -> 0 | M9: =Table10[[#This Row],[School]] -> Ivanhoe College | N9: =D9+F9+H9+J9+L9 -> 13 | O9: =MAX(C9,E9,G9,I9,K9) -> 5 | P9: =IF(Q9=1,N9,IF(Q9=0,(N9-O9),"-")) -> 13 | Q9: =$L$1-Table10[Competed Count] -> 1 | R9: =IF(Q9<2,"Yes","No") -> Yes | S9: =AND($C$1="Y",D9>0) -> TRUE | T9: =AND($E$1="Y",F9>0) -> FALSE | U9: =AND($G$1="Y",H9>0) -> TRUE | V9: =AND($I$1="Y",J9>0) -> TRUE | W9: =AND($K$1="Y",L9>0) -> FALSE | X9: =COUNTIF(Table10[[#This Row],[Competed 1]:[Competed 5]],"=TRUE") -> 3
A10: Amelie McCann | B10: De Lisle College | C10: 7 | D10: =IF(C10="-",0,C10) -> 7 | E10: 2 | F10: =IF(E10="-",0,E10) -> 2 | G10: - | H10: =IF(G10="-",0,G10) -> 0 | I10: 6 | J10: =IF(I10="-",0,I10) -> 6 | K10: - | L10: =IF(K10="-",0,K10) -> 0 | M10: =Table10[[#This Row],[School]] -> De Lisle College | N10: =D10+F10+H10+J10+L10 -> 15 | O10: =MAX(C10,E10,G10,I10,K10) -> 7 | P10: =IF(Q10=1,N10,IF(Q10=0,(N10-O10),"-")) -> 15 | Q10: =$L$1-Table10[Competed Count] -> 1 | R10: =IF(Q10<2,"Yes","No") -> Yes | S10: =AND($C$1="Y",D10>0) -> TRUE | T10: =AND($E$1="Y",F10>0) -> TRUE | U10: =AND($G$1="Y",H10>0) -> FALSE | V10: =AND($I$1="Y",J10>0) -> TRUE | W10: =AND($K$1="Y",L10>0) -> FALSE | X10: =COUNTIF(Table10[[#This Row],[Competed 1]:[Competed 5]],"=TRUE") -> 3
A11: Eleanor Taylor | B11: John Ferneley College | C11: 8 | D11: =IF(C11="-",0,C11) -> 8 | E11: 3 | F11: =IF(E11="-",0,E11) -> 3 | G11: 7 | H11: =IF(G11="-",0,G11) -> 7 | I11: 7 | J11: =IF(I11="-",0,I11) -> 7 | K11: - | L11: =IF(K11="-",0,K11) -> 0 | M11: =Table10[[#This Row],[School]] -> John Ferneley College | N11: =D11+F11+H11+J11+L11 -> 25 | O11: =MAX(C11,E11,G11,I11,K11) -> 8 | P11: =IF(Q11=1,N11,IF(Q11=0,(N11-O11),"-")) -> 17 | Q11: =$L$1-Table10[Competed Count] -> 0 | R11: =IF(Q11<2,"Yes","No") -> Yes | S11: =AND($C$1="Y",D11>0) -> TRUE | T11: =AND($E$1="Y",F11>0) -> TRUE | U11: =AND($G$1="Y",H11>0) -> TRUE | V11: =AND($I$1="Y",J11>0) -> TRUE | W11: =AND($K$1="Y",L11>0) -> FALSE | X11: =COUNTIF(Table10[[#This Row],[Competed 1]:[Competed 5]],"=TRUE") -> 4
A12: Rhona Johnston | B12: Wreake Valley Academy | C12: - | D12: =IF(C12="-",0,C12) -> 0 | E12: - | F12: =IF(E12="-",0,E12) -> 0 | G12: 6 | H12: =IF(G12="-",0,G12) -> 6 | I12: 8 | J12: =IF(I12="-",0,I12) -> 8 | K12: - | L12: =IF(K12="-",0,K12) -> 0 | M12: =Table10[[#This Row],[School]] -> Wreake Valley Academy | N12: =D12+F12+H12+J12+L12 -> 14 | O12: =MAX(C12,E12,G12,I12,K12) -> 8 | P12: =IF(Q12=1,N12,IF(Q12=0,(N12-O12),"-")) -> - | Q12: =$L$1-Table10[Competed Count] -> 2 | R12: =IF(Q12<2,"Yes","No") -> No | S12: =AND($C$1="Y",D12>0) -> FALSE | T12: =AND($E$1="Y",F12>0) -> FALSE | U12: =AND($G$1="Y",H12>0) -> TRUE | V12: =AND($I$1="Y",J12>0) -> TRUE | W12: =AND($K$1="Y",L12>0) -> FALSE | X12: =COUNTIF(Table10[[#This Row],[Competed 1]:[Competed 5]],"=TRUE") -> 2
A13: Ruby Bland | B13: Countesthorpe Leysland CC | C13: - | D13: =IF(C13="-",0,C13) -> 0 | E13: 6 | F13: =IF(E13="-",0,E13) -> 6 | G13: 10 | H13: =IF(G13="-",0,G13) -> 10 | I13: 9 | J13: =IF(I13="-",0,I13) -> 9 | K13: - | L13: =IF(K13="-",0,K13) -> 0 | M13: =Table10[[#This Row],[School]] -> Countesthorpe Leysland CC | N13: =D13+F13+H13+J13+L13 -> 25 | O13: =MAX(C13,E13,G13,I13,K13) -> 10 | P13: =IF(Q13=1,N13,IF(Q13=0,(N13-O13),"-")) -> 25 | Q13: =$L$1-Table10[Competed Count] -> 1 | R13: =IF(Q13<2,"Yes","No") -> Yes | S13: =AND($C$1="Y",D13>0) -> FALSE | T13: =AND($E$1="Y",F13>0) -> TRUE | U13: =AND($G$1="Y",H13>0) -> TRUE | V13: =AND($I$1="Y",J13>0) -> TRUE | W13: =AND($K$1="Y",L13>0) -> FALSE | X13: =COUNTIF(Table10[[#This Row],[Competed 1]:[Competed 5]],"=TRUE") -> 3
A14: Isabel Oakland | B14: De Lisle College | C14: 15 | D14: =IF(C14="-",0,C14) -> 15 | E14: 5 | F14: =IF(E14="-",0,E14) -> 5 | G14: 9 | H14: =IF(G14="-",0,G14) -> 9 | I14: 10 | J14: =IF(I14="-",0,I14) -> 10 | K14: - | L14: =IF(K14="-",0,K14) -> 0 | M14: =Table10[[#This Row],[School]] -> De Lisle College | N14: =D14+F14+H14+J14+L14 -> 39 | O14: =MAX(C14,E14,G14,I14,K14) -> 15 | P14: =IF(Q14=1,N14,IF(Q14=0,(N14-O14),"-")) -> 24 | Q14: =$L$1-Table10[Competed Count] -> 0 | R14: =IF(Q14<2,"Yes","No") -> Yes | S14: =AND($C$1="Y",D14>0) -> TRUE | T14: =AND($E$1="Y",F14>0) -> TRUE | U14: =AND($G$1="Y",H14>0) -> TRUE | V14: =AND($I$1="Y",J14>0) -> TRUE | W14: =AND($K$1="Y",L14>0) -> FALSE | X14: =COUNTIF(Table10[[#This Row],[Competed 1]:[Competed 5]],"=TRUE") -> 4
A15: Eleanor Harewood | B15: Countesthorpe Leysland CC | C15: - | D15: =IF(C15="-",0,C15) -> 0 | E15: - | F15: =IF(E15="-",0,E15) -> 0 | G15: - | H15: =IF(G15="-",0,G15) -> 0 | I15: 11 | J15: =IF(I15="-",0,I15) -> 11 | K15: - | L15: =IF(K15="-",0,K15) -> 0 | M15: =Table10[[#This Row],[School]] -> Countesthorpe Leysland CC | N15: =D15+F15+H15+J15+L15 -> 11 | O15: =MAX(C15,E15,G15,I15,K15) -> 11 | P15: =IF(Q15=1,N15,IF(Q15=0,(N15-O15),"-")) -> - | Q15: =$L$1-Table10[Competed Count] -> 3 | R15: =IF(Q15<2,"Yes","No") -> No | S15: =AND($C$1="Y",D15>0) -> FALSE | T15: =AND($E$1="Y",F15>0) -> FALSE | U15: =AND($G$1="Y",H15>0) -> FALSE | V15: =AND($I$1="Y",J15>0) -> TRUE | W15: =AND($K$1="Y",L15>0) -> FALSE | X15: =COUNTIF(Table10[[#This Row],[Competed 1]:[Competed 5]],"=TRUE") -> 1
A16: Holly Wright | B16: Guest | C16: 14 | D16: =IF(C16="-",0,C16) -> 14 | E16: 7 | F16: =IF(E16="-",0,E16) -> 7 | G16: 12 | H16: =IF(G16="-",0,G16) -> 12 | I16: 12 | J16: =IF(I16="-",0,I16) -> 12 | K16: - | L16: =IF(K16="-",0,K16) -> 0 | M16: =Table10[[#This Row],[School]] -> Guest | N16: =D16+F16+H16+J16+L16 -> 45 | O16: =MAX(C16,E16,G16,I16,K16) -> 14 | P16: =IF(Q16=1,N16,IF(Q16=0,(N16-O16),"-")) -> 31 | Q16: =$L$1-Table10[Competed Count] -> 0 | R16: =IF(Q16<2,"Yes","No") -> Yes | S16: =AND($C$1="Y",D16>0) -> TRUE | T16: =AND($E$1="Y",F16>0) -> TRUE | U16: =AND($G$1="Y",H16>0) -> TRUE | V16: =AND($I$1="Y",J16>0) -> TRUE | W16: =AND($K$1="Y",L16>0) -> FALSE | X16: =COUNTIF(Table10[[#This Row],[Competed 1]:[Competed 5]],"=TRUE") -> 4
A17: Scarlot Blake-Rider | B17: Countesthorpe Leysland CC | C17: - | D17: =IF(C17="-",0,C17) -> 0 | E17: - | F17: =IF(E17="-",0,E17) -> 0 | G17: 15 | H17: =IF(G17="-",0,G17) -> 15 | I17: 13 | J17: =IF(I17="-",0,I17) -> 13 | K17: - | L17: =IF(K17="-",0,K17) -> 0 | M17: =Table10[[#This Row],[School]] -> Countesthorpe Leysland CC | N17: =D17+F17+H17+J17+L17 -> 28 | O17: =MAX(C17,E17,G17,I17,K17) -> 15 | P17: =IF(Q17=1,N17,IF(Q17=0,(N17-O17),"-")) -> - | Q17: =$L$1-Table10[Competed Count] -> 2 | R17: =IF(Q17<2,"Yes","No") -> No | S17: =AND($C$1="Y",D17>0) -> FALSE | T17: =AND($E$1="Y",F17>0) -> FALSE | U17: =AND($G$1="Y",H17>0) -> TRUE | V17: =AND($I$1="Y",J17>0) -> TRUE | W17: =AND($K$1="Y",L17>0) -> FALSE | X17: =COUNTIF(Table10[[#This Row],[Competed 1]:[Competed 5]],"=TRUE") -> 2
A18: Flo Hagger | B18: Thomas Estley CC | C18: 6 | D18: =IF(C18="-",0,C18) -> 6 | E18: - | F18: =IF(E18="-",0,E18) -> 0 | G18: 5 | H18: =IF(G18="-",0,G18) -> 5 | I18: 14 | J18: =IF(I18="-",0,I18) -> 14 | K18: - | L18: =IF(K18="-",0,K18) -> 0 | M18: =Table10[[#This Row],[School]] -> Thomas Estley CC | N18: =D18+F18+H18+J18+L18 -> 25 | O18: =MAX(C18,E18,G18,I18,K18) -> 14 | P18: =IF(Q18=1,N18,IF(Q18=0,(N18-O18),"-")) -> 25 | Q18: =$L$1-Table10[Competed Count] -> 1 | R18: =IF(Q18<2,"Yes","No") -> Yes | S18: =AND($C$1="Y",D18>0) -> TRUE | T18: =AND($E$1="Y",F18>0) -> FALSE | U18: =AND($G$1="Y",H18>0) -> TRUE | V18: =AND($I$1="Y",J18>0) -> TRUE | W18: =AND($K$1="Y",L18>0) -> FALSE | X18: =COUNTIF(Table10[[#This Row],[Competed 1]:[Competed 5]],"=TRUE") -> 3
A19: Ruby Howe | B19: Welland Park Academy | C19: 12 | D19: =IF(C19="-",0,C19) -> 12 | E19: 9 | F19: =IF(E19="-",0,E19) -> 9 | G19: 14 | H19: =IF(G19="-",0,G19) -> 14 | I19: 15 | J19: =IF(I19="-",0,I19) -> 15 | K19: - | L19: =IF(K19="-",0,K19) -> 0 | M19: =Table10[[#This Row],[School]] -> Welland Park Academy | N19: =D19+F19+H19+J19+L19 -> 50 | O19: =MAX(C19,E19,G19,I19,K19) -> 15 | P19: =IF(Q19=1,N19,IF(Q19=0,(N19-O19),"-")) -> 35 | Q19: =$L$1-Table10[Competed Count] -> 0 | R19: =IF(Q19<2,"Yes","No") -> Yes | S19: =AND($C$1="Y",D19>0) -> TRUE | T19: =AND($E$1="Y",F19>0) -> TRUE | U19: =AND($G$1="Y",H19>0) -> TRUE | V19: =AND($I$1="Y",J19>0) -> TRUE | W19: =AND($K$1="Y",L19>0) -> FALSE | X19: =COUNTIF(Table10[[#This Row],[Competed 1]:[Competed 5]],"=TRUE") -> 4
A20: Isabelle Wilson | B20: De Lisle College | C20: 11 | D20: =IF(C20="-",0,C20) -> 11 | E20: - | F20: =IF(E20="-",0,E20) -> 0 | G20: 11 | H20: =IF(G20="-",0,G20) -> 11 | I20: 16 | J20: =IF(I20="-",0,I20) -> 16 | K20: - | L20: =IF(K20="-",0,K20) -> 0 | M20: =Table10[[#This Row],[School]] -> De Lisle College | N20: =D20+F20+H20+J20+L20 -> 38 | O20: =MAX(C20,E20,G20,I20,K20) -> 16 | P20: =IF(Q20=1,N20,IF(Q20=0,(N20-O20),"-")) -> 38 | Q20: =$L$1-Table10[Competed Count] -> 1 | R20: =IF(Q20<2,"Yes","No") -> Yes | S20: =AND($C$1="Y",D20>0) -> TRUE | T20: =AND($E$1="Y",F20>0) -> FALSE | U20: =AND($G$1="Y",H20>0) -> TRUE | V20: =AND($I$1="Y",J20>0) -> TRUE | W20: =AND($K$1="Y",L20>0) -> FALSE | X20: =COUNTIF(Table10[[#This Row],[Competed 1]:[Competed 5]],"=TRUE") -> 3
A21: Emily Cutler | B21: Dixie Grammar School | C21: 9 | D21: =IF(C21="-",0,C21) -> 9 | E21: - | F21: =IF(E21="-",0,E21) -> 0 | G21: 8 | H21: =IF(G21="-",0,G21) -> 8 | I21: 17 | J21: =IF(I21="-",0,I21) -> 17 | K21: - | L21: =IF(K21="-",0,K21) -> 0 | M21: =Table10[[#This Row],[School]] -> Dixie Grammar School | N21: =D21+F21+H21+J21+L21 -> 34 | O21: =MAX(C21,E21,G21,I21,K21) -> 17 | P21: =IF(Q21=1,N21,IF(Q21=0,(N21-O21),"-")) -> 34 | Q21: =$L$1-Table10[Competed Count] -> 1 | R21: =IF(Q21<2,"Yes","No") -> Yes | S21: =AND($C$1="Y",D21>0) -> TRUE | T21: =AND($E$1="Y",F21>0) -> FALSE | U21: =AND($G$1="Y",H21>0) -> TRUE | V21: =AND($I$1="Y",J21>0) -> TRUE | W21: =AND($K$1="Y",L21>0) -> FALSE | X21: =COUNTIF(Table10[[#This Row],[Competed 1]:[Competed 5]],"=TRUE") -> 3
A22: Freya Banneriff | B22: Uppingham CC | C22: - | D22: =IF(C22="-",0,C22) -> 0 | E22: 11 | F22: =IF(E22="-",0,E22) -> 11 | G22: 18 | H22: =IF(G22="-",0,G22) -> 18 | I22: 18 | J22: =IF(I22="-",0,I22) -> 18 | K22: - | L22: =IF(K22="-",0,K22) -> 0 | M22: =Table10[[#This Row],[School]] -> Uppingham CC | N22: =D22+F22+H22+J22+L22 -> 47 | O22: =MAX(C22,E22,G22,I22,K22) -> 18 | P22: =IF(Q22=1,N22,IF(Q22=0,(N22-O22),"-")) -> 47 | Q22: =$L$1-Table10[Competed Count] -> 1 | R22: =IF(Q22<2,"Yes","No") -> Yes | S22: =AND($C$1="Y",D22>0) -> FALSE | T22: =AND($E$1="Y",F22>0) -> TRUE | U22: =AND($G$1="Y",H22>0) -> TRUE | V22: =AND($I$1="Y",J22>0) -> TRUE | W22: =AND($K$1="Y",L22>0) -> FALSE | X22: =COUNTIF(Table10[[#This Row],[Competed 1]:[Competed 5]],"=TRUE") -> 3
A23: Isobel Edwards | B23: Ivanhoe College | C23: 17 | D23: =IF(C23="-",0,C23) -> 17 | E23: - | F23: =IF(E23="-",0,E23) -> 0 | G23: 19 | H23: =IF(G23="-",0,G23) -> 19 | I23: 19 | J23: =IF(I23="-",0,I23) -> 19 | K23: - | L23: =IF(K23="-",0,K23) -> 0 | M23: =Table10[[#This Row],[School]] -> Ivanhoe College | N23: =D23+F23+H23+J23+L23 -> 55 | O23: =MAX(C23,E23,G23,I23,K23) -> 19 | P23: =IF(Q23=1,N23,IF(Q23=0,(N23-O23),"-")) -> 55 | Q23: =$L$1-Table10[Competed Count] -> 1 | R23: =IF(Q23<2,"Yes","No") -> Yes | S23: =AND($C$1="Y",D23>0) -> TRUE | T23: =AND($E$1="Y",F23>0) -> FALSE | U23: =AND($G$1="Y",H23>0) -> TRUE | V23: =AND($I$1="Y",J23>0) -> TRUE | W23: =AND($K$1="Y",L23>0) -> FALSE | X23: =COUNTIF(Table10[[#This Row],[Competed 1]:[Competed 5]],"=TRUE") -> 3
A24: Nataliya Karapchanska | B24: Robert Smyth Academy | C24: - | D24: =IF(C24="-",0,C24) -> 0 | E24: - | F24: =IF(E24="-",0,E24) -> 0 | G24: - | H24: =IF(G24="-",0,G24) -> 0 | I24: 20 | J24: =IF(I24="-",0,I24) -> 20 | K24: - | L24: =IF(K24="-",0,K24) -> 0 | M24: =Table10[[#This Row],[School]] -> Robert Smyth Academy | N24: =D24+F24+H24+J24+L24 -> 20 | O24: =MAX(C24,E24,G24,I24,K24) -> 20 | P24: =IF(Q24=1,N24,IF(Q24=0,(N24-O24),"-")) -> - | Q24: =$L$1-Table10[Competed Count] -> 3 | R24: =IF(Q24<2,"Yes","No") -> No | S24: =AND($C$1="Y",D24>0) -> FALSE | T24: =AND($E$1="Y",F24>0) -> FALSE | U24: =AND($G$1="Y",H24>0) -> FALSE | V24: =AND($I$1="Y",J24>0) -> TRUE | W24: =AND($K$1="Y",L24>0) -> FALSE | X24: =COUNTIF(Table10[[#This Row],[Competed 1]:[Competed 5]],"=TRUE") -> 1
A25: Bay Mitchell | B25: Catmose College | C25: - | D25: =IF(C25="-",0,C25) -> 0 | E25: 21 | F25: =IF(E25="-",0,E25) -> 21 | G25: 24 | H25: =IF(G25="-",0,G25) -> 24 | I25: 21 | J25: =IF(I25="-",0,I25) -> 21 | K25: - | L25: =IF(K25="-",0,K25) -> 0 | M25: =Table10[[#This Row],[School]] -> Catmose College | N25: =D25+F25+H25+J25+L25 -> 66 | O25: =MAX(C25,E25,G25,I25,K25) -> 24 | P25: =IF(Q25=1,N25,IF(Q25=0,(N25-O25),"-")) -> 66 | Q25: =$L$1-Table10[Competed Count] -> 1 | R25: =IF(Q25<2,"Yes","No") -> Yes | S25: =AND($C$1="Y",D25>0) -> FALSE | T25: =AND($E$1="Y",F25>0) -> TRUE | U25: =AND($G$1="Y",H25>0) -> TRUE | V25: =AND($I$1="Y",J25>0) -> TRUE | W25: =AND($K$1="Y",L25>0) -> FALSE | X25: =COUNTIF(Table10[[#This Row],[Competed 1]:[Competed 5]],"=TRUE") -> 3
A26: Daisy Low | B26: Lutterworth College | C26: 13 | D26: =IF(C26="-",0,C26) -> 13 | E26: 10 | F26: =IF(E26="-",0,E26) -> 10 | G26: 16 | H26: =IF(G26="-",0,G26) -> 16 | I26: 22 | J26: =IF(I26="-",0,I26) -> 22 | K26: - | L26: =IF(K26="-",0,K26) -> 0 | M26: =Table10[[#This Row],[School]] -> Lutterworth College | N26: =D26+F26+H26+J26+L26 -> 61 | O26: =MAX(C26,E26,G26,I26,K26) -> 22 | P26: =IF(Q26=1,N26,IF(Q26=0,(N26-O26),"-")) -> 39 | Q26: =$L$1-Table10[Competed Count] -> 0 | R26: =IF(Q26<2,"Yes","No") -> Yes | S26: =AND($C$1="Y",D26>0) -> TRUE | T26: =AND($E$1="Y",F26>0) -> TRUE | U26: =AND($G$1="Y",H26>0) -> TRUE | V26: =AND($I$1="Y",J26>0) -> TRUE | W26: =AND($K$1="Y",L26>0) -> FALSE | X26: =COUNTIF(Table10[[#This Row],[Competed 1]:[Competed 5]],"=TRUE") -> 4
A27: Lily Grocock | B27: Countesthorpe Leysland CC | C27: 20 | D27: =IF(C27="-",0,C27) -> 20 | E27: 23 | F27: =IF(E27="-",0,E27) -> 23 | G27: 21 | H27: =IF(G27="-",0,G27) -> 21 | I27: 23 | J27: =IF(I27="-",0,I27) -> 23 | K27: - | L27: =IF(K27="-",0,K27) -> 0 | M27: =Table10[[#This Row],[School]] -> Countesthorpe Leysland CC | N27: =D27+F27+H27+J27+L27 -> 87 | O27: =MAX(C27,E27,G27,I27,K27) -> 23 | P27: =IF(Q27=1,N27,IF(Q27=0,(N27-O27),"-")) -> 64 | Q27: =$L$1-Table10[Competed Count] -> 0 | R27: =IF(Q27<2,"Yes","No") -> Yes | S27: =AND($C$1="Y",D27>0) -> TRUE | T27: =AND($E$1="Y",F27>0) -> TRUE | U27: =AND($G$1="Y",H27>0) -> TRUE | V27: =AND($I$1="Y",J27>0) -> TRUE | W27: =AND($K$1="Y",L27>0) -> FALSE | X27: =COUNTIF(Table10[[#This Row],[Competed 1]:[Competed 5]],"=TRUE") -> 4
A28: Georgie Wade | B28: John Ferneley College | C28: 29 | D28: =IF(C28="-",0,C28) -> 29 | E28: 18 | F28: =IF(E28="-",0,E28) -> 18 | G28: 22 | H28: =IF(G28="-",0,G28) -> 22 | I28: 24 | J28: =IF(I28="-",0,I28) -> 24 | K28: - | L28: =IF(K28="-",0,K28) -> 0 | M28: =Table10[[#This Row],[School]] -> John Ferneley College | N28: =D28+F28+H28+J28+L28 -> 93 | O28: =MAX(C28,E28,G28,I28,K28) -> 29 | P28: =IF(Q28=1,N28,IF(Q28=0,(N28-O28),"-")) -> 64 | Q28: =$L$1-Table10[Competed Count] -> 0 | R28: =IF(Q28<2,"Yes","No") -> Yes | S28: =AND($C$1="Y",D28>0) -> TRUE | T28: =AND($E$1="Y",F28>0) -> TRUE | U28: =AND($G$1="Y",H28>0) -> TRUE | V28: =AND($I$1="Y",J28>0) -> TRUE | W28: =AND($K$1="Y",L28>0) -> FALSE | X28: =COUNTIF(Table10[[#This Row],[Competed 1]:[Competed 5]],"=TRUE") -> 4
A29: Annabella Jagger | B29: De Lisle College | C29: 25 | D29: =IF(C29="-",0,C29) -> 25 | E29: 20 | F29: =IF(E29="-",0,E29) -> 20 | G29: 25 | H29: =IF(G29="-",0,G29) -> 25 | I29: 25 | J29: =IF(I29="-",0,I29) -> 25 | K29: - | L29: =IF(K29="-",0,K29) -> 0 | M29: =Table10[[#This Row],[School]] -> De Lisle College | N29: =D29+F29+H29+J29+L29 -> 95 | O29: =MAX(C29,E29,G29,I29,K29) -> 25 | P29: =IF(Q29=1,N29,IF(Q29=0,(N29-O29),"-")) -> 70 | Q29: =$L$1-Table10[Competed Count] -> 0 | R29: =IF(Q29<2,"Yes","No") -> Yes | S29: =AND($C$1="Y",D29>0) -> TRUE | T29: =AND($E$1="Y",F29>0) -> TRUE | U29: =AND($G$1="Y",H29>0) -> TRUE | V29: =AND($I$1="Y",J29>0) -> TRUE | W29: =AND($K$1="Y",L29>0) -> FALSE | X29: =COUNTIF(Table10[[#This Row],[Competed 1]:[Competed 5]],"=TRUE") -> 4
A30: Emily McGiellis | B30: Thomas Estley CC | C30: 21 | D30: =IF(C30="-",0,C30) -> 21 | E30: 13 | F30: =IF(E30="-",0,E30) -> 13 | G30: - | H30: =IF(G30="-",0,G30) -> 0 | I30: 26 | J30: =IF(I30="-",0,I30) -> 26 | K30: - | L30: =IF(K30="-",0,K30) -> 0 | M30: =Table10[[#This Row],[School]] -> Thomas Estley CC | N30: =D30+F30+H30+J30+L30 -> 60 | O30: =MAX(C30,E30,G30,I30,K30) -> 26 | P30: =IF(Q30=1,N30,IF(Q30=0,(N30-O30),"-")) -> 60 | Q30: =$L$1-Table10[Competed Count] -> 1 | R30: =IF(Q30<2,"Yes","No") -> Yes | S30: =AND($C$1="Y",D30>0) -> TRUE | T30: =AND($E$1="Y",F30>0) -> TRUE | U30: =AND($G$1="Y",H30>0) -> FALSE | V30: =AND($I$1="Y",J30>0) -> TRUE | W30: =AND($K$1="Y",L30>0) -> FALSE | X30: =COUNTIF(Table10[[#This Row],[Competed 1]:[Competed 5]],"=TRUE") -> 3
A31: Lottie Jarvis | B31: Humphrey Perkins School | C31: 19 | D31: =IF(C31="-",0,C31) -> 19 | E31: 17 | F31: =IF(E31="-",0,E31) -> 17 | G31: - | H31: =IF(G31="-",0,G31) -> 0 | I31: 27 | J31: =IF(I31="-",0,I31) -> 27 | K31: - | L31: =IF(K31="-",0,K31) -> 0 | M31: =Table10[[#This Row],[School]] -> Humphrey Perkins School | N31: =D31+F31+H31+J31+L31 -> 63 | O31: =MAX(C31,E31,G31,I31,K31) -> 27 | P31: =IF(Q31=1,N31,IF(Q31=0,(N31-O31),"-")) -> 63 | Q31: =$L$1-Table10[Competed Count] -> 1 | R31: =IF(Q31<2,"Yes","No") -> Yes | S31: =AND($C$1="Y",D31>0) -> TRUE | T31: =AND($E$1="Y",F31>0) -> TRUE | U31: =AND($G$1="Y",H31>0) -> FALSE | V31: =AND($I$1="Y",J31>0) -> TRUE | W31: =AND($K$1="Y",L31>0) -> FALSE | X31: =COUNTIF(Table10[[#This Row],[Competed 1]:[Competed 5]],"=TRUE") -> 3
A32: Lexi Hodkinson | B32: Woodbrook Vale School | C32: - | D32: =IF(C32="-",0,C32) -> 0 | E32: 19 | F32: =IF(E32="-",0,E32) -> 19 | G32: - | H32: =IF(G32="-",0,G32) -> 0 | I32: 28 | J32: =IF(I32="-",0,I32) -> 28 | K32: - | L32: =IF(K32="-",0,K32) -> 0 | M32: =Table10[[#This Row],[School]] -> Woodbrook Vale School | N32: =D32+F32+H32+J32+L32 -> 47 | O32: =MAX(C32,E32,G32,I32,K32) -> 28 | P32: =IF(Q32=1,N32,IF(Q32=0,(N32-O32),"-")) -> - | Q32: =$L$1-Table10[Competed Count] -> 2 | R32: =IF(Q32<2,"Yes","No") -> No | S32: =AND($C$1="Y",D32>0) -> FALSE | T32: =AND($E$1="Y",F32>0) -> TRUE | U32: =AND($G$1="Y",H32>0) -> FALSE | V32: =AND($I$1="Y",J32>0) -> TRUE | W32: =AND($K$1="Y",L32>0) -> FALSE | X32: =COUNTIF(Table10[[#This Row],[Competed 1]:[Competed 5]],"=TRUE") -> 2
A33: Mia Potter | B33: De Lisle College | C33: 33 | D33: =IF(C33="-",0,C33) -> 33 | E33: - | F33: =IF(E33="-",0,E33) -> 0 | G33: 26 | H33: =IF(G33="-",0,G33) -> 26 | I33: 29 | J33: =IF(I33="-",0,I33) -> 29 | K33: - | L33: =IF(K33="-",0,K33) -> 0 | M33: =Table10[[#This Row],[School]] -> De Lisle College | N33: =D33+F33+H33+J33+L33 -> 88 | O33: =MAX(C33,E33,G33,I33,K33) -> 33 | P33: =IF(Q33=1,N33,IF(Q33=0,(N33-O33),"-")) -> 88 | Q33: =$L$1-Table10[Competed Count] -> 1 | R33: =IF(Q33<2,"Yes","No") -> Yes | S33: =AND($C$1="Y",D33>0) -> TRUE | T33: =AND($E$1="Y",F33>0) -> FALSE | U33: =AND($G$1="Y",H33>0) -> TRUE | V33: =AND($I$1="Y",J33>0) -> TRUE | W33: =AND($K$1="Y",L33>0) -> FALSE | X33: =COUNTIF(Table10[[#This Row],[Competed 1]:[Competed 5]],"=TRUE") -> 3
A34: Millie Leavis | B34: Thomas Estley CC | C34: 28 | D34: =IF(C34="-",0,C34) -> 28 | E34: 22 | F34: =IF(E34="-",0,E34) -> 22 | G34: 31 | H34: =IF(G34="-",0,G34) -> 31 | I34: 30 | J34: =IF(I34="-",0,I34) -> 30 | K34: - | L34: =IF(K34="-",0,K34) -> 0 | M34: =Table10[[#This Row],[School]] -> Thomas Estley CC | N34: =D34+F34+H34+J34+L34 -> 111 | O34: =MAX(C34,E34,G34,I34,K34) -> 31 | P34: =IF(Q34=1,N34,IF(Q34=0,(N34-O34),"-")) -> 80 | Q34: =$L$1-Table10[Competed Count] -> 0 | R34: =IF(Q34<2,"Yes","No") -> Yes | S34: =AND($C$1="Y",D34>0) -> TRUE | T34: =AND($E$1="Y",F34>0) -> TRUE | U34: =AND($G$1="Y",H34>0) -> TRUE | V34: =AND($I$1="Y",J34>0) -> TRUE | W34: =AND($K$1="Y",L34>0) -> FALSE | X34: =COUNTIF(Table10[[#This Row],[Competed 1]:[Competed 5]],"=TRUE") -> 4
A35: Erin Rose Ashworth | B35: John Ferneley College | C35: - | D35: =IF(C35="-",0,C35) -> 0 | E35: 28 | F35: =IF(E35="-",0,E35) -> 28 | G35: 29 | H35: =IF(G35="-",0,G35) -> 29 | I35: 31 | J35: =IF(I35="-",0,I35) -> 31 | K35: - | L35: =IF(K35="-",0,K35) -> 0 | M35: =Table10[[#This Row],[School]] -> John Ferneley College | N35: =D35+F35+H35+J35+L35 -> 88 | O35: =MAX(C35,E35,G35,I35,K35) -> 31 | P35: =IF(Q35=1,N35,IF(Q35=0,(N35-O35),"-")) -> 88 | Q35: =$L$1-Table10[Competed Count] -> 1 | R35: =IF(Q35<2,"Yes","No") -> Yes | S35: =AND($C$1="Y",D35>0) -> FALSE | T35: =AND($E$1="Y",F35>0) -> TRUE | U35: =AND($G$1="Y",H35>0) -> TRUE | V35: =AND($I$1="Y",J35>0) -> TRUE | W35: =AND($K$1="Y",L35>0) -> FALSE | X35: =COUNTIF(Table10[[#This Row],[Competed 1]:[Competed 5]],"=TRUE") -> 3
A36: Daisy Sharpe | B36: John Ferneley College | C36: 27 | D36: =IF(C36="-",0,C36) -> 27 | E36: 24 | F36: =IF(E36="-",0,E36) -> 24 | G36: 28 | H36: =IF(G36="-",0,G36) -> 28 | I36: 32 | J36: =IF(I36="-",0,I36) -> 32 | K36: - | L36: =IF(K36="-",0,K36) -> 0 | M36: =Table10[[#This Row],[School]] -> John Ferneley College | N36: =D36+F36+H36+J36+L36 -> 111 | O36: =MAX(C36,E36,G36,I36,K36) -> 32 | P36: =IF(Q36=1,N36,IF(Q36=0,(N36-O36),"-")) -> 79 | Q36: =$L$1-Table10[Competed Count] -> 0 | R36: =IF(Q36<2,"Yes","No") -> Yes | S36: =AND($C$1="Y",D36>0) -> TRUE | T36: =AND($E$1="Y",F36>0) -> TRUE | U36: =AND($G$1="Y",H36>0) -> TRUE | V36: =AND($I$1="Y",J36>0) -> TRUE | W36: =AND($K$1="Y",L36>0) -> FALSE | X36: =COUNTIF(Table10[[#This Row],[Competed 1]:[Competed 5]],"=TRUE") -> 4
A37: Zahra Nisbett | B37: St Pauls Catholic School | C37: - | D37: =IF(C37="-",0,C37) -> 0 | E37: 26 | F37: =IF(E37="-",0,E37) -> 26 | G37: - | H37: =IF(G37="-",0,G37) -> 0 | I37: 33 | J37: =IF(I37="-",0,I37) -> 33 | K37: - | L37: =IF(K37="-",0,K37) -> 0 | M37: =Table10[[#This Row],[School]] -> St Pauls Catholic School | N37: =D37+F37+H37+J37+L37 -> 59 | O37: =MAX(C37,E37,G37,I37,K37) -> 33 | P37: =IF(Q37=1,N37,IF(Q37=0,(N37-O37),"-")) -> - | Q37: =$L$1-Table10[Competed Count] -> 2 | R37: =IF(Q37<2,"Yes","No") -> No | S37: =AND($C$1="Y",D37>0) -> FALSE | T37: =AND($E$1="Y",F37>0) -> TRUE | U37: =AND($G$1="Y",H37>0) -> FALSE | V37: =AND($I$1="Y",J37>0) -> TRUE | W37: =AND($K$1="Y",L37>0) -> FALSE | X37: =COUNTIF(Table10[[#This Row],[Competed 1]:[Competed 5]],"=TRUE") -> 2
A38: Emily Beer | B38: Charnwood College | C38: 10 | D38: =IF(C38="-",0,C38) -> 10 | E38: 4 | F38: =IF(E38="-",0,E38) -> 4 | G38: 13 | H38: =IF(G38="-",0,G38) -> 13 | I38: - | J38: =IF(I38="-",0,I38) -> 0 | K38: - | L38: =IF(K38="-",0,K38) -> 0 | M38: =Table10[[#This Row],[School]] -> Charnwood College | N38: =D38+F38+H38+J38+L38 -> 27 | O38: =MAX(C38,E38,G38,I38,K38) -> 13 | P38: =IF(Q38=1,N38,IF(Q38=0,(N38-O38),"-")) -> 27 | Q38: =$L$1-Table10[Competed Count] -> 1 | R38: =IF(Q38<2,"Yes","No") -> Yes | S38: =AND($C$1="Y",D38>0) -> TRUE | T38: =AND($E$1="Y",F38>0) -> TRUE | U38: =AND($G$1="Y",H38>0) -> TRUE | V38: =AND($I$1="Y",J38>0) -> FALSE | W38: =AND($K$1="Y",L38>0) -> FALSE | X38: =COUNTIF(Table10[[#This Row],[Competed 1]:[Competed 5]],"=TRUE") -> 3
A39: Jemma Simons | B39: Long Field Academy | C39: - | D39: =IF(C39="-",0,C39) -> 0 | E39: - | F39: =IF(E39="-",0,E39) -> 0 | G39: 17 | H39: =IF(G39="-",0,G39) -> 17 | I39: - | J39: =IF(I39="-",0,I39) -> 0 | K39: - | L39: =IF(K39="-",0,K39) -> 0 | M39: =Table10[[#This Row],[School]] -> Long Field Academy | N39: =D39+F39+H39+J39+L39 -> 17 | O39: =MAX(C39,E39,G39,I39,K39) -> 17 | P39: =IF(Q39=1,N39,IF(Q39=0,(N39-O39),"-")) -> - | Q39: =$L$1-Table10[Competed Count] -> 3 | R39: =IF(Q39<2,"Yes","No") -> No | S39: =AND($C$1="Y",D39>0) -> FALSE | T39: =AND($E$1="Y",F39>0) -> FALSE | U39: =AND($G$1="Y",H39>0) -> TRUE | V39: =AND($I$1="Y",J39>0) -> FALSE | W39: =AND($K$1="Y",L39>0) -> FALSE | X39: =COUNTIF(Table10[[#This Row],[Competed 1]:[Competed 5]],"=TRUE") -> 1
A40: Elizabeth Barber | B40: De Lisle College | C40: 18 | D40: =IF(C40="-",0,C40) -> 18 | E40: - | F40: =IF(E40="-",0,E40) -> 0 | G40: 20 | H40: =IF(G40="-",0,G40) -> 20 | I40: - | J40: =IF(I40="-",0,I40) -> 0 | K40: - | L40: =IF(K40="-",0,K40) -> 0 | M40: =Table10[[#This Row],[School]] -> De Lisle College | N40: =D40+F40+H40+J40+L40 -> 38 | O40: =MAX(C40,E40,G40,I40,K40) -> 20 | P40: =IF(Q40=1,N40,IF(Q40=0,(N40-O40),"-")) -> - | Q40: =$L$1-Table10[Competed Count] -> 2 | R40: =IF(Q40<2,"Yes","No") -> No | S40: =AND($C$1="Y",D40>0) -> TRUE | T40: =AND($E$1="Y",F40>0) -> FALSE | U40: =AND($G$1="Y",H40>0) -> TRUE | V40: =AND($I$1="Y",J40>0) -> FALSE | W40: =AND($K$1="Y",L40>0) -> FALSE | X40: =COUNTIF(Table10[[#This Row],[Competed 1]:[Competed 5]],"=TRUE") -> 2
A41: Rosie Harris | B41: Ivanhoe College | C41: - | D41: =IF(C41="-",0,C41) -> 0 | E41: 14 | F41: =IF(E41="-",0,E41) -> 14 | G41: 23 | H41: =IF(G41="-",0,G41) -> 23 | I41: - | J41: =IF(I41="-",0,I41) -> 0 | K41: - | L41: =IF(K41="-",0,K41) -> 0 | M41: =Table10[[#This Row],[School]] -> Ivanhoe College | N41: =D41+F41+H41+J41+L41 -> 37 | O41: =MAX(C41,E41,G41,I41,K41) -> 23 | P41: =IF(Q41=1,N41,IF(Q41=0,(N41-O41),"-")) -> - | Q41: =$L$1-Table10[Competed Count] -> 2 | R41: =IF(Q41<2,"Yes","No") -> No | S41: =AND($C$1="Y",D41>0) -> FALSE | T41: =AND($E$1="Y",F41>0) -> TRUE | U41: =AND($G$1="Y",H41>0) -> TRUE | V41: =AND($I$1="Y",J41>0) -> FALSE | W41: =AND($K$1="Y",L41>0) -> FALSE | X41: =COUNTIF(Table10[[#This Row],[Competed 1]:[Competed 5]],"=TRUE") -> 2
A42: Jessica Shorrock | B42: Long Field Academy | C42: - | D42: =IF(C42="-",0,C42) -> 0 | E42: - | F42: =IF(E42="-",0,E42) -> 0 | G42: 27 | H42: =IF(G42="-",0,G42) -> 27 | I42: - | J42: =IF(I42="-",0,I42) -> 0 | K42: - | L42: =IF(K42="-",0,K42) -> 0 | M42: =Table10[[#This Row],[School]] -> Long Field Academy | N42: =D42+F42+H42+J42+L42 -> 27 | O42: =MAX(C42,E42,G42,I42,K42) -> 27 | P42: =IF(Q42=1,N42,IF(Q42=0,(N42-O42),"-")) -> - | Q42: =$L$1-Table10[Competed Count] -> 3 | R42: =IF(Q42<2,"Yes","No") -> No | S42: =AND($C$1="Y",D42>0) -> FALSE | T42: =AND($E$1="Y",F42>0) -> FALSE | U42: =AND($G$1="Y",H42>0) -> TRUE | V42: =AND($I$1="Y",J42>0) -> FALSE | W42: =AND($K$1="Y",L42>0) -> FALSE | X42: =COUNTIF(Table10[[#This Row],[Competed 1]:[Competed 5]],"=TRUE") -> 1
A43: Maisy Forbes-Carpenter | B43: Charnwood College | C43: 23 | D43: =IF(C43="-",0,C43) -> 23 | E43: 16 | F43: =IF(E43="-",0,E43) -> 16 | G43: 30 | H43: =IF(G43="-",0,G43) -> 30 | I43: - | J43: =IF(I43="-",0,I43) -> 0 | K43: - | L43: =IF(K43="-",0,K43) -> 0 | M43: =Table10[[#This Row],[School]] -> Charnwood College | N43: =D43+F43+H43+J43+L43 -> 69 | O43: =MAX(C43,E43,G43,I43,K43) -> 30 | P43: =IF(Q43=1,N43,IF(Q43=0,(N43-O43),"-")) -> 69 | Q43: =$L$1-Table10[Competed Count] -> 1 | R43: =IF(Q43<2,"Yes","No") -> Yes | S43: =AND($C$1="Y",D43>0) -> TRUE | T43: =AND($E$1="Y",F43>0) -> TRUE | U43: =AND($G$1="Y",H43>0) -> TRUE | V43: =AND($I$1="Y",J43>0) -> FALSE | W43: =AND($K$1="Y",L43>0) -> FALSE | X43: =COUNTIF(Table10[[#This Row],[Competed 1]:[Competed 5]],"=TRUE") -> 3
A44: Amy Griffin | B44: Ratcliffe College | C44: - | D44: =IF(C44="-",0,C44) -> 0 | E44: - | F44: =IF(E44="-",0,E44) -> 0 | G44: 32 | H44: =IF(G44="-",0,G44) -> 32 | I44: - | J44: =IF(I44="-",0,I44) -> 0 | K44: - | L44: =IF(K44="-",0,K44) -> 0 | M44: =Table10[[#This Row],[School]] -> Ratcliffe College | N44: =D44+F44+H44+J44+L44 -> 32 | O44: =MAX(C44,E44,G44,I44,K44) -> 32 | P44: =IF(Q44=1,N44,IF(Q44=0,(N44-O44),"-")) -> - | Q44: =$L$1-Table10[Competed Count] -> 3 | R44: =IF(Q44<2,"Yes","No") -> No | S44: =AND($C$1="Y",D44>0) -> FALSE | T44: =AND($E$1="Y",F44>0) -> FALSE | U44: =AND($G$1="Y",H44>0) -> TRUE | V44: =AND($I$1="Y",J44>0) -> FALSE | W44: =AND($K$1="Y",L44>0) -> FALSE | X44: =COUNTIF(Table10[[#This Row],[Competed 1]:[Competed 5]],"=TRUE") -> 1
A45: Unclaimed | B45: Brookvale High School | C45: 31 | D45: =IF(C45="-",0,C45) -> 31 | E45: 27 | F45: =IF(E45="-",0,E45) -> 27 | G45: 33 | H45: =IF(G45="-",0,G45) -> 33 | I45: - | J45: =IF(I45="-",0,I45) -> 0 | K45: - | L45: =IF(K45="-",0,K45) -> 0 | M45: =Table10[[#This Row],[School]] -> Brookvale High School | N45: =D45+F45+H45+J45+L45 -> 91 | O45: =MAX(C45,E45,G45,I45,K45) -> 33 | P45: =IF(Q45=1,N45,IF(Q45=0,(N45-O45),"-")) -> 91 | Q45: =$L$1-Table10[Competed Count] -> 1 | R45: =IF(Q45<2,"Yes","No") -> Yes | S45: =AND($C$1="Y",D45>0) -> TRUE | T45: =AND($E$1="Y",F45>0) -> TRUE | U45: =AND($G$1="Y",H45>0) -> TRUE | V45: =AND($I$1="Y",J45>0) -> FALSE | W45: =AND($K$1="Y",L45>0) -> FALSE | X45: =COUNTIF(Table10[[#This Row],[Competed 1]:[Competed 5]],"=TRUE") -> 3
A46: Melika Glover | B46: Charnwood College | C46: - | D46: =IF(C46="-",0,C46) -> 0 | E46: 33 | F46: =IF(E46="-",0,E46) -> 33 | G46: 34 | H46: =IF(G46="-",0,G46) -> 34 | I46: - | J46: =IF(I46="-",0,I46) -> 0 | K46: - | L46: =IF(K46="-",0,K46) -> 0 | M46: =Table10[[#This Row],[School]] -> Charnwood College | N46: =D46+F46+H46+J46+L46 -> 67 | O46: =MAX(C46,E46,G46,I46,K46) -> 34 | P46: =IF(Q46=1,N46,IF(Q46=0,(N46-O46),"-")) -> - | Q46: =$L$1-Table10[Competed Count] -> 2 | R46: =IF(Q46<2,"Yes","No") -> No | S46: =AND($C$1="Y",D46>0) -> FALSE | T46: =AND($E$1="Y",F46>0) -> TRUE | U46: =AND($G$1="Y",H46>0) -> TRUE | V46: =AND($I$1="Y",J46>0) -> FALSE | W46: =AND($K$1="Y",L46>0) -> FALSE | X46: =COUNTIF(Table10[[#This Row],[Competed 1]:[Competed 5]],"=TRUE") -> 2
A47: Ellie Smith | B47: Charnwood College | C47: 37 | D47: =IF(C47="-",0,C47) -> 37 | E47: 36 | F47: =IF(E47="-",0,E47) -> 36 | G47: 35 | H47: =IF(G47="-",0,G47) -> 35 | I47: - | J47: =IF(I47="-",0,I47) -> 0 | K47: - | L47: =IF(K47="-",0,K47) -> 0 | M47: =Table10[[#This Row],[School]] -> Charnwood College | N47: =D47+F47+H47+J47+L47 -> 108 | O47: =MAX(C47,E47,G47,I47,K47) -> 37 | P47: =IF(Q47=1,N47,IF(Q47=0,(N47-O47),"-")) -> 108 | Q47: =$L$1-Table10[Competed Count] -> 1 | R47: =IF(Q47<2,"Yes","No") -> Yes | S47: =AND($C$1="Y",D47>0) -> TRUE | T47: =AND($E$1="Y",F47>0) -> TRUE | U47: =AND($G$1="Y",H47>0) -> TRUE | V47: =AND($I$1="Y",J47>0) -> FALSE | W47: =AND($K$1="Y",L47>0) -> FALSE | X47: =COUNTIF(Table10[[#This Row],[Competed 1]:[Competed 5]],"=TRUE") -> 3
A48: Robyn Butler | B48: Rawlins Academy | C48: - | D48: =IF(C48="-",0,C48) -> 0 | E48: 8 | F48: =IF(E48="-",0,E48) -> 8 | G48: - | H48: =IF(G48="-",0,G48) -> 0 | I48: - | J48: =IF(I48="-",0,I48) -> 0 | K48: - | L48: =IF(K48="-",0,K48) -> 0 | M48: =Table10[[#This Row],[School]] -> Rawlins Academy | N48: =D48+F48+H48+J48+L48 -> 8 | O48: =MAX(C48,E48,G48,I48,K48) -> 8 | P48: =IF(Q48=1,N48,IF(Q48=0,(N48-O48),"-")) -> - | Q48: =$L$1-Table10[Competed Count] -> 3 | R48: =IF(Q48<2,"Yes","No") -> No | S48: =AND($C$1="Y",D48>0) -> FALSE | T48: =AND($E$1="Y",F48>0) -> TRUE | U48: =AND($G$1="Y",H48>0) -> FALSE | V48: =AND($I$1="Y",J48>0) -> FALSE | W48: =AND($K$1="Y",L48>0) -> FALSE | X48: =COUNTIF(Table10[[#This Row],[Competed 1]:[Competed 5]],"=TRUE") -> 1
A49: Maya Richards | B49: Crown Hills CC | C49: - | D49: =IF(C49="-",0,C49) -> 0 | E49: 12 | F49: =IF(E49="-",0,E49) -> 12 | G49: - | H49: =IF(G49="-",0,G49) -> 0 | I49: - | J49: =IF(I49="-",0,I49) -> 0 | K49: - | L49: =IF(K49="-",0,K49) -> 0 | M49: =Table10[[#This Row],[School]] -> Crown Hills CC | N49: =D49+F49+H49+J49+L49 -> 12 | O49: =MAX(C49,E49,G49,I49,K49) -> 12 | P49: =IF(Q49=1,N49,IF(Q49=0,(N49-O49),"-")) -> - | Q49: =$L$1-Table10[Competed Count] -> 3 | R49: =IF(Q49<2,"Yes","No") -> No | S49: =AND($C$1="Y",D49>0) -> FALSE | T49: =AND($E$1="Y",F49>0) -> TRUE | U49: =AND($G$1="Y",H49>0) -> FALSE | V49: =AND($I$1="Y",J49>0) -> FALSE | W49: =AND($K$1="Y",L49>0) -> FALSE | X49: =COUNTIF(Table10[[#This Row],[Competed 1]:[Competed 5]],"=TRUE") -> 1
A50: Abi Moitiboys | B50: Thomas Estley CC | C50: 22 | D50: =IF(C50="-",0,C50) -> 22 | E50: 15 | F50: =IF(E50="-",0,E50) -> 15 | G50: - | H50: =IF(G50="-",0,G50) -> 0 | I50: - | J50: =IF(I50="-",0,I50) -> 0 | K50: - | L50: =IF(K50="-",0,K50) -> 0 | M50: =Table10[[#This Row],[School]] -> Thomas Estley CC | N50: =D50+F50+H50+J50+L50 -> 37 | O50: =MAX(C50,E50,G50,I50,K50) -> 22 | P50: =IF(Q50=1,N50,IF(Q50=0,(N50-O50),"-")) -> - | Q50: =$L$1-Table10[Competed Count] -> 2 | R50: =IF(Q50<2,"Yes","No") -> No | S50: =AND($C$1="Y",D50>0) -> TRUE | T50: =AND($E$1="Y",F50>0) -> TRUE | U50: =AND($G$1="Y",H50>0) -> FALSE | V50: =AND($I$1="Y",J50>0) -> FALSE | W50: =AND($K$1="Y",L50>0) -> FALSE | X50: =COUNTIF(Table10[[#This Row],[Competed 1]:[Competed 5]],"=TRUE") -> 2
A51: Abigail Cook | B51: De Lisle College | C51: 30 | D51: =IF(C51="-",0,C51) -> 30 | E51: 25 | F51: =IF(E51="-",0,E51) -> 25 | G51: - | H51: =IF(G51="-",0,G51) -> 0 | I51: - | J51: =IF(I51="-",0,I51) -> 0 | K51: - | L51: =IF(K51="-",0,K51) -> 0 | M51: =Table10[[#This Row],[School]] -> De Lisle College | N51: =D51+F51+H51+J51+L51 -> 55 | O51: =MAX(C51,E51,G51,I51,K51) -> 30 | P51: =IF(Q51=1,N51,IF(Q51=0,(N51-O51),"-")) -> - | Q51: =$L$1-Table10[Competed Count] -> 2 | R51: =IF(Q51<2,"Yes","No") -> No | S51: =AND($C$1="Y",D51>0) -> TRUE | T51: =AND($E$1="Y",F51>0) -> TRUE | U51: =AND($G$1="Y",H51>0) -> FALSE | V51: =AND($I$1="Y",J51>0) -> FALSE | W51: =AND($K$1="Y",L51>0) -> FALSE | X51: =COUNTIF(Table10[[#This Row],[Competed 1]:[Competed 5]],"=TRUE") -> 2
A52: Emma Smith | B52: Thomas Estley CC | C52: 32 | D52: =IF(C52="-",0,C52) -> 32 | E52: 29 | F52: =IF(E52="-",0,E52) -> 29 | G52: - | H52: =IF(G52="-",0,G52) -> 0 | I52: - | J52: =IF(I52="-",0,I52) -> 0 | K52: - | L52: =IF(K52="-",0,K52) -> 0 | M52: =Table10[[#This Row],[School]] -> Thomas Estley CC | N52: =D52+F52+H52+J52+L52 -> 61 | O52: =MAX(C52,E52,G52,I52,K52) -> 32 | P52: =IF(Q52=1,N52,IF(Q52=0,(N52-O52),"-")) -> - | Q52: =$L$1-Table10[Competed Count] -> 2 | R52: =IF(Q52<2,"Yes","No") -> No | S52: =AND($C$1="Y",D52>0) -> TRUE | T52: =AND($E$1="Y",F52>0) -> TRUE | U52: =AND($G$1="Y",H52>0) -> FALSE | V52: =AND($I$1="Y",J52>0) -> FALSE | W52: =AND($K$1="Y",L52>0) -> FALSE | X52: =COUNTIF(Table10[[#This Row],[Competed 1]:[Competed 5]],"=TRUE") -> 2
A53: Teri-Ann Harris | B53: Wigston Academy | C53: - | D53: =IF(C53="-",0,C53) -> 0 | E53: 30 | F53: =IF(E53="-",0,E53) -> 30 | G53: - | H53: =IF(G53="-",0,G53) -> 0 | I53: - | J53: =IF(I53="-",0,I53) -> 0 | K53: - | L53: =IF(K53="-",0,K53) -> 0 | M53: =Table10[[#This Row],[School]] -> Wigston Academy | N53: =D53+F53+H53+J53+L53 -> 30 | O53: =MAX(C53,E53,G53,I53,K53) -> 30 | P53: =IF(Q53=1,N53,IF(Q53=0,(N53-O53),"-")) -> - | Q53: =$L$1-Table10[Competed Count] -> 3 | R53: =IF(Q53<2,"Yes","No") -> No | S53: =AND($C$1="Y",D53>0) -> FALSE | T53: =AND($E$1="Y",F53>0) -> TRUE | U53: =AND($G$1="Y",H53>0) -> FALSE | V53: =AND($I$1="Y",J53>0) -> FALSE | W53: =AND($K$1="Y",L53>0) -> FALSE | X53: =COUNTIF(Table10[[#This Row],[Competed 1]:[Competed 5]],"=TRUE") -> 1
A54: Lauren Purcell | B54: Lutterworth College | C54: - | D54: =IF(C54="-",0,C54) -> 0 | E54: 31 | F54: =IF(E54="-",0,E54) -> 31 | G54: - | H54: =IF(G54="-",0,G54) -> 0 | I54: - | J54: =IF(I54="-",0,I54) -> 0 | K54: - | L54: =IF(K54="-",0,K54) -> 0 | M54: =Table10[[#This Row],[School]] -> Lutterworth College | N54: =D54+F54+H54+J54+L54 -> 31 | O54: =MAX(C54,E54,G54,I54,K54) -> 31 | P54: =IF(Q54=1,N54,IF(Q54=0,(N54-O54),"-")) -> - | Q54: =$L$1-Table10[Competed Count] -> 3 | R54: =IF(Q54<2,"Yes","No") -> No | S54: =AND($C$1="Y",D54>0) -> FALSE | T54: =AND($E$1="Y",F54>0) -> TRUE | U54: =AND($G$1="Y",H54>0) -> FALSE | V54: =AND($I$1="Y",J54>0) -> FALSE | W54: =AND($K$1="Y",L54>0) -> FALSE | X54: =COUNTIF(Table10[[#This Row],[Competed 1]:[Competed 5]],"=TRUE") -> 1
A55: Tilly Savage | B55: Catmose College | C55: - | D55: =IF(C55="-",0,C55) -> 0 | E55: 32 | F55: =IF(E55="-",0,E55) -> 32 | G55: - | H55: =IF(G55="-",0,G55) -> 0 | I55: - | J55: =IF(I55="-",0,I55) -> 0 | K55: - | L55: =IF(K55="-",0,K55) -> 0 | M55: =Table10[[#This Row],[School]] -> Catmose College | N55: =D55+F55+H55+J55+L55 -> 32 | O55: =MAX(C55,E55,G55,I55,K55) -> 32 | P55: =IF(Q55=1,N55,IF(Q55=0,(N55-O55),"-")) -> - | Q55: =$L$1-Table10[Competed Count] -> 3 | R55: =IF(Q55<2,"Yes","No") -> No | S55: =AND($C$1="Y",D55>0) -> FALSE | T55: =AND($E$1="Y",F55>0) -> TRUE | U55: =AND($G$1="Y",H55>0) -> FALSE | V55: =AND($I$1="Y",J55>0) -> FALSE | W55: =AND($K$1="Y",L55>0) -> FALSE | X55: =COUNTIF(Table10[[#This Row],[Competed 1]:[Competed 5]],"=TRUE") -> 1
A56: Esha Barha | B56: St Pauls Catholic School | C56: - | D56: =IF(C56="-",0,C56) -> 0 | E56: 34 | F56: =IF(E56="-",0,E56) -> 34 | G56: - | H56: =IF(G56="-",0,G56) -> 0 | I56: - | J56: =IF(I56="-",0,I56) -> 0 | K56: - | L56: =IF(K56="-",0,K56) -> 0 | M56: =Table10[[#This Row],[School]] -> St Pauls Catholic School | N56: =D56+F56+H56+J56+L56 -> 34 | O56: =MAX(C56,E56,G56,I56,K56) -> 34 | P56: =IF(Q56=1,N56,IF(Q56=0,(N56-O56),"-")) -> - | Q56: =$L$1-Table10[Competed Count] -> 3 | R56: =IF(Q56<2,"Yes","No") -> No | S56: =AND($C$1="Y",D56>0) -> FALSE | T56: =AND($E$1="Y",F56>0) -> TRUE | U56: =AND($G$1="Y",H56>0) -> FALSE | V56: =AND($I$1="Y",J56>0) -> FALSE | W56: =AND($K$1="Y",L56>0) -> FALSE | X56: =COUNTIF(Table10[[#This Row],[Competed 1]:[Competed 5]],"=TRUE") -> 1
A57: Ellie-Mae Cooper | B57: Charnwood College | C57: 38 | D57: =IF(C57="-",0,C57) -> 38 | E57: 35 | F57: =IF(E57="-",0,E57) -> 35 | G57: - | H57: =IF(G57="-",0,G57) -> 0 | I57: - | J57: =IF(I57="-",0,I57) -> 0 | K57: - | L57: =IF(K57="-",0,K57) -> 0 | M57: =Table10[[#This Row],[School]] -> Charnwood College | N57: =D57+F57+H57+J57+L57 -> 73 | O57: =MAX(C57,E57,G57,I57,K57) -> 38 | P57: =IF(Q57=1,N57,IF(Q57=0,(N57-O57),"-")) -> - | Q57: =$L$1-Table10[Competed Count] -> 2 | R57: =IF(Q57<2,"Yes","No") -> No | S57: =AND($C$1="Y",D57>0) -> TRUE | T57: =AND($E$1="Y",F57>0) -> TRUE | U57: =AND($G$1="Y",H57>0) -> FALSE | V57: =AND($I$1="Y",J57>0) -> FALSE | W57: =AND($K$1="Y",L57>0) -> FALSE | X57: =COUNTIF(Table10[[#This Row],[Competed 1]:[Competed 5]],"=TRUE") -> 2
A58: Amber Adam | B58: Crown Hills CC | C58: - | D58: =IF(C58="-",0,C58) -> 0 | E58: 37 | F58: =IF(E58="-",0,E58) -> 37 | G58: - | H58: =IF(G58="-",0,G58) -> 0 | I58: - | J58: =IF(I58="-",0,I58) -> 0 | K58: - | L58: =IF(K58="-",0,K58) -> 0 | M58: =Table10[[#This Row],[School]] -> Crown Hills CC | N58: =D58+F58+H58+J58+L58 -> 37 | O58: =MAX(C58,E58,G58,I58,K58) -> 37 | P58: =IF(Q58=1,N58,IF(Q58=0,(N58-O58),"-")) -> - | Q58: =$L$1-Table10[Competed Count] -> 3 | R58: =IF(Q58<2,"Yes","No") -> No | S58: =AND($C$1="Y",D58>0) -> FALSE | T58: =AND($E$1="Y",F58>0) -> TRUE | U58: =AND($G$1="Y",H58>0) -> FALSE | V58: =AND($I$1="Y",J58>0) -> FALSE | W58: =AND($K$1="Y",L58>0) -> FALSE | X58: =COUNTIF(Table10[[#This Row],[Competed 1]:[Competed 5]],"=TRUE") -> 1
A59: Ashley Smart | B59: Catmose College | C59: - | D59: =IF(C59="-",0,C59) -> 0 | E59: 38 | F59: =IF(E59="-",0,E59) -> 38 | G59: - | H59: =IF(G59="-",0,G59) -> 0 | I59: - | J59: =IF(I59="-",0,I59) -> 0 | K59: - | L59: =IF(K59="-",0,K59) -> 0 | M59: =Table10[[#This Row],[School]] -> Catmose College | N59: =D59+F59+H59+J59+L59 -> 38 | O59: =MAX(C59,E59,G59,I59,K59) -> 38 | P59: =IF(Q59=1,N59,IF(Q59=0,(N59-O59),"-")) -> - | Q59: =$L$1-Table10[Competed Count] -> 3 | R59: =IF(Q59<2,"Yes","No") -> No | S59: =AND($C$1="Y",D59>0) -> FALSE | T59: =AND($E$1="Y",F59>0) -> TRUE | U59: =AND($G$1="Y",H59>0) -> FALSE | V59: =AND($I$1="Y",J59>0) -> FALSE | W59: =AND($K$1="Y",L59>0) -> FALSE | X59: =COUNTIF(Table10[[#This Row],[Competed 1]:[Competed 5]],"=TRUE") -> 1
A60: Amy Wocjilc | B60: Crown Hills CC | C60: - | D60: =IF(C60="-",0,C60) -> 0 | E60: 39 | F60: =IF(E60="-",0,E60) -> 39 | G60: - | H60: =IF(G60="-",0,G60) -> 0 | I60: - | J60: =IF(I60="-",0,I60) -> 0 | K60: - | L60: =IF(K60="-",0,K60) -> 0 | M60: =Table10[[#This Row],[School]] -> Crown Hills CC | N60: =D60+F60+H60+J60+L60 -> 39 | O60: =MAX(C60,E60,G60,I60,K60) -> 39 | P60: =IF(Q60=1,N60,IF(Q60=0,(N60-O60),"-")) -> - | Q60: =$L$1-Table10[Competed Count] -> 3 | R60: =IF(Q60<2,"Yes","No") -> No | S60: =AND($C$1="Y",D60>0) -> FALSE | T60: =AND($E$1="Y",F60>0) -> TRUE | U60: =AND($G$1="Y",H60>0) -> FALSE | V60: =AND($I$1="Y",J60>0) -> FALSE | W60: =AND($K$1="Y",L60>0) -> FALSE | X60: =COUNTIF(Table10[[#This Row],[Competed 1]:[Competed 5]],"=TRUE") -> 1
A61: Daisy farnell | B61: Charnwood College | C61: - | D61: =IF(C61="-",0,C61) -> 0 | E61: 40 | F61: =IF(E61="-",0,E61) -> 40 | G61: - | H61: =IF(G61="-",0,G61) -> 0 | I61: - | J61: =IF(I61="-",0,I61) -> 0 | K61: - | L61: =IF(K61="-",0,K61) -> 0 | M61: =Table10[[#This Row],[School]] -> Charnwood College | N61: =D61+F61+H61+J61+L61 -> 40 | O61: =MAX(C61,E61,G61,I61,K61) -> 40 | P61: =IF(Q61=1,N61,IF(Q61=0,(N61-O61),"-")) -> - | Q61: =$L$1-Table10[Competed Count] -> 3 | R61: =IF(Q61<2,"Yes","No") -> No | S61: =AND($C$1="Y",D61>0) -> FALSE | T61: =AND($E$1="Y",F61>0) -> TRUE | U61: =AND($G$1="Y",H61>0) -> FALSE | V61: =AND($I$1="Y",J61>0) -> FALSE | W61: =AND($K$1="Y",L61>0) -> FALSE | X61: =COUNTIF(Table10[[#This Row],[Competed 1]:[Competed 5]],"=TRUE") -> 1
A62: Harley-Rae Street | B62: The Martin High School | C62: - | D62: =IF(C62="-",0,C62) -> 0 | E62: 41 | F62: =IF(E62="-",0,E62) -> 41 | G62: - | H62: =IF(G62="-",0,G62) -> 0 | I62: - | J62: =IF(I62="-",0,I62) -> 0 | K62: - | L62: =IF(K62="-",0,K62) -> 0 | M62: =Table10[[#This Row],[School]] -> The Martin High School | N62: =D62+F62+H62+J62+L62 -> 41 | O62: =MAX(C62,E62,G62,I62,K62) -> 41 | P62: =IF(Q62=1,N62,IF(Q62=0,(N62-O62),"-")) -> - | Q62: =$L$1-Table10[Competed Count] -> 3 | R62: =IF(Q62<2,"Yes","No") -> No | S62: =AND($C$1="Y",D62>0) -> FALSE | T62: =AND($E$1="Y",F62>0) -> TRUE | U62: =AND($G$1="Y",H62>0) -> FALSE | V62: =AND($I$1="Y",J62>0) -> FALSE | W62: =AND($K$1="Y",L62>0) -> FALSE | X62: =COUNTIF(Table10[[#This Row],[Competed 1]:[Competed 5]],"=TRUE") -> 1
A63: Charli Sampson | B63: Ivanhoe College | C63: 16 | D63: =IF(C63="-",0,C63) -> 16 | E63: - | F63: =IF(E63="-",0,E63) -> 0 | G63: - | H63: =IF(G63="-",0,G63) -> 0 | I63: - | J63: =IF(I63="-",0,I63) -> 0 | K63: - | L63: =IF(K63="-",0,K63) -> 0 | M63: =Table10[[#This Row],[School]] -> Ivanhoe College | N63: =D63+F63+H63+J63+L63 -> 16 | O63: =MAX(C63,E63,G63,I63,K63) -> 16 | P63: =IF(Q63=1,N63,IF(Q63=0,(N63-O63),"-")) -> - | Q63: =$L$1-Table10[Competed Count] -> 3 | R63: =IF(Q63<2,"Yes","No") -> No | S63: =AND($C$1="Y",D63>0) -> TRUE | T63: =AND($E$1="Y",F63>0) -> FALSE | U63: =AND($G$1="Y",H63>0) -> FALSE | V63: =AND($I$1="Y",J63>0) -> FALSE | W63: =AND($K$1="Y",L63>0) -> FALSE | X63: =COUNTIF(Table10[[#This Row],[Competed 1]:[Competed 5]],"=TRUE") -> 1
A64: Tara Lawton | B64: Ivanhoe College | C64: 24 | D64: =IF(C64="-",0,C64) -> 24 | E64: - | F64: =IF(E64="-",0,E64) -> 0 | G64: - | H64: =IF(G64="-",0,G64) -> 0 | I64: - | J64: =IF(I64="-",0,I64) -> 0 | K64: - | L64: =IF(K64="-",0,K64) -> 0 | M64: =Table10[[#This Row],[School]] -> Ivanhoe College | N64: =D64+F64+H64+J64+L64 -> 24 | O64: =MAX(C64,E64,G64,I64,K64) -> 24 | P64: =IF(Q64=1,N64,IF(Q64=0,(N64-O64),"-")) -> - | Q64: =$L$1-Table10[Competed Count] -> 3 | R64: =IF(Q64<2,"Yes","No") -> No | S64: =AND($C$1="Y",D64>0) -> TRUE | T64: =AND($E$1="Y",F64>0) -> FALSE | U64: =AND($G$1="Y",H64>0) -> FALSE | V64: =AND($I$1="Y",J64>0) -> FALSE | W64: =AND($K$1="Y",L64>0) -> FALSE | X64: =COUNTIF(Table10[[#This Row],[Competed 1]:[Competed 5]],"=TRUE") -> 1
A65: Poppy Lloyd-Williams | B65: Welland Park Academy | C65: 26 | D65: =IF(C65="-",0,C65) -> 26 | E65: - | F65: =IF(E65="-",0,E65) -> 0 | G65: - | H65: =IF(G65="-",0,G65) -> 0 | I65: - | J65: =IF(I65="-",0,I65) -> 0 | K65: - | L65: =IF(K65="-",0,K65) -> 0 | M65: =Table10[[#This Row],[School]] -> Welland Park Academy | N65: =D65+F65+H65+J65+L65 -> 26 | O65: =MAX(C65,E65,G65,I65,K65) -> 26 | P65: =IF(Q65=1,N65,IF(Q65=0,(N65-O65),"-")) -> - | Q65: =$L$1-Table10[Competed Count] -> 3 | R65: =IF(Q65<2,"Yes","No") -> No | S65: =AND($C$1="Y",D65>0) -> TRUE | T65: =AND($E$1="Y",F65>0) -> FALSE | U65: =AND($G$1="Y",H65>0) -> FALSE | V65: =AND($I$1="Y",J65>0) -> FALSE | W65: =AND($K$1="Y",L65>0) -> FALSE | X65: =COUNTIF(Table10[[#This Row],[Competed 1]:[Competed 5]],"=TRUE") -> 1
A66: Amy Rigby | B66: Rawlins Academy | C66: 34 | D66: =IF(C66="-",0,C66) -> 34 | E66: - | F66: =IF(E66="-",0,E66) -> 0 | G66: - | H66: =IF(G66="-",0,G66) -> 0 | I66: - | J66: =IF(I66="-",0,I66) -> 0 | K66: - | L66: =IF(K66="-",0,K66) -> 0 | M66: =Table10[[#This Row],[School]] -> Rawlins Academy | N66: =D66+F66+H66+J66+L66 -> 34 | O66: =MAX(C66,E66,G66,I66,K66) -> 34 | P66: =IF(Q66=1,N66,IF(Q66=0,(N66-O66),"-")) -> - | Q66: =$L$1-Table10[Competed Count] -> 3 | R66: =IF(Q66<2,"Yes","No") -> No | S66: =AND($C$1="Y",D66>0) -> TRUE | T66: =AND($E$1="Y",F66>0) -> FALSE | U66: =AND($G$1="Y",H66>0) -> FALSE | V66: =AND($I$1="Y",J66>0) -> FALSE | W66: =AND($K$1="Y",L66>0) -> FALSE | X66: =COUNTIF(Table10[[#This Row],[Competed 1]:[Competed 5]],"=TRUE") -> 1
A67: Amelia Tydeman | B67: Brookvale High School | C67: 35 | D67: =IF(C67="-",0,C67) -> 35 | E67: - | F67: =IF(E67="-",0,E67) -> 0 | G67: - | H67: =IF(G67="-",0,G67) -> 0 | I67: - | J67: =IF(I67="-",0,I67) -> 0 | K67: - | L67: =IF(K67="-",0,K67) -> 0 | M67: =Table10[[#This Row],[School]] -> Brookvale High School | N67: =D67+F67+H67+J67+L67 -> 35 | O67: =MAX(C67,E67,G67,I67,K67) -> 35 | P67: =IF(Q67=1,N67,IF(Q67=0,(N67-O67),"-")) -> - | Q67: =$L$1-Table10[Competed Count] -> 3 | R67: =IF(Q67<2,"Yes","No") -> No | S67: =AND($C$1="Y",D67>0) -> TRUE | T67: =AND($E$1="Y",F67>0) -> FALSE | U67: =AND($G$1="Y",H67>0) -> FALSE | V67: =AND($I$1="Y",J67>0) -> FALSE | W67: =AND($K$1="Y",L67>0) -> FALSE | X67: =COUNTIF(Table10[[#This Row],[Competed 1]:[Competed 5]],"=TRUE") -> 1
A68: Grace Richardson | B68: The Martin High School | C68: 36 | D68: =IF(C68="-",0,C68) -> 36 | E68: - | F68: =IF(E68="-",0,E68) -> 0 | G68: - | H68: =IF(G68="-",0,G68) -> 0 | I68: - | J68: =IF(I68="-",0,I68) -> 0 | K68: - | L68: =IF(K68="-",0,K68) -> 0 | M68: =Table10[[#This Row],[School]] -> The Martin High School | N68: =D68+F68+H68+J68+L68 -> 36 | O68: =MAX(C68,E68,G68,I68,K68) -> 36 | P68: =IF(Q68=1,N68,IF(Q68=0,(N68-O68),"-")) -> - | Q68: =$L$1-Table10[Competed Count] -> 3 | R68: =IF(Q68<2,"Yes","No") -> No | S68: =AND($C$1="Y",D68>0) -> TRUE | T68: =AND($E$1="Y",F68>0) -> FALSE | U68: =AND($G$1="Y",H68>0) -> FALSE | V68: =AND($I$1="Y",J68>0) -> FALSE | W68: =AND($K$1="Y",L68>0) -> FALSE | X68: =COUNTIF(Table10[[#This Row],[Competed 1]:[Competed 5]],"=TRUE") -> 1
A69: Ruquya Henly | B69: St Pauls Catholic School | C69: 39 | D69: =IF(C69="-",0,C69) -> 39 | E69: - | F69: =IF(E69="-",0,E69) -> 0 | G69: - | H69: =IF(G69="-",0,G69) -> 0 | I69: - | J69: =IF(I69="-",0,I69) -> 0 | K69: - | L69: =IF(K69="-",0,K69) -> 0 | M69: =Table10[[#This Row],[School]] -> St Pauls Catholic School | N69: =D69+F69+H69+J69+L69 -> 39 | O69: =MAX(C69,E69,G69,I69,K69) -> 39 | P69: =IF(Q69=1,N69,IF(Q69=0,(N69-O69),"-")) -> - | Q69: =$L$1-Table10[Competed Count] -> 3 | R69: =IF(Q69<2,"Yes","No") -> No | S69: =AND($C$1="Y",D69>0) -> TRUE | T69: =AND($E$1="Y",F69>0) -> FALSE | U69: =AND($G$1="Y",H69>0) -> FALSE | V69: =AND($I$1="Y",J69>0) -> FALSE | W69: =AND($K$1="Y",L69>0) -> FALSE | X69: =COUNTIF(Table10[[#This Row],[Competed 1]:[Competed 5]],"=TRUE") -> 1
B70: - | C70: - | D70: =IF(C70="-",0,C70) -> 0 | E70: - | F70: =IF(E70="-",0,E70) -> 0 | G70: - | H70: =IF(G70="-",0,G70) -> 0 | I70: - | J70: =IF(I70="-",0,I70) -> 0 | K70: - | L70: =IF(K70="-",0,K70) -> 0 | M70: =Table10[[#This Row],[School]] -> - | N70: =D70+F70+H70+J70+L70 -> 0 | O70: =MAX(C70,E70,G70,I70,K70) -> 0 | P70: =IF(Q70=1,N70,IF(Q70=0,(N70-O70),"-")) -> - | Q70: =$L$1-Table10[Competed Count] -> 4 | R70: =IF(Q70<2,"Yes","No") -> No | S70: =AND($C$1="Y",D70>0) -> FALSE | T70: =AND($E$1="Y",F70>0) -> FALSE | U70: =AND($G$1="Y",H70>0) -> FALSE | V70: =AND($I$1="Y",J70>0) -> FALSE | W70: =AND($K$1="Y",L70>0) -> FALSE | X70: =COUNTIF(Table10[[#This Row],[Competed 1]:[Competed 5]],"=TRUE") -> 0
B71: - | C71: - | D71: =IF(C71="-",0,C71) -> 0 | E71: - | F71: =IF(E71="-",0,E71) -> 0 | G71: - | H71: =IF(G71="-",0,G71) -> 0 | I71: - | J71: =IF(I71="-",0,I71) -> 0 | K71: - | L71: =IF(K71="-",0,K71) -> 0 | M71: =Table10[[#This Row],[School]] -> - | N71: =D71+F71+H71+J71+L71 -> 0 | O71: =MAX(C71,E71,G71,I71,K71) -> 0 | P71: =IF(Q71=1,N71,IF(Q71=0,(N71-O71),"-")) -> - | Q71: =$L$1-Table10[Competed Count] -> 4 | R71: =IF(Q71<2,"Yes","No") -> No | S71: =AND($C$1="Y",D71>0) -> FALSE | T71: =AND($E$1="Y",F71>0) -> FALSE | U71: =AND($G$1="Y",H71>0) -> FALSE | V71: =AND($I$1="Y",J71>0) -> FALSE | W71: =AND($K$1="Y",L71>0) -> FALSE | X71: =COUNTIF(Table10[[#This Row],[Competed 1]:[Competed 5]],"=TRUE") -> 0
B72: - | C72: - | D72: =IF(C72="-",0,C72) -> 0 | E72: - | F72: =IF(E72="-",0,E72) -> 0 | G72: - | H72: =IF(G72="-",0,G72) -> 0 | I72: - | J72: =IF(I72="-",0,I72) -> 0 | K72: - | L72: =IF(K72="-",0,K72) -> 0 | M72: =Table10[[#This Row],[School]] -> - | N72: =D72+F72+H72+J72+L72 -> 0 | O72: =MAX(C72,E72,G72,I72,K72) -> 0 | P72: =IF(Q72=1,N72,IF(Q72=0,(N72-O72),"-")) -> - | Q72: =$L$1-Table10[Competed Count] -> 4 | R72: =IF(Q72<2,"Yes","No") -> No | S72: =AND($C$1="Y",D72>0) -> FALSE | T72: =AND($E$1="Y",F72>0) -> FALSE | U72: =AND($G$1="Y",H72>0) -> FALSE | V72: =AND($I$1="Y",J72>0) -> FALSE | W72: =AND($K$1="Y",L72>0) -> FALSE | X72: =COUNTIF(Table10[[#This Row],[Competed 1]:[Competed 5]],"=TRUE") -> 0
B73: - | C73: - | D73: =IF(C73="-",0,C73) -> 0 | E73: - | F73: =IF(E73="-",0,E73) -> 0 | G73: - | H73: =IF(G73="-",0,G73) -> 0 | I73: - | J73: =IF(I73="-",0,I73) -> 0 | K73: - | L73: =IF(K73="-",0,K73) -> 0 | M73: =Table10[[#This Row],[School]] -> - | N73: =D73+F73+H73+J73+L73 -> 0 | O73: =MAX(C73,E73,G73,I73,K73) -> 0 | P73: =IF(Q73=1,N73,IF(Q73=0,(N73-O73),"-")) -> - | Q73: =$L$1-Table10[Competed Count] -> 4 | R73: =IF(Q73<2,"Yes","No") -> No | S73: =AND($C$1="Y",D73>0) -> FALSE | T73: =AND($E$1="Y",F73>0) -> FALSE | U73: =AND($G$1="Y",H73>0) -> FALSE | V73: =AND($I$1="Y",J73>0) -> FALSE | W73: =AND($K$1="Y",L73>0) -> FALSE | X73: =COUNTIF(Table10[[#This Row],[Competed 1]:[Competed 5]],"=TRUE") -> 0
B74: - | C74: - | D74: =IF(C74="-",0,C74) -> 0 | E74: - | F74: =IF(E74="-",0,E74) -> 0 | G74: - | H74: =IF(G74="-",0,G74) -> 0 | I74: - | J74: =IF(I74="-",0,I74) -> 0 | K74: - | L74: =IF(K74="-",0,K74) -> 0 | M74: =Table10[[#This Row],[School]] -> - | N74: =D74+F74+H74+J74+L74 -> 0 | O74: =MAX(C74,E74,G74,I74,K74) -> 0 | P74: =IF(Q74=1,N74,IF(Q74=0,(N74-O74),"-")) -> - | Q74: =$L$1-Table10[Competed Count] -> 4 | R74: =IF(Q74<2,"Yes","No") -> No | S74: =AND($C$1="Y",D74>0) -> FALSE | T74: =AND($E$1="Y",F74>0) -> FALSE | U74: =AND($G$1="Y",H74>0) -> FALSE | V74: =AND($I$1="Y",J74>0) -> FALSE | W74: =AND($K$1="Y",L74>0) -> FALSE | X74: =COUNTIF(Table10[[#This Row],[Competed 1]:[Competed 5]],"=TRUE") -> 0
B75: - | C75: - | D75: =IF(C75="-",0,C75) -> 0 | E75: - | F75: =IF(E75="-",0,E75) -> 0 | G75: - | H75: =IF(G75="-",0,G75) -> 0 | I75: - | J75: =IF(I75="-",0,I75) -> 0 | K75: - | L75: =IF(K75="-",0,K75) -> 0 | M75: =Table10[[#This Row],[School]] -> - | N75: =D75+F75+H75+J75+L75 -> 0 | O75: =MAX(C75,E75,G75,I75,K75) -> 0 | P75: =IF(Q75=1,N75,IF(Q75=0,(N75-O75),"-")) -> - | Q75: =$L$1-Table10[Competed Count] -> 4 | R75: =IF(Q75<2,"Yes","No") -> No | S75: =AND($C$1="Y",D75>0) -> FALSE | T75: =AND($E$1="Y",F75>0) -> FALSE | U75: =AND($G$1="Y",H75>0) -> FALSE | V75: =AND($I$1="Y",J75>0) -> FALSE | W75: =AND($K$1="Y",L75>0) -> FALSE | X75: =COUNTIF(Table10[[#This Row],[Competed 1]:[Competed 5]],"=TRUE") -> 0
B76: - | C76: - | D76: =IF(C76="-",0,C76) -> 0 | E76: - | F76: =IF(E76="-",0,E76) -> 0 | G76: - | H76: =IF(G76="-",0,G76) -> 0 | I76: - | J76: =IF(I76="-",0,I76) -> 0 | K76: - | L76: =IF(K76="-",0,K76) -> 0 | M76: =Table10[[#This Row],[School]] -> - | N76: =D76+F76+H76+J76+L76 -> 0 | O76: =MAX(C76,E76,G76,I76,K76) -> 0 | P76: =IF(Q76=1,N76,IF(Q76=0,(N76-O76),"-")) -> - | Q76: =$L$1-Table10[Competed Count] -> 4 | R76: =IF(Q76<2,"Yes","No") -> No | S76: =AND($C$1="Y",D76>0) -> FALSE | T76: =AND($E$1="Y",F76>0) -> FALSE | U76: =AND($G$1="Y",H76>0) -> FALSE | V76: =AND($I$1="Y",J76>0) -> FALSE | W76: =AND($K$1="Y",L76>0) -> FALSE | X76: =COUNTIF(Table10[[#This Row],[Competed 1]:[Competed 5]],"=TRUE") -> 0
B77: - | C77: - | D77: =IF(C77="-",0,C77) -> 0 | E77: - | F77: =IF(E77="-",0,E77) -> 0 | G77: - | H77: =IF(G77="-",0,G77) -> 0 | I77: - | J77: =IF(I77="-",0,I77) -> 0 | K77: - | L77: =IF(K77="-",0,K77) -> 0 | M77: =Table10[[#This Row],[School]] -> - | N77: =D77+F77+H77+J77+L77 -> 0 | O77: =MAX(C77,E77,G77,I77,K77) -> 0 | P77: =IF(Q77=1,N77,IF(Q77=0,(N77-O77),"-")) -> - | Q77: =$L$1-Table10[Competed Count] -> 4 | R77: =IF(Q77<2,"Yes","No") -> No | S77: =AND($C$1="Y",D77>0) -> FALSE | T77: =AND($E$1="Y",F77>0) -> FALSE | U77: =AND($G$1="Y",H77>0) -> FALSE | V77: =AND($I$1="Y",J77>0) -> FALSE | W77: =AND($K$1="Y",L77>0) -> FALSE | X77: =COUNTIF(Table10[[#This Row],[Competed 1]:[Competed 5]],"=TRUE") -> 0
B78: - | C78: - | D78: =IF(C78="-",0,C78) -> 0 | E78: - | F78: =IF(E78="-",0,E78) -> 0 | G78: - | H78: =IF(G78="-",0,G78) -> 0 | I78: - | J78: =IF(I78="-",0,I78) -> 0 | K78: - | L78: =IF(K78="-",0,K78) -> 0 | M78: =Table10[[#This Row],[School]] -> - | N78: =D78+F78+H78+J78+L78 -> 0 | O78: =MAX(C78,E78,G78,I78,K78) -> 0 | P78: =IF(Q78=1,N78,IF(Q78=0,(N78-O78),"-")) -> - | Q78: =$L$1-Table10[Competed Count] -> 4 | R78: =IF(Q78<2,"Yes","No") -> No | S78: =AND($C$1="Y",D78>0) -> FALSE | T78: =AND($E$1="Y",F78>0) -> FALSE | U78: =AND($G$1="Y",H78>0) -> FALSE | V78: =AND($I$1="Y",J78>0) -> FALSE | W78: =AND($K$1="Y",L78>0) -> FALSE | X78: =COUNTIF(Table10[[#This Row],[Competed 1]:[Competed 5]],"=TRUE") -> 0
B79: - | C79: - | D79: =IF(C79="-",0,C79) -> 0 | E79: - | F79: =IF(E79="-",0,E79) -> 0 | G79: - | H79: =IF(G79="-",0,G79) -> 0 | I79: - | J79: =IF(I79="-",0,I79) -> 0 | K79: - | L79: =IF(K79="-",0,K79) -> 0 | M79: =Table10[[#This Row],[School]] -> - | N79: =D79+F79+H79+J79+L79 -> 0 | O79: =MAX(C79,E79,G79,I79,K79) -> 0 | P79: =IF(Q79=1,N79,IF(Q79=0,(N79-O79),"-")) -> - | Q79: =$L$1-Table10[Competed Count] -> 4 | R79: =IF(Q79<2,"Yes","No") -> No | S79: =AND($C$1="Y",D79>0) -> FALSE | T79: =AND($E$1="Y",F79>0) -> FALSE | U79: =AND($G$1="Y",H79>0) -> FALSE | V79: =AND($I$1="Y",J79>0) -> FALSE | W79: =AND($K$1="Y",L79>0) -> FALSE | X79: =COUNTIF(Table10[[#This Row],[Competed 1]:[Competed 5]],"=TRUE") -> 0
B80: - | C80: - | D80: =IF(C80="-",0,C80) -> 0 | E80: - | F80: =IF(E80="-",0,E80) -> 0 | G80: - | H80: =IF(G80="-",0,G80) -> 0 | I80: - | J80: =IF(I80="-",0,I80) -> 0 | K80: - | L80: =IF(K80="-",0,K80) -> 0 | M80: =Table10[[#This Row],[School]] -> - | N80: =D80+F80+H80+J80+L80 -> 0 | O80: =MAX(C80,E80,G80,I80,K80) -> 0 | P80: =IF(Q80=1,N80,IF(Q80=0,(N80-O80),"-")) -> - | Q80: =$L$1-Table10[Competed Count] -> 4 | R80: =IF(Q80<2,"Yes","No") -> No | S80: =AND($C$1="Y",D80>0) -> FALSE | T80: =AND($E$1="Y",F80>0) -> FALSE | U80: =AND($G$1="Y",H80>0) -> FALSE | V80: =AND($I$1="Y",J80>0) -> FALSE | W80: =AND($K$1="Y",L80>0) -> FALSE | X80: =COUNTIF(Table10[[#This Row],[Competed 1]:[Competed 5]],"=TRUE") -> 0
B81: - | C81: - | D81: =IF(C81="-",0,C81) -> 0 | E81: - | F81: =IF(E81="-",0,E81) -> 0 | G81: - | H81: =IF(G81="-",0,G81) -> 0 | I81: - | J81: =IF(I81="-",0,I81) -> 0 | K81: - | L81: =IF(K81="-",0,K81) -> 0 | M81: =Table10[[#This Row],[School]] -> - | N81: =D81+F81+H81+J81+L81 -> 0 | O81: =MAX(C81,E81,G81,I81,K81) -> 0 | P81: =IF(Q81=1,N81,IF(Q81=0,(N81-O81),"-")) -> - | Q81: =$L$1-Table10[Competed Count] -> 4 | R81: =IF(Q81<2,"Yes","No") -> No | S81: =AND($C$1="Y",D81>0) -> FALSE | T81: =AND($E$1="Y",F81>0) -> FALSE | U81: =AND($G$1="Y",H81>0) -> FALSE | V81: =AND($I$1="Y",J81>0) -> FALSE | W81: =AND($K$1="Y",L81>0) -> FALSE | X81: =COUNTIF(Table10[[#This Row],[Competed 1]:[Competed 5]],"=TRUE") -> 0
B82: - | C82: - | D82: =IF(C82="-",0,C82) -> 0 | E82: - | F82: =IF(E82="-",0,E82) -> 0 | G82: - | H82: =IF(G82="-",0,G82) -> 0 | I82: - | J82: =IF(I82="-",0,I82) -> 0 | K82: - | L82: =IF(K82="-",0,K82) -> 0 | M82: =Table10[[#This Row],[School]] -> - | N82: =D82+F82+H82+J82+L82 -> 0 | O82: =MAX(C82,E82,G82,I82,K82) -> 0 | P82: =IF(Q82=1,N82,IF(Q82=0,(N82-O82),"-")) -> - | Q82: =$L$1-Table10[Competed Count] -> 4 | R82: =IF(Q82<2,"Yes","No") -> No | S82: =AND($C$1="Y",D82>0) -> FALSE | T82: =AND($E$1="Y",F82>0) -> FALSE | U82: =AND($G$1="Y",H82>0) -> FALSE | V82: =AND($I$1="Y",J82>0) -> FALSE | W82: =AND($K$1="Y",L82>0) -> FALSE | X82: =COUNTIF(Table10[[#This Row],[Competed 1]:[Competed 5]],"=TRUE") -> 0
B83: - | C83: - | D83: =IF(C83="-",0,C83) -> 0 | E83: - | F83: =IF(E83="-",0,E83) -> 0 | G83: - | H83: =IF(G83="-",0,G83) -> 0 | I83: - | J83: =IF(I83="-",0,I83) -> 0 | K83: - | L83: =IF(K83="-",0,K83) -> 0 | M83: =Table10[[#This Row],[School]] -> - | N83: =D83+F83+H83+J83+L83 -> 0 | O83: =MAX(C83,E83,G83,I83,K83) -> 0 | P83: =IF(Q83=1,N83,IF(Q83=0,(N83-O83),"-")) -> - | Q83: =$L$1-Table10[Competed Count] -> 4 | R83: =IF(Q83<2,"Yes","No") -> No | S83: =AND($C$1="Y",D83>0) -> FALSE | T83: =AND($E$1="Y",F83>0) -> FALSE | U83: =AND($G$1="Y",H83>0) -> FALSE | V83: =AND($I$1="Y",J83>0) -> FALSE | W83: =AND($K$1="Y",L83>0) -> FALSE | X83: =COUNTIF(Table10[[#This Row],[Competed 1]:[Competed 5]],"=TRUE") -> 0
B84: - | C84: - | D84: =IF(C84="-",0,C84) -> 0 | E84: - | F84: =IF(E84="-",0,E84) -> 0 | G84: - | H84: =IF(G84="-",0,G84) -> 0 | I84: - | J84: =IF(I84="-",0,I84) -> 0 | K84: - | L84: =IF(K84="-",0,K84) -> 0 | M84: =Table10[[#This Row],[School]] -> - | N84: =D84+F84+H84+J84+L84 -> 0 | O84: =MAX(C84,E84,G84,I84,K84) -> 0 | P84: =IF(Q84=1,N84,IF(Q84=0,(N84-O84),"-")) -> - | Q84: =$L$1-Table10[Competed Count] -> 4 | R84: =IF(Q84<2,"Yes","No") -> No | S84: =AND($C$1="Y",D84>0) -> FALSE | T84: =AND($E$1="Y",F84>0) -> FALSE | U84: =AND($G$1="Y",H84>0) -> FALSE | V84: =AND($I$1="Y",J84>0) -> FALSE | W84: =AND($K$1="Y",L84>0) -> FALSE | X84: =COUNTIF(Table10[[#This Row],[Competed 1]:[Competed 5]],"=TRUE") -> 0
B85: - | C85: - | D85: =IF(C85="-",0,C85) -> 0 | E85: - | F85: =IF(E85="-",0,E85) -> 0 | G85: - | H85: =IF(G85="-",0,G85) -> 0 | I85: - | J85: =IF(I85="-",0,I85) -> 0 | K85: - | L85: =IF(K85="-",0,K85) -> 0 | M85: =Table10[[#This Row],[School]] -> - | N85: =D85+F85+H85+J85+L85 -> 0 | O85: =MAX(C85,E85,G85,I85,K85) -> 0 | P85: =IF(Q85=1,N85,IF(Q85=0,(N85-O85),"-")) -> - | Q85: =$L$1-Table10[Competed Count] -> 4 | R85: =IF(Q85<2,"Yes","No") -> No | S85: =AND($C$1="Y",D85>0) -> FALSE | T85: =AND($E$1="Y",F85>0) -> FALSE | U85: =AND($G$1="Y",H85>0) -> FALSE | V85: =AND($I$1="Y",J85>0) -> FALSE | W85: =AND($K$1="Y",L85>0) -> FALSE | X85: =COUNTIF(Table10[[#This Row],[Competed 1]:[Competed 5]],"=TRUE") -> 0
B86: - | C86: - | D86: =IF(C86="-",0,C86) -> 0 | E86: - | F86: =IF(E86="-",0,E86) -> 0 | G86: - | H86: =IF(G86="-",0,G86) -> 0 | I86: - | J86: =IF(I86="-",0,I86) -> 0 | K86: - | L86: =IF(K86="-",0,K86) -> 0 | M86: =Table10[[#This Row],[School]] -> - | N86: =D86+F86+H86+J86+L86 -> 0 | O86: =MAX(C86,E86,G86,I86,K86) -> 0 | P86: =IF(Q86=1,N86,IF(Q86=0,(N86-O86),"-")) -> - | Q86: =$L$1-Table10[Competed Count] -> 4 | R86: =IF(Q86<2,"Yes","No") -> No | S86: =AND($C$1="Y",D86>0) -> FALSE | T86: =AND($E$1="Y",F86>0) -> FALSE | U86: =AND($G$1="Y",H86>0) -> FALSE | V86: =AND($I$1="Y",J86>0) -> FALSE | W86: =AND($K$1="Y",L86>0) -> FALSE | X86: =COUNTIF(Table10[[#This Row],[Competed 1]:[Competed 5]],"=TRUE") -> 0
B87: - | C87: - | D87: =IF(C87="-",0,C87) -> 0 | E87: - | F87: =IF(E87="-",0,E87) -> 0 | G87: - | H87: =IF(G87="-",0,G87) -> 0 | I87: - | J87: =IF(I87="-",0,I87) -> 0 | K87: - | L87: =IF(K87="-",0,K87) -> 0 | M87: =Table10[[#This Row],[School]] -> - | N87: =D87+F87+H87+J87+L87 -> 0 | O87: =MAX(C87,E87,G87,I87,K87) -> 0 | P87: =IF(Q87=1,N87,IF(Q87=0,(N87-O87),"-")) -> - | Q87: =$L$1-Table10[Competed Count] -> 4 | R87: =IF(Q87<2,"Yes","No") -> No | S87: =AND($C$1="Y",D87>0) -> FALSE | T87: =AND($E$1="Y",F87>0) -> FALSE | U87: =AND($G$1="Y",H87>0) -> FALSE | V87: =AND($I$1="Y",J87>0) -> FALSE | W87: =AND($K$1="Y",L87>0) -> FALSE | X87: =COUNTIF(Table10[[#This Row],[Competed 1]:[Competed 5]],"=TRUE") -> 0
B88: - | C88: - | D88: =IF(C88="-",0,C88) -> 0 | E88: - | F88: =IF(E88="-",0,E88) -> 0 | G88: - | H88: =IF(G88="-",0,G88) -> 0 | I88: - | J88: =IF(I88="-",0,I88) -> 0 | K88: - | L88: =IF(K88="-",0,K88) -> 0 | M88: =Table10[[#This Row],[School]] -> - | N88: =D88+F88+H88+J88+L88 -> 0 | O88: =MAX(C88,E88,G88,I88,K88) -> 0 | P88: =IF(Q88=1,N88,IF(Q88=0,(N88-O88),"-")) -> - | Q88: =$L$1-Table10[Competed Count] -> 4 | R88: =IF(Q88<2,"Yes","No") -> No | S88: =AND($C$1="Y",D88>0) -> FALSE | T88: =AND($E$1="Y",F88>0) -> FALSE | U88: =AND($G$1="Y",H88>0) -> FALSE | V88: =AND($I$1="Y",J88>0) -> FALSE | W88: =AND($K$1="Y",L88>0) -> FALSE | X88: =COUNTIF(Table10[[#This Row],[Competed 1]:[Competed 5]],"=TRUE") -> 0
B89: - | C89: - | D89: =IF(C89="-",0,C89) -> 0 | E89: - | F89: =IF(E89="-",0,E89) -> 0 | G89: - | H89: =IF(G89="-",0,G89) -> 0 | I89: - | J89: =IF(I89="-",0,I89) -> 0 | K89: - | L89: =IF(K89="-",0,K89) -> 0 | M89: =Table10[[#This Row],[School]] -> - | N89: =D89+F89+H89+J89+L89 -> 0 | O89: =MAX(C89,E89,G89,I89,K89) -> 0 | P89: =IF(Q89=1,N89,IF(Q89=0,(N89-O89),"-")) -> - | Q89: =$L$1-Table10[Competed Count] -> 4 | R89: =IF(Q89<2,"Yes","No") -> No | S89: =AND($C$1="Y",D89>0) -> FALSE | T89: =AND($E$1="Y",F89>0) -> FALSE | U89: =AND($G$1="Y",H89>0) -> FALSE | V89: =AND($I$1="Y",J89>0) -> FALSE | W89: =AND($K$1="Y",L89>0) -> FALSE | X89: =COUNTIF(Table10[[#This Row],[Competed 1]:[Competed 5]],"=TRUE") -> 0
B90: - | C90: - | D90: =IF(C90="-",0,C90) -> 0 | E90: - | F90: =IF(E90="-",0,E90) -> 0 | G90: - | H90: =IF(G90="-",0,G90) -> 0 | I90: - | J90: =IF(I90="-",0,I90) -> 0 | K90: - | L90: =IF(K90="-",0,K90) -> 0 | M90: =Table10[[#This Row],[School]] -> - | N90: =D90+F90+H90+J90+L90 -> 0 | O90: =MAX(C90,E90,G90,I90,K90) -> 0 | P90: =IF(Q90=1,N90,IF(Q90=0,(N90-O90),"-")) -> - | Q90: =$L$1-Table10[Competed Count] -> 4 | R90: =IF(Q90<2,"Yes","No") -> No | S90: =AND($C$1="Y",D90>0) -> FALSE | T90: =AND($E$1="Y",F90>0) -> FALSE | U90: =AND($G$1="Y",H90>0) -> FALSE | V90: =AND($I$1="Y",J90>0) -> FALSE | W90: =AND($K$1="Y",L90>0) -> FALSE | X90: =COUNTIF(Table10[[#This Row],[Competed 1]:[Competed 5]],"=TRUE") -> 0
B91: - | C91: - | D91: =IF(C91="-",0,C91) -> 0 | E91: - | F91: =IF(E91="-",0,E91) -> 0 | G91: - | H91: =IF(G91="-",0,G91) -> 0 | I91: - | J91: =IF(I91="-",0,I91) -> 0 | K91: - | L91: =IF(K91="-",0,K91) -> 0 | M91: =Table10[[#This Row],[School]] -> - | N91: =D91+F91+H91+J91+L91 -> 0 | O91: =MAX(C91,E91,G91,I91,K91) -> 0 | P91: =IF(Q91=1,N91,IF(Q91=0,(N91-O91),"-")) -> - | Q91: =$L$1-Table10[Competed Count] -> 4 | R91: =IF(Q91<2,"Yes","No") -> No | S91: =AND($C$1="Y",D91>0) -> FALSE | T91: =AND($E$1="Y",F91>0) -> FALSE | U91: =AND($G$1="Y",H91>0) -> FALSE | V91: =AND($I$1="Y",J91>0) -> FALSE | W91: =AND($K$1="Y",L91>0) -> FALSE | X91: =COUNTIF(Table10[[#This Row],[Competed 1]:[Competed 5]],"=TRUE") -> 0
B92: - | C92: - | D92: =IF(C92="-",0,C92) -> 0 | E92: - | F92: =IF(E92="-",0,E92) -> 0 | G92: - | H92: =IF(G92="-",0,G92) -> 0 | I92: - | J92: =IF(I92="-",0,I92) -> 0 | K92: - | L92: =IF(K92="-",0,K92) -> 0 | M92: =Table10[[#This Row],[School]] -> - | N92: =D92+F92+H92+J92+L92 -> 0 | O92: =MAX(C92,E92,G92,I92,K92) -> 0 | P92: =IF(Q92=1,N92,IF(Q92=0,(N92-O92),"-")) -> - | Q92: =$L$1-Table10[Competed Count] -> 4 | R92: =IF(Q92<2,"Yes","No") -> No | S92: =AND($C$1="Y",D92>0) -> FALSE | T92: =AND($E$1="Y",F92>0) -> FALSE | U92: =AND($G$1="Y",H92>0) -> FALSE | V92: =AND($I$1="Y",J92>0) -> FALSE | W92: =AND($K$1="Y",L92>0) -> FALSE | X92: =COUNTIF(Table10[[#This Row],[Competed 1]:[Competed 5]],"=TRUE") -> 0
B93: - | C93: - | D93: =IF(C93="-",0,C93) -> 0 | E93: - | F93: =IF(E93="-",0,E93) -> 0 | G93: - | H93: =IF(G93="-",0,G93) -> 0 | I93: - | J93: =IF(I93="-",0,I93) -> 0 | K93: - | L93: =IF(K93="-",0,K93) -> 0 | M93: =Table10[[#This Row],[School]] -> - | N93: =D93+F93+H93+J93+L93 -> 0 | O93: =MAX(C93,E93,G93,I93,K93) -> 0 | P93: =IF(Q93=1,N93,IF(Q93=0,(N93-O93),"-")) -> - | Q93: =$L$1-Table10[Competed Count] -> 4 | R93: =IF(Q93<2,"Yes","No") -> No | S93: =AND($C$1="Y",D93>0) -> FALSE | T93: =AND($E$1="Y",F93>0) -> FALSE | U93: =AND($G$1="Y",H93>0) -> FALSE | V93: =AND($I$1="Y",J93>0) -> FALSE | W93: =AND($K$1="Y",L93>0) -> FALSE | X93: =COUNTIF(Table10[[#This Row],[Competed 1]:[Competed 5]],"=TRUE") -> 0
B94: - | C94: - | D94: =IF(C94="-",0,C94) -> 0 | E94: - | F94: =IF(E94="-",0,E94) -> 0 | G94: - | H94: =IF(G94="-",0,G94) -> 0 | I94: - | J94: =IF(I94="-",0,I94) -> 0 | K94: - | L94: =IF(K94="-",0,K94) -> 0 | M94: =Table10[[#This Row],[School]] -> - | N94: =D94+F94+H94+J94+L94 -> 0 | O94: =MAX(C94,E94,G94,I94,K94) -> 0 | P94: =IF(Q94=1,N94,IF(Q94=0,(N94-O94),"-")) -> - | Q94: =$L$1-Table10[Competed Count] -> 4 | R94: =IF(Q94<2,"Yes","No") -> No | S94: =AND($C$1="Y",D94>0) -> FALSE | T94: =AND($E$1="Y",F94>0) -> FALSE | U94: =AND($G$1="Y",H94>0) -> FALSE | V94: =AND($I$1="Y",J94>0) -> FALSE | W94: =AND($K$1="Y",L94>0) -> FALSE | X94: =COUNTIF(Table10[[#This Row],[Competed 1]:[Competed 5]],"=TRUE") -> 0
B95: - | C95: - | E95: - | F95: =IF(E95="-",0,E95) -> 0 | G95: - | H95: =IF(G95="-",0,G95) -> 0 | I95: - | J95: =IF(I95="-",0,I95) -> 0 | K95: - | L95: =IF(K95="-",0,K95) -> 0 | M95: =Table10[[#This Row],[School]] -> - | N95: =D95+F95+H95+J95+L95 -> 0 | O95: =MAX(C95,E95,G95,I95,K95) -> 0 | P95: =IF(Q95=1,N95,IF(Q95=0,(N95-O95),"-")) -> - | Q95: =$L$1-Table10[Competed Count] -> 4 | R95: =IF(Q95<2,"Yes","No") -> No | S95: =AND($C$1="Y",D95>0) -> FALSE | T95: =AND($E$1="Y",F95>0) -> FALSE | U95: =AND($G$1="Y",H95>0) -> FALSE | V95: =AND($I$1="Y",J95>0) -> FALSE | W95: =AND($K$1="Y",L95>0) -> FALSE | X95: =COUNTIF(Table10[[#This Row],[Competed 1]:[Competed 5]],"=TRUE") -> 0
B96: - | C96: - | D96: =IF(C96="-",0,C96) -> 0 | E96: - | F96: =IF(E96="-",0,E96) -> 0 | G96: - | H96: =IF(G96="-",0,G96) -> 0 | I96: - | J96: =IF(I96="-",0,I96) -> 0 | K96: - | L96: =IF(K96="-",0,K96) -> 0 | M96: =Table10[[#This Row],[School]] -> - | N96: =D96+F96+H96+J96+L96 -> 0 | O96: =MAX(C96,E96,G96,I96,K96) -> 0 | P96: =IF(Q96=1,N96,IF(Q96=0,(N96-O96),"-")) -> - | Q96: =$L$1-Table10[Competed Count] -> 4 | R96: =IF(Q96<2,"Yes","No") -> No | S96: =AND($C$1="Y",D96>0) -> FALSE | T96: =AND($E$1="Y",F96>0) -> FALSE | U96: =AND($G$1="Y",H96>0) -> FALSE | V96: =AND($I$1="Y",J96>0) -> FALSE | W96: =AND($K$1="Y",L96>0) -> FALSE | X96: =COUNTIF(Table10[[#This Row],[Competed 1]:[Competed 5]],"=TRUE") -> 0
B97: - | C97: - | D97: =IF(C97="-",0,C97) -> 0 | E97: - | F97: =IF(E97="-",0,E97) -> 0 | G97: - | H97: =IF(G97="-",0,G97) -> 0 | I97: - | J97: =IF(I97="-",0,I97) -> 0 | K97: - | L97: =IF(K97="-",0,K97) -> 0 | M97: =Table10[[#This Row],[School]] -> - | N97: =D97+F97+H97+J97+L97 -> 0 | O97: =MAX(C97,E97,G97,I97,K97) -> 0 | P97: =IF(Q97=1,N97,IF(Q97=0,(N97-O97),"-")) -> - | Q97: =$L$1-Table10[Competed Count] -> 4 | R97: =IF(Q97<2,"Yes","No") -> No | S97: =AND($C$1="Y",D97>0) -> FALSE | T97: =AND($E$1="Y",F97>0) -> FALSE | U97: =AND($G$1="Y",H97>0) -> FALSE | V97: =AND($I$1="Y",J97>0) -> FALSE | W97: =AND($K$1="Y",L97>0) -> FALSE | X97: =COUNTIF(Table10[[#This Row],[Competed 1]:[Competed 5]],"=TRUE") -> 0
B98: - | C98: - | D98: =IF(C98="-",0,C98) -> 0 | E98: - | F98: =IF(E98="-",0,E98) -> 0 | G98: - | H98: =IF(G98="-",0,G98) -> 0 | I98: - | J98: =IF(I98="-",0,I98) -> 0 | K98: - | L98: =IF(K98="-",0,K98) -> 0 | M98: =Table10[[#This Row],[School]] -> - | N98: =D98+F98+H98+J98+L98 -> 0 | O98: =MAX(C98,E98,G98,I98,K98) -> 0 | P98: =IF(Q98=1,N98,IF(Q98=0,(N98-O98),"-")) -> - | Q98: =$L$1-Table10[Competed Count] -> 4 | R98: =IF(Q98<2,"Yes","No") -> No | S98: =AND($C$1="Y",D98>0) -> FALSE | T98: =AND($E$1="Y",F98>0) -> FALSE | U98: =AND($G$1="Y",H98>0) -> FALSE | V98: =AND($I$1="Y",J98>0) -> FALSE | W98: =AND($K$1="Y",L98>0) -> FALSE | X98: =COUNTIF(Table10[[#This Row],[Competed 1]:[Competed 5]],"=TRUE") -> 0
B99: - | C99: - | D99: =IF(C99="-",0,C99) -> 0 | E99: - | F99: =IF(E99="-",0,E99) -> 0 | G99: - | H99: =IF(G99="-",0,G99) -> 0 | I99: - | J99: =IF(I99="-",0,I99) -> 0 | K99: - | L99: =IF(K99="-",0,K99) -> 0 | M99: =Table10[[#This Row],[School]] -> - | N99: =D99+F99+H99+J99+L99 -> 0 | O99: =MAX(C99,E99,G99,I99,K99) -> 0 | P99: =IF(Q99=1,N99,IF(Q99=0,(N99-O99),"-")) -> - | Q99: =$L$1-Table10[Competed Count] -> 4 | R99: =IF(Q99<2,"Yes","No") -> No | S99: =AND($C$1="Y",D99>0) -> FALSE | T99: =AND($E$1="Y",F99>0) -> FALSE | U99: =AND($G$1="Y",H99>0) -> FALSE | V99: =AND($I$1="Y",J99>0) -> FALSE | W99: =AND($K$1="Y",L99>0) -> FALSE | X99: =COUNTIF(Table10[[#This Row],[Competed 1]:[Competed 5]],"=TRUE") -> 0
B100: - | C100: - | D100: =IF(C100="-",0,C100) -> 0 | E100: - | F100: =IF(E100="-",0,E100) -> 0 | G100: - | H100: =IF(G100="-",0,G100) -> 0 | I100: - | J100: =IF(I100="-",0,I100) -> 0 | K100: - | L100: =IF(K100="-",0,K100) -> 0 | M100: =Table10[[#This Row],[School]] -> - | N100: =D100+F100+H100+J100+L100 -> 0 | O100: =MAX(C100,E100,G100,I100,K100) -> 0 | P100: =IF(Q100=1,N100,IF(Q100=0,(N100-O100),"-")) -> - | Q100: =$L$1-Table10[Competed Count] -> 4 | R100: =IF(Q100<2,"Yes","No") -> No | S100: =AND($C$1="Y",D100>0) -> FALSE | T100: =AND($E$1="Y",F100>0) -> FALSE | U100: =AND($G$1="Y",H100>0) -> FALSE | V100: =AND($I$1="Y",J100>0) -> FALSE | W100: =AND($K$1="Y",L100>0) -> FALSE | X100: =COUNTIF(Table10[[#This Row],[Competed 1]:[Competed 5]],"=TRUE") -> 0
B101: - | C101: - | D101: =IF(C101="-",0,C101) -> 0 | E101: - | F101: =IF(E101="-",0,E101) -> 0 | G101: - | H101: =IF(G101="-",0,G101) -> 0 | I101: - | J101: =IF(I101="-",0,I101) -> 0 | K101: - | L101: =IF(K101="-",0,K101) -> 0 | M101: =Table10[[#This Row],[School]] -> - | N101: =D101+F101+H101+J101+L101 -> 0 | O101: =MAX(C101,E101,G101,I101,K101) -> 0 | P101: =IF(Q101=1,N101,IF(Q101=0,(N101-O101),"-")) -> - | Q101: =$L$1-Table10[Competed Count] -> 4 | R101: =IF(Q101<2,"Yes","No") -> No | S101: =AND($C$1="Y",D101>0) -> FALSE | T101: =AND($E$1="Y",F101>0) -> FALSE | U101: =AND($G$1="Y",H101>0) -> FALSE | V101: =AND($I$1="Y",J101>0) -> FALSE | W101: =AND($K$1="Y",L101>0) -> FALSE | X101: =COUNTIF(Table10[[#This Row],[Competed 1]:[Competed 5]],"=TRUE") -> 0
B102: - | C102: - | D102: =IF(C102="-",0,C102) -> 0 | E102: - | F102: =IF(E102="-",0,E102) -> 0 | G102: - | H102: =IF(G102="-",0,G102) -> 0 | I102: - | J102: =IF(I102="-",0,I102) -> 0 | K102: - | L102: =IF(K102="-",0,K102) -> 0 | M102: =Table10[[#This Row],[School]] -> - | N102: =D102+F102+H102+J102+L102 -> 0 | O102: =MAX(C102,E102,G102,I102,K102) -> 0 | P102: =IF(Q102=1,N102,IF(Q102=0,(N102-O102),"-")) -> - | Q102: =$L$1-Table10[Competed Count] -> 4 | R102: =IF(Q102<2,"Yes","No") -> No | S102: =AND($C$1="Y",D102>0) -> FALSE | T102: =AND($E$1="Y",F102>0) -> FALSE | U102: =AND($G$1="Y",H102>0) -> FALSE | V102: =AND($I$1="Y",J102>0) -> FALSE | W102: =AND($K$1="Y",L102>0) -> FALSE | X102: =COUNTIF(Table10[[#This Row],[Competed 1]:[Competed 5]],"=TRUE") -> 0
B103: - | C103: - | D103: =IF(C103="-",0,C103) -> 0 | E103: - | F103: =IF(E103="-",0,E103) -> 0 | G103: - | H103: =IF(G103="-",0,G103) -> 0 | I103: - | J103: =IF(I103="-",0,I103) -> 0 | K103: - | L103: =IF(K103="-",0,K103) -> 0 | M103: =Table10[[#This Row],[School]] -> - | N103: =D103+F103+H103+J103+L103 -> 0 | O103: =MAX(C103,E103,G103,I103,K103) -> 0 | P103: =IF(Q103=1,N103,IF(Q103=0,(N103-O103),"-")) -> - | Q103: =$L$1-Table10[Competed Count] -> 4 | R103: =IF(Q103<2,"Yes","No") -> No | S103: =AND($C$1="Y",D103>0) -> FALSE | T103: =AND($E$1="Y",F103>0) -> FALSE | U103: =AND($G$1="Y",H103>0) -> FALSE | V103: =AND($I$1="Y",J103>0) -> FALSE | W103: =AND($K$1="Y",L103>0) -> FALSE | X103: =COUNTIF(Table10[[#This Row],[Competed 1]:[Competed 5]],"=TRUE") -> 0
B104: - | C104: - | D104: =IF(C104="-",0,C104) -> 0 | E104: - | F104: =IF(E104="-",0,E104) -> 0 | G104: - | H104: =IF(G104="-",0,G104) -> 0 | I104: - | J104: =IF(I104="-",0,I104) -> 0 | K104: - | L104: =IF(K104="-",0,K104) -> 0 | M104: =Table10[[#This Row],[School]] -> - | N104: =D104+F104+H104+J104+L104 -> 0 | O104: =MAX(C104,E104,G104,I104,K104) -> 0 | P104: =IF(Q104=1,N104,IF(Q104=0,(N104-O104),"-")) -> - | Q104: =$L$1-Table10[Competed Count] -> 4 | R104: =IF(Q104<2,"Yes","No") -> No | S104: =AND($C$1="Y",D104>0) -> FALSE | T104: =AND($E$1="Y",F104>0) -> FALSE | U104: =AND($G$1="Y",H104>0) -> FALSE | V104: =AND($I$1="Y",J104>0) -> FALSE | W104: =AND($K$1="Y",L104>0) -> FALSE | X104: =COUNTIF(Table10[[#This Row],[Competed 1]:[Competed 5]],"=TRUE") -> 0
B105: - | C105: - | D105: =IF(C105="-",0,C105) -> 0 | E105: - | F105: =IF(E105="-",0,E105) -> 0 | G105: - | H105: =IF(G105="-",0,G105) -> 0 | I105: - | J105: =IF(I105="-",0,I105) -> 0 | K105: - | L105: =IF(K105="-",0,K105) -> 0 | M105: =Table10[[#This Row],[School]] -> - | N105: =D105+F105+H105+J105+L105 -> 0 | O105: =MAX(C105,E105,G105,I105,K105) -> 0 | P105: =IF(Q105=1,N105,IF(Q105=0,(N105-O105),"-")) -> - | Q105: =$L$1-Table10[Competed Count] -> 4 | R105: =IF(Q105<2,"Yes","No") -> No | S105: =AND($C$1="Y",D105>0) -> FALSE | T105: =AND($E$1="Y",F105>0) -> FALSE | U105: =AND($G$1="Y",H105>0) -> FALSE | V105: =AND($I$1="Y",J105>0) -> FALSE | W105: =AND($K$1="Y",L105>0) -> FALSE | X105: =COUNTIF(Table10[[#This Row],[Competed 1]:[Competed 5]],"=TRUE") -> 0
B106: - | C106: - | D106: =IF(C106="-",0,C106) -> 0 | E106: - | F106: =IF(E106="-",0,E106) -> 0 | G106: - | H106: =IF(G106="-",0,G106) -> 0 | I106: - | J106: =IF(I106="-",0,I106) -> 0 | K106: - | L106: =IF(K106="-",0,K106) -> 0 | M106: =Table10[[#This Row],[School]] -> - | N106: =D106+F106+H106+J106+L106 -> 0 | O106: =MAX(C106,E106,G106,I106,K106) -> 0 | P106: =IF(Q106=1,N106,IF(Q106=0,(N106-O106),"-")) -> - | Q106: =$L$1-Table10[Competed Count] -> 4 | R106: =IF(Q106<2,"Yes","No") -> No | S106: =AND($C$1="Y",D106>0) -> FALSE | T106: =AND($E$1="Y",F106>0) -> FALSE | U106: =AND($G$1="Y",H106>0) -> FALSE | V106: =AND($I$1="Y",J106>0) -> FALSE | W106: =AND($K$1="Y",L106>0) -> FALSE | X106: =COUNTIF(Table10[[#This Row],[Competed 1]:[Competed 5]],"=TRUE") -> 0
B107: - | C107: - | D107: =IF(C107="-",0,C107) -> 0 | E107: - | F107: =IF(E107="-",0,E107) -> 0 | G107: - | H107: =IF(G107="-",0,G107) -> 0 | I107: - | J107: =IF(I107="-",0,I107) -> 0 | K107: - | L107: =IF(K107="-",0,K107) -> 0 | M107: =Table10[[#This Row],[School]] -> - | N107: =D107+F107+H107+J107+L107 -> 0 | O107: =MAX(C107,E107,G107,I107,K107) -> 0 | P107: =IF(Q107=1,N107,IF(Q107=0,(N107-O107),"-")) -> - | Q107: =$L$1-Table10[Competed Count] -> 4 | R107: =IF(Q107<2,"Yes","No") -> No | S107: =AND($C$1="Y",D107>0) -> FALSE | T107: =AND($E$1="Y",F107>0) -> FALSE | U107: =AND($G$1="Y",H107>0) -> FALSE | V107: =AND($I$1="Y",J107>0) -> FALSE | W107: =AND($K$1="Y",L107>0) -> FALSE | X107: =COUNTIF(Table10[[#This Row],[Competed 1]:[Competed 5]],"=TRUE") -> 0
B108: - | C108: - | D108: =IF(C108="-",0,C108) -> 0 | E108: - | F108: =IF(E108="-",0,E108) -> 0 | G108: - | H108: =IF(G108="-",0,G108) -> 0 | I108: - | J108: =IF(I108="-",0,I108) -> 0 | K108: - | L108: =IF(K108="-",0,K108) -> 0 | M108: =Table10[[#This Row],[School]] -> - | N108: =D108+F108+H108+J108+L108 -> 0 | O108: =MAX(C108,E108,G108,I108,K108) -> 0 | P108: =IF(Q108=1,N108,IF(Q108=0,(N108-O108),"-")) -> - | Q108: =$L$1-Table10[Competed Count] -> 4 | R108: =IF(Q108<2,"Yes","No") -> No | S108: =AND($C$1="Y",D108>0) -> FALSE | T108: =AND($E$1="Y",F108>0) -> FALSE | U108: =AND($G$1="Y",H108>0) -> FALSE | V108: =AND($I$1="Y",J108>0) -> FALSE | W108: =AND($K$1="Y",L108>0) -> FALSE | X108: =COUNTIF(Table10[[#This Row],[Competed 1]:[Competed 5]],"=TRUE") -> 0
B109: - | C109: - | D109: =IF(C109="-",0,C109) -> 0 | E109: - | F109: =IF(E109="-",0,E109) -> 0 | G109: - | H109: =IF(G109="-",0,G109) -> 0 | I109: - | J109: =IF(I109="-",0,I109) -> 0 | K109: - | L109: =IF(K109="-",0,K109) -> 0 | M109: =Table10[[#This Row],[School]] -> - | N109: =D109+F109+H109+J109+L109 -> 0 | O109: =MAX(C109,E109,G109,I109,K109) -> 0 | P109: =IF(Q109=1,N109,IF(Q109=0,(N109-O109),"-")) -> - | Q109: =$L$1-Table10[Competed Count] -> 4 | R109: =IF(Q109<2,"Yes","No") -> No | S109: =AND($C$1="Y",D109>0) -> FALSE | T109: =AND($E$1="Y",F109>0) -> FALSE | U109: =AND($G$1="Y",H109>0) -> FALSE | V109: =AND($I$1="Y",J109>0) -> FALSE | W109: =AND($K$1="Y",L109>0) -> FALSE | X109: =COUNTIF(Table10[[#This Row],[Competed 1]:[Competed 5]],"=TRUE") -> 0
B110: - | C110: - | D110: =IF(C110="-",0,C110) -> 0 | E110: - | F110: =IF(E110="-",0,E110) -> 0 | G110: - | H110: =IF(G110="-",0,G110) -> 0 | I110: - | J110: =IF(I110="-",0,I110) -> 0 | K110: - | L110: =IF(K110="-",0,K110) -> 0 | M110: =Table10[[#This Row],[School]] -> - | N110: =D110+F110+H110+J110+L110 -> 0 | O110: =MAX(C110,E110,G110,I110,K110) -> 0 | P110: =IF(Q110=1,N110,IF(Q110=0,(N110-O110),"-")) -> - | Q110: =$L$1-Table10[Competed Count] -> 4 | R110: =IF(Q110<2,"Yes","No") -> No | S110: =AND($C$1="Y",D110>0) -> FALSE | T110: =AND($E$1="Y",F110>0) -> FALSE | U110: =AND($G$1="Y",H110>0) -> FALSE | V110: =AND($I$1="Y",J110>0) -> FALSE | W110: =AND($K$1="Y",L110>0) -> FALSE | X110: =COUNTIF(Table10[[#This Row],[Competed 1]:[Competed 5]],"=TRUE") -> 0
B111: - | C111: - | D111: =IF(C111="-",0,C111) -> 0 | E111: - | F111: =IF(E111="-",0,E111) -> 0 | G111: - | H111: =IF(G111="-",0,G111) -> 0 | I111: - | J111: =IF(I111="-",0,I111) -> 0 | K111: - | L111: =IF(K111="-",0,K111) -> 0 | M111: =Table10[[#This Row],[School]] -> - | N111: =D111+F111+H111+J111+L111 -> 0 | O111: =MAX(C111,E111,G111,I111,K111) -> 0 | P111: =IF(Q111=1,N111,IF(Q111=0,(N111-O111),"-")) -> - | Q111: =$L$1-Table10[Competed Count] -> 4 | R111: =IF(Q111<2,"Yes","No") -> No | S111: =AND($C$1="Y",D111>0) -> FALSE | T111: =AND($E$1="Y",F111>0) -> FALSE | U111: =AND($G$1="Y",H111>0) -> FALSE | V111: =AND($I$1="Y",J111>0) -> FALSE | W111: =AND($K$1="Y",L111>0) -> FALSE | X111: =COUNTIF(Table10[[#This Row],[Competed 1]:[Competed 5]],"=TRUE") -> 0
B112: - | C112: - | D112: =IF(C112="-",0,C112) -> 0 | E112: - | F112: =IF(E112="-",0,E112) -> 0 | G112: - | H112: =IF(G112="-",0,G112) -> 0 | I112: - | J112: =IF(I112="-",0,I112) -> 0 | K112: - | L112: =IF(K112="-",0,K112) -> 0 | M112: =Table10[[#This Row],[School]] -> - | N112: =D112+F112+H112+J112+L112 -> 0 | O112: =MAX(C112,E112,G112,I112,K112) -> 0 | P112: =IF(Q112=1,N112,IF(Q112=0,(N112-O112),"-")) -> - | Q112: =$L$1-Table10[Competed Count] -> 4 | R112: =IF(Q112<2,"Yes","No") -> No | S112: =AND($C$1="Y",D112>0) -> FALSE | T112: =AND($E$1="Y",F112>0) -> FALSE | U112: =AND($G$1="Y",H112>0) -> FALSE | V112: =AND($I$1="Y",J112>0) -> FALSE | W112: =AND($K$1="Y",L112>0) -> FALSE | X112: =COUNTIF(Table10[[#This Row],[Competed 1]:[Competed 5]],"=TRUE") -> 0
B113: - | C113: - | D113: =IF(C113="-",0,C113) -> 0 | E113: - | F113: =IF(E113="-",0,E113) -> 0 | G113: - | H113: =IF(G113="-",0,G113) -> 0 | I113: - | J113: =IF(I113="-",0,I113) -> 0 | K113: - | L113: =IF(K113="-",0,K113) -> 0 | M113: =Table10[[#This Row],[School]] -> - | N113: =D113+F113+H113+J113+L113 -> 0 | O113: =MAX(C113,E113,G113,I113,K113) -> 0 | P113: =IF(Q113=1,N113,IF(Q113=0,(N113-O113),"-")) -> - | Q113: =$L$1-Table10[Competed Count] -> 4 | R113: =IF(Q113<2,"Yes","No") -> No | S113: =AND($C$1="Y",D113>0) -> FALSE | T113: =AND($E$1="Y",F113>0) -> FALSE | U113: =AND($G$1="Y",H113>0) -> FALSE | V113: =AND($I$1="Y",J113>0) -> FALSE | W113: =AND($K$1="Y",L113>0) -> FALSE | X113: =COUNTIF(Table10[[#This Row],[Competed 1]:[Competed 5]],"=TRUE") -> 0
B114: - | C114: - | D114: =IF(C114="-",0,C114) -> 0 | E114: - | F114: =IF(E114="-",0,E114) -> 0 | G114: - | H114: =IF(G114="-",0,G114) -> 0 | I114: - | J114: =IF(I114="-",0,I114) -> 0 | K114: - | L114: =IF(K114="-",0,K114) -> 0 | M114: =Table10[[#This Row],[School]] -> - | N114: =D114+F114+H114+J114+L114 -> 0 | O114: =MAX(C114,E114,G114,I114,K114) -> 0 | P114: =IF(Q114=1,N114,IF(Q114=0,(N114-O114),"-")) -> - | Q114: =$L$1-Table10[Competed Count] -> 4 | R114: =IF(Q114<2,"Yes","No") -> No | S114: =AND($C$1="Y",D114>0) -> FALSE | T114: =AND($E$1="Y",F114>0) -> FALSE | U114: =AND($G$1="Y",H114>0) -> FALSE | V114: =AND($I$1="Y",J114>0) -> FALSE | W114: =AND($K$1="Y",L114>0) -> FALSE | X114: =COUNTIF(Table10[[#This Row],[Competed 1]:[Competed 5]],"=TRUE") -> 0
B115: - | C115: - | D115: =IF(C115="-",0,C115) -> 0 | E115: - | F115: =IF(E115="-",0,E115) -> 0 | G115: - | H115: =IF(G115="-",0,G115) -> 0 | I115: - | J115: =IF(I115="-",0,I115) -> 0 | K115: - | L115: =IF(K115="-",0,K115) -> 0 | M115: =Table10[[#This Row],[School]] -> - | N115: =D115+F115+H115+J115+L115 -> 0 | O115: =MAX(C115,E115,G115,I115,K115) -> 0 | P115: =IF(Q115=1,N115,IF(Q115=0,(N115-O115),"-")) -> - | Q115: =$L$1-Table10[Competed Count] -> 4 | R115: =IF(Q115<2,"Yes","No") -> No | S115: =AND($C$1="Y",D115>0) -> FALSE | T115: =AND($E$1="Y",F115>0) -> FALSE | U115: =AND($G$1="Y",H115>0) -> FALSE | V115: =AND($I$1="Y",J115>0) -> FALSE | W115: =AND($K$1="Y",L115>0) -> FALSE | X115: =COUNTIF(Table10[[#This Row],[Competed 1]:[Competed 5]],"=TRUE") -> 0
B116: - | C116: - | D116: =IF(C116="-",0,C116) -> 0 | E116: - | F116: =IF(E116="-",0,E116) -> 0 | G116: - | H116: =IF(G116="-",0,G116) -> 0 | I116: - | J116: =IF(I116="-",0,I116) -> 0 | K116: - | L116: =IF(K116="-",0,K116) -> 0 | M116: =Table10[[#This Row],[School]] -> - | N116: =D116+F116+H116+J116+L116 -> 0 | O116: =MAX(C116,E116,G116,I116,K116) -> 0 | P116: =IF(Q116=1,N116,IF(Q116=0,(N116-O116),"-")) -> - | Q116: =$L$1-Table10[Competed Count] -> 4 | R116: =IF(Q116<2,"Yes","No") -> No | S116: =AND($C$1="Y",D116>0) -> FALSE | T116: =AND($E$1="Y",F116>0) -> FALSE | U116: =AND($G$1="Y",H116>0) -> FALSE | V116: =AND($I$1="Y",J116>0) -> FALSE | W116: =AND($K$1="Y",L116>0) -> FALSE | X116: =COUNTIF(Table10[[#This Row],[Competed 1]:[Competed 5]],"=TRUE") -> 0
B117: - | C117: - | D117: =IF(C117="-",0,C117) -> 0 | E117: - | F117: =IF(E117="-",0,E117) -> 0 | G117: - | H117: =IF(G117="-",0,G117) -> 0 | I117: - | J117: =IF(I117="-",0,I117) -> 0 | K117: - | L117: =IF(K117="-",0,K117) -> 0 | M117: =Table10[[#This Row],[School]] -> - | N117: =D117+F117+H117+J117+L117 -> 0 | O117: =MAX(C117,E117,G117,I117,K117) -> 0 | P117: =IF(Q117=1,N117,IF(Q117=0,(N117-O117),"-")) -> - | Q117: =$L$1-Table10[Competed Count] -> 4 | R117: =IF(Q117<2,"Yes","No") -> No | S117: =AND($C$1="Y",D117>0) -> FALSE | T117: =AND($E$1="Y",F117>0) -> FALSE | U117: =AND($G$1="Y",H117>0) -> FALSE | V117: =AND($I$1="Y",J117>0) -> FALSE | W117: =AND($K$1="Y",L117>0) -> FALSE | X117: =COUNTIF(Table10[[#This Row],[Competed 1]:[Competed 5]],"=TRUE") -> 0
B118: - | C118: - | D118: =IF(C118="-",0,C118) -> 0 | E118: - | F118: =IF(E118="-",0,E118) -> 0 | G118: - | H118: =IF(G118="-",0,G118) -> 0 | I118: - | J118: =IF(I118="-",0,I118) -> 0 | K118: - | L118: =IF(K118="-",0,K118) -> 0 | M118: =Table10[[#This Row],[School]] -> - | N118: =D118+F118+H118+J118+L118 -> 0 | O118: =MAX(C118,E118,G118,I118,K118) -> 0 | P118: =IF(Q118=1,N118,IF(Q118=0,(N118-O118),"-")) -> - | Q118: =$L$1-Table10[Competed Count] -> 4 | R118: =IF(Q118<2,"Yes","No") -> No | S118: =AND($C$1="Y",D118>0) -> FALSE | T118: =AND($E$1="Y",F118>0) -> FALSE | U118: =AND($G$1="Y",H118>0) -> FALSE | V118: =AND($I$1="Y",J118>0) -> FALSE | W118: =AND($K$1="Y",L118>0) -> FALSE | X118: =COUNTIF(Table10[[#This Row],[Competed 1]:[Competed 5]],"=TRUE") -> 0
B119: - | C119: - | D119: =IF(C119="-",0,C119) -> 0 | E119: - | F119: =IF(E119="-",0,E119) -> 0 | G119: - | H119: =IF(G119="-",0,G119) -> 0 | I119: - | J119: =IF(I119="-",0,I119) -> 0 | K119: - | L119: =IF(K119="-",0,K119) -> 0 | M119: =Table10[[#This Row],[School]] -> - | N119: =D119+F119+H119+J119+L119 -> 0 | O119: =MAX(C119,E119,G119,I119,K119) -> 0 | P119: =IF(Q119=1,N119,IF(Q119=0,(N119-O119),"-")) -> - | Q119: =$L$1-Table10[Competed Count] -> 4 | R119: =IF(Q119<2,"Yes","No") -> No | S119: =AND($C$1="Y",D119>0) -> FALSE | T119: =AND($E$1="Y",F119>0) -> FALSE | U119: =AND($G$1="Y",H119>0) -> FALSE | V119: =AND($I$1="Y",J119>0) -> FALSE | W119: =AND($K$1="Y",L119>0) -> FALSE | X119: =COUNTIF(Table10[[#This Row],[Competed 1]:[Competed 5]],"=TRUE") -> 0
B120: - | C120: - | D120: =IF(C120="-",0,C120) -> 0 | E120: - | F120: =IF(E120="-",0,E120) -> 0 | G120: - | H120: =IF(G120="-",0,G120) -> 0 | I120: - | J120: =IF(I120="-",0,I120) -> 0 | K120: - | L120: =IF(K120="-",0,K120) -> 0 | M120: =Table10[[#This Row],[School]] -> - | N120: =D120+F120+H120+J120+L120 -> 0 | O120: =MAX(C120,E120,G120,I120,K120) -> 0 | P120: =IF(Q120=1,N120,IF(Q120=0,(N120-O120),"-")) -> - | Q120: =$L$1-Table10[Competed Count] -> 4 | R120: =IF(Q120<2,"Yes","No") -> No | S120: =AND($C$1="Y",D120>0) -> FALSE | T120: =AND($E$1="Y",F120>0) -> FALSE | U120: =AND($G$1="Y",H120>0) -> FALSE | V120: =AND($I$1="Y",J120>0) -> FALSE | W120: =AND($K$1="Y",L120>0) -> FALSE | X120: =COUNTIF(Table10[[#This Row],[Competed 1]:[Competed 5]],"=TRUE") -> 0
B121: - | C121: - | D121: =IF(C121="-",0,C121) -> 0 | E121: - | F121: =IF(E121="-",0,E121) -> 0 | G121: - | H121: =IF(G121="-",0,G121) -> 0 | I121: - | J121: =IF(I121="-",0,I121) -> 0 | K121: - | L121: =IF(K121="-",0,K121) -> 0 | M121: =Table10[[#This Row],[School]] -> - | N121: =D121+F121+H121+J121+L121 -> 0 | O121: =MAX(C121,E121,G121,I121,K121) -> 0 | P121: =IF(Q121=1,N121,IF(Q121=0,(N121-O121),"-")) -> - | Q121: =$L$1-Table10[Competed Count] -> 4 | R121: =IF(Q121<2,"Yes","No") -> No | S121: =AND($C$1="Y",D121>0) -> FALSE | T121: =AND($E$1="Y",F121>0) -> FALSE | U121: =AND($G$1="Y",H121>0) -> FALSE | V121: =AND($I$1="Y",J121>0) -> FALSE | W121: =AND($K$1="Y",L121>0) -> FALSE | X121: =COUNTIF(Table10[[#This Row],[Competed 1]:[Competed 5]],"=TRUE") -> 0
B122: - | C122: - | D122: =IF(C122="-",0,C122) -> 0 | E122: - | F122: =IF(E122="-",0,E122) -> 0 | G122: - | H122: =IF(G122="-",0,G122) -> 0 | I122: - | J122: =IF(I122="-",0,I122) -> 0 | K122: - | L122: =IF(K122="-",0,K122) -> 0 | M122: =Table10[[#This Row],[School]] -> - | N122: =D122+F122+H122+J122+L122 -> 0 | O122: =MAX(C122,E122,G122,I122,K122) -> 0 | P122: =IF(Q122=1,N122,IF(Q122=0,(N122-O122),"-")) -> - | Q122: =$L$1-Table10[Competed Count] -> 4 | R122: =IF(Q122<2,"Yes","No") -> No | S122: =AND($C$1="Y",D122>0) -> FALSE | T122: =AND($E$1="Y",F122>0) -> FALSE | U122: =AND($G$1="Y",H122>0) -> FALSE | V122: =AND($I$1="Y",J122>0) -> FALSE | W122: =AND($K$1="Y",L122>0) -> FALSE | X122: =COUNTIF(Table10[[#This Row],[Competed 1]:[Competed 5]],"=TRUE") -> 0
B123: - | C123: - | D123: =IF(C123="-",0,C123) -> 0 | E123: - | F123: =IF(E123="-",0,E123) -> 0 | G123: - | H123: =IF(G123="-",0,G123) -> 0 | I123: - | J123: =IF(I123="-",0,I123) -> 0 | K123: - | L123: =IF(K123="-",0,K123) -> 0 | M123: =Table10[[#This Row],[School]] -> - | N123: =D123+F123+H123+J123+L123 -> 0 | O123: =MAX(C123,E123,G123,I123,K123) -> 0 | P123: =IF(Q123=1,N123,IF(Q123=0,(N123-O123),"-")) -> - | Q123: =$L$1-Table10[Competed Count] -> 4 | R123: =IF(Q123<2,"Yes","No") -> No | S123: =AND($C$1="Y",D123>0) -> FALSE | T123: =AND($E$1="Y",F123>0) -> FALSE | U123: =AND($G$1="Y",H123>0) -> FALSE | V123: =AND($I$1="Y",J123>0) -> FALSE | W123: =AND($K$1="Y",L123>0) -> FALSE | X123: =COUNTIF(Table10[[#This Row],[Competed 1]:[Competed 5]],"=TRUE") -> 0
B124: - | C124: - | D124: =IF(C124="-",0,C124) -> 0 | E124: - | F124: =IF(E124="-",0,E124) -> 0 | G124: - | H124: =IF(G124="-",0,G124) -> 0 | I124: - | J124: =IF(I124="-",0,I124) -> 0 | K124: - | L124: =IF(K124="-",0,K124) -> 0 | M124: =Table10[[#This Row],[School]] -> - | N124: =D124+F124+H124+J124+L124 -> 0 | O124: =MAX(C124,E124,G124,I124,K124) -> 0 | P124: =IF(Q124=1,N124,IF(Q124=0,(N124-O124),"-")) -> - | Q124: =$L$1-Table10[Competed Count] -> 4 | R124: =IF(Q124<2,"Yes","No") -> No | S124: =AND($C$1="Y",D124>0) -> FALSE | T124: =AND($E$1="Y",F124>0) -> FALSE | U124: =AND($G$1="Y",H124>0) -> FALSE | V124: =AND($I$1="Y",J124>0) -> FALSE | W124: =AND($K$1="Y",L124>0) -> FALSE | X124: =COUNTIF(Table10[[#This Row],[Competed 1]:[Competed 5]],"=TRUE") -> 0
B125: - | C125: - | D125: =IF(C125="-",0,C125) -> 0 | E125: - | F125: =IF(E125="-",0,E125) -> 0 | G125: - | H125: =IF(G125="-",0,G125) -> 0 | I125: - | J125: =IF(I125="-",0,I125) -> 0 | K125: - | L125: =IF(K125="-",0,K125) -> 0 | M125: =Table10[[#This Row],[School]] -> - | N125: =D125+F125+H125+J125+L125 -> 0 | O125: =MAX(C125,E125,G125,I125,K125) -> 0 | P125: =IF(Q125=1,N125,IF(Q125=0,(N125-O125),"-")) -> - | Q125: =$L$1-Table10[Competed Count] -> 4 | R125: =IF(Q125<2,"Yes","No") -> No | S125: =AND($C$1="Y",D125>0) -> FALSE | T125: =AND($E$1="Y",F125>0) -> FALSE | U125: =AND($G$1="Y",H125>0) -> FALSE | V125: =AND($I$1="Y",J125>0) -> FALSE | W125: =AND($K$1="Y",L125>0) -> FALSE | X125: =COUNTIF(Table10[[#This Row],[Competed 1]:[Competed 5]],"=TRUE") -> 0
B126: - | C126: - | D126: =IF(C126="-",0,C126) -> 0 | E126: - | F126: =IF(E126="-",0,E126) -> 0 | G126: - | H126: =IF(G126="-",0,G126) -> 0 | I126: - | J126: =IF(I126="-",0,I126) -> 0 | K126: - | L126: =IF(K126="-",0,K126) -> 0 | M126: =Table10[[#This Row],[School]] -> - | N126: =D126+F126+H126+J126+L126 -> 0 | O126: =MAX(C126,E126,G126,I126,K126) -> 0 | P126: =IF(Q126=1,N126,IF(Q126=0,(N126-O126),"-")) -> - | Q126: =$L$1-Table10[Competed Count] -> 4 | R126: =IF(Q126<2,"Yes","No") -> No | S126: =AND($C$1="Y",D126>0) -> FALSE | T126: =AND($E$1="Y",F126>0) -> FALSE | U126: =AND($G$1="Y",H126>0) -> FALSE | V126: =AND($I$1="Y",J126>0) -> FALSE | W126: =AND($K$1="Y",L126>0) -> FALSE | X126: =COUNTIF(Table10[[#This Row],[Competed 1]:[Competed 5]],"=TRUE") -> 0
B127: - | C127: - | D127: =IF(C127="-",0,C127) -> 0 | E127: - | F127: =IF(E127="-",0,E127) -> 0 | G127: - | H127: =IF(G127="-",0,G127) -> 0 | I127: - | J127: =IF(I127="-",0,I127) -> 0 | K127: - | L127: =IF(K127="-",0,K127) -> 0 | M127: =Table10[[#This Row],[School]] -> - | N127: =D127+F127+H127+J127+L127 -> 0 | O127: =MAX(C127,E127,G127,I127,K127) -> 0 | P127: =IF(Q127=1,N127,IF(Q127=0,(N127-O127),"-")) -> - | Q127: =$L$1-Table10[Competed Count] -> 4 | R127: =IF(Q127<2,"Yes","No") -> No | S127: =AND($C$1="Y",D127>0) -> FALSE | T127: =AND($E$1="Y",F127>0) -> FALSE | U127: =AND($G$1="Y",H127>0) -> FALSE | V127: =AND($I$1="Y",J127>0) -> FALSE | W127: =AND($K$1="Y",L127>0) -> FALSE | X127: =COUNTIF(Table10[[#This Row],[Competed 1]:[Competed 5]],"=TRUE") -> 0
B128: - | C128: - | D128: =IF(C128="-",0,C128) -> 0 | E128: - | F128: =IF(E128="-",0,E128) -> 0 | G128: - | H128: =IF(G128="-",0,G128) -> 0 | I128: - | J128: =IF(I128="-",0,I128) -> 0 | K128: - | L128: =IF(K128="-",0,K128) -> 0 | M128: =Table10[[#This Row],[School]] -> - | N128: =D128+F128+H128+J128+L128 -> 0 | O128: =MAX(C128,E128,G128,I128,K128) -> 0 | P128: =IF(Q128=1,N128,IF(Q128=0,(N128-O128),"-")) -> - | Q128: =$L$1-Table10[Competed Count] -> 4 | R128: =IF(Q128<2,"Yes","No") -> No | S128: =AND($C$1="Y",D128>0) -> FALSE | T128: =AND($E$1="Y",F128>0) -> FALSE | U128: =AND($G$1="Y",H128>0) -> FALSE | V128: =AND($I$1="Y",J128>0) -> FALSE | W128: =AND($K$1="Y",L128>0) -> FALSE | X128: =COUNTIF(Table10[[#This Row],[Competed 1]:[Competed 5]],"=TRUE") -> 0
B129: - | C129: - | D129: =IF(C129="-",0,C129) -> 0 | E129: - | F129: =IF(E129="-",0,E129) -> 0 | G129: - | H129: =IF(G129="-",0,G129) -> 0 | I129: - | J129: =IF(I129="-",0,I129) -> 0 | K129: - | L129: =IF(K129="-",0,K129) -> 0 | M129: =Table10[[#This Row],[School]] -> - | N129: =D129+F129+H129+J129+L129 -> 0 | O129: =MAX(C129,E129,G129,I129,K129) -> 0 | P129: =IF(Q129=1,N129,IF(Q129=0,(N129-O129),"-")) -> - | Q129: =$L$1-Table10[Competed Count] -> 4 | R129: =IF(Q129<2,"Yes","No") -> No | S129: =AND($C$1="Y",D129>0) -> FALSE | T129: =AND($E$1="Y",F129>0) -> FALSE | U129: =AND($G$1="Y",H129>0) -> FALSE | V129: =AND($I$1="Y",J129>0) -> FALSE | W129: =AND($K$1="Y",L129>0) -> FALSE | X129: =COUNTIF(Table10[[#This Row],[Competed 1]:[Competed 5]],"=TRUE") -> 0
B130: - | C130: - | D130: =IF(C130="-",0,C130) -> 0 | E130: - | F130: =IF(E130="-",0,E130) -> 0 | G130: - | H130: =IF(G130="-",0,G130) -> 0 | I130: - | J130: =IF(I130="-",0,I130) -> 0 | K130: - | L130: =IF(K130="-",0,K130) -> 0 | M130: =Table10[[#This Row],[School]] -> - | N130: =D130+F130+H130+J130+L130 -> 0 | O130: =MAX(C130,E130,G130,I130,K130) -> 0 | P130: =IF(Q130=1,N130,IF(Q130=0,(N130-O130),"-")) -> - | Q130: =$L$1-Table10[Competed Count] -> 4 | R130: =IF(Q130<2,"Yes","No") -> No | S130: =AND($C$1="Y",D130>0) -> FALSE | T130: =AND($E$1="Y",F130>0) -> FALSE | U130: =AND($G$1="Y",H130>0) -> FALSE | V130: =AND($I$1="Y",J130>0) -> FALSE | W130: =AND($K$1="Y",L130>0) -> FALSE | X130: =COUNTIF(Table10[[#This Row],[Competed 1]:[Competed 5]],"=TRUE") -> 0
B131: - | C131: - | D131: =IF(C131="-",0,C131) -> 0 | E131: - | F131: =IF(E131="-",0,E131) -> 0 | G131: - | H131: =IF(G131="-",0,G131) -> 0 | I131: - | J131: =IF(I131="-",0,I131) -> 0 | K131: - | L131: =IF(K131="-",0,K131) -> 0 | M131: =Table10[[#This Row],[School]] -> - | N131: =D131+F131+H131+J131+L131 -> 0 | O131: =MAX(C131,E131,G131,I131,K131) -> 0 | P131: =IF(Q131=1,N131,IF(Q131=0,(N131-O131),"-")) -> - | Q131: =$L$1-Table10[Competed Count] -> 4 | R131: =IF(Q131<2,"Yes","No") -> No | S131: =AND($C$1="Y",D131>0) -> FALSE | T131: =AND($E$1="Y",F131>0) -> FALSE | U131: =AND($G$1="Y",H131>0) -> FALSE | V131: =AND($I$1="Y",J131>0) -> FALSE | W131: =AND($K$1="Y",L131>0) -> FALSE | X131: =COUNTIF(Table10[[#This Row],[Competed 1]:[Competed 5]],"=TRUE") -> 0
B132: - | C132: - | D132: =IF(C132="-",0,C132) -> 0 | E132: - | F132: =IF(E132="-",0,E132) -> 0 | G132: - | H132: =IF(G132="-",0,G132) -> 0 | I132: - | J132: =IF(I132="-",0,I132) -> 0 | K132: - | L132: =IF(K132="-",0,K132) -> 0 | M132: =Table10[[#This Row],[School]] -> - | N132: =D132+F132+H132+J132+L132 -> 0 | O132: =MAX(C132,E132,G132,I132,K132) -> 0 | P132: =IF(Q132=1,N132,IF(Q132=0,(N132-O132),"-")) -> - | Q132: =$L$1-Table10[Competed Count] -> 4 | R132: =IF(Q132<2,"Yes","No") -> No | S132: =AND($C$1="Y",D132>0) -> FALSE | T132: =AND($E$1="Y",F132>0) -> FALSE | U132: =AND($G$1="Y",H132>0) -> FALSE | V132: =AND($I$1="Y",J132>0) -> FALSE | W132: =AND($K$1="Y",L132>0) -> FALSE | X132: =COUNTIF(Table10[[#This Row],[Competed 1]:[Competed 5]],"=TRUE") -> 0
B133: - | C133: - | D133: =IF(C133="-",0,C133) -> 0 | E133: - | F133: =IF(E133="-",0,E133) -> 0 | G133: - | H133: =IF(G133="-",0,G133) -> 0 | I133: - | J133: =IF(I133="-",0,I133) -> 0 | K133: - | L133: =IF(K133="-",0,K133) -> 0 | M133: =Table10[[#This Row],[School]] -> - | N133: =D133+F133+H133+J133+L133 -> 0 | O133: =MAX(C133,E133,G133,I133,K133) -> 0 | P133: =IF(Q133=1,N133,IF(Q133=0,(N133-O133),"-")) -> - | Q133: =$L$1-Table10[Competed Count] -> 4 | R133: =IF(Q133<2,"Yes","No") -> No | S133: =AND($C$1="Y",D133>0) -> FALSE | T133: =AND($E$1="Y",F133>0) -> FALSE | U133: =AND($G$1="Y",H133>0) -> FALSE | V133: =AND($I$1="Y",J133>0) -> FALSE | W133: =AND($K$1="Y",L133>0) -> FALSE | X133: =COUNTIF(Table10[[#This Row],[Competed 1]:[Competed 5]],"=TRUE") -> 0
B134: - | C134: - | D134: =IF(C134="-",0,C134) -> 0 | E134: - | F134: =IF(E134="-",0,E134) -> 0 | G134: - | H134: =IF(G134="-",0,G134) -> 0 | I134: - | J134: =IF(I134="-",0,I134) -> 0 | K134: - | L134: =IF(K134="-",0,K134) -> 0 | M134: =Table10[[#This Row],[School]] -> - | N134: =D134+F134+H134+J134+L134 -> 0 | O134: =MAX(C134,E134,G134,I134,K134) -> 0 | P134: =IF(Q134=1,N134,IF(Q134=0,(N134-O134),"-")) -> - | Q134: =$L$1-Table10[Competed Count] -> 4 | R134: =IF(Q134<2,"Yes","No") -> No | S134: =AND($C$1="Y",D134>0) -> FALSE | T134: =AND($E$1="Y",F134>0) -> FALSE | U134: =AND($G$1="Y",H134>0) -> FALSE | V134: =AND($I$1="Y",J134>0) -> FALSE | W134: =AND($K$1="Y",L134>0) -> FALSE | X134: =COUNTIF(Table10[[#This Row],[Competed 1]:[Competed 5]],"=TRUE") -> 0
B135: - | C135: - | D135: =IF(C135="-",0,C135) -> 0 | E135: - | F135: =IF(E135="-",0,E135) -> 0 | G135: - | H135: =IF(G135="-",0,G135) -> 0 | I135: - | J135: =IF(I135="-",0,I135) -> 0 | K135: - | L135: =IF(K135="-",0,K135) -> 0 | M135: =Table10[[#This Row],[School]] -> - | N135: =D135+F135+H135+J135+L135 -> 0 | O135: =MAX(C135,E135,G135,I135,K135) -> 0 | P135: =IF(Q135=1,N135,IF(Q135=0,(N135-O135),"-")) -> - | Q135: =$L$1-Table10[Competed Count] -> 4 | R135: =IF(Q135<2,"Yes","No") -> No | S135: =AND($C$1="Y",D135>0) -> FALSE | T135: =AND($E$1="Y",F135>0) -> FALSE | U135: =AND($G$1="Y",H135>0) -> FALSE | V135: =AND($I$1="Y",J135>0) -> FALSE | W135: =AND($K$1="Y",L135>0) -> FALSE | X135: =COUNTIF(Table10[[#This Row],[Competed 1]:[Competed 5]],"=TRUE") -> 0
B136: - | C136: - | D136: =IF(C136="-",0,C136) -> 0 | E136: - | F136: =IF(E136="-",0,E136) -> 0 | G136: - | H136: =IF(G136="-",0,G136) -> 0 | I136: - | J136: =IF(I136="-",0,I136) -> 0 | K136: - | L136: =IF(K136="-",0,K136) -> 0 | M136: =Table10[[#This Row],[School]] -> - | N136: =D136+F136+H136+J136+L136 -> 0 | O136: =MAX(C136,E136,G136,I136,K136) -> 0 | P136: =IF(Q136=1,N136,IF(Q136=0,(N136-O136),"-")) -> - | Q136: =$L$1-Table10[Competed Count] -> 4 | R136: =IF(Q136<2,"Yes","No") -> No | S136: =AND($C$1="Y",D136>0) -> FALSE | T136: =AND($E$1="Y",F136>0) -> FALSE | U136: =AND($G$1="Y",H136>0) -> FALSE | V136: =AND($I$1="Y",J136>0) -> FALSE | W136: =AND($K$1="Y",L136>0) -> FALSE | X136: =COUNTIF(Table10[[#This Row],[Competed 1]:[Competed 5]],"=TRUE") -> 0
B137: - | C137: - | D137: =IF(C137="-",0,C137) -> 0 | E137: - | F137: =IF(E137="-",0,E137) -> 0 | G137: - | H137: =IF(G137="-",0,G137) -> 0 | I137: - | J137: =IF(I137="-",0,I137) -> 0 | K137: - | L137: =IF(K137="-",0,K137) -> 0 | M137: =Table10[[#This Row],[School]] -> - | N137: =D137+F137+H137+J137+L137 -> 0 | O137: =MAX(C137,E137,G137,I137,K137) -> 0 | P137: =IF(Q137=1,N137,IF(Q137=0,(N137-O137),"-")) -> - | Q137: =$L$1-Table10[Competed Count] -> 4 | R137: =IF(Q137<2,"Yes","No") -> No | S137: =AND($C$1="Y",D137>0) -> FALSE | T137: =AND($E$1="Y",F137>0) -> FALSE | U137: =AND($G$1="Y",H137>0) -> FALSE | V137: =AND($I$1="Y",J137>0) -> FALSE | W137: =AND($K$1="Y",L137>0) -> FALSE | X137: =COUNTIF(Table10[[#This Row],[Competed 1]:[Competed 5]],"=TRUE") -> 0
B138: - | C138: - | D138: =IF(C138="-",0,C138) -> 0 | E138: - | F138: =IF(E138="-",0,E138) -> 0 | G138: - | H138: =IF(G138="-",0,G138) -> 0 | I138: - | J138: =IF(I138="-",0,I138) -> 0 | K138: - | L138: =IF(K138="-",0,K138) -> 0 | M138: =Table10[[#This Row],[School]] -> - | N138: =D138+F138+H138+J138+L138 -> 0 | O138: =MAX(C138,E138,G138,I138,K138) -> 0 | P138: =IF(Q138=1,N138,IF(Q138=0,(N138-O138),"-")) -> - | Q138: =$L$1-Table10[Competed Count] -> 4 | R138: =IF(Q138<2,"Yes","No") -> No | S138: =AND($C$1="Y",D138>0) -> FALSE | T138: =AND($E$1="Y",F138>0) -> FALSE | U138: =AND($G$1="Y",H138>0) -> FALSE | V138: =AND($I$1="Y",J138>0) -> FALSE | W138: =AND($K$1="Y",L138>0) -> FALSE | X138: =COUNTIF(Table10[[#This Row],[Competed 1]:[Competed 5]],"=TRUE") -> 0
B139: - | C139: - | D139: =IF(C139="-",0,C139) -> 0 | E139: - | F139: =IF(E139="-",0,E139) -> 0 | G139: - | H139: =IF(G139="-",0,G139) -> 0 | I139: - | J139: =IF(I139="-",0,I139) -> 0 | K139: - | L139: =IF(K139="-",0,K139) -> 0 | M139: =Table10[[#This Row],[School]] -> - | N139: =D139+F139+H139+J139+L139 -> 0 | O139: =MAX(C139,E139,G139,I139,K139) -> 0 | P139: =IF(Q139=1,N139,IF(Q139=0,(N139-O139),"-")) -> - | Q139: =$L$1-Table10[Competed Count] -> 4 | R139: =IF(Q139<2,"Yes","No") -> No | S139: =AND($C$1="Y",D139>0) -> FALSE | T139: =AND($E$1="Y",F139>0) -> FALSE | U139: =AND($G$1="Y",H139>0) -> FALSE | V139: =AND($I$1="Y",J139>0) -> FALSE | W139: =AND($K$1="Y",L139>0) -> FALSE | X139: =COUNTIF(Table10[[#This Row],[Competed 1]:[Competed 5]],"=TRUE") -> 0
B140: - | C140: - | D140: =IF(C140="-",0,C140) -> 0 | E140: - | F140: =IF(E140="-",0,E140) -> 0 | G140: - | H140: =IF(G140="-",0,G140) -> 0 | I140: - | J140: =IF(I140="-",0,I140) -> 0 | K140: - | L140: =IF(K140="-",0,K140) -> 0 | M140: =Table10[[#This Row],[School]] -> - | N140: =D140+F140+H140+J140+L140 -> 0 | O140: =MAX(C140,E140,G140,I140,K140) -> 0 | P140: =IF(Q140=1,N140,IF(Q140=0,(N140-O140),"-")) -> - | Q140: =$L$1-Table10[Competed Count] -> 4 | R140: =IF(Q140<2,"Yes","No") -> No | S140: =AND($C$1="Y",D140>0) -> FALSE | T140: =AND($E$1="Y",F140>0) -> FALSE | U140: =AND($G$1="Y",H140>0) -> FALSE | V140: =AND($I$1="Y",J140>0) -> FALSE | W140: =AND($K$1="Y",L140>0) -> FALSE | X140: =COUNTIF(Table10[[#This Row],[Competed 1]:[Competed 5]],"=TRUE") -> 0
B141: - | C141: - | D141: =IF(C141="-",0,C141) -> 0 | E141: - | F141: =IF(E141="-",0,E141) -> 0 | G141: - | H141: =IF(G141="-",0,G141) -> 0 | I141: - | J141: =IF(I141="-",0,I141) -> 0 | K141: - | L141: =IF(K141="-",0,K141) -> 0 | M141: =Table10[[#This Row],[School]] -> - | N141: =D141+F141+H141+J141+L141 -> 0 | O141: =MAX(C141,E141,G141,I141,K141) -> 0 | P141: =IF(Q141=1,N141,IF(Q141=0,(N141-O141),"-")) -> - | Q141: =$L$1-Table10[Competed Count] -> 4 | R141: =IF(Q141<2,"Yes","No") -> No | S141: =AND($C$1="Y",D141>0) -> FALSE | T141: =AND($E$1="Y",F141>0) -> FALSE | U141: =AND($G$1="Y",H141>0) -> FALSE | V141: =AND($I$1="Y",J141>0) -> FALSE | W141: =AND($K$1="Y",L141>0) -> FALSE | X141: =COUNTIF(Table10[[#This Row],[Competed 1]:[Competed 5]],"=TRUE") -> 0
B142: - | C142: - | D142: =IF(C142="-",0,C142) -> 0 | E142: - | F142: =IF(E142="-",0,E142) -> 0 | G142: - | H142: =IF(G142="-",0,G142) -> 0 | I142: - | J142: =IF(I142="-",0,I142) -> 0 | K142: - | L142: =IF(K142="-",0,K142) -> 0 | M142: =Table10[[#This Row],[School]] -> - | N142: =D142+F142+H142+J142+L142 -> 0 | O142: =MAX(C142,E142,G142,I142,K142) -> 0 | P142: =IF(Q142=1,N142,IF(Q142=0,(N142-O142),"-")) -> - | Q142: =$L$1-Table10[Competed Count] -> 4 | R142: =IF(Q142<2,"Yes","No") -> No | S142: =AND($C$1="Y",D142>0) -> FALSE | T142: =AND($E$1="Y",F142>0) -> FALSE | U142: =AND($G$1="Y",H142>0) -> FALSE | V142: =AND($I$1="Y",J142>0) -> FALSE | W142: =AND($K$1="Y",L142>0) -> FALSE | X142: =COUNTIF(Table10[[#This Row],[Competed 1]:[Competed 5]],"=TRUE") -> 0
B143: - | C143: - | D143: =IF(C143="-",0,C143) -> 0 | E143: - | F143: =IF(E143="-",0,E143) -> 0 | G143: - | H143: =IF(G143="-",0,G143) -> 0 | I143: - | J143: =IF(I143="-",0,I143) -> 0 | K143: - | L143: =IF(K143="-",0,K143) -> 0 | M143: =Table10[[#This Row],[School]] -> - | N143: =D143+F143+H143+J143+L143 -> 0 | O143: =MAX(C143,E143,G143,I143,K143) -> 0 | P143: =IF(Q143=1,N143,IF(Q143=0,(N143-O143),"-")) -> - | Q143: =$L$1-Table10[Competed Count] -> 4 | R143: =IF(Q143<2,"Yes","No") -> No | S143: =AND($C$1="Y",D143>0) -> FALSE | T143: =AND($E$1="Y",F143>0) -> FALSE | U143: =AND($G$1="Y",H143>0) -> FALSE | V143: =AND($I$1="Y",J143>0) -> FALSE | W143: =AND($K$1="Y",L143>0) -> FALSE | X143: =COUNTIF(Table10[[#This Row],[Competed 1]:[Competed 5]],"=TRUE") -> 0
B144: - | C144: - | D144: =IF(C144="-",0,C144) -> 0 | E144: - | F144: =IF(E144="-",0,E144) -> 0 | G144: - | H144: =IF(G144="-",0,G144) -> 0 | I144: - | J144: =IF(I144="-",0,I144) -> 0 | K144: - | L144: =IF(K144="-",0,K144) -> 0 | M144: =Table10[[#This Row],[School]] -> - | N144: =D144+F144+H144+J144+L144 -> 0 | O144: =MAX(C144,E144,G144,I144,K144) -> 0 | P144: =IF(Q144=1,N144,IF(Q144=0,(N144-O144),"-")) -> - | Q144: =$L$1-Table10[Competed Count] -> 4 | R144: =IF(Q144<2,"Yes","No") -> No | S144: =AND($C$1="Y",D144>0) -> FALSE | T144: =AND($E$1="Y",F144>0) -> FALSE | U144: =AND($G$1="Y",H144>0) -> FALSE | V144: =AND($I$1="Y",J144>0) -> FALSE | W144: =AND($K$1="Y",L144>0) -> FALSE | X144: =COUNTIF(Table10[[#This Row],[Competed 1]:[Competed 5]],"=TRUE") -> 0
B145: - | C145: - | D145: =IF(C145="-",0,C145) -> 0 | E145: - | F145: =IF(E145="-",0,E145) -> 0 | G145: - | H145: =IF(G145="-",0,G145) -> 0 | I145: - | J145: =IF(I145="-",0,I145) -> 0 | K145: - | L145: =IF(K145="-",0,K145) -> 0 | M145: =Table10[[#This Row],[School]] -> - | N145: =D145+F145+H145+J145+L145 -> 0 | O145: =MAX(C145,E145,G145,I145,K145) -> 0 | P145: =IF(Q145=1,N145,IF(Q145=0,(N145-O145),"-")) -> - | Q145: =$L$1-Table10[Competed Count] -> 4 | R145: =IF(Q145<2,"Yes","No") -> No | S145: =AND($C$1="Y",D145>0) -> FALSE | T145: =AND($E$1="Y",F145>0) -> FALSE | U145: =AND($G$1="Y",H145>0) -> FALSE | V145: =AND($I$1="Y",J145>0) -> FALSE | W145: =AND($K$1="Y",L145>0) -> FALSE | X145: =COUNTIF(Table10[[#This Row],[Competed 1]:[Competed 5]],"=TRUE") -> 0
B146: - | C146: - | D146: =IF(C146="-",0,C146) -> 0 | E146: - | F146: =IF(E146="-",0,E146) -> 0 | G146: - | H146: =IF(G146="-",0,G146) -> 0 | I146: - | J146: =IF(I146="-",0,I146) -> 0 | K146: - | L146: =IF(K146="-",0,K146) -> 0 | M146: =Table10[[#This Row],[School]] -> - | N146: =D146+F146+H146+J146+L146 -> 0 | O146: =MAX(C146,E146,G146,I146,K146) -> 0 | P146: =IF(Q146=1,N146,IF(Q146=0,(N146-O146),"-")) -> - | Q146: =$L$1-Table10[Competed Count] -> 4 | R146: =IF(Q146<2,"Yes","No") -> No | S146: =AND($C$1="Y",D146>0) -> FALSE | T146: =AND($E$1="Y",F146>0) -> FALSE | U146: =AND($G$1="Y",H146>0) -> FALSE | V146: =AND($I$1="Y",J146>0) -> FALSE | W146: =AND($K$1="Y",L146>0) -> FALSE | X146: =COUNTIF(Table10[[#This Row],[Competed 1]:[Competed 5]],"=TRUE") -> 0
B147: - | C147: - | D147: =IF(C147="-",0,C147) -> 0 | E147: - | F147: =IF(E147="-",0,E147) -> 0 | G147: - | H147: =IF(G147="-",0,G147) -> 0 | I147: - | J147: =IF(I147="-",0,I147) -> 0 | K147: - | L147: =IF(K147="-",0,K147) -> 0 | M147: =Table10[[#This Row],[School]] -> - | N147: =D147+F147+H147+J147+L147 -> 0 | O147: =MAX(C147,E147,G147,I147,K147) -> 0 | P147: =IF(Q147=1,N147,IF(Q147=0,(N147-O147),"-")) -> - | Q147: =$L$1-Table10[Competed Count] -> 4 | R147: =IF(Q147<2,"Yes","No") -> No | S147: =AND($C$1="Y",D147>0) -> FALSE | T147: =AND($E$1="Y",F147>0) -> FALSE | U147: =AND($G$1="Y",H147>0) -> FALSE | V147: =AND($I$1="Y",J147>0) -> FALSE | W147: =AND($K$1="Y",L147>0) -> FALSE | X147: =COUNTIF(Table10[[#This Row],[Competed 1]:[Competed 5]],"=TRUE") -> 0
B148: - | C148: - | D148: =IF(C148="-",0,C148) -> 0 | E148: - | F148: =IF(E148="-",0,E148) -> 0 | G148: - | H148: =IF(G148="-",0,G148) -> 0 | I148: - | J148: =IF(I148="-",0,I148) -> 0 | K148: - | L148: =IF(K148="-",0,K148) -> 0 | M148: =Table10[[#This Row],[School]] -> - | N148: =D148+F148+H148+J148+L148 -> 0 | O148: =MAX(C148,E148,G148,I148,K148) -> 0 | P148: =IF(Q148=1,N148,IF(Q148=0,(N148-O148),"-")) -> - | Q148: =$L$1-Table10[Competed Count] -> 4 | R148: =IF(Q148<2,"Yes","No") -> No | S148: =AND($C$1="Y",D148>0) -> FALSE | T148: =AND($E$1="Y",F148>0) -> FALSE | U148: =AND($G$1="Y",H148>0) -> FALSE | V148: =AND($I$1="Y",J148>0) -> FALSE | W148: =AND($K$1="Y",L148>0) -> FALSE | X148: =COUNTIF(Table10[[#This Row],[Competed 1]:[Competed 5]],"=TRUE") -> 0
B149: - | C149: - | D149: =IF(C149="-",0,C149) -> 0 | E149: - | F149: =IF(E149="-",0,E149) -> 0 | G149: - | H149: =IF(G149="-",0,G149) -> 0 | I149: - | J149: =IF(I149="-",0,I149) -> 0 | K149: - | L149: =IF(K149="-",0,K149) -> 0 | M149: =Table10[[#This Row],[School]] -> - | N149: =D149+F149+H149+J149+L149 -> 0 | O149: =MAX(C149,E149,G149,I149,K149) -> 0 | P149: =IF(Q149=1,N149,IF(Q149=0,(N149-O149),"-")) -> - | Q149: =$L$1-Table10[Competed Count] -> 4 | R149: =IF(Q149<2,"Yes","No") -> No | S149: =AND($C$1="Y",D149>0) -> FALSE | T149: =AND($E$1="Y",F149>0) -> FALSE | U149: =AND($G$1="Y",H149>0) -> FALSE | V149: =AND($I$1="Y",J149>0) -> FALSE | W149: =AND($K$1="Y",L149>0) -> FALSE | X149: =COUNTIF(Table10[[#This Row],[Competed 1]:[Competed 5]],"=TRUE") -> 0
B150: - | C150: - | D150: =IF(C150="-",0,C150) -> 0 | E150: - | F150: =IF(E150="-",0,E150) -> 0 | G150: - | H150: =IF(G150="-",0,G150) -> 0 | I150: - | J150: =IF(I150="-",0,I150) -> 0 | K150: - | L150: =IF(K150="-",0,K150) -> 0 | M150: =Table10[[#This Row],[School]] -> - | N150: =D150+F150+H150+J150+L150 -> 0 | O150: =MAX(C150,E150,G150,I150,K150) -> 0 | P150: =IF(Q150=1,N150,IF(Q150=0,(N150-O150),"-")) -> - | Q150: =$L$1-Table10[Competed Count] -> 4 | R150: =IF(Q150<2,"Yes","No") -> No | S150: =AND($C$1="Y",D150>0) -> FALSE | T150: =AND($E$1="Y",F150>0) -> FALSE | U150: =AND($G$1="Y",H150>0) -> FALSE | V150: =AND($I$1="Y",J150>0) -> FALSE | W150: =AND($K$1="Y",L150>0) -> FALSE | X150: =COUNTIF(Table10[[#This Row],[Competed 1]:[Competed 5]],"=TRUE") -> 0

Sheet Y7B
A1: Total Number of Runners | B1: Race Complete (Y/N) | C1: =Y7G!C1 -> Y | E1: =Y7G!E1 -> Y | G1: =Y7G!G1 -> Y | I1: =Y7G!I1 -> Y | K1: =Y7G!K1 -> N | L1: =COUNTIF(C1:K1,"=Y") -> 4 | R1: Total Eligible for League | T1: =IF(K1="Y",1,0) -> 0 | V1: =SUM(S1:T1) -> 0
A2: =COUNTA(A5:A299) -> 127 | B2: No of Finishers | C2: 74 | D2: =MAX(D5:D150) -> 74 | E2: 70 | F2: =MAX(F5:F150) -> 70 | G2: 53 | H2: =MAX(H5:H150) -> 53 | I2: 53 | J2: =MAX(J5:J150) -> 53 | R2: =COUNTIF(R5:R199,"Yes") -> 36
A3: Year 7 Boys | B3: Number of results recorded | C3: =COUNTIF(C5:C149,">0") -> 74 | E3: =COUNTIF(F5:F149,">0") -> 70 | G3: 52 | I3: =COUNTIF(J5:J150,">0") -> 52 | K3: 0
A4: Name | B4: School | C4: Race 1 | D4: Normalised result -1 | E4: Race 2 | F4: Normalised result -2 | G4: Race 3 | H4: Normalised result -3 | I4: Race 4 | J4: Normalised result -4 | K4: Race 5 | L4: Normalised result -5 | M4: Duplicate School Name | N4: Total (All Races) | O4: Lowest Place Finish | P4: Final Total | Q4: League contender? (No. of races - missed) | R4: Eligible For League Title | S4: Competed 1 | T4: Competed 2 | U4: Competed 3 | V4: Competed 4 | W4: Competed 5 | X4: Competed Count
A5: Lachlan Finch | B5: Brockington College | C5: 1 | D5: =IF(C5="-",0,C5) -> 1 | E5: 1 | F5: =IF(E5="-",0,E5) -> 1 | G5: 1 | H5: =IF(G5="-",0,G5) -> 1 | I5: 1 | J5: =IF(I5="-",0,I5) -> 1 | K5: - | L5: =IF(K5="-",0,K5) -> 0 | M5: =Table1013[[#This Row],[School]] -> Brockington College | N5: =D5+F5+H5+J5+L5 -> 4 | O5: =MAX(C5,E5,G5,I5,K5) -> 1 | P5: =IF(Q5=1,N5,IF(Q5=0,(N5-O5),"-")) -> 3 | Q5: =$L$1-Table1013[Competed Count] -> 0 | R5: =IF(Q5<2,"Yes","No") -> Yes | S5: =AND($C$1="Y",D5>0) -> TRUE | T5: =AND($E$1="Y",F5>0) -> TRUE | U5: =AND($G$1="Y",H5>0) -> TRUE | V5: =AND($I$1="Y",J5>0) -> TRUE | W5: =AND($K$1="Y",L5>0) -> FALSE | X5: =COUNTIF(Table1013[[#This Row],[Competed 1]:[Competed 5]],"=TRUE") -> 4
A6: Ash Butler | B6: Thomas Estley CC | C6: 2 | D6: =IF(C6="-",0,C6) -> 2 | E6: 2 | F6: =IF(E6="-",0,E6) -> 2 | G6: 2 | H6: =IF(G6="-",0,G6) -> 2 | I6: 2 | J6: =IF(I6="-",0,I6) -> 2 | K6: - | L6: =IF(K6="-",0,K6) -> 0 | M6: =Table1013[[#This Row],[School]] -> Thomas Estley CC | N6: =D6+F6+H6+J6+L6 -> 8 | O6: =MAX(C6,E6,G6,I6,K6) -> 2 | P6: =IF(Q6=1,N6,IF(Q6=0,(N6-O6),"-")) -> 6 | Q6: =$L$1-Table1013[Competed Count] -> 0 | R6: =IF(Q6<2,"Yes","No") -> Yes | S6: =AND($C$1="Y",D6>0) -> TRUE | T6: =AND($E$1="Y",F6>0) -> TRUE | U6: =AND($G$1="Y",H6>0) -> TRUE | V6: =AND($I$1="Y",J6>0) -> TRUE | W6: =AND($K$1="Y",L6>0) -> FALSE | X6: =COUNTIF(Table1013[[#This Row],[Competed 1]:[Competed 5]],"=TRUE") -> 4
A7: Thomas Dixon | B7: Leicester Grammar School | C7: 3 | D7: =IF(C7="-",0,C7) -> 3 | E7: - | F7: =IF(E7="-",0,E7) -> 0 | G7: 3 | H7: =IF(G7="-",0,G7) -> 3 | I7: 3 | J7: =IF(I7="-",0,I7) -> 3 | K7: - | L7: =IF(K7="-",0,K7) -> 0 | M7: =Table1013[[#This Row],[School]] -> Leicester Grammar School | N7: =D7+F7+H7+J7+L7 -> 9 | O7: =MAX(C7,E7,G7,I7,K7) -> 3 | P7: =IF(Q7=1,N7,IF(Q7=0,(N7-O7),"-")) -> 9 | Q7: =$L$1-Table1013[Competed Count] -> 1 | R7: =IF(Q7<2,"Yes","No") -> Yes | S7: =AND($C$1="Y",D7>0) -> TRUE | T7: =AND($E$1="Y",F7>0) -> FALSE | U7: =AND($G$1="Y",H7>0) -> TRUE | V7: =AND($I$1="Y",J7>0) -> TRUE | W7: =AND($K$1="Y",L7>0) -> FALSE | X7: =COUNTIF(Table1013[[#This Row],[Competed 1]:[Competed 5]],"=TRUE") -> 3
A8: Sean McCann | B8: De Lisle College | C8: 4 | D8: =IF(C8="-",0,C8) -> 4 | E8: 3 | F8: =IF(E8="-",0,E8) -> 3 | G8: - | H8: =IF(G8="-",0,G8) -> 0 | I8: 4 | J8: =IF(I8="-",0,I8) -> 4 | K8: - | L8: =IF(K8="-",0,K8) -> 0 | M8: =Table1013[[#This Row],[School]] -> De Lisle College | N8: =D8+F8+H8+J8+L8 -> 11 | O8: =MAX(C8,E8,G8,I8,K8) -> 4 | P8: =IF(Q8=1,N8,IF(Q8=0,(N8-O8),"-")) -> 11 | Q8: =$L$1-Table1013[Competed Count] -> 1 | R8: =IF(Q8<2,"Yes","No") -> Yes | S8: =AND($C$1="Y",D8>0) -> TRUE | T8: =AND($E$1="Y",F8>0) -> TRUE | U8: =AND($G$1="Y",H8>0) -> FALSE | V8: =AND($I$1="Y",J8>0) -> TRUE | W8: =AND($K$1="Y",L8>0) -> FALSE | X8: =COUNTIF(Table1013[[#This Row],[Competed 1]:[Competed 5]],"=TRUE") -> 3
A9: Douglas Low | B9: Lutterworth College | C9: 7 | D9: =IF(C9="-",0,C9) -> 7 | E9: 5 | F9: =IF(E9="-",0,E9) -> 5 | G9: 4 | H9: =IF(G9="-",0,G9) -> 4 | I9: 5 | J9: =IF(I9="-",0,I9) -> 5 | K9: - | L9: =IF(K9="-",0,K9) -> 0 | M9: =Table1013[[#This Row],[School]] -> Lutterworth College | N9: =D9+F9+H9+J9+L9 -> 21 | O9: =MAX(C9,E9,G9,I9,K9) -> 7 | P9: =IF(Q9=1,N9,IF(Q9=0,(N9-O9),"-")) -> 14 | Q9: =$L$1-Table1013[Competed Count] -> 0 | R9: =IF(Q9<2,"Yes","No") -> Yes | S9: =AND($C$1="Y",D9>0) -> TRUE | T9: =AND($E$1="Y",F9>0) -> TRUE | U9: =AND($G$1="Y",H9>0) -> TRUE | V9: =AND($I$1="Y",J9>0) -> TRUE | W9: =AND($K$1="Y",L9>0) -> FALSE | X9: =COUNTIF(Table1013[[#This Row],[Competed 1]:[Competed 5]],"=TRUE") -> 4
A10: Ruaidhri Maquire | B10: Loughborough Grammar School | C10: 9 | D10: =IF(C10="-",0,C10) -> 9 | E10: 4 | F10: =IF(E10="-",0,E10) -> 4 | G10: 5 | H10: =IF(G10="-",0,G10) -> 5 | I10: 6 | J10: =IF(I10="-",0,I10) -> 6 | K10: - | L10: =IF(K10="-",0,K10) -> 0 | M10: =Table1013[[#This Row],[School]] -> Loughborough Grammar School | N10: =D10+F10+H10+J10+L10 -> 24 | O10: =MAX(C10,E10,G10,I10,K10) -> 9 | P10: =IF(Q10=1,N10,IF(Q10=0,(N10-O10),"-")) -> 15 | Q10: =$L$1-Table1013[Competed Count] -> 0 | R10: =IF(Q10<2,"Yes","No") -> Yes | S10: =AND($C$1="Y",D10>0) -> TRUE | T10: =AND($E$1="Y",F10>0) -> TRUE | U10: =AND($G$1="Y",H10>0) -> TRUE | V10: =AND($I$1="Y",J10>0) -> TRUE | W10: =AND($K$1="Y",L10>0) -> FALSE | X10: =COUNTIF(Table1013[[#This Row],[Competed 1]:[Competed 5]],"=TRUE") -> 4
A11: Luke Talbot | B11: Ivanhoe College | C11: 6 | D11: =IF(C11="-",0,C11) -> 6 | E11: - | F11: =IF(E11="-",0,E11) -> 0 | G11: 7 | H11: =IF(G11="-",0,G11) -> 7 | I11: 7 | J11: =IF(I11="-",0,I11) -> 7 | K11: - | L11: =IF(K11="-",0,K11) -> 0 | M11: =Table1013[[#This Row],[School]] -> Ivanhoe College | N11: =D11+F11+H11+J11+L11 -> 20 | O11: =MAX(C11,E11,G11,I11,K11) -> 7 | P11: =IF(Q11=1,N11,IF(Q11=0,(N11-O11),"-")) -> 20 | Q11: =$L$1-Table1013[Competed Count] -> 1 | R11: =IF(Q11<2,"Yes","No") -> Yes | S11: =AND($C$1="Y",D11>0) -> TRUE | T11: =AND($E$1="Y",F11>0) -> FALSE | U11: =AND($G$1="Y",H11>0) -> TRUE | V11: =AND($I$1="Y",J11>0) -> TRUE | W11: =AND($K$1="Y",L11>0) -> FALSE | X11: =COUNTIF(Table1013[[#This Row],[Competed 1]:[Competed 5]],"=TRUE") -> 3
A12: Alex Keeble | B12: Lutterworth College | C12: 5 | D12: =IF(C12="-",0,C12) -> 5 | E12: - | F12: =IF(E12="-",0,E12) -> 0 | G12: 8 | H12: =IF(G12="-",0,G12) -> 8 | I12: 8 | J12: =IF(I12="-",0,I12) -> 8 | K12: - | L12: =IF(K12="-",0,K12) -> 0 | M12: =Table1013[[#This Row],[School]] -> Lutterworth College | N12: =D12+F12+H12+J12+L12 -> 21 | O12: =MAX(C12,E12,G12,I12,K12) -> 8 | P12: =IF(Q12=1,N12,IF(Q12=0,(N12-O12),"-")) -> 21 | Q12: =$L$1-Table1013[Competed Count] -> 1 | R12: =IF(Q12<2,"Yes","No") -> Yes | S12: =AND($C$1="Y",D12>0) -> TRUE | T12: =AND($E$1="Y",F12>0) -> FALSE | U12: =AND($G$1="Y",H12>0) -> TRUE | V12: =AND($I$1="Y",J12>0) -> TRUE | W12: =AND($K$1="Y",L12>0) -> FALSE | X12: =COUNTIF(Table1013[[#This Row],[Competed 1]:[Competed 5]],"=TRUE") -> 3
A13: Sam Wright | B13: Thomas Estley CC | C13: 10 | D13: =IF(C13="-",0,C13) -> 10 | E13: - | F13: =IF(E13="-",0,E13) -> 0 | G13: 6 | H13: =IF(G13="-",0,G13) -> 6 | I13: 9 | J13: =IF(I13="-",0,I13) -> 9 | K13: - | L13: =IF(K13="-",0,K13) -> 0 | M13: =Table1013[[#This Row],[School]] -> Thomas Estley CC | N13: =D13+F13+H13+J13+L13 -> 25 | O13: =MAX(C13,E13,G13,I13,K13) -> 10 | P13: =IF(Q13=1,N13,IF(Q13=0,(N13-O13),"-")) -> 25 | Q13: =$L$1-Table1013[Competed Count] -> 1 | R13: =IF(Q13<2,"Yes","No") -> Yes | S13: =AND($C$1="Y",D13>0) -> TRUE | T13: =AND($E$1="Y",F13>0) -> FALSE | U13: =AND($G$1="Y",H13>0) -> TRUE | V13: =AND($I$1="Y",J13>0) -> TRUE | W13: =AND($K$1="Y",L13>0) -> FALSE | X13: =COUNTIF(Table1013[[#This Row],[Competed 1]:[Competed 5]],"=TRUE") -> 3
A14: Layton Thomas | B14: Uppingham CC | C14: 17 | D14: =IF(C14="-",0,C14) -> 17 | E14: 7 | F14: =IF(E14="-",0,E14) -> 7 | G14: 9 | H14: =IF(G14="-",0,G14) -> 9 | I14: 10 | J14: =IF(I14="-",0,I14) -> 10 | K14: - | L14: =IF(K14="-",0,K14) -> 0 | M14: =Table1013[[#This Row],[School]] -> Uppingham CC | N14: =D14+F14+H14+J14+L14 -> 43 | O14: =MAX(C14,E14,G14,I14,K14) -> 17 | P14: =IF(Q14=1,N14,IF(Q14=0,(N14-O14),"-")) -> 26 | Q14: =$L$1-Table1013[Competed Count] -> 0 | R14: =IF(Q14<2,"Yes","No") -> Yes | S14: =AND($C$1="Y",D14>0) -> TRUE | T14: =AND($E$1="Y",F14>0) -> TRUE | U14: =AND($G$1="Y",H14>0) -> TRUE | V14: =AND($I$1="Y",J14>0) -> TRUE | W14: =AND($K$1="Y",L14>0) -> FALSE | X14: =COUNTIF(Table1013[[#This Row],[Competed 1]:[Competed 5]],"=TRUE") -> 4
A15: Henry Wells | B15: Manor High School | C15: 11 | D15: =IF(C15="-",0,C15) -> 11 | E15: - | F15: =IF(E15="-",0,E15) -> 0 | G15: - | H15: =IF(G15="-",0,G15) -> 0 | I15: 11 | J15: =IF(I15="-",0,I15) -> 11 | K15: - | L15: =IF(K15="-",0,K15) -> 0 | M15: =Table1013[[#This Row],[School]] -> Manor High School | N15: =D15+F15+H15+J15+L15 -> 22 | O15: =MAX(C15,E15,G15,I15,K15) -> 11 | P15: =IF(Q15=1,N15,IF(Q15=0,(N15-O15),"-")) -> - | Q15: =$L$1-Table1013[Competed Count] -> 2 | R15: =IF(Q15<2,"Yes","No") -> No | S15: =AND($C$1="Y",D15>0) -> TRUE | T15: =AND($E$1="Y",F15>0) -> FALSE | U15: =AND($G$1="Y",H15>0) -> FALSE | V15: =AND($I$1="Y",J15>0) -> TRUE | W15: =AND($K$1="Y",L15>0) -> FALSE | X15: =COUNTIF(Table1013[[#This Row],[Competed 1]:[Competed 5]],"=TRUE") -> 2
A16: Bayley Purkis | B16: John Ferneley College | C16: 12 | D16: =IF(C16="-",0,C16) -> 12 | E16: 16 | F16: =IF(E16="-",0,E16) -> 16 | G16: 23 | H16: =IF(G16="-",0,G16) -> 23 | I16: 12 | J16: =IF(I16="-",0,I16) -> 12 | K16: - | L16: =IF(K16="-",0,K16) -> 0 | M16: =Table1013[[#This Row],[School]] -> John Ferneley College | N16: =D16+F16+H16+J16+L16 -> 63 | O16: =MAX(C16,E16,G16,I16,K16) -> 23 | P16: =IF(Q16=1,N16,IF(Q16=0,(N16-O16),"-")) -> 40 | Q16: =$L$1-Table1013[Competed Count] -> 0 | R16: =IF(Q16<2,"Yes","No") -> Yes | S16: =AND($C$1="Y",D16>0) -> TRUE | T16: =AND($E$1="Y",F16>0) -> TRUE | U16: =AND($G$1="Y",H16>0) -> TRUE | V16: =AND($I$1="Y",J16>0) -> TRUE | W16: =AND($K$1="Y",L16>0) -> FALSE | X16: =COUNTIF(Table1013[[#This Row],[Competed 1]:[Competed 5]],"=TRUE") -> 4
A17: James Tansey | B17: St Martins Catholic Academy | C17: - | D17: =IF(C17="-",0,C17) -> 0 | E17: 6 | F17: =IF(E17="-",0,E17) -> 6 | G17: 15 | H17: =IF(G17="-",0,G17) -> 15 | I17: 13 | J17: =IF(I17="-",0,I17) -> 13 | K17: - | L17: =IF(K17="-",0,K17) -> 0 | M17: =Table1013[[#This Row],[School]] -> St Martins Catholic Academy | N17: =D17+F17+H17+J17+L17 -> 34 | O17: =MAX(C17,E17,G17,I17,K17) -> 15 | P17: =IF(Q17=1,N17,IF(Q17=0,(N17-O17),"-")) -> 34 | Q17: =$L$1-Table1013[Competed Count] -> 1 | R17: =IF(Q17<2,"Yes","No") -> Yes | S17: =AND($C$1="Y",D17>0) -> FALSE | T17: =AND($E$1="Y",F17>0) -> TRUE | U17: =AND($G$1="Y",H17>0) -> TRUE | V17: =AND($I$1="Y",J17>0) -> TRUE | W17: =AND($K$1="Y",L17>0) -> FALSE | X17: =COUNTIF(Table1013[[#This Row],[Competed 1]:[Competed 5]],"=TRUE") -> 3
A18: Ethan Day | B18: South Charnwood High School | C18: - | D18: =IF(C18="-",0,C18) -> 0 | E18: - | F18: =IF(E18="-",0,E18) -> 0 | G18: 11 | H18: =IF(G18="-",0,G18) -> 11 | I18: 14 | J18: =IF(I18="-",0,I18) -> 14 | K18: - | L18: =IF(K18="-",0,K18) -> 0 | M18: =Table1013[[#This Row],[School]] -> South Charnwood High School | N18: =D18+F18+H18+J18+L18 -> 25 | O18: =MAX(C18,E18,G18,I18,K18) -> 14 | P18: =IF(Q18=1,N18,IF(Q18=0,(N18-O18),"-")) -> - | Q18: =$L$1-Table1013[Competed Count] -> 2 | R18: =IF(Q18<2,"Yes","No") -> No | S18: =AND($C$1="Y",D18>0) -> FALSE | T18: =AND($E$1="Y",F18>0) -> FALSE | U18: =AND($G$1="Y",H18>0) -> TRUE | V18: =AND($I$1="Y",J18>0) -> TRUE | W18: =AND($K$1="Y",L18>0) -> FALSE | X18: =COUNTIF(Table1013[[#This Row],[Competed 1]:[Competed 5]],"=TRUE") -> 2
A19: Logan Clapton | B19: De Lisle College | C19: 18 | D19: =IF(C19="-",0,C19) -> 18 | E19: 22 | F19: =IF(E19="-",0,E19) -> 22 | G19: 18 | H19: =IF(G19="-",0,G19) -> 18 | I19: 15 | J19: =IF(I19="-",0,I19) -> 15 | K19: - | L19: =IF(K19="-",0,K19) -> 0 | M19: =Table1013[[#This Row],[School]] -> De Lisle College | N19: =D19+F19+H19+J19+L19 -> 73 | O19: =MAX(C19,E19,G19,I19,K19) -> 22 | P19: =IF(Q19=1,N19,IF(Q19=0,(N19-O19),"-")) -> 51 | Q19: =$L$1-Table1013[Competed Count] -> 0 | R19: =IF(Q19<2,"Yes","No") -> Yes | S19: =AND($C$1="Y",D19>0) -> TRUE | T19: =AND($E$1="Y",F19>0) -> TRUE | U19: =AND($G$1="Y",H19>0) -> TRUE | V19: =AND($I$1="Y",J19>0) -> TRUE | W19: =AND($K$1="Y",L19>0) -> FALSE | X19: =COUNTIF(Table1013[[#This Row],[Competed 1]:[Competed 5]],"=TRUE") -> 4
A20: William Lewin | B20: Uppingham CC | C20: 15 | D20: =IF(C20="-",0,C20) -> 15 | E20: 18 | F20: =IF(E20="-",0,E20) -> 18 | G20: 16 | H20: =IF(G20="-",0,G20) -> 16 | I20: 16 | J20: =IF(I20="-",0,I20) -> 16 | K20: - | L20: =IF(K20="-",0,K20) -> 0 | M20: =Table1013[[#This Row],[School]] -> Uppingham CC | N20: =D20+F20+H20+J20+L20 -> 65 | O20: =MAX(C20,E20,G20,I20,K20) -> 18 | P20: =IF(Q20=1,N20,IF(Q20=0,(N20-O20),"-")) -> 47 | Q20: =$L$1-Table1013[Competed Count] -> 0 | R20: =IF(Q20<2,"Yes","No") -> Yes | S20: =AND($C$1="Y",D20>0) -> TRUE | T20: =AND($E$1="Y",F20>0) -> TRUE | U20: =AND($G$1="Y",H20>0) -> TRUE | V20: =AND($I$1="Y",J20>0) -> TRUE | W20: =AND($K$1="Y",L20>0) -> FALSE | X20: =COUNTIF(Table1013[[#This Row],[Competed 1]:[Competed 5]],"=TRUE") -> 4
A21: T Maguire | B21: Loughborough Grammar School | C21: - | D21: =IF(C21="-",0,C21) -> 0 | E21: - | F21: =IF(E21="-",0,E21) -> 0 | G21: - | H21: =IF(G21="-",0,G21) -> 0 | I21: 17 | J21: =IF(I21="-",0,I21) -> 17 | K21: - | L21: =IF(K21="-",0,K21) -> 0 | M21: =Table1013[[#This Row],[School]] -> Loughborough Grammar School | N21: =D21+F21+H21+J21+L21 -> 17 | O21: =MAX(C21,E21,G21,I21,K21) -> 17 | P21: =IF(Q21=1,N21,IF(Q21=0,(N21-O21),"-")) -> - | Q21: =$L$1-Table1013[Competed Count] -> 3 | R21: =IF(Q21<2,"Yes","No") -> No | S21: =AND($C$1="Y",D21>0) -> FALSE | T21: =AND($E$1="Y",F21>0) -> FALSE | U21: =AND($G$1="Y",H21>0) -> FALSE | V21: =AND($I$1="Y",J21>0) -> TRUE | W21: =AND($K$1="Y",L21>0) -> FALSE | X21: =COUNTIF(Table1013[[#This Row],[Competed 1]:[Competed 5]],"=TRUE") -> 1
A22: Jack Sanders | B22: De Lisle College | C22: - | D22: =IF(C22="-",0,C22) -> 0 | E22: - | F22: =IF(E22="-",0,E22) -> 0 | G22: 17 | H22: =IF(G22="-",0,G22) -> 17 | I22: 18 | J22: =IF(I22="-",0,I22) -> 18 | K22: - | L22: =IF(K22="-",0,K22) -> 0 | M22: =Table1013[[#This Row],[School]] -> De Lisle College | N22: =D22+F22+H22+J22+L22 -> 35 | O22: =MAX(C22,E22,G22,I22,K22) -> 18 | P22: =IF(Q22=1,N22,IF(Q22=0,(N22-O22),"-")) -> - | Q22: =$L$1-Table1013[Competed Count] -> 2 | R22: =IF(Q22<2,"Yes","No") -> No | S22: =AND($C$1="Y",D22>0) -> FALSE | T22: =AND($E$1="Y",F22>0) -> FALSE | U22: =AND($G$1="Y",H22>0) -> TRUE | V22: =AND($I$1="Y",J22>0) -> TRUE | W22: =AND($K$1="Y",L22>0) -> FALSE | X22: =COUNTIF(Table1013[[#This Row],[Competed 1]:[Competed 5]],"=TRUE") -> 2
A23: Max Ranson | B23: Uppingham CC | C23: - | D23: =IF(C23="-",0,C23) -> 0 | E23: 8 | F23: =IF(E23="-",0,E23) -> 8 | G23: 14 | H23: =IF(G23="-",0,G23) -> 14 | I23: 19 | J23: =IF(I23="-",0,I23) -> 19 | K23: - | L23: =IF(K23="-",0,K23) -> 0 | M23: =Table1013[[#This Row],[School]] -> Uppingham CC | N23: =D23+F23+H23+J23+L23 -> 41 | O23: =MAX(C23,E23,G23,I23,K23) -> 19 | P23: =IF(Q23=1,N23,IF(Q23=0,(N23-O23),"-")) -> 41 | Q23: =$L$1-Table1013[Competed Count] -> 1 | R23: =IF(Q23<2,"Yes","No") -> Yes | S23: =AND($C$1="Y",D23>0) -> FALSE | T23: =AND($E$1="Y",F23>0) -> TRUE | U23: =AND($G$1="Y",H23>0) -> TRUE | V23: =AND($I$1="Y",J23>0) -> TRUE | W23: =AND($K$1="Y",L23>0) -> FALSE | X23: =COUNTIF(Table1013[[#This Row],[Competed 1]:[Competed 5]],"=TRUE") -> 3
A24: Corey Morris | B24: Dixie Grammar School | C24: - | D24: =IF(C24="-",0,C24) -> 0 | E24: 13 | F24: =IF(E24="-",0,E24) -> 13 | G24: 24 | H24: =IF(G24="-",0,G24) -> 24 | I24: 20 | J24: =IF(I24="-",0,I24) -> 20 | K24: - | L24: =IF(K24="-",0,K24) -> 0 | M24: =Table1013[[#This Row],[School]] -> Dixie Grammar School | N24: =D24+F24+H24+J24+L24 -> 57 | O24: =MAX(C24,E24,G24,I24,K24) -> 24 | P24: =IF(Q24=1,N24,IF(Q24=0,(N24-O24),"-")) -> 57 | Q24: =$L$1-Table1013[Competed Count] -> 1 | R24: =IF(Q24<2,"Yes","No") -> Yes | S24: =AND($C$1="Y",D24>0) -> FALSE | T24: =AND($E$1="Y",F24>0) -> TRUE | U24: =AND($G$1="Y",H24>0) -> TRUE | V24: =AND($I$1="Y",J24>0) -> TRUE | W24: =AND($K$1="Y",L24>0) -> FALSE | X24: =COUNTIF(Table1013[[#This Row],[Competed 1]:[Competed 5]],"=TRUE") -> 3
A25: Callum McGregor | B25: Hastings High School | C25: - | D25: =IF(C25="-",0,C25) -> 0 | E25: - | F25: =IF(E25="-",0,E25) -> 0 | G25: - | H25: =IF(G25="-",0,G25) -> 0 | I25: 21 | J25: =IF(I25="-",0,I25) -> 21 | K25: - | L25: =IF(K25="-",0,K25) -> 0 | M25: =Table1013[[#This Row],[School]] -> Hastings High School | N25: =D25+F25+H25+J25+L25 -> 21 | O25: =MAX(C25,E25,G25,I25,K25) -> 21 | P25: =IF(Q25=1,N25,IF(Q25=0,(N25-O25),"-")) -> - | Q25: =$L$1-Table1013[Competed Count] -> 3 | R25: =IF(Q25<2,"Yes","No") -> No | S25: =AND($C$1="Y",D25>0) -> FALSE | T25: =AND($E$1="Y",F25>0) -> FALSE | U25: =AND($G$1="Y",H25>0) -> FALSE | V25: =AND($I$1="Y",J25>0) -> TRUE | W25: =AND($K$1="Y",L25>0) -> FALSE | X25: =COUNTIF(Table1013[[#This Row],[Competed 1]:[Competed 5]],"=TRUE") -> 1
A26: H Day | B26: Loughborough Grammar School | C26: - | D26: =IF(C26="-",0,C26) -> 0 | E26: - | F26: =IF(E26="-",0,E26) -> 0 | G26: 21 | H26: =IF(G26="-",0,G26) -> 21 | I26: 22 | J26: =IF(I26="-",0,I26) -> 22 | K26: - | L26: =IF(K26="-",0,K26) -> 0 | M26: =Table1013[[#This Row],[School]] -> Loughborough Grammar School | N26: =D26+F26+H26+J26+L26 -> 43 | O26: =MAX(C26,E26,G26,I26,K26) -> 22 | P26: =IF(Q26=1,N26,IF(Q26=0,(N26-O26),"-")) -> - | Q26: =$L$1-Table1013[Competed Count] -> 2 | R26: =IF(Q26<2,"Yes","No") -> No | S26: =AND($C$1="Y",D26>0) -> FALSE | T26: =AND($E$1="Y",F26>0) -> FALSE | U26: =AND($G$1="Y",H26>0) -> TRUE | V26: =AND($I$1="Y",J26>0) -> TRUE | W26: =AND($K$1="Y",L26>0) -> FALSE | X26: =COUNTIF(Table1013[[#This Row],[Competed 1]:[Competed 5]],"=TRUE") -> 2
A27: Finlay Storey | B27: The Martin High School | C27: 14 | D27: =IF(C27="-",0,C27) -> 14 | E27: 12 | F27: =IF(E27="-",0,E27) -> 12 | G27: 19 | H27: =IF(G27="-",0,G27) -> 19 | I27: 23 | J27: =IF(I27="-",0,I27) -> 23 | K27: - | L27: =IF(K27="-",0,K27) -> 0 | M27: =Table1013[[#This Row],[School]] -> The Martin High School | N27: =D27+F27+H27+J27+L27 -> 68 | O27: =MAX(C27,E27,G27,I27,K27) -> 23 | P27: =IF(Q27=1,N27,IF(Q27=0,(N27-O27),"-")) -> 45 | Q27: =$L$1-Table1013[Competed Count] -> 0 | R27: =IF(Q27<2,"Yes","No") -> Yes | S27: =AND($C$1="Y",D27>0) -> TRUE | T27: =AND($E$1="Y",F27>0) -> TRUE | U27: =AND($G$1="Y",H27>0) -> TRUE | V27: =AND($I$1="Y",J27>0) -> TRUE | W27: =AND($K$1="Y",L27>0) -> FALSE | X27: =COUNTIF(Table1013[[#This Row],[Competed 1]:[Competed 5]],"=TRUE") -> 4
A28: Matthew Reuben | B28: Rawlins Academy | C28: 13 | D28: =IF(C28="-",0,C28) -> 13 | E28: - | F28: =IF(E28="-",0,E28) -> 0 | G28: 13 | H28: =IF(G28="-",0,G28) -> 13 | I28: 24 | J28: =IF(I28="-",0,I28) -> 24 | K28: - | L28: =IF(K28="-",0,K28) -> 0 | M28: =Table1013[[#This Row],[School]] -> Rawlins Academy | N28: =D28+F28+H28+J28+L28 -> 50 | O28: =MAX(C28,E28,G28,I28,K28) -> 24 | P28: =IF(Q28=1,N28,IF(Q28=0,(N28-O28),"-")) -> 50 | Q28: =$L$1-Table1013[Competed Count] -> 1 | R28: =IF(Q28<2,"Yes","No") -> Yes | S28: =AND($C$1="Y",D28>0) -> TRUE | T28: =AND($E$1="Y",F28>0) -> FALSE | U28: =AND($G$1="Y",H28>0) -> TRUE | V28: =AND($I$1="Y",J28>0) -> TRUE | W28: =AND($K$1="Y",L28>0) -> FALSE | X28: =COUNTIF(Table1013[[#This Row],[Competed 1]:[Competed 5]],"=TRUE") -> 3
A29: Tusheq Bolorchuluun | B29: Loughborough Grammar School | C29: - | D29: =IF(C29="-",0,C29) -> 0 | E29: 20 | F29: =IF(E29="-",0,E29) -> 20 | G29: - | H29: =IF(G29="-",0,G29) -> 0 | I29: 25 | J29: =IF(I29="-",0,I29) -> 25 | K29: - | L29: =IF(K29="-",0,K29) -> 0 | M29: =Table1013[[#This Row],[School]] -> Loughborough Grammar School | N29: =D29+F29+H29+J29+L29 -> 45 | O29: =MAX(C29,E29,G29,I29,K29) -> 25 | P29: =IF(Q29=1,N29,IF(Q29=0,(N29-O29),"-")) -> - | Q29: =$L$1-Table1013[Competed Count] -> 2 | R29: =IF(Q29<2,"Yes","No") -> No | S29: =AND($C$1="Y",D29>0) -> FALSE | T29: =AND($E$1="Y",F29>0) -> TRUE | U29: =AND($G$1="Y",H29>0) -> FALSE | V29: =AND($I$1="Y",J29>0) -> TRUE | W29: =AND($K$1="Y",L29>0) -> FALSE | X29: =COUNTIF(Table1013[[#This Row],[Competed 1]:[Competed 5]],"=TRUE") -> 2
A30: A Nelson | B30: Loughborough Grammar School | C30: - | D30: =IF(C30="-",0,C30) -> 0 | E30: - | F30: =IF(E30="-",0,E30) -> 0 | G30: - | H30: =IF(G30="-",0,G30) -> 0 | I30: 26 | J30: =IF(I30="-",0,I30) -> 26 | K30: - | L30: =IF(K30="-",0,K30) -> 0 | M30: =Table1013[[#This Row],[School]] -> Loughborough Grammar School | N30: =D30+F30+H30+J30+L30 -> 26 | O30: =MAX(C30,E30,G30,I30,K30) -> 26 | P30: =IF(Q30=1,N30,IF(Q30=0,(N30-O30),"-")) -> - | Q30: =$L$1-Table1013[Competed Count] -> 3 | R30: =IF(Q30<2,"Yes","No") -> No | S30: =AND($C$1="Y",D30>0) -> FALSE | T30: =AND($E$1="Y",F30>0) -> FALSE | U30: =AND($G$1="Y",H30>0) -> FALSE | V30: =AND($I$1="Y",J30>0) -> TRUE | W30: =AND($K$1="Y",L30>0) -> FALSE | X30: =COUNTIF(Table1013[[#This Row],[Competed 1]:[Competed 5]],"=TRUE") -> 1
A31: Dhruva Jadhau | B31: Wigston Academy | C31: - | D31: =IF(C31="-",0,C31) -> 0 | E31: - | F31: =IF(E31="-",0,E31) -> 0 | G31: 27 | H31: =IF(G31="-",0,G31) -> 27 | I31: 27 | J31: =IF(I31="-",0,I31) -> 27 | K31: - | L31: =IF(K31="-",0,K31) -> 0 | M31: =Table1013[[#This Row],[School]] -> Wigston Academy | N31: =D31+F31+H31+J31+L31 -> 54 | O31: =MAX(C31,E31,G31,I31,K31) -> 27 | P31: =IF(Q31=1,N31,IF(Q31=0,(N31-O31),"-")) -> - | Q31: =$L$1-Table1013[Competed Count] -> 2 | R31: =IF(Q31<2,"Yes","No") -> No | S31: =AND($C$1="Y",D31>0) -> FALSE | T31: =AND($E$1="Y",F31>0) -> FALSE | U31: =AND($G$1="Y",H31>0) -> TRUE | V31: =AND($I$1="Y",J31>0) -> TRUE | W31: =AND($K$1="Y",L31>0) -> FALSE | X31: =COUNTIF(Table1013[[#This Row],[Competed 1]:[Competed 5]],"=TRUE") -> 2
A32: Liam Hall | B32: Wigston Academy | C32: 21 | D32: =IF(C32="-",0,C32) -> 21 | E32: - | F32: =IF(E32="-",0,E32) -> 0 | G32: - | H32: =IF(G32="-",0,G32) -> 0 | I32: 28 | J32: =IF(I32="-",0,I32) -> 28 | K32: - | L32: =IF(K32="-",0,K32) -> 0 | M32: =Table1013[[#This Row],[School]] -> Wigston Academy | N32: =D32+F32+H32+J32+L32 -> 49 | O32: =MAX(C32,E32,G32,I32,K32) -> 28 | P32: =IF(Q32=1,N32,IF(Q32=0,(N32-O32),"-")) -> - | Q32: =$L$1-Table1013[Competed Count] -> 2 | R32: =IF(Q32<2,"Yes","No") -> No | S32: =AND($C$1="Y",D32>0) -> TRUE | T32: =AND($E$1="Y",F32>0) -> FALSE | U32: =AND($G$1="Y",H32>0) -> FALSE | V32: =AND($I$1="Y",J32>0) -> TRUE | W32: =AND($K$1="Y",L32>0) -> FALSE | X32: =COUNTIF(Table1013[[#This Row],[Competed 1]:[Competed 5]],"=TRUE") -> 2
A33: Alex Wilebore | B33: Redmoor Academy | C33: 29 | D33: =IF(C33="-",0,C33) -> 29 | E33: - | F33: =IF(E33="-",0,E33) -> 0 | G33: 25 | H33: =IF(G33="-",0,G33) -> 25 | I33: 29 | J33: =IF(I33="-",0,I33) -> 29 | K33: - | L33: =IF(K33="-",0,K33) -> 0 | M33: =Table1013[[#This Row],[School]] -> Redmoor Academy | N33: =D33+F33+H33+J33+L33 -> 83 | O33: =MAX(C33,E33,G33,I33,K33) -> 29 | P33: =IF(Q33=1,N33,IF(Q33=0,(N33-O33),"-")) -> 83 | Q33: =$L$1-Table1013[Competed Count] -> 1 | R33: =IF(Q33<2,"Yes","No") -> Yes | S33: =AND($C$1="Y",D33>0) -> TRUE | T33: =AND($E$1="Y",F33>0) -> FALSE | U33: =AND($G$1="Y",H33>0) -> TRUE | V33: =AND($I$1="Y",J33>0) -> TRUE | W33: =AND($K$1="Y",L33>0) -> FALSE | X33: =COUNTIF(Table1013[[#This Row],[Competed 1]:[Competed 5]],"=TRUE") -> 3
A34: Tom Widdowson | B34: The Martin High School | C34: 28 | D34: =IF(C34="-",0,C34) -> 28 | E34: 33 | F34: =IF(E34="-",0,E34) -> 33 | G34: - | H34: =IF(G34="-",0,G34) -> 0 | I34: 30 | J34: =IF(I34="-",0,I34) -> 30 | K34: - | L34: =IF(K34="-",0,K34) -> 0 | M34: =Table1013[[#This Row],[School]] -> The Martin High School | N34: =D34+F34+H34+J34+L34 -> 91 | O34: =MAX(C34,E34,G34,I34,K34) -> 33 | P34: =IF(Q34=1,N34,IF(Q34=0,(N34-O34),"-")) -> 91 | Q34: =$L$1-Table1013[Competed Count] -> 1 | R34: =IF(Q34<2,"Yes","No") -> Yes | S34: =AND($C$1="Y",D34>0) -> TRUE | T34: =AND($E$1="Y",F34>0) -> TRUE | U34: =AND($G$1="Y",H34>0) -> FALSE | V34: =AND($I$1="Y",J34>0) -> TRUE | W34: =AND($K$1="Y",L34>0) -> FALSE | X34: =COUNTIF(Table1013[[#This Row],[Competed 1]:[Competed 5]],"=TRUE") -> 3
A35: Oliver Rowles | B35: Ivanhoe College | C35: - | D35: =IF(C35="-",0,C35) -> 0 | E35: 37 | F35: =IF(E35="-",0,E35) -> 37 | G35: - | H35: =IF(G35="-",0,G35) -> 0 | I35: 32 | J35: =IF(I35="-",0,I35) -> 32 | K35: - | L35: =IF(K35="-",0,K35) -> 0 | M35: =Table1013[[#This Row],[School]] -> Ivanhoe College | N35: =D35+F35+H35+J35+L35 -> 69 | O35: =MAX(C35,E35,G35,I35,K35) -> 37 | P35: =IF(Q35=1,N35,IF(Q35=0,(N35-O35),"-")) -> - | Q35: =$L$1-Table1013[Competed Count] -> 2 | R35: =IF(Q35<2,"Yes","No") -> No | S35: =AND($C$1="Y",D35>0) -> FALSE | T35: =AND($E$1="Y",F35>0) -> TRUE | U35: =AND($G$1="Y",H35>0) -> FALSE | V35: =AND($I$1="Y",J35>0) -> TRUE | W35: =AND($K$1="Y",L35>0) -> FALSE | X35: =COUNTIF(Table1013[[#This Row],[Competed 1]:[Competed 5]],"=TRUE") -> 2
A36: Noah Smith | B36: Uppingham CC | C36: 33 | D36: =IF(C36="-",0,C36) -> 33 | E36: 29 | F36: =IF(E36="-",0,E36) -> 29 | G36: 35 | H36: =IF(G36="-",0,G36) -> 35 | I36: 33 | J36: =IF(I36="-",0,I36) -> 33 | K36: - | L36: =IF(K36="-",0,K36) -> 0 | M36: =Table1013[[#This Row],[School]] -> Uppingham CC | N36: =D36+F36+H36+J36+L36 -> 130 | O36: =MAX(C36,E36,G36,I36,K36) -> 35 | P36: =IF(Q36=1,N36,IF(Q36=0,(N36-O36),"-")) -> 95 | Q36: =$L$1-Table1013[Competed Count] -> 0 | R36: =IF(Q36<2,"Yes","No") -> Yes | S36: =AND($C$1="Y",D36>0) -> TRUE | T36: =AND($E$1="Y",F36>0) -> TRUE | U36: =AND($G$1="Y",H36>0) -> TRUE | V36: =AND($I$1="Y",J36>0) -> TRUE | W36: =AND($K$1="Y",L36>0) -> FALSE | X36: =COUNTIF(Table1013[[#This Row],[Competed 1]:[Competed 5]],"=TRUE") -> 4
A37: Josh Swain | B37: John Ferneley College | C37: 53 | D37: =IF(C37="-",0,C37) -> 53 | E37: - | F37: =IF(E37="-",0,E37) -> 0 | G37: 45 | H37: =IF(G37="-",0,G37) -> 45 | I37: 34 | J37: =IF(I37="-",0,I37) -> 34 | K37: - | L37: =IF(K37="-",0,K37) -> 0 | M37: =Table1013[[#This Row],[School]] -> John Ferneley College | N37: =D37+F37+H37+J37+L37 -> 132 | O37: =MAX(C37,E37,G37,I37,K37) -> 53 | P37: =IF(Q37=1,N37,IF(Q37=0,(N37-O37),"-")) -> 132 | Q37: =$L$1-Table1013[Competed Count] -> 1 | R37: =IF(Q37<2,"Yes","No") -> Yes | S37: =AND($C$1="Y",D37>0) -> TRUE | T37: =AND($E$1="Y",F37>0) -> FALSE | U37: =AND($G$1="Y",H37>0) -> TRUE | V37: =AND($I$1="Y",J37>0) -> TRUE | W37: =AND($K$1="Y",L37>0) -> FALSE | X37: =COUNTIF(Table1013[[#This Row],[Competed 1]:[Competed 5]],"=TRUE") -> 3
A38: Will Crowe | B38: De Lisle College | C38: 27 | D38: =IF(C38="-",0,C38) -> 27 | E38: 48 | F38: =IF(E38="-",0,E38) -> 48 | G38: 26 | H38: =IF(G38="-",0,G38) -> 26 | I38: 35 | J38: =IF(I38="-",0,I38) -> 35 | K38: - | L38: =IF(K38="-",0,K38) -> 0 | M38: =Table1013[[#This Row],[School]] -> De Lisle College | N38: =D38+F38+H38+J38+L38 -> 136 | O38: =MAX(C38,E38,G38,I38,K38) -> 48 | P38: =IF(Q38=1,N38,IF(Q38=0,(N38-O38),"-")) -> 88 | Q38: =$L$1-Table1013[Competed Count] -> 0 | R38: =IF(Q38<2,"Yes","No") -> Yes | S38: =AND($C$1="Y",D38>0) -> TRUE | T38: =AND($E$1="Y",F38>0) -> TRUE | U38: =AND($G$1="Y",H38>0) -> TRUE | V38: =AND($I$1="Y",J38>0) -> TRUE | W38: =AND($K$1="Y",L38>0) -> FALSE | X38: =COUNTIF(Table1013[[#This Row],[Competed 1]:[Competed 5]],"=TRUE") -> 4
A39: H Mitchell | B39: Loughborough Grammar School | C39: 67 | D39: =IF(C39="-",0,C39) -> 67 | E39: - | F39: =IF(E39="-",0,E39) -> 0 | G39: - | H39: =IF(G39="-",0,G39) -> 0 | I39: 36 | J39: =IF(I39="-",0,I39) -> 36 | K39: - | L39: =IF(K39="-",0,K39) -> 0 | M39: =Table1013[[#This Row],[School]] -> Loughborough Grammar School | N39: =D39+F39+H39+J39+L39 -> 103 | O39: =MAX(C39,E39,G39,I39,K39) -> 67 | P39: =IF(Q39=1,N39,IF(Q39=0,(N39-O39),"-")) -> - | Q39: =$L$1-Table1013[Competed Count] -> 2 | R39: =IF(Q39<2,"Yes","No") -> No | S39: =AND($C$1="Y",D39>0) -> TRUE | T39: =AND($E$1="Y",F39>0) -> FALSE | U39: =AND($G$1="Y",H39>0) -> FALSE | V39: =AND($I$1="Y",J39>0) -> TRUE | W39: =AND($K$1="Y",L39>0) -> FALSE | X39: =COUNTIF(Table1013[[#This Row],[Competed 1]:[Competed 5]],"=TRUE") -> 2
A40: Max Green | B40: Redmoor Academy | C40: - | D40: =IF(C40="-",0,C40) -> 0 | E40: - | F40: =IF(E40="-",0,E40) -> 0 | G40: - | H40: =IF(G40="-",0,G40) -> 0 | I40: 37 | J40: =IF(I40="-",0,I40) -> 37 | K40: - | L40: =IF(K40="-",0,K40) -> 0 | M40: =Table1013[[#This Row],[School]] -> Redmoor Academy | N40: =D40+F40+H40+J40+L40 -> 37 | O40: =MAX(C40,E40,G40,I40,K40) -> 37 | P40: =IF(Q40=1,N40,IF(Q40=0,(N40-O40),"-")) -> - | Q40: =$L$1-Table1013[Competed Count] -> 3 | R40: =IF(Q40<2,"Yes","No") -> No | S40: =AND($C$1="Y",D40>0) -> FALSE | T40: =AND($E$1="Y",F40>0) -> FALSE | U40: =AND($G$1="Y",H40>0) -> FALSE | V40: =AND($I$1="Y",J40>0) -> TRUE | W40: =AND($K$1="Y",L40>0) -> FALSE | X40: =COUNTIF(Table1013[[#This Row],[Competed 1]:[Competed 5]],"=TRUE") -> 1
A41: Charlie Phillips Ames | B41: John Ferneley College | C41: 54 | D41: =IF(C41="-",0,C41) -> 54 | E41: 44 | F41: =IF(E41="-",0,E41) -> 44 | G41: - | H41: =IF(G41="-",0,G41) -> 0 | I41: 38 | J41: =IF(I41="-",0,I41) -> 38 | K41: - | L41: =IF(K41="-",0,K41) -> 0 | M41: =Table1013[[#This Row],[School]] -> John Ferneley College | N41: =D41+F41+H41+J41+L41 -> 136 | O41: =MAX(C41,E41,G41,I41,K41) -> 54 | P41: =IF(Q41=1,N41,IF(Q41=0,(N41-O41),"-")) -> 136 | Q41: =$L$1-Table1013[Competed Count] -> 1 | R41: =IF(Q41<2,"Yes","No") -> Yes | S41: =AND($C$1="Y",D41>0) -> TRUE | T41: =AND($E$1="Y",F41>0) -> TRUE | U41: =AND($G$1="Y",H41>0) -> FALSE | V41: =AND($I$1="Y",J41>0) -> TRUE | W41: =AND($K$1="Y",L41>0) -> FALSE | X41: =COUNTIF(Table1013[[#This Row],[Competed 1]:[Competed 5]],"=TRUE") -> 3
A42: Harli Pridmore | B42: Uppingham CC | C42: 39 | D42: =IF(C42="-",0,C42) -> 39 | E42: 34 | F42: =IF(E42="-",0,E42) -> 34 | G42: - | H42: =IF(G42="-",0,G42) -> 0 | I42: 39 | J42: =IF(I42="-",0,I42) -> 39 | K42: - | L42: =IF(K42="-",0,K42) -> 0 | M42: =Table1013[[#This Row],[School]] -> Uppingham CC | N42: =D42+F42+H42+J42+L42 -> 112 | O42: =MAX(C42,E42,G42,I42,K42) -> 39 | P42: =IF(Q42=1,N42,IF(Q42=0,(N42-O42),"-")) -> 112 | Q42: =$L$1-Table1013[Competed Count] -> 1 | R42: =IF(Q42<2,"Yes","No") -> Yes | S42: =AND($C$1="Y",D42>0) -> TRUE | T42: =AND($E$1="Y",F42>0) -> TRUE | U42: =AND($G$1="Y",H42>0) -> FALSE | V42: =AND($I$1="Y",J42>0) -> TRUE | W42: =AND($K$1="Y",L42>0) -> FALSE | X42: =COUNTIF(Table1013[[#This Row],[Competed 1]:[Competed 5]],"=TRUE") -> 3
A43: Ben Cook | B43: Thomas Estley CC | C43: 40 | D43: =IF(C43="-",0,C43) -> 40 | E43: 41 | F43: =IF(E43="-",0,E43) -> 41 | G43: 44 | H43: =IF(G43="-",0,G43) -> 44 | I43: 40 | J43: =IF(I43="-",0,I43) -> 40 | K43: - | L43: =IF(K43="-",0,K43) -> 0 | M43: =Table1013[[#This Row],[School]] -> Thomas Estley CC | N43: =D43+F43+H43+J43+L43 -> 165 | O43: =MAX(C43,E43,G43,I43,K43) -> 44 | P43: =IF(Q43=1,N43,IF(Q43=0,(N43-O43),"-")) -> 121 | Q43: =$L$1-Table1013[Competed Count] -> 0 | R43: =IF(Q43<2,"Yes","No") -> Yes | S43: =AND($C$1="Y",D43>0) -> TRUE | T43: =AND($E$1="Y",F43>0) -> TRUE | U43: =AND($G$1="Y",H43>0) -> TRUE | V43: =AND($I$1="Y",J43>0) -> TRUE | W43: =AND($K$1="Y",L43>0) -> FALSE | X43: =COUNTIF(Table1013[[#This Row],[Competed 1]:[Competed 5]],"=TRUE") -> 4
A44: James Ravenhill | B44: Thomas Estley CC | C44: 58 | D44: =IF(C44="-",0,C44) -> 58 | E44: - | F44: =IF(E44="-",0,E44) -> 0 | G44: - | H44: =IF(G44="-",0,G44) -> 0 | I44: 41 | J44: =IF(I44="-",0,I44) -> 41 | K44: - | L44: =IF(K44="-",0,K44) -> 0 | M44: =Table1013[[#This Row],[School]] -> Thomas Estley CC | N44: =D44+F44+H44+J44+L44 -> 99 | O44: =MAX(C44,E44,G44,I44,K44) -> 58 | P44: =IF(Q44=1,N44,IF(Q44=0,(N44-O44),"-")) -> - | Q44: =$L$1-Table1013[Competed Count] -> 2 | R44: =IF(Q44<2,"Yes","No") -> No | S44: =AND($C$1="Y",D44>0) -> TRUE | T44: =AND($E$1="Y",F44>0) -> FALSE | U44: =AND($G$1="Y",H44>0) -> FALSE | V44: =AND($I$1="Y",J44>0) -> TRUE | W44: =AND($K$1="Y",L44>0) -> FALSE | X44: =COUNTIF(Table1013[[#This Row],[Competed 1]:[Competed 5]],"=TRUE") -> 2
A45: Owen Hurrell | B45: John Ferneley College | C45: - | D45: =IF(C45="-",0,C45) -> 0 | E45: 27 | F45: =IF(E45="-",0,E45) -> 27 | G45: 30 | H45: =IF(G45="-",0,G45) -> 30 | I45: 42 | J45: =IF(I45="-",0,I45) -> 42 | K45: - | L45: =IF(K45="-",0,K45) -> 0 | M45: =Table1013[[#This Row],[School]] -> John Ferneley College | N45: =D45+F45+H45+J45+L45 -> 99 | O45: =MAX(C45,E45,G45,I45,K45) -> 42 | P45: =IF(Q45=1,N45,IF(Q45=0,(N45-O45),"-")) -> 99 | Q45: =$L$1-Table1013[Competed Count] -> 1 | R45: =IF(Q45<2,"Yes","No") -> Yes | S45: =AND($C$1="Y",D45>0) -> FALSE | T45: =AND($E$1="Y",F45>0) -> TRUE | U45: =AND($G$1="Y",H45>0) -> TRUE | V45: =AND($I$1="Y",J45>0) -> TRUE | W45: =AND($K$1="Y",L45>0) -> FALSE | X45: =COUNTIF(Table1013[[#This Row],[Competed 1]:[Competed 5]],"=TRUE") -> 3
A46: Noah Derry | B46: Catmose College | C46: - | D46: =IF(C46="-",0,C46) -> 0 | E46: 53 | F46: =IF(E46="-",0,E46) -> 53 | G46: 47 | H46: =IF(G46="-",0,G46) -> 47 | I46: 43 | J46: =IF(I46="-",0,I46) -> 43 | K46: - | L46: =IF(K46="-",0,K46) -> 0 | M46: =Table1013[[#This Row],[School]] -> Catmose College | N46: =D46+F46+H46+J46+L46 -> 143 | O46: =MAX(C46,E46,G46,I46,K46) -> 53 | P46: =IF(Q46=1,N46,IF(Q46=0,(N46-O46),"-")) -> 143 | Q46: =$L$1-Table1013[Competed Count] -> 1 | R46: =IF(Q46<2,"Yes","No") -> Yes | S46: =AND($C$1="Y",D46>0) -> FALSE | T46: =AND($E$1="Y",F46>0) -> TRUE | U46: =AND($G$1="Y",H46>0) -> TRUE | V46: =AND($I$1="Y",J46>0) -> TRUE | W46: =AND($K$1="Y",L46>0) -> FALSE | X46: =COUNTIF(Table1013[[#This Row],[Competed 1]:[Competed 5]],"=TRUE") -> 3
A47: Luke Nichols | B47: John Ferneley College | C47: 36 | D47: =IF(C47="-",0,C47) -> 36 | E47: 50 | F47: =IF(E47="-",0,E47) -> 50 | G47: 28 | H47: =IF(G47="-",0,G47) -> 28 | I47: 44 | J47: =IF(I47="-",0,I47) -> 44 | K47: - | L47: =IF(K47="-",0,K47) -> 0 | M47: =Table1013[[#This Row],[School]] -> John Ferneley College | N47: =D47+F47+H47+J47+L47 -> 158 | O47: =MAX(C47,E47,G47,I47,K47) -> 50 | P47: =IF(Q47=1,N47,IF(Q47=0,(N47-O47),"-")) -> 108 | Q47: =$L$1-Table1013[Competed Count] -> 0 | R47: =IF(Q47<2,"Yes","No") -> Yes | S47: =AND($C$1="Y",D47>0) -> TRUE | T47: =AND($E$1="Y",F47>0) -> TRUE | U47: =AND($G$1="Y",H47>0) -> TRUE | V47: =AND($I$1="Y",J47>0) -> TRUE | W47: =AND($K$1="Y",L47>0) -> FALSE | X47: =COUNTIF(Table1013[[#This Row],[Competed 1]:[Competed 5]],"=TRUE") -> 4
A48: Spencer Parker | B48: John Ferneley College | C48: - | D48: =IF(C48="-",0,C48) -> 0 | E48: 45 | F48: =IF(E48="-",0,E48) -> 45 | G48: 31 | H48: =IF(G48="-",0,G48) -> 31 | I48: 45 | J48: =IF(I48="-",0,I48) -> 45 | K48: - | L48: =IF(K48="-",0,K48) -> 0 | M48: =Table1013[[#This Row],[School]] -> John Ferneley College | N48: =D48+F48+H48+J48+L48 -> 121 | O48: =MAX(C48,E48,G48,I48,K48) -> 45 | P48: =IF(Q48=1,N48,IF(Q48=0,(N48-O48),"-")) -> 121 | Q48: =$L$1-Table1013[Competed Count] -> 1 | R48: =IF(Q48<2,"Yes","No") -> Yes | S48: =AND($C$1="Y",D48>0) -> FALSE | T48: =AND($E$1="Y",F48>0) -> TRUE | U48: =AND($G$1="Y",H48>0) -> TRUE | V48: =AND($I$1="Y",J48>0) -> TRUE | W48: =AND($K$1="Y",L48>0) -> FALSE | X48: =COUNTIF(Table1013[[#This Row],[Competed 1]:[Competed 5]],"=TRUE") -> 3
A49: Arthur Williams | B49: Lutterworth High School | C49: - | D49: =IF(C49="-",0,C49) -> 0 | E49: - | F49: =IF(E49="-",0,E49) -> 0 | G49: 38 | H49: =IF(G49="-",0,G49) -> 38 | I49: 46 | J49: =IF(I49="-",0,I49) -> 46 | K49: - | L49: =IF(K49="-",0,K49) -> 0 | M49: =Table1013[[#This Row],[School]] -> Lutterworth High School | N49: =D49+F49+H49+J49+L49 -> 84 | O49: =MAX(C49,E49,G49,I49,K49) -> 46 | P49: =IF(Q49=1,N49,IF(Q49=0,(N49-O49),"-")) -> - | Q49: =$L$1-Table1013[Competed Count] -> 2 | R49: =IF(Q49<2,"Yes","No") -> No | S49: =AND($C$1="Y",D49>0) -> FALSE | T49: =AND($E$1="Y",F49>0) -> FALSE | U49: =AND($G$1="Y",H49>0) -> TRUE | V49: =AND($I$1="Y",J49>0) -> TRUE | W49: =AND($K$1="Y",L49>0) -> FALSE | X49: =COUNTIF(Table1013[[#This Row],[Competed 1]:[Competed 5]],"=TRUE") -> 2
A50: Alex Ryves | B50: Wreake Valley Academy | C50: - | D50: =IF(C50="-",0,C50) -> 0 | E50: 25 | F50: =IF(E50="-",0,E50) -> 25 | G50: 40 | H50: =IF(G50="-",0,G50) -> 40 | I50: 47 | J50: =IF(I50="-",0,I50) -> 47 | K50: - | L50: =IF(K50="-",0,K50) -> 0 | M50: =Table1013[[#This Row],[School]] -> Wreake Valley Academy | N50: =D50+F50+H50+J50+L50 -> 112 | O50: =MAX(C50,E50,G50,I50,K50) -> 47 | P50: =IF(Q50=1,N50,IF(Q50=0,(N50-O50),"-")) -> 112 | Q50: =$L$1-Table1013[Competed Count] -> 1 | R50: =IF(Q50<2,"Yes","No") -> Yes | S50: =AND($C$1="Y",D50>0) -> FALSE | T50: =AND($E$1="Y",F50>0) -> TRUE | U50: =AND($G$1="Y",H50>0) -> TRUE | V50: =AND($I$1="Y",J50>0) -> TRUE | W50: =AND($K$1="Y",L50>0) -> FALSE | X50: =COUNTIF(Table1013[[#This Row],[Competed 1]:[Competed 5]],"=TRUE") -> 3
A51: Niji Oguhgeola | B51: St Pauls Catholic School | C51: - | D51: =IF(C51="-",0,C51) -> 0 | E51: - | F51: =IF(E51="-",0,E51) -> 0 | G51: - | H51: =IF(G51="-",0,G51) -> 0 | I51: 48 | J51: =IF(I51="-",0,I51) -> 48 | K51: - | L51: =IF(K51="-",0,K51) -> 0 | M51: =Table1013[[#This Row],[School]] -> St Pauls Catholic School | N51: =D51+F51+H51+J51+L51 -> 48 | O51: =MAX(C51,E51,G51,I51,K51) -> 48 | P51: =IF(Q51=1,N51,IF(Q51=0,(N51-O51),"-")) -> - | Q51: =$L$1-Table1013[Competed Count] -> 3 | R51: =IF(Q51<2,"Yes","No") -> No | S51: =AND($C$1="Y",D51>0) -> FALSE | T51: =AND($E$1="Y",F51>0) -> FALSE | U51: =AND($G$1="Y",H51>0) -> FALSE | V51: =AND($I$1="Y",J51>0) -> TRUE | W51: =AND($K$1="Y",L51>0) -> FALSE | X51: =COUNTIF(Table1013[[#This Row],[Competed 1]:[Competed 5]],"=TRUE") -> 1
A52: Ethan Dillon | B52: St Pauls Catholic School | C52: - | D52: =IF(C52="-",0,C52) -> 0 | E52: 64 | F52: =IF(E52="-",0,E52) -> 64 | G52: 50 | H52: =IF(G52="-",0,G52) -> 50 | I52: 49 | J52: =IF(I52="-",0,I52) -> 49 | K52: - | L52: =IF(K52="-",0,K52) -> 0 | M52: =Table1013[[#This Row],[School]] -> St Pauls Catholic School | N52: =D52+F52+H52+J52+L52 -> 163 | O52: =MAX(C52,E52,G52,I52,K52) -> 64 | P52: =IF(Q52=1,N52,IF(Q52=0,(N52-O52),"-")) -> 163 | Q52: =$L$1-Table1013[Competed Count] -> 1 | R52: =IF(Q52<2,"Yes","No") -> Yes | S52: =AND($C$1="Y",D52>0) -> FALSE | T52: =AND($E$1="Y",F52>0) -> TRUE | U52: =AND($G$1="Y",H52>0) -> TRUE | V52: =AND($I$1="Y",J52>0) -> TRUE | W52: =AND($K$1="Y",L52>0) -> FALSE | X52: =COUNTIF(Table1013[[#This Row],[Competed 1]:[Competed 5]],"=TRUE") -> 3
A53: Alex Cotton | B53: Ratcliffe College | C53: - | D53: =IF(C53="-",0,C53) -> 0 | E53: - | F53: =IF(E53="-",0,E53) -> 0 | G53: 34 | H53: =IF(G53="-",0,G53) -> 34 | I53: 50 | J53: =IF(I53="-",0,I53) -> 50 | K53: - | L53: =IF(K53="-",0,K53) -> 0 | M53: =Table1013[[#This Row],[School]] -> Ratcliffe College | N53: =D53+F53+H53+J53+L53 -> 84 | O53: =MAX(C53,E53,G53,I53,K53) -> 50 | P53: =IF(Q53=1,N53,IF(Q53=0,(N53-O53),"-")) -> - | Q53: =$L$1-Table1013[Competed Count] -> 2 | R53: =IF(Q53<2,"Yes","No") -> No | S53: =AND($C$1="Y",D53>0) -> FALSE | T53: =AND($E$1="Y",F53>0) -> FALSE | U53: =AND($G$1="Y",H53>0) -> TRUE | V53: =AND($I$1="Y",J53>0) -> TRUE | W53: =AND($K$1="Y",L53>0) -> FALSE | X53: =COUNTIF(Table1013[[#This Row],[Competed 1]:[Competed 5]],"=TRUE") -> 2
A54: Jake Wood | B54: De Lisle College | C54: 42 | D54: =IF(C54="-",0,C54) -> 42 | E54: 52 | F54: =IF(E54="-",0,E54) -> 52 | G54: 46 | H54: =IF(G54="-",0,G54) -> 46 | I54: 51 | J54: =IF(I54="-",0,I54) -> 51 | K54: - | L54: =IF(K54="-",0,K54) -> 0 | M54: =Table1013[[#This Row],[School]] -> De Lisle College | N54: =D54+F54+H54+J54+L54 -> 191 | O54: =MAX(C54,E54,G54,I54,K54) -> 52 | P54: =IF(Q54=1,N54,IF(Q54=0,(N54-O54),"-")) -> 139 | Q54: =$L$1-Table1013[Competed Count] -> 0 | R54: =IF(Q54<2,"Yes","No") -> Yes | S54: =AND($C$1="Y",D54>0) -> TRUE | T54: =AND($E$1="Y",F54>0) -> TRUE | U54: =AND($G$1="Y",H54>0) -> TRUE | V54: =AND($I$1="Y",J54>0) -> TRUE | W54: =AND($K$1="Y",L54>0) -> FALSE | X54: =COUNTIF(Table1013[[#This Row],[Competed 1]:[Competed 5]],"=TRUE") -> 4
A55: Will Paris | B55: Thomas Estley CC | C55: - | D55: =IF(C55="-",0,C55) -> 0 | E55: - | F55: =IF(E55="-",0,E55) -> 0 | G55: 48 | H55: =IF(G55="-",0,G55) -> 48 | I55: 52 | J55: =IF(I55="-",0,I55) -> 52 | K55: - | L55: =IF(K55="-",0,K55) -> 0 | M55: =Table1013[[#This Row],[School]] -> Thomas Estley CC | N55: =D55+F55+H55+J55+L55 -> 100 | O55: =MAX(C55,E55,G55,I55,K55) -> 52 | P55: =IF(Q55=1,N55,IF(Q55=0,(N55-O55),"-")) -> - | Q55: =$L$1-Table1013[Competed Count] -> 2 | R55: =IF(Q55<2,"Yes","No") -> No | S55: =AND($C$1="Y",D55>0) -> FALSE | T55: =AND($E$1="Y",F55>0) -> FALSE | U55: =AND($G$1="Y",H55>0) -> TRUE | V55: =AND($I$1="Y",J55>0) -> TRUE | W55: =AND($K$1="Y",L55>0) -> FALSE | X55: =COUNTIF(Table1013[[#This Row],[Competed 1]:[Competed 5]],"=TRUE") -> 2
A56: Aaron Hill | B56: St Pauls Catholic School | C56: 72 | D56: =IF(C56="-",0,C56) -> 72 | E56: - | F56: =IF(E56="-",0,E56) -> 0 | G56: 52 | H56: =IF(G56="-",0,G56) -> 52 | I56: 53 | J56: =IF(I56="-",0,I56) -> 53 | K56: - | L56: =IF(K56="-",0,K56) -> 0 | M56: =Table1013[[#This Row],[School]] -> St Pauls Catholic School | N56: =D56+F56+H56+J56+L56 -> 177 | O56: =MAX(C56,E56,G56,I56,K56) -> 72 | P56: =IF(Q56=1,N56,IF(Q56=0,(N56-O56),"-")) -> 177 | Q56: =$L$1-Table1013[Competed Count] -> 1 | R56: =IF(Q56<2,"Yes","No") -> Yes | S56: =AND($C$1="Y",D56>0) -> TRUE | T56: =AND($E$1="Y",F56>0) -> FALSE | U56: =AND($G$1="Y",H56>0) -> TRUE | V56: =AND($I$1="Y",J56>0) -> TRUE | W56: =AND($K$1="Y",L56>0) -> FALSE | X56: =COUNTIF(Table1013[[#This Row],[Competed 1]:[Competed 5]],"=TRUE") -> 3
A57: Maxim Manokhin | B57: De Lisle College | C57: 24 | D57: =IF(C57="-",0,C57) -> 24 | E57: 17 | F57: =IF(E57="-",0,E57) -> 17 | G57: 10 | H57: =IF(G57="-",0,G57) -> 10 | I57: - | J57: =IF(I57="-",0,I57) -> 0 | K57: - | L57: =IF(K57="-",0,K57) -> 0 | M57: =Table1013[[#This Row],[School]] -> De Lisle College | N57: =D57+F57+H57+J57+L57 -> 51 | O57: =MAX(C57,E57,G57,I57,K57) -> 24 | P57: =IF(Q57=1,N57,IF(Q57=0,(N57-O57),"-")) -> 51 | Q57: =$L$1-Table1013[Competed Count] -> 1 | R57: =IF(Q57<2,"Yes","No") -> Yes | S57: =AND($C$1="Y",D57>0) -> TRUE | T57: =AND($E$1="Y",F57>0) -> TRUE | U57: =AND($G$1="Y",H57>0) -> TRUE | V57: =AND($I$1="Y",J57>0) -> FALSE | W57: =AND($K$1="Y",L57>0) -> FALSE | X57: =COUNTIF(Table1013[[#This Row],[Competed 1]:[Competed 5]],"=TRUE") -> 3
A58: Ziggy Joachim | B58: Wreake Valley Academy | C58: - | D58: =IF(C58="-",0,C58) -> 0 | E58: 11 | F58: =IF(E58="-",0,E58) -> 11 | G58: 12 | H58: =IF(G58="-",0,G58) -> 12 | I58: - | J58: =IF(I58="-",0,I58) -> 0 | K58: - | L58: =IF(K58="-",0,K58) -> 0 | M58: =Table1013[[#This Row],[School]] -> Wreake Valley Academy | N58: =D58+F58+H58+J58+L58 -> 23 | O58: =MAX(C58,E58,G58,I58,K58) -> 12 | P58: =IF(Q58=1,N58,IF(Q58=0,(N58-O58),"-")) -> - | Q58: =$L$1-Table1013[Competed Count] -> 2 | R58: =IF(Q58<2,"Yes","No") -> No | S58: =AND($C$1="Y",D58>0) -> FALSE | T58: =AND($E$1="Y",F58>0) -> TRUE | U58: =AND($G$1="Y",H58>0) -> TRUE | V58: =AND($I$1="Y",J58>0) -> FALSE | W58: =AND($K$1="Y",L58>0) -> FALSE | X58: =COUNTIF(Table1013[[#This Row],[Competed 1]:[Competed 5]],"=TRUE") -> 2
A59: Nicolas Wood | B59: Robert Smyth Academy | C59: 26 | D59: =IF(C59="-",0,C59) -> 26 | E59: - | F59: =IF(E59="-",0,E59) -> 0 | G59: 20 | H59: =IF(G59="-",0,G59) -> 20 | I59: - | J59: =IF(I59="-",0,I59) -> 0 | K59: - | L59: =IF(K59="-",0,K59) -> 0 | M59: =Table1013[[#This Row],[School]] -> Robert Smyth Academy | N59: =D59+F59+H59+J59+L59 -> 46 | O59: =MAX(C59,E59,G59,I59,K59) -> 26 | P59: =IF(Q59=1,N59,IF(Q59=0,(N59-O59),"-")) -> - | Q59: =$L$1-Table1013[Competed Count] -> 2 | R59: =IF(Q59<2,"Yes","No") -> No | S59: =AND($C$1="Y",D59>0) -> TRUE | T59: =AND($E$1="Y",F59>0) -> FALSE | U59: =AND($G$1="Y",H59>0) -> TRUE | V59: =AND($I$1="Y",J59>0) -> FALSE | W59: =AND($K$1="Y",L59>0) -> FALSE | X59: =COUNTIF(Table1013[[#This Row],[Competed 1]:[Competed 5]],"=TRUE") -> 2
A60: Charlie White-Godden | B60: Long Field Academy | C60: 16 | D60: =IF(C60="-",0,C60) -> 16 | E60: 14 | F60: =IF(E60="-",0,E60) -> 14 | G60: 22 | H60: =IF(G60="-",0,G60) -> 22 | I60: - | J60: =IF(I60="-",0,I60) -> 0 | K60: - | L60: =IF(K60="-",0,K60) -> 0 | M60: =Table1013[[#This Row],[School]] -> Long Field Academy | N60: =D60+F60+H60+J60+L60 -> 52 | O60: =MAX(C60,E60,G60,I60,K60) -> 22 | P60: =IF(Q60=1,N60,IF(Q60=0,(N60-O60),"-")) -> 52 | Q60: =$L$1-Table1013[Competed Count] -> 1 | R60: =IF(Q60<2,"Yes","No") -> Yes | S60: =AND($C$1="Y",D60>0) -> TRUE | T60: =AND($E$1="Y",F60>0) -> TRUE | U60: =AND($G$1="Y",H60>0) -> TRUE | V60: =AND($I$1="Y",J60>0) -> FALSE | W60: =AND($K$1="Y",L60>0) -> FALSE | X60: =COUNTIF(Table1013[[#This Row],[Competed 1]:[Competed 5]],"=TRUE") -> 3
A61: Ollie Thorburn | B61: Ivanhoe College | C61: - | D61: =IF(C61="-",0,C61) -> 0 | E61: - | F61: =IF(E61="-",0,E61) -> 0 | G61: 29 | H61: =IF(G61="-",0,G61) -> 29 | I61: - | J61: =IF(I61="-",0,I61) -> 0 | K61: - | L61: =IF(K61="-",0,K61) -> 0 | M61: =Table1013[[#This Row],[School]] -> Ivanhoe College | N61: =D61+F61+H61+J61+L61 -> 29 | O61: =MAX(C61,E61,G61,I61,K61) -> 29 | P61: =IF(Q61=1,N61,IF(Q61=0,(N61-O61),"-")) -> - | Q61: =$L$1-Table1013[Competed Count] -> 3 | R61: =IF(Q61<2,"Yes","No") -> No | S61: =AND($C$1="Y",D61>0) -> FALSE | T61: =AND($E$1="Y",F61>0) -> FALSE | U61: =AND($G$1="Y",H61>0) -> TRUE | V61: =AND($I$1="Y",J61>0) -> FALSE | W61: =AND($K$1="Y",L61>0) -> FALSE | X61: =COUNTIF(Table1013[[#This Row],[Competed 1]:[Competed 5]],"=TRUE") -> 1
A62: Danny Dealmacla | B62: Lutterworth High School | C62: - | D62: =IF(C62="-",0,C62) -> 0 | E62: 36 | F62: =IF(E62="-",0,E62) -> 36 | G62: 32 | H62: =IF(G62="-",0,G62) -> 32 | I62: - | J62: =IF(I62="-",0,I62) -> 0 | K62: - | L62: =IF(K62="-",0,K62) -> 0 | M62: =Table1013[[#This Row],[School]] -> Lutterworth High School | N62: =D62+F62+H62+J62+L62 -> 68 | O62: =MAX(C62,E62,G62,I62,K62) -> 36 | P62: =IF(Q62=1,N62,IF(Q62=0,(N62-O62),"-")) -> - | Q62: =$L$1-Table1013[Competed Count] -> 2 | R62: =IF(Q62<2,"Yes","No") -> No | S62: =AND($C$1="Y",D62>0) -> FALSE | T62: =AND($E$1="Y",F62>0) -> TRUE | U62: =AND($G$1="Y",H62>0) -> TRUE | V62: =AND($I$1="Y",J62>0) -> FALSE | W62: =AND($K$1="Y",L62>0) -> FALSE | X62: =COUNTIF(Table1013[[#This Row],[Competed 1]:[Competed 5]],"=TRUE") -> 2
A63: Niyi Ogungbola | B63: Wreake Valley Academy | C63: - | D63: =IF(C63="-",0,C63) -> 0 | E63: - | F63: =IF(E63="-",0,E63) -> 0 | G63: 33 | H63: =IF(G63="-",0,G63) -> 33 | I63: - | J63: =IF(I63="-",0,I63) -> 0 | K63: - | L63: =IF(K63="-",0,K63) -> 0 | M63: =Table1013[[#This Row],[School]] -> Wreake Valley Academy | N63: =D63+F63+H63+J63+L63 -> 33 | O63: =MAX(C63,E63,G63,I63,K63) -> 33 | P63: =IF(Q63=1,N63,IF(Q63=0,(N63-O63),"-")) -> - | Q63: =$L$1-Table1013[Competed Count] -> 3 | R63: =IF(Q63<2,"Yes","No") -> No | S63: =AND($C$1="Y",D63>0) -> FALSE | T63: =AND($E$1="Y",F63>0) -> FALSE | U63: =AND($G$1="Y",H63>0) -> TRUE | V63: =AND($I$1="Y",J63>0) -> FALSE | W63: =AND($K$1="Y",L63>0) -> FALSE | X63: =COUNTIF(Table1013[[#This Row],[Competed 1]:[Competed 5]],"=TRUE") -> 1
A64: Freddie Palin | B64: Leicester Grammar School | C64: - | D64: =IF(C64="-",0,C64) -> 0 | E64: - | F64: =IF(E64="-",0,E64) -> 0 | G64: 36 | H64: =IF(G64="-",0,G64) -> 36 | I64: - | J64: =IF(I64="-",0,I64) -> 0 | K64: - | L64: =IF(K64="-",0,K64) -> 0 | M64: =Table1013[[#This Row],[School]] -> Leicester Grammar School | N64: =D64+F64+H64+J64+L64 -> 36 | O64: =MAX(C64,E64,G64,I64,K64) -> 36 | P64: =IF(Q64=1,N64,IF(Q64=0,(N64-O64),"-")) -> - | Q64: =$L$1-Table1013[Competed Count] -> 3 | R64: =IF(Q64<2,"Yes","No") -> No | S64: =AND($C$1="Y",D64>0) -> FALSE | T64: =AND($E$1="Y",F64>0) -> FALSE | U64: =AND($G$1="Y",H64>0) -> TRUE | V64: =AND($I$1="Y",J64>0) -> FALSE | W64: =AND($K$1="Y",L64>0) -> FALSE | X64: =COUNTIF(Table1013[[#This Row],[Competed 1]:[Competed 5]],"=TRUE") -> 1
A65: Jamie Tylecote | B65: Catmose College | C65: - | D65: =IF(C65="-",0,C65) -> 0 | E65: 30 | F65: =IF(E65="-",0,E65) -> 30 | G65: 39 | H65: =IF(G65="-",0,G65) -> 39 | I65: - | J65: =IF(I65="-",0,I65) -> 0 | K65: - | L65: =IF(K65="-",0,K65) -> 0 | M65: =Table1013[[#This Row],[School]] -> Catmose College | N65: =D65+F65+H65+J65+L65 -> 69 | O65: =MAX(C65,E65,G65,I65,K65) -> 39 | P65: =IF(Q65=1,N65,IF(Q65=0,(N65-O65),"-")) -> - | Q65: =$L$1-Table1013[Competed Count] -> 2 | R65: =IF(Q65<2,"Yes","No") -> No | S65: =AND($C$1="Y",D65>0) -> FALSE | T65: =AND($E$1="Y",F65>0) -> TRUE | U65: =AND($G$1="Y",H65>0) -> TRUE | V65: =AND($I$1="Y",J65>0) -> FALSE | W65: =AND($K$1="Y",L65>0) -> FALSE | X65: =COUNTIF(Table1013[[#This Row],[Competed 1]:[Competed 5]],"=TRUE") -> 2
A66: Louis Woodcock | B66: John Ferneley College | C66: 56 | D66: =IF(C66="-",0,C66) -> 56 | E66: - | F66: =IF(E66="-",0,E66) -> 0 | G66: 41 | H66: =IF(G66="-",0,G66) -> 41 | I66: - | J66: =IF(I66="-",0,I66) -> 0 | K66: - | L66: =IF(K66="-",0,K66) -> 0 | M66: =Table1013[[#This Row],[School]] -> John Ferneley College | N66: =D66+F66+H66+J66+L66 -> 97 | O66: =MAX(C66,E66,G66,I66,K66) -> 56 | P66: =IF(Q66=1,N66,IF(Q66=0,(N66-O66),"-")) -> - | Q66: =$L$1-Table1013[Competed Count] -> 2 | R66: =IF(Q66<2,"Yes","No") -> No | S66: =AND($C$1="Y",D66>0) -> TRUE | T66: =AND($E$1="Y",F66>0) -> FALSE | U66: =AND($G$1="Y",H66>0) -> TRUE | V66: =AND($I$1="Y",J66>0) -> FALSE | W66: =AND($K$1="Y",L66>0) -> FALSE | X66: =COUNTIF(Table1013[[#This Row],[Competed 1]:[Competed 5]],"=TRUE") -> 2
A67: Will McCade | B67: Catmose College | C67: - | D67: =IF(C67="-",0,C67) -> 0 | E67: 51 | F67: =IF(E67="-",0,E67) -> 51 | G67: 42 | H67: =IF(G67="-",0,G67) -> 42 | I67: - | J67: =IF(I67="-",0,I67) -> 0 | K67: - | L67: =IF(K67="-",0,K67) -> 0 | M67: =Table1013[[#This Row],[School]] -> Catmose College | N67: =D67+F67+H67+J67+L67 -> 93 | O67: =MAX(C67,E67,G67,I67,K67) -> 51 | P67: =IF(Q67=1,N67,IF(Q67=0,(N67-O67),"-")) -> - | Q67: =$L$1-Table1013[Competed Count] -> 2 | R67: =IF(Q67<2,"Yes","No") -> No | S67: =AND($C$1="Y",D67>0) -> FALSE | T67: =AND($E$1="Y",F67>0) -> TRUE | U67: =AND($G$1="Y",H67>0) -> TRUE | V67: =AND($I$1="Y",J67>0) -> FALSE | W67: =AND($K$1="Y",L67>0) -> FALSE | X67: =COUNTIF(Table1013[[#This Row],[Competed 1]:[Competed 5]],"=TRUE") -> 2
A68: Alfie Sanders | B68: The Martin High School | C68: 49 | D68: =IF(C68="-",0,C68) -> 49 | E68: - | F68: =IF(E68="-",0,E68) -> 0 | G68: 43 | H68: =IF(G68="-",0,G68) -> 43 | I68: - | J68: =IF(I68="-",0,I68) -> 0 | K68: - | L68: =IF(K68="-",0,K68) -> 0 | M68: =Table1013[[#This Row],[School]] -> The Martin High School | N68: =D68+F68+H68+J68+L68 -> 92 | O68: =MAX(C68,E68,G68,I68,K68) -> 49 | P68: =IF(Q68=1,N68,IF(Q68=0,(N68-O68),"-")) -> - | Q68: =$L$1-Table1013[Competed Count] -> 2 | R68: =IF(Q68<2,"Yes","No") -> No | S68: =AND($C$1="Y",D68>0) -> TRUE | T68: =AND($E$1="Y",F68>0) -> FALSE | U68: =AND($G$1="Y",H68>0) -> TRUE | V68: =AND($I$1="Y",J68>0) -> FALSE | W68: =AND($K$1="Y",L68>0) -> FALSE | X68: =COUNTIF(Table1013[[#This Row],[Competed 1]:[Competed 5]],"=TRUE") -> 2
A69: Zack Michalowski | B69: The Market Bosworth School | C69: - | D69: =IF(C69="-",0,C69) -> 0 | E69: - | F69: =IF(E69="-",0,E69) -> 0 | G69: 49 | H69: =IF(G69="-",0,G69) -> 49 | I69: - | J69: =IF(I69="-",0,I69) -> 0 | K69: - | L69: =IF(K69="-",0,K69) -> 0 | M69: =Table1013[[#This Row],[School]] -> The Market Bosworth School | N69: =D69+F69+H69+J69+L69 -> 49 | O69: =MAX(C69,E69,G69,I69,K69) -> 49 | P69: =IF(Q69=1,N69,IF(Q69=0,(N69-O69),"-")) -> - | Q69: =$L$1-Table1013[Competed Count] -> 3 | R69: =IF(Q69<2,"Yes","No") -> No | S69: =AND($C$1="Y",D69>0) -> FALSE | T69: =AND($E$1="Y",F69>0) -> FALSE | U69: =AND($G$1="Y",H69>0) -> TRUE | V69: =AND($I$1="Y",J69>0) -> FALSE | W69: =AND($K$1="Y",L69>0) -> FALSE | X69: =COUNTIF(Table1013[[#This Row],[Competed 1]:[Competed 5]],"=TRUE") -> 1
A70: Alex Hollinshead | B70: Ratcliffe College | C70: - | D70: =IF(C70="-",0,C70) -> 0 | E70: - | F70: =IF(E70="-",0,E70) -> 0 | G70: 51 | H70: =IF(G70="-",0,G70) -> 51 | I70: - | J70: =IF(I70="-",0,I70) -> 0 | K70: - | L70: =IF(K70="-",0,K70) -> 0 | M70: =Table1013[[#This Row],[School]] -> Ratcliffe College | N70: =D70+F70+H70+J70+L70 -> 51 | O70: =MAX(C70,E70,G70,I70,K70) -> 51 | P70: =IF(Q70=1,N70,IF(Q70=0,(N70-O70),"-")) -> - | Q70: =$L$1-Table1013[Competed Count] -> 3 | R70: =IF(Q70<2,"Yes","No") -> No | S70: =AND($C$1="Y",D70>0) -> FALSE | T70: =AND($E$1="Y",F70>0) -> FALSE | U70: =AND($G$1="Y",H70>0) -> TRUE | V70: =AND($I$1="Y",J70>0) -> FALSE | W70: =AND($K$1="Y",L70>0) -> FALSE | X70: =COUNTIF(Table1013[[#This Row],[Competed 1]:[Competed 5]],"=TRUE") -> 1
A71: Zunaid Bhaisi | B71: Crown Hills CC | C71: - | D71: =IF(C71="-",0,C71) -> 0 | E71: 70 | F71: =IF(E71="-",0,E71) -> 70 | G71: 53 | H71: =IF(G71="-",0,G71) -> 53 | I71: - | J71: =IF(I71="-",0,I71) -> 0 | K71: - | L71: =IF(K71="-",0,K71) -> 0 | M71: =Table1013[[#This Row],[School]] -> Crown Hills CC | N71: =D71+F71+H71+J71+L71 -> 123 | O71: =MAX(C71,E71,G71,I71,K71) -> 70 | P71: =IF(Q71=1,N71,IF(Q71=0,(N71-O71),"-")) -> - | Q71: =$L$1-Table1013[Competed Count] -> 2 | R71: =IF(Q71<2,"Yes","No") -> No | S71: =AND($C$1="Y",D71>0) -> FALSE | T71: =AND($E$1="Y",F71>0) -> TRUE | U71: =AND($G$1="Y",H71>0) -> TRUE | V71: =AND($I$1="Y",J71>0) -> FALSE | W71: =AND($K$1="Y",L71>0) -> FALSE | X71: =COUNTIF(Table1013[[#This Row],[Competed 1]:[Competed 5]],"=TRUE") -> 2
A72: Sam Walklin | B72: Kibworth School | C72: - | D72: =IF(C72="-",0,C72) -> 0 | E72: 9 | F72: =IF(E72="-",0,E72) -> 9 | G72: - | H72: =IF(G72="-",0,G72) -> 0 | I72: - | J72: =IF(I72="-",0,I72) -> 0 | K72: - | L72: =IF(K72="-",0,K72) -> 0 | M72: =Table1013[[#This Row],[School]] -> Kibworth School | N72: =D72+F72+H72+J72+L72 -> 9 | O72: =MAX(C72,E72,G72,I72,K72) -> 9 | P72: =IF(Q72=1,N72,IF(Q72=0,(N72-O72),"-")) -> - | Q72: =$L$1-Table1013[Competed Count] -> 3 | R72: =IF(Q72<2,"Yes","No") -> No | S72: =AND($C$1="Y",D72>0) -> FALSE | T72: =AND($E$1="Y",F72>0) -> TRUE | U72: =AND($G$1="Y",H72>0) -> FALSE | V72: =AND($I$1="Y",J72>0) -> FALSE | W72: =AND($K$1="Y",L72>0) -> FALSE | X72: =COUNTIF(Table1013[[#This Row],[Competed 1]:[Competed 5]],"=TRUE") -> 1
A73: William Blood | B73: Manor High School | C73: - | D73: =IF(C73="-",0,C73) -> 0 | E73: 10 | F73: =IF(E73="-",0,E73) -> 10 | G73: - | H73: =IF(G73="-",0,G73) -> 0 | I73: - | J73: =IF(I73="-",0,I73) -> 0 | K73: - | L73: =IF(K73="-",0,K73) -> 0 | M73: =Table1013[[#This Row],[School]] -> Manor High School | N73: =D73+F73+H73+J73+L73 -> 10 | O73: =MAX(C73,E73,G73,I73,K73) -> 10 | P73: =IF(Q73=1,N73,IF(Q73=0,(N73-O73),"-")) -> - | Q73: =$L$1-Table1013[Competed Count] -> 3 | R73: =IF(Q73<2,"Yes","No") -> No | S73: =AND($C$1="Y",D73>0) -> FALSE | T73: =AND($E$1="Y",F73>0) -> TRUE | U73: =AND($G$1="Y",H73>0) -> FALSE | V73: =AND($I$1="Y",J73>0) -> FALSE | W73: =AND($K$1="Y",L73>0) -> FALSE | X73: =COUNTIF(Table1013[[#This Row],[Competed 1]:[Competed 5]],"=TRUE") -> 1
A74: Jake Dowling | B74: Robert Smyth Academy | C74: - | D74: =IF(C74="-",0,C74) -> 0 | E74: 15 | F74: =IF(E74="-",0,E74) -> 15 | G74: - | H74: =IF(G74="-",0,G74) -> 0 | I74: - | J74: =IF(I74="-",0,I74) -> 0 | K74: - | L74: =IF(K74="-",0,K74) -> 0 | M74: =Table1013[[#This Row],[School]] -> Robert Smyth Academy | N74: =D74+F74+H74+J74+L74 -> 15 | O74: =MAX(C74,E74,G74,I74,K74) -> 15 | P74: =IF(Q74=1,N74,IF(Q74=0,(N74-O74),"-")) -> - | Q74: =$L$1-Table1013[Competed Count] -> 3 | R74: =IF(Q74<2,"Yes","No") -> No | S74: =AND($C$1="Y",D74>0) -> FALSE | T74: =AND($E$1="Y",F74>0) -> TRUE | U74: =AND($G$1="Y",H74>0) -> FALSE | V74: =AND($I$1="Y",J74>0) -> FALSE | W74: =AND($K$1="Y",L74>0) -> FALSE | X74: =COUNTIF(Table1013[[#This Row],[Competed 1]:[Competed 5]],"=TRUE") -> 1
A75: Harry Champion | B75: Kibworth School | C75: - | D75: =IF(C75="-",0,C75) -> 0 | E75: 19 | F75: =IF(E75="-",0,E75) -> 19 | G75: - | H75: =IF(G75="-",0,G75) -> 0 | I75: - | J75: =IF(I75="-",0,I75) -> 0 | K75: - | L75: =IF(K75="-",0,K75) -> 0 | M75: =Table1013[[#This Row],[School]] -> Kibworth School | N75: =D75+F75+H75+J75+L75 -> 19 | O75: =MAX(C75,E75,G75,I75,K75) -> 19 | P75: =IF(Q75=1,N75,IF(Q75=0,(N75-O75),"-")) -> - | Q75: =$L$1-Table1013[Competed Count] -> 3 | R75: =IF(Q75<2,"Yes","No") -> No | S75: =AND($C$1="Y",D75>0) -> FALSE | T75: =AND($E$1="Y",F75>0) -> TRUE | U75: =AND($G$1="Y",H75>0) -> FALSE | V75: =AND($I$1="Y",J75>0) -> FALSE | W75: =AND($K$1="Y",L75>0) -> FALSE | X75: =COUNTIF(Table1013[[#This Row],[Competed 1]:[Competed 5]],"=TRUE") -> 1
A76: Alex Tripp | B76: Kibworth School | C76: - | D76: =IF(C76="-",0,C76) -> 0 | E76: 21 | F76: =IF(E76="-",0,E76) -> 21 | G76: - | H76: =IF(G76="-",0,G76) -> 0 | I76: - | J76: =IF(I76="-",0,I76) -> 0 | K76: - | L76: =IF(K76="-",0,K76) -> 0 | M76: =Table1013[[#This Row],[School]] -> Kibworth School | N76: =D76+F76+H76+J76+L76 -> 21 | O76: =MAX(C76,E76,G76,I76,K76) -> 21 | P76: =IF(Q76=1,N76,IF(Q76=0,(N76-O76),"-")) -> - | Q76: =$L$1-Table1013[Competed Count] -> 3 | R76: =IF(Q76<2,"Yes","No") -> No | S76: =AND($C$1="Y",D76>0) -> FALSE | T76: =AND($E$1="Y",F76>0) -> TRUE | U76: =AND($G$1="Y",H76>0) -> FALSE | V76: =AND($I$1="Y",J76>0) -> FALSE | W76: =AND($K$1="Y",L76>0) -> FALSE | X76: =COUNTIF(Table1013[[#This Row],[Competed 1]:[Competed 5]],"=TRUE") -> 1
A77: Will Jarvis | B77: Humphrey Perkins School | C77: 20 | D77: =IF(C77="-",0,C77) -> 20 | E77: 23 | F77: =IF(E77="-",0,E77) -> 23 | G77: - | H77: =IF(G77="-",0,G77) -> 0 | I77: - | J77: =IF(I77="-",0,I77) -> 0 | K77: - | L77: =IF(K77="-",0,K77) -> 0 | M77: =Table1013[[#This Row],[School]] -> Humphrey Perkins School | N77: =D77+F77+H77+J77+L77 -> 43 | O77: =MAX(C77,E77,G77,I77,K77) -> 23 | P77: =IF(Q77=1,N77,IF(Q77=0,(N77-O77),"-")) -> - | Q77: =$L$1-Table1013[Competed Count] -> 2 | R77: =IF(Q77<2,"Yes","No") -> No | S77: =AND($C$1="Y",D77>0) -> TRUE | T77: =AND($E$1="Y",F77>0) -> TRUE | U77: =AND($G$1="Y",H77>0) -> FALSE | V77: =AND($I$1="Y",J77>0) -> FALSE | W77: =AND($K$1="Y",L77>0) -> FALSE | X77: =COUNTIF(Table1013[[#This Row],[Competed 1]:[Competed 5]],"=TRUE") -> 2
A78: L Turrell | B78: Loughborough Grammar School | C78: - | D78: =IF(C78="-",0,C78) -> 0 | E78: 24 | F78: =IF(E78="-",0,E78) -> 24 | G78: - | H78: =IF(G78="-",0,G78) -> 0 | I78: - | J78: =IF(I78="-",0,I78) -> 0 | K78: - | L78: =IF(K78="-",0,K78) -> 0 | M78: =Table1013[[#This Row],[School]] -> Loughborough Grammar School | N78: =D78+F78+H78+J78+L78 -> 24 | O78: =MAX(C78,E78,G78,I78,K78) -> 24 | P78: =IF(Q78=1,N78,IF(Q78=0,(N78-O78),"-")) -> - | Q78: =$L$1-Table1013[Competed Count] -> 3 | R78: =IF(Q78<2,"Yes","No") -> No | S78: =AND($C$1="Y",D78>0) -> FALSE | T78: =AND($E$1="Y",F78>0) -> TRUE | U78: =AND($G$1="Y",H78>0) -> FALSE | V78: =AND($I$1="Y",J78>0) -> FALSE | W78: =AND($K$1="Y",L78>0) -> FALSE | X78: =COUNTIF(Table1013[[#This Row],[Competed 1]:[Competed 5]],"=TRUE") -> 1
A79: Sam Sykes-Pile | B79: Catmose College | C79: - | D79: =IF(C79="-",0,C79) -> 0 | E79: 26 | F79: =IF(E79="-",0,E79) -> 26 | G79: - | H79: =IF(G79="-",0,G79) -> 0 | I79: - | J79: =IF(I79="-",0,I79) -> 0 | K79: - | L79: =IF(K79="-",0,K79) -> 0 | M79: =Table1013[[#This Row],[School]] -> Catmose College | N79: =D79+F79+H79+J79+L79 -> 26 | O79: =MAX(C79,E79,G79,I79,K79) -> 26 | P79: =IF(Q79=1,N79,IF(Q79=0,(N79-O79),"-")) -> - | Q79: =$L$1-Table1013[Competed Count] -> 3 | R79: =IF(Q79<2,"Yes","No") -> No | S79: =AND($C$1="Y",D79>0) -> FALSE | T79: =AND($E$1="Y",F79>0) -> TRUE | U79: =AND($G$1="Y",H79>0) -> FALSE | V79: =AND($I$1="Y",J79>0) -> FALSE | W79: =AND($K$1="Y",L79>0) -> FALSE | X79: =COUNTIF(Table1013[[#This Row],[Competed 1]:[Competed 5]],"=TRUE") -> 1
A80: Chris Halford | B80: Charnwood College | C80: 32 | D80: =IF(C80="-",0,C80) -> 32 | E80: 28 | F80: =IF(E80="-",0,E80) -> 28 | G80: - | H80: =IF(G80="-",0,G80) -> 0 | I80: - | J80: =IF(I80="-",0,I80) -> 0 | K80: - | L80: =IF(K80="-",0,K80) -> 0 | M80: =Table1013[[#This Row],[School]] -> Charnwood College | N80: =D80+F80+H80+J80+L80 -> 60 | O80: =MAX(C80,E80,G80,I80,K80) -> 32 | P80: =IF(Q80=1,N80,IF(Q80=0,(N80-O80),"-")) -> - | Q80: =$L$1-Table1013[Competed Count] -> 2 | R80: =IF(Q80<2,"Yes","No") -> No | S80: =AND($C$1="Y",D80>0) -> TRUE | T80: =AND($E$1="Y",F80>0) -> TRUE | U80: =AND($G$1="Y",H80>0) -> FALSE | V80: =AND($I$1="Y",J80>0) -> FALSE | W80: =AND($K$1="Y",L80>0) -> FALSE | X80: =COUNTIF(Table1013[[#This Row],[Competed 1]:[Competed 5]],"=TRUE") -> 2
A81: Michael Mcloney | B81: Catmose College | C81: - | D81: =IF(C81="-",0,C81) -> 0 | E81: 31 | F81: =IF(E81="-",0,E81) -> 31 | G81: - | H81: =IF(G81="-",0,G81) -> 0 | I81: - | J81: =IF(I81="-",0,I81) -> 0 | K81: - | L81: =IF(K81="-",0,K81) -> 0 | M81: =Table1013[[#This Row],[School]] -> Catmose College | N81: =D81+F81+H81+J81+L81 -> 31 | O81: =MAX(C81,E81,G81,I81,K81) -> 31 | P81: =IF(Q81=1,N81,IF(Q81=0,(N81-O81),"-")) -> - | Q81: =$L$1-Table1013[Competed Count] -> 3 | R81: =IF(Q81<2,"Yes","No") -> No | S81: =AND($C$1="Y",D81>0) -> FALSE | T81: =AND($E$1="Y",F81>0) -> TRUE | U81: =AND($G$1="Y",H81>0) -> FALSE | V81: =AND($I$1="Y",J81>0) -> FALSE | W81: =AND($K$1="Y",L81>0) -> FALSE | X81: =COUNTIF(Table1013[[#This Row],[Competed 1]:[Competed 5]],"=TRUE") -> 1
A82: T Mitchell | B82: Loughborough Grammar School | C82: - | D82: =IF(C82="-",0,C82) -> 0 | E82: 32 | F82: =IF(E82="-",0,E82) -> 32 | G82: - | H82: =IF(G82="-",0,G82) -> 0 | I82: - | J82: =IF(I82="-",0,I82) -> 0 | K82: - | L82: =IF(K82="-",0,K82) -> 0 | M82: =Table1013[[#This Row],[School]] -> Loughborough Grammar School | N82: =D82+F82+H82+J82+L82 -> 32 | O82: =MAX(C82,E82,G82,I82,K82) -> 32 | P82: =IF(Q82=1,N82,IF(Q82=0,(N82-O82),"-")) -> - | Q82: =$L$1-Table1013[Competed Count] -> 3 | R82: =IF(Q82<2,"Yes","No") -> No | S82: =AND($C$1="Y",D82>0) -> FALSE | T82: =AND($E$1="Y",F82>0) -> TRUE | U82: =AND($G$1="Y",H82>0) -> FALSE | V82: =AND($I$1="Y",J82>0) -> FALSE | W82: =AND($K$1="Y",L82>0) -> FALSE | X82: =COUNTIF(Table1013[[#This Row],[Competed 1]:[Competed 5]],"=TRUE") -> 1
A83: Mackenzie Large | B83: Brookvale High School | C83: 31 | D83: =IF(C83="-",0,C83) -> 31 | E83: 35 | F83: =IF(E83="-",0,E83) -> 35 | G83: - | H83: =IF(G83="-",0,G83) -> 0 | I83: - | J83: =IF(I83="-",0,I83) -> 0 | K83: - | L83: =IF(K83="-",0,K83) -> 0 | M83: =Table1013[[#This Row],[School]] -> Brookvale High School | N83: =D83+F83+H83+J83+L83 -> 66 | O83: =MAX(C83,E83,G83,I83,K83) -> 35 | P83: =IF(Q83=1,N83,IF(Q83=0,(N83-O83),"-")) -> - | Q83: =$L$1-Table1013[Competed Count] -> 2 | R83: =IF(Q83<2,"Yes","No") -> No | S83: =AND($C$1="Y",D83>0) -> TRUE | T83: =AND($E$1="Y",F83>0) -> TRUE | U83: =AND($G$1="Y",H83>0) -> FALSE | V83: =AND($I$1="Y",J83>0) -> FALSE | W83: =AND($K$1="Y",L83>0) -> FALSE | X83: =COUNTIF(Table1013[[#This Row],[Competed 1]:[Competed 5]],"=TRUE") -> 2
A84: Liam Wakeling | B84: Charnwood College | C84: - | D84: =IF(C84="-",0,C84) -> 0 | E84: 38 | F84: =IF(E84="-",0,E84) -> 38 | G84: - | H84: =IF(G84="-",0,G84) -> 0 | I84: - | J84: =IF(I84="-",0,I84) -> 0 | K84: - | L84: =IF(K84="-",0,K84) -> 0 | M84: =Table1013[[#This Row],[School]] -> Charnwood College | N84: =D84+F84+H84+J84+L84 -> 38 | O84: =MAX(C84,E84,G84,I84,K84) -> 38 | P84: =IF(Q84=1,N84,IF(Q84=0,(N84-O84),"-")) -> - | Q84: =$L$1-Table1013[Competed Count] -> 3 | R84: =IF(Q84<2,"Yes","No") -> No | S84: =AND($C$1="Y",D84>0) -> FALSE | T84: =AND($E$1="Y",F84>0) -> TRUE | U84: =AND($G$1="Y",H84>0) -> FALSE | V84: =AND($I$1="Y",J84>0) -> FALSE | W84: =AND($K$1="Y",L84>0) -> FALSE | X84: =COUNTIF(Table1013[[#This Row],[Competed 1]:[Competed 5]],"=TRUE") -> 1
A85: Matthew Halford | B85: Charnwood College | C85: 41 | D85: =IF(C85="-",0,C85) -> 41 | E85: 39 | F85: =IF(E85="-",0,E85) -> 39 | G85: - | H85: =IF(G85="-",0,G85) -> 0 | I85: - | J85: =IF(I85="-",0,I85) -> 0 | K85: - | L85: =IF(K85="-",0,K85) -> 0 | M85: =Table1013[[#This Row],[School]] -> Charnwood College | N85: =D85+F85+H85+J85+L85 -> 80 | O85: =MAX(C85,E85,G85,I85,K85) -> 41 | P85: =IF(Q85=1,N85,IF(Q85=0,(N85-O85),"-")) -> - | Q85: =$L$1-Table1013[Competed Count] -> 2 | R85: =IF(Q85<2,"Yes","No") -> No | S85: =AND($C$1="Y",D85>0) -> TRUE | T85: =AND($E$1="Y",F85>0) -> TRUE | U85: =AND($G$1="Y",H85>0) -> FALSE | V85: =AND($I$1="Y",J85>0) -> FALSE | W85: =AND($K$1="Y",L85>0) -> FALSE | X85: =COUNTIF(Table1013[[#This Row],[Competed 1]:[Competed 5]],"=TRUE") -> 2
A86: Charlie Plews | B86: Catmose College | C86: - | D86: =IF(C86="-",0,C86) -> 0 | E86: 40 | F86: =IF(E86="-",0,E86) -> 40 | G86: - | H86: =IF(G86="-",0,G86) -> 0 | I86: - | J86: =IF(I86="-",0,I86) -> 0 | K86: - | L86: =IF(K86="-",0,K86) -> 0 | M86: =Table1013[[#This Row],[School]] -> Catmose College | N86: =D86+F86+H86+J86+L86 -> 40 | O86: =MAX(C86,E86,G86,I86,K86) -> 40 | P86: =IF(Q86=1,N86,IF(Q86=0,(N86-O86),"-")) -> - | Q86: =$L$1-Table1013[Competed Count] -> 3 | R86: =IF(Q86<2,"Yes","No") -> No | S86: =AND($C$1="Y",D86>0) -> FALSE | T86: =AND($E$1="Y",F86>0) -> TRUE | U86: =AND($G$1="Y",H86>0) -> FALSE | V86: =AND($I$1="Y",J86>0) -> FALSE | W86: =AND($K$1="Y",L86>0) -> FALSE | X86: =COUNTIF(Table1013[[#This Row],[Competed 1]:[Competed 5]],"=TRUE") -> 1
A87: Josh Sennett | B87: Catmose College | C87: - | D87: =IF(C87="-",0,C87) -> 0 | E87: 42 | F87: =IF(E87="-",0,E87) -> 42 | G87: - | H87: =IF(G87="-",0,G87) -> 0 | I87: - | J87: =IF(I87="-",0,I87) -> 0 | K87: - | L87: =IF(K87="-",0,K87) -> 0 | M87: =Table1013[[#This Row],[School]] -> Catmose College | N87: =D87+F87+H87+J87+L87 -> 42 | O87: =MAX(C87,E87,G87,I87,K87) -> 42 | P87: =IF(Q87=1,N87,IF(Q87=0,(N87-O87),"-")) -> - | Q87: =$L$1-Table1013[Competed Count] -> 3 | R87: =IF(Q87<2,"Yes","No") -> No | S87: =AND($C$1="Y",D87>0) -> FALSE | T87: =AND($E$1="Y",F87>0) -> TRUE | U87: =AND($G$1="Y",H87>0) -> FALSE | V87: =AND($I$1="Y",J87>0) -> FALSE | W87: =AND($K$1="Y",L87>0) -> FALSE | X87: =COUNTIF(Table1013[[#This Row],[Competed 1]:[Competed 5]],"=TRUE") -> 1
A88: Callum Ginchrist | B88: Charnwood College | C88: - | D88: =IF(C88="-",0,C88) -> 0 | E88: 43 | F88: =IF(E88="-",0,E88) -> 43 | G88: - | H88: =IF(G88="-",0,G88) -> 0 | I88: - | J88: =IF(I88="-",0,I88) -> 0 | K88: - | L88: =IF(K88="-",0,K88) -> 0 | M88: =Table1013[[#This Row],[School]] -> Charnwood College | N88: =D88+F88+H88+J88+L88 -> 43 | O88: =MAX(C88,E88,G88,I88,K88) -> 43 | P88: =IF(Q88=1,N88,IF(Q88=0,(N88-O88),"-")) -> - | Q88: =$L$1-Table1013[Competed Count] -> 3 | R88: =IF(Q88<2,"Yes","No") -> No | S88: =AND($C$1="Y",D88>0) -> FALSE | T88: =AND($E$1="Y",F88>0) -> TRUE | U88: =AND($G$1="Y",H88>0) -> FALSE | V88: =AND($I$1="Y",J88>0) -> FALSE | W88: =AND($K$1="Y",L88>0) -> FALSE | X88: =COUNTIF(Table1013[[#This Row],[Competed 1]:[Competed 5]],"=TRUE") -> 1
A89: Luke Goodwin | B89: The Martin High School | C89: 25 | D89: =IF(C89="-",0,C89) -> 25 | E89: 46 | F89: =IF(E89="-",0,E89) -> 46 | G89: - | H89: =IF(G89="-",0,G89) -> 0 | I89: - | J89: =IF(I89="-",0,I89) -> 0 | K89: - | L89: =IF(K89="-",0,K89) -> 0 | M89: =Table1013[[#This Row],[School]] -> The Martin High School | N89: =D89+F89+H89+J89+L89 -> 71 | O89: =MAX(C89,E89,G89,I89,K89) -> 46 | P89: =IF(Q89=1,N89,IF(Q89=0,(N89-O89),"-")) -> - | Q89: =$L$1-Table1013[Competed Count] -> 2 | R89: =IF(Q89<2,"Yes","No") -> No | S89: =AND($C$1="Y",D89>0) -> TRUE | T89: =AND($E$1="Y",F89>0) -> TRUE | U89: =AND($G$1="Y",H89>0) -> FALSE | V89: =AND($I$1="Y",J89>0) -> FALSE | W89: =AND($K$1="Y",L89>0) -> FALSE | X89: =COUNTIF(Table1013[[#This Row],[Competed 1]:[Competed 5]],"=TRUE") -> 2
A90: Corey Bottrill | B90: Charnwood College | C90: - | D90: =IF(C90="-",0,C90) -> 0 | E90: 47 | F90: =IF(E90="-",0,E90) -> 47 | G90: - | H90: =IF(G90="-",0,G90) -> 0 | I90: - | J90: =IF(I90="-",0,I90) -> 0 | K90: - | L90: =IF(K90="-",0,K90) -> 0 | M90: =Table1013[[#This Row],[School]] -> Charnwood College | N90: =D90+F90+H90+J90+L90 -> 47 | O90: =MAX(C90,E90,G90,I90,K90) -> 47 | P90: =IF(Q90=1,N90,IF(Q90=0,(N90-O90),"-")) -> - | Q90: =$L$1-Table1013[Competed Count] -> 3 | R90: =IF(Q90<2,"Yes","No") -> No | S90: =AND($C$1="Y",D90>0) -> FALSE | T90: =AND($E$1="Y",F90>0) -> TRUE | U90: =AND($G$1="Y",H90>0) -> FALSE | V90: =AND($I$1="Y",J90>0) -> FALSE | W90: =AND($K$1="Y",L90>0) -> FALSE | X90: =COUNTIF(Table1013[[#This Row],[Competed 1]:[Competed 5]],"=TRUE") -> 1
A91: Ben Wright | B91: Catmose College | C91: 37 | D91: =IF(C91="-",0,C91) -> 37 | E91: 49 | F91: =IF(E91="-",0,E91) -> 49 | G91: - | H91: =IF(G91="-",0,G91) -> 0 | I91: - | J91: =IF(I91="-",0,I91) -> 0 | K91: - | L91: =IF(K91="-",0,K91) -> 0 | M91: =Table1013[[#This Row],[School]] -> Catmose College | N91: =D91+F91+H91+J91+L91 -> 86 | O91: =MAX(C91,E91,G91,I91,K91) -> 49 | P91: =IF(Q91=1,N91,IF(Q91=0,(N91-O91),"-")) -> - | Q91: =$L$1-Table1013[Competed Count] -> 2 | R91: =IF(Q91<2,"Yes","No") -> No | S91: =AND($C$1="Y",D91>0) -> TRUE | T91: =AND($E$1="Y",F91>0) -> TRUE | U91: =AND($G$1="Y",H91>0) -> FALSE | V91: =AND($I$1="Y",J91>0) -> FALSE | W91: =AND($K$1="Y",L91>0) -> FALSE | X91: =COUNTIF(Table1013[[#This Row],[Competed 1]:[Competed 5]],"=TRUE") -> 2
A92: C Williams | B92: Loughborough Grammar School | C92: 64 | D92: =IF(C92="-",0,C92) -> 64 | E92: 54 | F92: =IF(E92="-",0,E92) -> 54 | G92: - | H92: =IF(G92="-",0,G92) -> 0 | I92: - | J92: =IF(I92="-",0,I92) -> 0 | K92: - | L92: =IF(K92="-",0,K92) -> 0 | M92: =Table1013[[#This Row],[School]] -> Loughborough Grammar School | N92: =D92+F92+H92+J92+L92 -> 118 | O92: =MAX(C92,E92,G92,I92,K92) -> 64 | P92: =IF(Q92=1,N92,IF(Q92=0,(N92-O92),"-")) -> - | Q92: =$L$1-Table1013[Competed Count] -> 2 | R92: =IF(Q92<2,"Yes","No") -> No | S92: =AND($C$1="Y",D92>0) -> TRUE | T92: =AND($E$1="Y",F92>0) -> TRUE | U92: =AND($G$1="Y",H92>0) -> FALSE | V92: =AND($I$1="Y",J92>0) -> FALSE | W92: =AND($K$1="Y",L92>0) -> FALSE | X92: =COUNTIF(Table1013[[#This Row],[Competed 1]:[Competed 5]],"=TRUE") -> 2
A93: Jack Vandenbrand | B93: Kibworth School | C93: - | D93: =IF(C93="-",0,C93) -> 0 | E93: 55 | F93: =IF(E93="-",0,E93) -> 55 | G93: - | H93: =IF(G93="-",0,G93) -> 0 | I93: - | J93: =IF(I93="-",0,I93) -> 0 | K93: - | L93: =IF(K93="-",0,K93) -> 0 | M93: =Table1013[[#This Row],[School]] -> Kibworth School | N93: =D93+F93+H93+J93+L93 -> 55 | O93: =MAX(C93,E93,G93,I93,K93) -> 55 | P93: =IF(Q93=1,N93,IF(Q93=0,(N93-O93),"-")) -> - | Q93: =$L$1-Table1013[Competed Count] -> 3 | R93: =IF(Q93<2,"Yes","No") -> No | S93: =AND($C$1="Y",D93>0) -> FALSE | T93: =AND($E$1="Y",F93>0) -> TRUE | U93: =AND($G$1="Y",H93>0) -> FALSE | V93: =AND($I$1="Y",J93>0) -> FALSE | W93: =AND($K$1="Y",L93>0) -> FALSE | X93: =COUNTIF(Table1013[[#This Row],[Competed 1]:[Competed 5]],"=TRUE") -> 1
A94: Jamie Baxter | B94: Kibworth School | C94: 44 | D94: =IF(C94="-",0,C94) -> 44 | E94: 56 | F94: =IF(E94="-",0,E94) -> 56 | G94: - | H94: =IF(G94="-",0,G94) -> 0 | I94: - | J94: =IF(I94="-",0,I94) -> 0 | K94: - | L94: =IF(K94="-",0,K94) -> 0 | M94: =Table1013[[#This Row],[School]] -> Kibworth School | N94: =D94+F94+H94+J94+L94 -> 100 | O94: =MAX(C94,E94,G94,I94,K94) -> 56 | P94: =IF(Q94=1,N94,IF(Q94=0,(N94-O94),"-")) -> - | Q94: =$L$1-Table1013[Competed Count] -> 2 | R94: =IF(Q94<2,"Yes","No") -> No | S94: =AND($C$1="Y",D94>0) -> TRUE | T94: =AND($E$1="Y",F94>0) -> TRUE | U94: =AND($G$1="Y",H94>0) -> FALSE | V94: =AND($I$1="Y",J94>0) -> FALSE | W94: =AND($K$1="Y",L94>0) -> FALSE | X94: =COUNTIF(Table1013[[#This Row],[Competed 1]:[Competed 5]],"=TRUE") -> 2
A95: Paul Moden | B95: Kibworth School | C95: - | D95: =IF(C95="-",0,C95) -> 0 | E95: 57 | F95: =IF(E95="-",0,E95) -> 57 | G95: - | H95: =IF(G95="-",0,G95) -> 0 | I95: - | J95: =IF(I95="-",0,I95) -> 0 | K95: - | L95: =IF(K95="-",0,K95) -> 0 | M95: =Table1013[[#This Row],[School]] -> Kibworth School | N95: =D95+F95+H95+J95+L95 -> 57 | O95: =MAX(C95,E95,G95,I95,K95) -> 57 | P95: =IF(Q95=1,N95,IF(Q95=0,(N95-O95),"-")) -> - | Q95: =$L$1-Table1013[Competed Count] -> 3 | R95: =IF(Q95<2,"Yes","No") -> No | S95: =AND($C$1="Y",D95>0) -> FALSE | T95: =AND($E$1="Y",F95>0) -> TRUE | U95: =AND($G$1="Y",H95>0) -> FALSE | V95: =AND($I$1="Y",J95>0) -> FALSE | W95: =AND($K$1="Y",L95>0) -> FALSE | X95: =COUNTIF(Table1013[[#This Row],[Competed 1]:[Competed 5]],"=TRUE") -> 1
A96: Frankie Richardson | B96: Brookvale High School | C96: 63 | D96: =IF(C96="-",0,C96) -> 63 | E96: 58 | F96: =IF(E96="-",0,E96) -> 58 | G96: - | H96: =IF(G96="-",0,G96) -> 0 | I96: - | J96: =IF(I96="-",0,I96) -> 0 | K96: - | L96: =IF(K96="-",0,K96) -> 0 | M96: =Table1013[[#This Row],[School]] -> Brookvale High School | N96: =D96+F96+H96+J96+L96 -> 121 | O96: =MAX(C96,E96,G96,I96,K96) -> 63 | P96: =IF(Q96=1,N96,IF(Q96=0,(N96-O96),"-")) -> - | Q96: =$L$1-Table1013[Competed Count] -> 2 | R96: =IF(Q96<2,"Yes","No") -> No | S96: =AND($C$1="Y",D96>0) -> TRUE | T96: =AND($E$1="Y",F96>0) -> TRUE | U96: =AND($G$1="Y",H96>0) -> FALSE | V96: =AND($I$1="Y",J96>0) -> FALSE | W96: =AND($K$1="Y",L96>0) -> FALSE | X96: =COUNTIF(Table1013[[#This Row],[Competed 1]:[Competed 5]],"=TRUE") -> 2
A97: Josh Wilkinson | B97: Woodbrook Vale School | C97: 65 | D97: =IF(C97="-",0,C97) -> 65 | E97: 59 | F97: =IF(E97="-",0,E97) -> 59 | G97: - | H97: =IF(G97="-",0,G97) -> 0 | I97: - | J97: =IF(I97="-",0,I97) -> 0 | K97: - | L97: =IF(K97="-",0,K97) -> 0 | M97: =Table1013[[#This Row],[School]] -> Woodbrook Vale School | N97: =D97+F97+H97+J97+L97 -> 124 | O97: =MAX(C97,E97,G97,I97,K97) -> 65 | P97: =IF(Q97=1,N97,IF(Q97=0,(N97-O97),"-")) -> - | Q97: =$L$1-Table1013[Competed Count] -> 2 | R97: =IF(Q97<2,"Yes","No") -> No | S97: =AND($C$1="Y",D97>0) -> TRUE | T97: =AND($E$1="Y",F97>0) -> TRUE | U97: =AND($G$1="Y",H97>0) -> FALSE | V97: =AND($I$1="Y",J97>0) -> FALSE | W97: =AND($K$1="Y",L97>0) -> FALSE | X97: =COUNTIF(Table1013[[#This Row],[Competed 1]:[Competed 5]],"=TRUE") -> 2
A98: Alex Edgley | B98: Lutterworth High School | C98: - | D98: =IF(C98="-",0,C98) -> 0 | E98: 60 | F98: =IF(E98="-",0,E98) -> 60 | G98: - | H98: =IF(G98="-",0,G98) -> 0 | I98: - | J98: =IF(I98="-",0,I98) -> 0 | K98: - | L98: =IF(K98="-",0,K98) -> 0 | M98: =Table1013[[#This Row],[School]] -> Lutterworth High School | N98: =D98+F98+H98+J98+L98 -> 60 | O98: =MAX(C98,E98,G98,I98,K98) -> 60 | P98: =IF(Q98=1,N98,IF(Q98=0,(N98-O98),"-")) -> - | Q98: =$L$1-Table1013[Competed Count] -> 3 | R98: =IF(Q98<2,"Yes","No") -> No | S98: =AND($C$1="Y",D98>0) -> FALSE | T98: =AND($E$1="Y",F98>0) -> TRUE | U98: =AND($G$1="Y",H98>0) -> FALSE | V98: =AND($I$1="Y",J98>0) -> FALSE | W98: =AND($K$1="Y",L98>0) -> FALSE | X98: =COUNTIF(Table1013[[#This Row],[Competed 1]:[Competed 5]],"=TRUE") -> 1
A99: Josh Wiggins | B99: Thomas Estley CC | C99: 60 | D99: =IF(C99="-",0,C99) -> 60 | E99: 61 | F99: =IF(E99="-",0,E99) -> 61 | G99: - | H99: =IF(G99="-",0,G99) -> 0 | I99: - | J99: =IF(I99="-",0,I99) -> 0 | K99: - | L99: =IF(K99="-",0,K99) -> 0 | M99: =Table1013[[#This Row],[School]] -> Thomas Estley CC | N99: =D99+F99+H99+J99+L99 -> 121 | O99: =MAX(C99,E99,G99,I99,K99) -> 61 | P99: =IF(Q99=1,N99,IF(Q99=0,(N99-O99),"-")) -> - | Q99: =$L$1-Table1013[Competed Count] -> 2 | R99: =IF(Q99<2,"Yes","No") -> No | S99: =AND($C$1="Y",D99>0) -> TRUE | T99: =AND($E$1="Y",F99>0) -> TRUE | U99: =AND($G$1="Y",H99>0) -> FALSE | V99: =AND($I$1="Y",J99>0) -> FALSE | W99: =AND($K$1="Y",L99>0) -> FALSE | X99: =COUNTIF(Table1013[[#This Row],[Competed 1]:[Competed 5]],"=TRUE") -> 2
A100: Mahamed Amin Farah | B100: Crown Hills CC | C100: - | D100: =IF(C100="-",0,C100) -> 0 | E100: 62 | F100: =IF(E100="-",0,E100) -> 62 | G100: - | H100: =IF(G100="-",0,G100) -> 0 | I100: - | J100: =IF(I100="-",0,I100) -> 0 | K100: - | L100: =IF(K100="-",0,K100) -> 0 | M100: =Table1013[[#This Row],[School]] -> Crown Hills CC | N100: =D100+F100+H100+J100+L100 -> 62 | O100: =MAX(C100,E100,G100,I100,K100) -> 62 | P100: =IF(Q100=1,N100,IF(Q100=0,(N100-O100),"-")) -> - | Q100: =$L$1-Table1013[Competed Count] -> 3 | R100: =IF(Q100<2,"Yes","No") -> No | S100: =AND($C$1="Y",D100>0) -> FALSE | T100: =AND($E$1="Y",F100>0) -> TRUE | U100: =AND($G$1="Y",H100>0) -> FALSE | V100: =AND($I$1="Y",J100>0) -> FALSE | W100: =AND($K$1="Y",L100>0) -> FALSE | X100: =COUNTIF(Table1013[[#This Row],[Competed 1]:[Competed 5]],"=TRUE") -> 1
A101: Nadim Patel | B101: Crown Hills CC | C101: - | D101: =IF(C101="-",0,C101) -> 0 | E101: 63 | F101: =IF(E101="-",0,E101) -> 63 | G101: - | H101: =IF(G101="-",0,G101) -> 0 | I101: - | J101: =IF(I101="-",0,I101) -> 0 | K101: - | L101: =IF(K101="-",0,K101) -> 0 | M101: =Table1013[[#This Row],[School]] -> Crown Hills CC | N101: =D101+F101+H101+J101+L101 -> 63 | O101: =MAX(C101,E101,G101,I101,K101) -> 63 | P101: =IF(Q101=1,N101,IF(Q101=0,(N101-O101),"-")) -> - | Q101: =$L$1-Table1013[Competed Count] -> 3 | R101: =IF(Q101<2,"Yes","No") -> No | S101: =AND($C$1="Y",D101>0) -> FALSE | T101: =AND($E$1="Y",F101>0) -> TRUE | U101: =AND($G$1="Y",H101>0) -> FALSE | V101: =AND($I$1="Y",J101>0) -> FALSE | W101: =AND($K$1="Y",L101>0) -> FALSE | X101: =COUNTIF(Table1013[[#This Row],[Competed 1]:[Competed 5]],"=TRUE") -> 1
A102: Leo Statham | B102: Bosworth Academy | C102: - | D102: =IF(C102="-",0,C102) -> 0 | E102: 65 | F102: =IF(E102="-",0,E102) -> 65 | G102: - | H102: =IF(G102="-",0,G102) -> 0 | I102: - | J102: =IF(I102="-",0,I102) -> 0 | K102: - | L102: =IF(K102="-",0,K102) -> 0 | M102: =Table1013[[#This Row],[School]] -> Bosworth Academy | N102: =D102+F102+H102+J102+L102 -> 65 | O102: =MAX(C102,E102,G102,I102,K102) -> 65 | P102: =IF(Q102=1,N102,IF(Q102=0,(N102-O102),"-")) -> - | Q102: =$L$1-Table1013[Competed Count] -> 3 | R102: =IF(Q102<2,"Yes","No") -> No | S102: =AND($C$1="Y",D102>0) -> FALSE | T102: =AND($E$1="Y",F102>0) -> TRUE | U102: =AND($G$1="Y",H102>0) -> FALSE | V102: =AND($I$1="Y",J102>0) -> FALSE | W102: =AND($K$1="Y",L102>0) -> FALSE | X102: =COUNTIF(Table1013[[#This Row],[Competed 1]:[Competed 5]],"=TRUE") -> 1
A103: Bilal Bahera | B103: Crown Hills CC | C103: - | D103: =IF(C103="-",0,C103) -> 0 | E103: 66 | F103: =IF(E103="-",0,E103) -> 66 | G103: - | H103: =IF(G103="-",0,G103) -> 0 | I103: - | J103: =IF(I103="-",0,I103) -> 0 | K103: - | L103: =IF(K103="-",0,K103) -> 0 | M103: =Table1013[[#This Row],[School]] -> Crown Hills CC | N103: =D103+F103+H103+J103+L103 -> 66 | O103: =MAX(C103,E103,G103,I103,K103) -> 66 | P103: =IF(Q103=1,N103,IF(Q103=0,(N103-O103),"-")) -> - | Q103: =$L$1-Table1013[Competed Count] -> 3 | R103: =IF(Q103<2,"Yes","No") -> No | S103: =AND($C$1="Y",D103>0) -> FALSE | T103: =AND($E$1="Y",F103>0) -> TRUE | U103: =AND($G$1="Y",H103>0) -> FALSE | V103: =AND($I$1="Y",J103>0) -> FALSE | W103: =AND($K$1="Y",L103>0) -> FALSE | X103: =COUNTIF(Table1013[[#This Row],[Competed 1]:[Competed 5]],"=TRUE") -> 1
A104: S Bence | B104: Loughborough Grammar School | C104: 68 | D104: =IF(C104="-",0,C104) -> 68 | E104: 67 | F104: =IF(E104="-",0,E104) -> 67 | G104: - | H104: =IF(G104="-",0,G104) -> 0 | I104: - | J104: =IF(I104="-",0,I104) -> 0 | K104: - | L104: =IF(K104="-",0,K104) -> 0 | M104: =Table1013[[#This Row],[School]] -> Loughborough Grammar School | N104: =D104+F104+H104+J104+L104 -> 135 | O104: =MAX(C104,E104,G104,I104,K104) -> 68 | P104: =IF(Q104=1,N104,IF(Q104=0,(N104-O104),"-")) -> - | Q104: =$L$1-Table1013[Competed Count] -> 2 | R104: =IF(Q104<2,"Yes","No") -> No | S104: =AND($C$1="Y",D104>0) -> TRUE | T104: =AND($E$1="Y",F104>0) -> TRUE | U104: =AND($G$1="Y",H104>0) -> FALSE | V104: =AND($I$1="Y",J104>0) -> FALSE | W104: =AND($K$1="Y",L104>0) -> FALSE | X104: =COUNTIF(Table1013[[#This Row],[Competed 1]:[Competed 5]],"=TRUE") -> 2
A105: E Kriton-Cole | B105: Loughborough Grammar School | C105: 52 | D105: =IF(C105="-",0,C105) -> 52 | E105: 68 | F105: =IF(E105="-",0,E105) -> 68 | G105: - | H105: =IF(G105="-",0,G105) -> 0 | I105: - | J105: =IF(I105="-",0,I105) -> 0 | K105: - | L105: =IF(K105="-",0,K105) -> 0 | M105: =Table1013[[#This Row],[School]] -> Loughborough Grammar School | N105: =D105+F105+H105+J105+L105 -> 120 | O105: =MAX(C105,E105,G105,I105,K105) -> 68 | P105: =IF(Q105=1,N105,IF(Q105=0,(N105-O105),"-")) -> - | Q105: =$L$1-Table1013[Competed Count] -> 2 | R105: =IF(Q105<2,"Yes","No") -> No | S105: =AND($C$1="Y",D105>0) -> TRUE | T105: =AND($E$1="Y",F105>0) -> TRUE | U105: =AND($G$1="Y",H105>0) -> FALSE | V105: =AND($I$1="Y",J105>0) -> FALSE | W105: =AND($K$1="Y",L105>0) -> FALSE | X105: =COUNTIF(Table1013[[#This Row],[Competed 1]:[Competed 5]],"=TRUE") -> 2
A106: Zainal Pathan | B106: Crown Hills CC | C106: 74 | D106: =IF(C106="-",0,C106) -> 74 | E106: 69 | F106: =IF(E106="-",0,E106) -> 69 | G106: - | H106: =IF(G106="-",0,G106) -> 0 | I106: - | J106: =IF(I106="-",0,I106) -> 0 | K106: - | L106: =IF(K106="-",0,K106) -> 0 | M106: =Table1013[[#This Row],[School]] -> Crown Hills CC | N106: =D106+F106+H106+J106+L106 -> 143 | O106: =MAX(C106,E106,G106,I106,K106) -> 74 | P106: =IF(Q106=1,N106,IF(Q106=0,(N106-O106),"-")) -> - | Q106: =$L$1-Table1013[Competed Count] -> 2 | R106: =IF(Q106<2,"Yes","No") -> No | S106: =AND($C$1="Y",D106>0) -> TRUE | T106: =AND($E$1="Y",F106>0) -> TRUE | U106: =AND($G$1="Y",H106>0) -> FALSE | V106: =AND($I$1="Y",J106>0) -> FALSE | W106: =AND($K$1="Y",L106>0) -> FALSE | X106: =COUNTIF(Table1013[[#This Row],[Competed 1]:[Competed 5]],"=TRUE") -> 2
A107: Jamie Carrott | B107: Woodbrook Vale School | C107: 8 | D107: =IF(C107="-",0,C107) -> 8 | E107: - | F107: =IF(E107="-",0,E107) -> 0 | G107: - | H107: =IF(G107="-",0,G107) -> 0 | I107: - | J107: =IF(I107="-",0,I107) -> 0 | K107: - | L107: =IF(K107="-",0,K107) -> 0 | M107: =Table1013[[#This Row],[School]] -> Woodbrook Vale School | N107: =D107+F107+H107+J107+L107 -> 8 | O107: =MAX(C107,E107,G107,I107,K107) -> 8 | P107: =IF(Q107=1,N107,IF(Q107=0,(N107-O107),"-")) -> - | Q107: =$L$1-Table1013[Competed Count] -> 3 | R107: =IF(Q107<2,"Yes","No") -> No | S107: =AND($C$1="Y",D107>0) -> TRUE | T107: =AND($E$1="Y",F107>0) -> FALSE | U107: =AND($G$1="Y",H107>0) -> FALSE | V107: =AND($I$1="Y",J107>0) -> FALSE | W107: =AND($K$1="Y",L107>0) -> FALSE | X107: =COUNTIF(Table1013[[#This Row],[Competed 1]:[Competed 5]],"=TRUE") -> 1
A108: Brook Isherwood | B108: John Ferneley College | C108: 19 | D108: =IF(C108="-",0,C108) -> 19 | E108: - | F108: =IF(E108="-",0,E108) -> 0 | G108: - | H108: =IF(G108="-",0,G108) -> 0 | I108: - | J108: =IF(I108="-",0,I108) -> 0 | K108: - | L108: =IF(K108="-",0,K108) -> 0 | M108: =Table1013[[#This Row],[School]] -> John Ferneley College | N108: =D108+F108+H108+J108+L108 -> 19 | O108: =MAX(C108,E108,G108,I108,K108) -> 19 | P108: =IF(Q108=1,N108,IF(Q108=0,(N108-O108),"-")) -> - | Q108: =$L$1-Table1013[Competed Count] -> 3 | R108: =IF(Q108<2,"Yes","No") -> No | S108: =AND($C$1="Y",D108>0) -> TRUE | T108: =AND($E$1="Y",F108>0) -> FALSE | U108: =AND($G$1="Y",H108>0) -> FALSE | V108: =AND($I$1="Y",J108>0) -> FALSE | W108: =AND($K$1="Y",L108>0) -> FALSE | X108: =COUNTIF(Table1013[[#This Row],[Competed 1]:[Competed 5]],"=TRUE") -> 1
A109: Ben Dodson | B109: Catmose College | C109: 22 | D109: =IF(C109="-",0,C109) -> 22 | E109: - | F109: =IF(E109="-",0,E109) -> 0 | G109: - | H109: =IF(G109="-",0,G109) -> 0 | I109: - | J109: =IF(I109="-",0,I109) -> 0 | K109: - | L109: =IF(K109="-",0,K109) -> 0 | M109: =Table1013[[#This Row],[School]] -> Catmose College | N109: =D109+F109+H109+J109+L109 -> 22 | O109: =MAX(C109,E109,G109,I109,K109) -> 22 | P109: =IF(Q109=1,N109,IF(Q109=0,(N109-O109),"-")) -> - | Q109: =$L$1-Table1013[Competed Count] -> 3 | R109: =IF(Q109<2,"Yes","No") -> No | S109: =AND($C$1="Y",D109>0) -> TRUE | T109: =AND($E$1="Y",F109>0) -> FALSE | U109: =AND($G$1="Y",H109>0) -> FALSE | V109: =AND($I$1="Y",J109>0) -> FALSE | W109: =AND($K$1="Y",L109>0) -> FALSE | X109: =COUNTIF(Table1013[[#This Row],[Competed 1]:[Competed 5]],"=TRUE") -> 1
A110: Finlay Cotterell | B110: Lutterworth High School | C110: 23 | D110: =IF(C110="-",0,C110) -> 23 | E110: - | F110: =IF(E110="-",0,E110) -> 0 | G110: - | H110: =IF(G110="-",0,G110) -> 0 | I110: - | J110: =IF(I110="-",0,I110) -> 0 | K110: - | L110: =IF(K110="-",0,K110) -> 0 | M110: =Table1013[[#This Row],[School]] -> Lutterworth High School | N110: =D110+F110+H110+J110+L110 -> 23 | O110: =MAX(C110,E110,G110,I110,K110) -> 23 | P110: =IF(Q110=1,N110,IF(Q110=0,(N110-O110),"-")) -> - | Q110: =$L$1-Table1013[Competed Count] -> 3 | R110: =IF(Q110<2,"Yes","No") -> No | S110: =AND($C$1="Y",D110>0) -> TRUE | T110: =AND($E$1="Y",F110>0) -> FALSE | U110: =AND($G$1="Y",H110>0) -> FALSE | V110: =AND($I$1="Y",J110>0) -> FALSE | W110: =AND($K$1="Y",L110>0) -> FALSE | X110: =COUNTIF(Table1013[[#This Row],[Competed 1]:[Competed 5]],"=TRUE") -> 1
A111: Jacob Woolverton | B111: Rawlins Academy | C111: 30 | D111: =IF(C111="-",0,C111) -> 30 | E111: - | F111: =IF(E111="-",0,E111) -> 0 | G111: - | H111: =IF(G111="-",0,G111) -> 0 | I111: - | J111: =IF(I111="-",0,I111) -> 0 | K111: - | L111: =IF(K111="-",0,K111) -> 0 | M111: =Table1013[[#This Row],[School]] -> Rawlins Academy | N111: =D111+F111+H111+J111+L111 -> 30 | O111: =MAX(C111,E111,G111,I111,K111) -> 30 | P111: =IF(Q111=1,N111,IF(Q111=0,(N111-O111),"-")) -> - | Q111: =$L$1-Table1013[Competed Count] -> 3 | R111: =IF(Q111<2,"Yes","No") -> No | S111: =AND($C$1="Y",D111>0) -> TRUE | T111: =AND($E$1="Y",F111>0) -> FALSE | U111: =AND($G$1="Y",H111>0) -> FALSE | V111: =AND($I$1="Y",J111>0) -> FALSE | W111: =AND($K$1="Y",L111>0) -> FALSE | X111: =COUNTIF(Table1013[[#This Row],[Competed 1]:[Competed 5]],"=TRUE") -> 1
A112: Joseph Carslake | B112: Rawlins Academy | C112: 34 | D112: =IF(C112="-",0,C112) -> 34 | E112: - | F112: =IF(E112="-",0,E112) -> 0 | G112: - | H112: =IF(G112="-",0,G112) -> 0 | I112: - | J112: =IF(I112="-",0,I112) -> 0 | K112: - | L112: =IF(K112="-",0,K112) -> 0 | M112: =Table1013[[#This Row],[School]] -> Rawlins Academy | N112: =D112+F112+H112+J112+L112 -> 34 | O112: =MAX(C112,E112,G112,I112,K112) -> 34 | P112: =IF(Q112=1,N112,IF(Q112=0,(N112-O112),"-")) -> - | Q112: =$L$1-Table1013[Competed Count] -> 3 | R112: =IF(Q112<2,"Yes","No") -> No | S112: =AND($C$1="Y",D112>0) -> TRUE | T112: =AND($E$1="Y",F112>0) -> FALSE | U112: =AND($G$1="Y",H112>0) -> FALSE | V112: =AND($I$1="Y",J112>0) -> FALSE | W112: =AND($K$1="Y",L112>0) -> FALSE | X112: =COUNTIF(Table1013[[#This Row],[Competed 1]:[Competed 5]],"=TRUE") -> 1
A113: Sam Onions | B113: Charnwood College | C113: 35 | D113: =IF(C113="-",0,C113) -> 35 | E113: - | F113: =IF(E113="-",0,E113) -> 0 | G113: - | H113: =IF(G113="-",0,G113) -> 0 | I113: - | J113: =IF(I113="-",0,I113) -> 0 | K113: - | L113: =IF(K113="-",0,K113) -> 0 | M113: =Table1013[[#This Row],[School]] -> Charnwood College | N113: =D113+F113+H113+J113+L113 -> 35 | O113: =MAX(C113,E113,G113,I113,K113) -> 35 | P113: =IF(Q113=1,N113,IF(Q113=0,(N113-O113),"-")) -> - | Q113: =$L$1-Table1013[Competed Count] -> 3 | R113: =IF(Q113<2,"Yes","No") -> No | S113: =AND($C$1="Y",D113>0) -> TRUE | T113: =AND($E$1="Y",F113>0) -> FALSE | U113: =AND($G$1="Y",H113>0) -> FALSE | V113: =AND($I$1="Y",J113>0) -> FALSE | W113: =AND($K$1="Y",L113>0) -> FALSE | X113: =COUNTIF(Table1013[[#This Row],[Competed 1]:[Competed 5]],"=TRUE") -> 1
A114: Dominic Magill | B114: Manor High School | C114: 38 | D114: =IF(C114="-",0,C114) -> 38 | E114: - | F114: =IF(E114="-",0,E114) -> 0 | G114: - | H114: =IF(G114="-",0,G114) -> 0 | I114: - | J114: =IF(I114="-",0,I114) -> 0 | K114: - | L114: =IF(K114="-",0,K114) -> 0 | M114: =Table1013[[#This Row],[School]] -> Manor High School | N114: =D114+F114+H114+J114+L114 -> 38 | O114: =MAX(C114,E114,G114,I114,K114) -> 38 | P114: =IF(Q114=1,N114,IF(Q114=0,(N114-O114),"-")) -> - | Q114: =$L$1-Table1013[Competed Count] -> 3 | R114: =IF(Q114<2,"Yes","No") -> No | S114: =AND($C$1="Y",D114>0) -> TRUE | T114: =AND($E$1="Y",F114>0) -> FALSE | U114: =AND($G$1="Y",H114>0) -> FALSE | V114: =AND($I$1="Y",J114>0) -> FALSE | W114: =AND($K$1="Y",L114>0) -> FALSE | X114: =COUNTIF(Table1013[[#This Row],[Competed 1]:[Competed 5]],"=TRUE") -> 1
A115: Frazer Brotherhood | B115: Charnwood College | C115: 43 | D115: =IF(C115="-",0,C115) -> 43 | E115: - | F115: =IF(E115="-",0,E115) -> 0 | G115: - | H115: =IF(G115="-",0,G115) -> 0 | I115: - | J115: =IF(I115="-",0,I115) -> 0 | K115: - | L115: =IF(K115="-",0,K115) -> 0 | M115: =Table1013[[#This Row],[School]] -> Charnwood College | N115: =D115+F115+H115+J115+L115 -> 43 | O115: =MAX(C115,E115,G115,I115,K115) -> 43 | P115: =IF(Q115=1,N115,IF(Q115=0,(N115-O115),"-")) -> - | Q115: =$L$1-Table1013[Competed Count] -> 3 | R115: =IF(Q115<2,"Yes","No") -> No | S115: =AND($C$1="Y",D115>0) -> TRUE | T115: =AND($E$1="Y",F115>0) -> FALSE | U115: =AND($G$1="Y",H115>0) -> FALSE | V115: =AND($I$1="Y",J115>0) -> FALSE | W115: =AND($K$1="Y",L115>0) -> FALSE | X115: =COUNTIF(Table1013[[#This Row],[Competed 1]:[Competed 5]],"=TRUE") -> 1
A116: Unclaimed | B116: UNCLAIMED 1 | C116: 45 | D116: =IF(C116="-",0,C116) -> 45 | E116: - | F116: =IF(E116="-",0,E116) -> 0 | G116: - | H116: =IF(G116="-",0,G116) -> 0 | I116: - | J116: =IF(I116="-",0,I116) -> 0 | K116: - | L116: =IF(K116="-",0,K116) -> 0 | M116: =Table1013[[#This Row],[School]] -> UNCLAIMED 1 | N116: =D116+F116+H116+J116+L116 -> 45 | O116: =MAX(C116,E116,G116,I116,K116) -> 45 | P116: =IF(Q116=1,N116,IF(Q116=0,(N116-O116),"-")) -> - | Q116: =$L$1-Table1013[Competed Count] -> 3 | R116: =IF(Q116<2,"Yes","No") -> No | S116: =AND($C$1="Y",D116>0) -> TRUE | T116: =AND($E$1="Y",F116>0) -> FALSE | U116: =AND($G$1="Y",H116>0) -> FALSE | V116: =AND($I$1="Y",J116>0) -> FALSE | W116: =AND($K$1="Y",L116>0) -> FALSE | X116: =COUNTIF(Table1013[[#This Row],[Competed 1]:[Competed 5]],"=TRUE") -> 1
A117: Unclaimed | B117: UNCLAIMED 2 | C117: 46 | D117: =IF(C117="-",0,C117) -> 46 | E117: - | F117: =IF(E117="-",0,E117) -> 0 | G117: - | H117: =IF(G117="-",0,G117) -> 0 | I117: - | J117: =IF(I117="-",0,I117) -> 0 | K117: - | L117: =IF(K117="-",0,K117) -> 0 | M117: =Table1013[[#This Row],[School]] -> UNCLAIMED 2 | N117: =D117+F117+H117+J117+L117 -> 46 | O117: =MAX(C117,E117,G117,I117,K117) -> 46 | P117: =IF(Q117=1,N117,IF(Q117=0,(N117-O117),"-")) -> - | Q117: =$L$1-Table1013[Competed Count] -> 3 | R117: =IF(Q117<2,"Yes","No") -> No | S117: =AND($C$1="Y",D117>0) -> TRUE | T117: =AND($E$1="Y",F117>0) -> FALSE | U117: =AND($G$1="Y",H117>0) -> FALSE | V117: =AND($I$1="Y",J117>0) -> FALSE | W117: =AND($K$1="Y",L117>0) -> FALSE | X117: =COUNTIF(Table1013[[#This Row],[Competed 1]:[Competed 5]],"=TRUE") -> 1
A118: Alex Nelson | B118: Loughborough Grammar School | C118: 47 | D118: =IF(C118="-",0,C118) -> 47 | E118: - | F118: =IF(E118="-",0,E118) -> 0 | G118: - | H118: =IF(G118="-",0,G118) -> 0 | I118: - | J118: =IF(I118="-",0,I118) -> 0 | K118: - | L118: =IF(K118="-",0,K118) -> 0 | M118: =Table1013[[#This Row],[School]] -> Loughborough Grammar School | N118: =D118+F118+H118+J118+L118 -> 47 | O118: =MAX(C118,E118,G118,I118,K118) -> 47 | P118: =IF(Q118=1,N118,IF(Q118=0,(N118-O118),"-")) -> - | Q118: =$L$1-Table1013[Competed Count] -> 3 | R118: =IF(Q118<2,"Yes","No") -> No | S118: =AND($C$1="Y",D118>0) -> TRUE | T118: =AND($E$1="Y",F118>0) -> FALSE | U118: =AND($G$1="Y",H118>0) -> FALSE | V118: =AND($I$1="Y",J118>0) -> FALSE | W118: =AND($K$1="Y",L118>0) -> FALSE | X118: =COUNTIF(Table1013[[#This Row],[Competed 1]:[Competed 5]],"=TRUE") -> 1
A119: Owen Cumberlidge | B119: Lutterworth High School | C119: 48 | D119: =IF(C119="-",0,C119) -> 48 | E119: - | F119: =IF(E119="-",0,E119) -> 0 | G119: - | H119: =IF(G119="-",0,G119) -> 0 | I119: - | J119: =IF(I119="-",0,I119) -> 0 | K119: - | L119: =IF(K119="-",0,K119) -> 0 | M119: =Table1013[[#This Row],[School]] -> Lutterworth High School | N119: =D119+F119+H119+J119+L119 -> 48 | O119: =MAX(C119,E119,G119,I119,K119) -> 48 | P119: =IF(Q119=1,N119,IF(Q119=0,(N119-O119),"-")) -> - | Q119: =$L$1-Table1013[Competed Count] -> 3 | R119: =IF(Q119<2,"Yes","No") -> No | S119: =AND($C$1="Y",D119>0) -> TRUE | T119: =AND($E$1="Y",F119>0) -> FALSE | U119: =AND($G$1="Y",H119>0) -> FALSE | V119: =AND($I$1="Y",J119>0) -> FALSE | W119: =AND($K$1="Y",L119>0) -> FALSE | X119: =COUNTIF(Table1013[[#This Row],[Competed 1]:[Competed 5]],"=TRUE") -> 1
A120: Oli Fowlds | B120: Woodbrook Vale School | C120: 50 | D120: =IF(C120="-",0,C120) -> 50 | E120: - | F120: =IF(E120="-",0,E120) -> 0 | G120: - | H120: =IF(G120="-",0,G120) -> 0 | I120: - | J120: =IF(I120="-",0,I120) -> 0 | K120: - | L120: =IF(K120="-",0,K120) -> 0 | M120: =Table1013[[#This Row],[School]] -> Woodbrook Vale School | N120: =D120+F120+H120+J120+L120 -> 50 | O120: =MAX(C120,E120,G120,I120,K120) -> 50 | P120: =IF(Q120=1,N120,IF(Q120=0,(N120-O120),"-")) -> - | Q120: =$L$1-Table1013[Competed Count] -> 3 | R120: =IF(Q120<2,"Yes","No") -> No | S120: =AND($C$1="Y",D120>0) -> TRUE | T120: =AND($E$1="Y",F120>0) -> FALSE | U120: =AND($G$1="Y",H120>0) -> FALSE | V120: =AND($I$1="Y",J120>0) -> FALSE | W120: =AND($K$1="Y",L120>0) -> FALSE | X120: =COUNTIF(Table1013[[#This Row],[Competed 1]:[Competed 5]],"=TRUE") -> 1
A121: Vincent Gosling | B121: St Martins Catholic Academy | C121: 51 | D121: =IF(C121="-",0,C121) -> 51 | E121: - | F121: =IF(E121="-",0,E121) -> 0 | G121: - | H121: =IF(G121="-",0,G121) -> 0 | I121: - | J121: =IF(I121="-",0,I121) -> 0 | K121: - | L121: =IF(K121="-",0,K121) -> 0 | M121: =Table1013[[#This Row],[School]] -> St Martins Catholic Academy | N121: =D121+F121+H121+J121+L121 -> 51 | O121: =MAX(C121,E121,G121,I121,K121) -> 51 | P121: =IF(Q121=1,N121,IF(Q121=0,(N121-O121),"-")) -> - | Q121: =$L$1-Table1013[Competed Count] -> 3 | R121: =IF(Q121<2,"Yes","No") -> No | S121: =AND($C$1="Y",D121>0) -> TRUE | T121: =AND($E$1="Y",F121>0) -> FALSE | U121: =AND($G$1="Y",H121>0) -> FALSE | V121: =AND($I$1="Y",J121>0) -> FALSE | W121: =AND($K$1="Y",L121>0) -> FALSE | X121: =COUNTIF(Table1013[[#This Row],[Competed 1]:[Competed 5]],"=TRUE") -> 1
A122: Joe Birch | B122: Uppingham CC | C122: 55 | D122: =IF(C122="-",0,C122) -> 55 | E122: - | F122: =IF(E122="-",0,E122) -> 0 | G122: - | H122: =IF(G122="-",0,G122) -> 0 | I122: - | J122: =IF(I122="-",0,I122) -> 0 | K122: - | L122: =IF(K122="-",0,K122) -> 0 | M122: =Table1013[[#This Row],[School]] -> Uppingham CC | N122: =D122+F122+H122+J122+L122 -> 55 | O122: =MAX(C122,E122,G122,I122,K122) -> 55 | P122: =IF(Q122=1,N122,IF(Q122=0,(N122-O122),"-")) -> - | Q122: =$L$1-Table1013[Competed Count] -> 3 | R122: =IF(Q122<2,"Yes","No") -> No | S122: =AND($C$1="Y",D122>0) -> TRUE | T122: =AND($E$1="Y",F122>0) -> FALSE | U122: =AND($G$1="Y",H122>0) -> FALSE | V122: =AND($I$1="Y",J122>0) -> FALSE | W122: =AND($K$1="Y",L122>0) -> FALSE | X122: =COUNTIF(Table1013[[#This Row],[Competed 1]:[Competed 5]],"=TRUE") -> 1
A123: Jack Thornton | B123: Manor High School | C123: 57 | D123: =IF(C123="-",0,C123) -> 57 | E123: - | F123: =IF(E123="-",0,E123) -> 0 | G123: - | H123: =IF(G123="-",0,G123) -> 0 | I123: - | J123: =IF(I123="-",0,I123) -> 0 | K123: - | L123: =IF(K123="-",0,K123) -> 0 | M123: =Table1013[[#This Row],[School]] -> Manor High School | N123: =D123+F123+H123+J123+L123 -> 57 | O123: =MAX(C123,E123,G123,I123,K123) -> 57 | P123: =IF(Q123=1,N123,IF(Q123=0,(N123-O123),"-")) -> - | Q123: =$L$1-Table1013[Competed Count] -> 3 | R123: =IF(Q123<2,"Yes","No") -> No | S123: =AND($C$1="Y",D123>0) -> TRUE | T123: =AND($E$1="Y",F123>0) -> FALSE | U123: =AND($G$1="Y",H123>0) -> FALSE | V123: =AND($I$1="Y",J123>0) -> FALSE | W123: =AND($K$1="Y",L123>0) -> FALSE | X123: =COUNTIF(Table1013[[#This Row],[Competed 1]:[Competed 5]],"=TRUE") -> 1
A124: George Smith | B124: John Ferneley College | C124: 59 | D124: =IF(C124="-",0,C124) -> 59 | E124: - | F124: =IF(E124="-",0,E124) -> 0 | G124: - | H124: =IF(G124="-",0,G124) -> 0 | I124: - | J124: =IF(I124="-",0,I124) -> 0 | K124: - | L124: =IF(K124="-",0,K124) -> 0 | M124: =Table1013[[#This Row],[School]] -> John Ferneley College | N124: =D124+F124+H124+J124+L124 -> 59 | O124: =MAX(C124,E124,G124,I124,K124) -> 59 | P124: =IF(Q124=1,N124,IF(Q124=0,(N124-O124),"-")) -> - | Q124: =$L$1-Table1013[Competed Count] -> 3 | R124: =IF(Q124<2,"Yes","No") -> No | S124: =AND($C$1="Y",D124>0) -> TRUE | T124: =AND($E$1="Y",F124>0) -> FALSE | U124: =AND($G$1="Y",H124>0) -> FALSE | V124: =AND($I$1="Y",J124>0) -> FALSE | W124: =AND($K$1="Y",L124>0) -> FALSE | X124: =COUNTIF(Table1013[[#This Row],[Competed 1]:[Competed 5]],"=TRUE") -> 1
A125: Matthew Lewis | B125: John Ferneley College | C125: 61 | D125: =IF(C125="-",0,C125) -> 61 | E125: - | F125: =IF(E125="-",0,E125) -> 0 | G125: - | H125: =IF(G125="-",0,G125) -> 0 | I125: - | J125: =IF(I125="-",0,I125) -> 0 | K125: - | L125: =IF(K125="-",0,K125) -> 0 | M125: =Table1013[[#This Row],[School]] -> John Ferneley College | N125: =D125+F125+H125+J125+L125 -> 61 | O125: =MAX(C125,E125,G125,I125,K125) -> 61 | P125: =IF(Q125=1,N125,IF(Q125=0,(N125-O125),"-")) -> - | Q125: =$L$1-Table1013[Competed Count] -> 3 | R125: =IF(Q125<2,"Yes","No") -> No | S125: =AND($C$1="Y",D125>0) -> TRUE | T125: =AND($E$1="Y",F125>0) -> FALSE | U125: =AND($G$1="Y",H125>0) -> FALSE | V125: =AND($I$1="Y",J125>0) -> FALSE | W125: =AND($K$1="Y",L125>0) -> FALSE | X125: =COUNTIF(Table1013[[#This Row],[Competed 1]:[Competed 5]],"=TRUE") -> 1
A126: James Wells | B126: The Martin High School | C126: 62 | D126: =IF(C126="-",0,C126) -> 62 | E126: - | F126: =IF(E126="-",0,E126) -> 0 | G126: - | H126: =IF(G126="-",0,G126) -> 0 | I126: - | J126: =IF(I126="-",0,I126) -> 0 | K126: - | L126: =IF(K126="-",0,K126) -> 0 | M126: =Table1013[[#This Row],[School]] -> The Martin High School | N126: =D126+F126+H126+J126+L126 -> 62 | O126: =MAX(C126,E126,G126,I126,K126) -> 62 | P126: =IF(Q126=1,N126,IF(Q126=0,(N126-O126),"-")) -> - | Q126: =$L$1-Table1013[Competed Count] -> 3 | R126: =IF(Q126<2,"Yes","No") -> No | S126: =AND($C$1="Y",D126>0) -> TRUE | T126: =AND($E$1="Y",F126>0) -> FALSE | U126: =AND($G$1="Y",H126>0) -> FALSE | V126: =AND($I$1="Y",J126>0) -> FALSE | W126: =AND($K$1="Y",L126>0) -> FALSE | X126: =COUNTIF(Table1013[[#This Row],[Competed 1]:[Competed 5]],"=TRUE") -> 1
A127: Tiger Gill | B127: Thomas Estley CC | C127: 66 | D127: =IF(C127="-",0,C127) -> 66 | E127: - | F127: =IF(E127="-",0,E127) -> 0 | G127: - | H127: =IF(G127="-",0,G127) -> 0 | I127: - | J127: =IF(I127="-",0,I127) -> 0 | K127: - | L127: =IF(K127="-",0,K127) -> 0 | M127: =Table1013[[#This Row],[School]] -> Thomas Estley CC | N127: =D127+F127+H127+J127+L127 -> 66 | O127: =MAX(C127,E127,G127,I127,K127) -> 66 | P127: =IF(Q127=1,N127,IF(Q127=0,(N127-O127),"-")) -> - | Q127: =$L$1-Table1013[Competed Count] -> 3 | R127: =IF(Q127<2,"Yes","No") -> No | S127: =AND($C$1="Y",D127>0) -> TRUE | T127: =AND($E$1="Y",F127>0) -> FALSE | U127: =AND($G$1="Y",H127>0) -> FALSE | V127: =AND($I$1="Y",J127>0) -> FALSE | W127: =AND($K$1="Y",L127>0) -> FALSE | X127: =COUNTIF(Table1013[[#This Row],[Competed 1]:[Competed 5]],"=TRUE") -> 1
A128: Sam Hartopp | B128: Woodbrook Vale School | C128: 69 | D128: =IF(C128="-",0,C128) -> 69 | E128: - | F128: =IF(E128="-",0,E128) -> 0 | G128: - | H128: =IF(G128="-",0,G128) -> 0 | I128: - | J128: =IF(I128="-",0,I128) -> 0 | K128: - | L128: =IF(K128="-",0,K128) -> 0 | M128: =Table1013[[#This Row],[School]] -> Woodbrook Vale School | N128: =D128+F128+H128+J128+L128 -> 69 | O128: =MAX(C128,E128,G128,I128,K128) -> 69 | P128: =IF(Q128=1,N128,IF(Q128=0,(N128-O128),"-")) -> - | Q128: =$L$1-Table1013[Competed Count] -> 3 | R128: =IF(Q128<2,"Yes","No") -> No | S128: =AND($C$1="Y",D128>0) -> TRUE | T128: =AND($E$1="Y",F128>0) -> FALSE | U128: =AND($G$1="Y",H128>0) -> FALSE | V128: =AND($I$1="Y",J128>0) -> FALSE | W128: =AND($K$1="Y",L128>0) -> FALSE | X128: =COUNTIF(Table1013[[#This Row],[Competed 1]:[Competed 5]],"=TRUE") -> 1
A129: J Day | B129: Loughborough Grammar School | C129: 70 | D129: =IF(C129="-",0,C129) -> 70 | E129: - | F129: =IF(E129="-",0,E129) -> 0 | G129: - | H129: =IF(G129="-",0,G129) -> 0 | I129: - | J129: =IF(I129="-",0,I129) -> 0 | K129: - | L129: =IF(K129="-",0,K129) -> 0 | M129: =Table1013[[#This Row],[School]] -> Loughborough Grammar School | N129: =D129+F129+H129+J129+L129 -> 70 | O129: =MAX(C129,E129,G129,I129,K129) -> 70 | P129: =IF(Q129=1,N129,IF(Q129=0,(N129-O129),"-")) -> - | Q129: =$L$1-Table1013[Competed Count] -> 3 | R129: =IF(Q129<2,"Yes","No") -> No | S129: =AND($C$1="Y",D129>0) -> TRUE | T129: =AND($E$1="Y",F129>0) -> FALSE | U129: =AND($G$1="Y",H129>0) -> FALSE | V129: =AND($I$1="Y",J129>0) -> FALSE | W129: =AND($K$1="Y",L129>0) -> FALSE | X129: =COUNTIF(Table1013[[#This Row],[Competed 1]:[Competed 5]],"=TRUE") -> 1
A130: A Marsh | B130: Loughborough Grammar School | C130: 71 | D130: =IF(C130="-",0,C130) -> 71 | E130: - | F130: =IF(E130="-",0,E130) -> 0 | G130: - | H130: =IF(G130="-",0,G130) -> 0 | I130: - | J130: =IF(I130="-",0,I130) -> 0 | K130: - | L130: =IF(K130="-",0,K130) -> 0 | M130: =Table1013[[#This Row],[School]] -> Loughborough Grammar School | N130: =D130+F130+H130+J130+L130 -> 71 | O130: =MAX(C130,E130,G130,I130,K130) -> 71 | P130: =IF(Q130=1,N130,IF(Q130=0,(N130-O130),"-")) -> - | Q130: =$L$1-Table1013[Competed Count] -> 3 | R130: =IF(Q130<2,"Yes","No") -> No | S130: =AND($C$1="Y",D130>0) -> TRUE | T130: =AND($E$1="Y",F130>0) -> FALSE | U130: =AND($G$1="Y",H130>0) -> FALSE | V130: =AND($I$1="Y",J130>0) -> FALSE | W130: =AND($K$1="Y",L130>0) -> FALSE | X130: =COUNTIF(Table1013[[#This Row],[Competed 1]:[Competed 5]],"=TRUE") -> 1
A131: Finlay Holdsworth | B131: John Ferneley College | C131: 73 | D131: =IF(C131="-",0,C131) -> 73 | E131: - | F131: =IF(E131="-",0,E131) -> 0 | G131: - | H131: =IF(G131="-",0,G131) -> 0 | I131: - | J131: =IF(I131="-",0,I131) -> 0 | K131: - | L131: =IF(K131="-",0,K131) -> 0 | M131: =Table1013[[#This Row],[School]] -> John Ferneley College | N131: =D131+F131+H131+J131+L131 -> 73 | O131: =MAX(C131,E131,G131,I131,K131) -> 73 | P131: =IF(Q131=1,N131,IF(Q131=0,(N131-O131),"-")) -> - | Q131: =$L$1-Table1013[Competed Count] -> 3 | R131: =IF(Q131<2,"Yes","No") -> No | S131: =AND($C$1="Y",D131>0) -> TRUE | T131: =AND($E$1="Y",F131>0) -> FALSE | U131: =AND($G$1="Y",H131>0) -> FALSE | V131: =AND($I$1="Y",J131>0) -> FALSE | W131: =AND($K$1="Y",L131>0) -> FALSE | X131: =COUNTIF(Table1013[[#This Row],[Competed 1]:[Competed 5]],"=TRUE") -> 1
B132: - | C132: - | D132: =IF(C132="-",0,C132) -> 0 | E132: - | F132: =IF(E132="-",0,E132) -> 0 | G132: - | H132: =IF(G132="-",0,G132) -> 0 | I132: - | J132: =IF(I132="-",0,I132) -> 0 | K132: - | L132: =IF(K132="-",0,K132) -> 0 | M132: =Table1013[[#This Row],[School]] -> - | N132: =D132+F132+H132+J132+L132 -> 0 | O132: =MAX(C132,E132,G132,I132,K132) -> 0 | P132: =IF(Q132=1,N132,IF(Q132=0,(N132-O132),"-")) -> - | Q132: =$L$1-Table1013[Competed Count] -> 4 | R132: =IF(Q132<2,"Yes","No") -> No | S132: =AND($C$1="Y",D132>0) -> FALSE | T132: =AND($E$1="Y",F132>0) -> FALSE | U132: =AND($G$1="Y",H132>0) -> FALSE | V132: =AND($I$1="Y",J132>0) -> FALSE | W132: =AND($K$1="Y",L132>0) -> FALSE | X132: =COUNTIF(Table1013[[#This Row],[Competed 1]:[Competed 5]],"=TRUE") -> 0
B133: - | C133: - | D133: =IF(C133="-",0,C133) -> 0 | E133: - | F133: =IF(E133="-",0,E133) -> 0 | G133: - | H133: =IF(G133="-",0,G133) -> 0 | I133: - | J133: =IF(I133="-",0,I133) -> 0 | K133: - | L133: =IF(K133="-",0,K133) -> 0 | M133: =Table1013[[#This Row],[School]] -> - | N133: =D133+F133+H133+J133+L133 -> 0 | O133: =MAX(C133,E133,G133,I133,K133) -> 0 | P133: =IF(Q133=1,N133,IF(Q133=0,(N133-O133),"-")) -> - | Q133: =$L$1-Table1013[Competed Count] -> 4 | R133: =IF(Q133<2,"Yes","No") -> No | S133: =AND($C$1="Y",D133>0) -> FALSE | T133: =AND($E$1="Y",F133>0) -> FALSE | U133: =AND($G$1="Y",H133>0) -> FALSE | V133: =AND($I$1="Y",J133>0) -> FALSE | W133: =AND($K$1="Y",L133>0) -> FALSE | X133: =COUNTIF(Table1013[[#This Row],[Competed 1]:[Competed 5]],"=TRUE") -> 0
B134: - | C134: - | D134: =IF(C134="-",0,C134) -> 0 | E134: - | F134: =IF(E134="-",0,E134) -> 0 | G134: - | H134: =IF(G134="-",0,G134) -> 0 | I134: - | J134: =IF(I134="-",0,I134) -> 0 | K134: - | L134: =IF(K134="-",0,K134) -> 0 | M134: =Table1013[[#This Row],[School]] -> - | N134: =D134+F134+H134+J134+L134 -> 0 | O134: =MAX(C134,E134,G134,I134,K134) -> 0 | P134: =IF(Q134=1,N134,IF(Q134=0,(N134-O134),"-")) -> - | Q134: =$L$1-Table1013[Competed Count] -> 4 | R134: =IF(Q134<2,"Yes","No") -> No | S134: =AND($C$1="Y",D134>0) -> FALSE | T134: =AND($E$1="Y",F134>0) -> FALSE | U134: =AND($G$1="Y",H134>0) -> FALSE | V134: =AND($I$1="Y",J134>0) -> FALSE | W134: =AND($K$1="Y",L134>0) -> FALSE | X134: =COUNTIF(Table1013[[#This Row],[Competed 1]:[Competed 5]],"=TRUE") -> 0
B135: - | C135: - | D135: =IF(C135="-",0,C135) -> 0 | E135: - | F135: =IF(E135="-",0,E135) -> 0 | G135: - | H135: =IF(G135="-",0,G135) -> 0 | I135: - | J135: =IF(I135="-",0,I135) -> 0 | K135: - | L135: =IF(K135="-",0,K135) -> 0 | M135: =Table1013[[#This Row],[School]] -> - | N135: =D135+F135+H135+J135+L135 -> 0 | O135: =MAX(C135,E135,G135,I135,K135) -> 0 | P135: =IF(Q135=1,N135,IF(Q135=0,(N135-O135),"-")) -> - | Q135: =$L$1-Table1013[Competed Count] -> 4 | R135: =IF(Q135<2,"Yes","No") -> No | S135: =AND($C$1="Y",D135>0) -> FALSE | T135: =AND($E$1="Y",F135>0) -> FALSE | U135: =AND($G$1="Y",H135>0) -> FALSE | V135: =AND($I$1="Y",J135>0) -> FALSE | W135: =AND($K$1="Y",L135>0) -> FALSE | X135: =COUNTIF(Table1013[[#This Row],[Competed 1]:[Competed 5]],"=TRUE") -> 0
B136: - | C136: - | D136: =IF(C136="-",0,C136) -> 0 | E136: - | F136: =IF(E136="-",0,E136) -> 0 | G136: - | H136: =IF(G136="-",0,G136) -> 0 | I136: - | J136: =IF(I136="-",0,I136) -> 0 | K136: - | L136: =IF(K136="-",0,K136) -> 0 | M136: =Table1013[[#This Row],[School]] -> - | N136: =D136+F136+H136+J136+L136 -> 0 | O136: =MAX(C136,E136,G136,I136,K136) -> 0 | P136: =IF(Q136=1,N136,IF(Q136=0,(N136-O136),"-")) -> - | Q136: =$L$1-Table1013[Competed Count] -> 4 | R136: =IF(Q136<2,"Yes","No") -> No | S136: =AND($C$1="Y",D136>0) -> FALSE | T136: =AND($E$1="Y",F136>0) -> FALSE | U136: =AND($G$1="Y",H136>0) -> FALSE | V136: =AND($I$1="Y",J136>0) -> FALSE | W136: =AND($K$1="Y",L136>0) -> FALSE | X136: =COUNTIF(Table1013[[#This Row],[Competed 1]:[Competed 5]],"=TRUE") -> 0
B137: - | C137: - | D137: =IF(C137="-",0,C137) -> 0 | E137: - | F137: =IF(E137="-",0,E137) -> 0 | G137: - | H137: =IF(G137="-",0,G137) -> 0 | I137: - | J137: =IF(I137="-",0,I137) -> 0 | K137: - | L137: =IF(K137="-",0,K137) -> 0 | M137: =Table1013[[#This Row],[School]] -> - | N137: =D137+F137+H137+J137+L137 -> 0 | O137: =MAX(C137,E137,G137,I137,K137) -> 0 | P137: =IF(Q137=1,N137,IF(Q137=0,(N137-O137),"-")) -> - | Q137: =$L$1-Table1013[Competed Count] -> 4 | R137: =IF(Q137<2,"Yes","No") -> No | S137: =AND($C$1="Y",D137>0) -> FALSE | T137: =AND($E$1="Y",F137>0) -> FALSE | U137: =AND($G$1="Y",H137>0) -> FALSE | V137: =AND($I$1="Y",J137>0) -> FALSE | W137: =AND($K$1="Y",L137>0) -> FALSE | X137: =COUNTIF(Table1013[[#This Row],[Competed 1]:[Competed 5]],"=TRUE") -> 0
B138: - | C138: - | D138: =IF(C138="-",0,C138) -> 0 | E138: - | F138: =IF(E138="-",0,E138) -> 0 | G138: - | H138: =IF(G138="-",0,G138) -> 0 | I138: - | J138: =IF(I138="-",0,I138) -> 0 | K138: - | L138: =IF(K138="-",0,K138) -> 0 | M138: =Table1013[[#This Row],[School]] -> - | N138: =D138+F138+H138+J138+L138 -> 0 | O138: =MAX(C138,E138,G138,I138,K138) -> 0 | P138: =IF(Q138=1,N138,IF(Q138=0,(N138-O138),"-")) -> - | Q138: =$L$1-Table1013[Competed Count] -> 4 | R138: =IF(Q138<2,"Yes","No") -> No | S138: =AND($C$1="Y",D138>0) -> FALSE | T138: =AND($E$1="Y",F138>0) -> FALSE | U138: =AND($G$1="Y",H138>0) -> FALSE | V138: =AND($I$1="Y",J138>0) -> FALSE | W138: =AND($K$1="Y",L138>0) -> FALSE | X138: =COUNTIF(Table1013[[#This Row],[Competed 1]:[Competed 5]],"=TRUE") -> 0
B139: - | C139: - | D139: =IF(C139="-",0,C139) -> 0 | E139: - | F139: =IF(E139="-",0,E139) -> 0 | G139: - | H139: =IF(G139="-",0,G139) -> 0 | I139: - | J139: =IF(I139="-",0,I139) -> 0 | K139: - | L139: =IF(K139="-",0,K139) -> 0 | M139: =Table1013[[#This Row],[School]] -> - | N139: =D139+F139+H139+J139+L139 -> 0 | O139: =MAX(C139,E139,G139,I139,K139) -> 0 | P139: =IF(Q139=1,N139,IF(Q139=0,(N139-O139),"-")) -> - | Q139: =$L$1-Table1013[Competed Count] -> 4 | R139: =IF(Q139<2,"Yes","No") -> No | S139: =AND($C$1="Y",D139>0) -> FALSE | T139: =AND($E$1="Y",F139>0) -> FALSE | U139: =AND($G$1="Y",H139>0) -> FALSE | V139: =AND($I$1="Y",J139>0) -> FALSE | W139: =AND($K$1="Y",L139>0) -> FALSE | X139: =COUNTIF(Table1013[[#This Row],[Competed 1]:[Competed 5]],"=TRUE") -> 0
B140: - | C140: - | D140: =IF(C140="-",0,C140) -> 0 | E140: - | F140: =IF(E140="-",0,E140) -> 0 | G140: - | H140: =IF(G140="-",0,G140) -> 0 | I140: - | J140: =IF(I140="-",0,I140) -> 0 | K140: - | L140: =IF(K140="-",0,K140) -> 0 | M140: =Table1013[[#This Row],[School]] -> - | N140: =D140+F140+H140+J140+L140 -> 0 | O140: =MAX(C140,E140,G140,I140,K140) -> 0 | P140: =IF(Q140=1,N140,IF(Q140=0,(N140-O140),"-")) -> - | Q140: =$L$1-Table1013[Competed Count] -> 4 | R140: =IF(Q140<2,"Yes","No") -> No | S140: =AND($C$1="Y",D140>0) -> FALSE | T140: =AND($E$1="Y",F140>0) -> FALSE | U140: =AND($G$1="Y",H140>0) -> FALSE | V140: =AND($I$1="Y",J140>0) -> FALSE | W140: =AND($K$1="Y",L140>0) -> FALSE | X140: =COUNTIF(Table1013[[#This Row],[Competed 1]:[Competed 5]],"=TRUE") -> 0
B141: - | C141: - | D141: =IF(C141="-",0,C141) -> 0 | E141: - | F141: =IF(E141="-",0,E141) -> 0 | G141: - | H141: =IF(G141="-",0,G141) -> 0 | I141: - | J141: =IF(I141="-",0,I141) -> 0 | K141: - | L141: =IF(K141="-",0,K141) -> 0 | M141: =Table1013[[#This Row],[School]] -> - | N141: =D141+F141+H141+J141+L141 -> 0 | O141: =MAX(C141,E141,G141,I141,K141) -> 0 | P141: =IF(Q141=1,N141,IF(Q141=0,(N141-O141),"-")) -> - | Q141: =$L$1-Table1013[Competed Count] -> 4 | R141: =IF(Q141<2,"Yes","No") -> No | S141: =AND($C$1="Y",D141>0) -> FALSE | T141: =AND($E$1="Y",F141>0) -> FALSE | U141: =AND($G$1="Y",H141>0) -> FALSE | V141: =AND($I$1="Y",J141>0) -> FALSE | W141: =AND($K$1="Y",L141>0) -> FALSE | X141: =COUNTIF(Table1013[[#This Row],[Competed 1]:[Competed 5]],"=TRUE") -> 0
B142: - | C142: - | D142: =IF(C142="-",0,C142) -> 0 | E142: - | F142: =IF(E142="-",0,E142) -> 0 | G142: - | H142: =IF(G142="-",0,G142) -> 0 | I142: - | J142: =IF(I142="-",0,I142) -> 0 | K142: - | L142: =IF(K142="-",0,K142) -> 0 | M142: =Table1013[[#This Row],[School]] -> - | N142: =D142+F142+H142+J142+L142 -> 0 | O142: =MAX(C142,E142,G142,I142,K142) -> 0 | P142: =IF(Q142=1,N142,IF(Q142=0,(N142-O142),"-")) -> - | Q142: =$L$1-Table1013[Competed Count] -> 4 | R142: =IF(Q142<2,"Yes","No") -> No | S142: =AND($C$1="Y",D142>0) -> FALSE | T142: =AND($E$1="Y",F142>0) -> FALSE | U142: =AND($G$1="Y",H142>0) -> FALSE | V142: =AND($I$1="Y",J142>0) -> FALSE | W142: =AND($K$1="Y",L142>0) -> FALSE | X142: =COUNTIF(Table1013[[#This Row],[Competed 1]:[Competed 5]],"=TRUE") -> 0
B143: - | C143: - | D143: =IF(C143="-",0,C143) -> 0 | E143: - | F143: =IF(E143="-",0,E143) -> 0 | G143: - | H143: =IF(G143="-",0,G143) -> 0 | I143: - | J143: =IF(I143="-",0,I143) -> 0 | K143: - | L143: =IF(K143="-",0,K143) -> 0 | M143: =Table1013[[#This Row],[School]] -> - | N143: =D143+F143+H143+J143+L143 -> 0 | O143: =MAX(C143,E143,G143,I143,K143) -> 0 | P143: =IF(Q143=1,N143,IF(Q143=0,(N143-O143),"-")) -> - | Q143: =$L$1-Table1013[Competed Count] -> 4 | R143: =IF(Q143<2,"Yes","No") -> No | S143: =AND($C$1="Y",D143>0) -> FALSE | T143: =AND($E$1="Y",F143>0) -> FALSE | U143: =AND($G$1="Y",H143>0) -> FALSE | V143: =AND($I$1="Y",J143>0) -> FALSE | W143: =AND($K$1="Y",L143>0) -> FALSE | X143: =COUNTIF(Table1013[[#This Row],[Competed 1]:[Competed 5]],"=TRUE") -> 0
B144: - | C144: - | D144: =IF(C144="-",0,C144) -> 0 | E144: - | F144: =IF(E144="-",0,E144) -> 0 | G144: - | H144: =IF(G144="-",0,G144) -> 0 | I144: - | J144: =IF(I144="-",0,I144) -> 0 | K144: - | L144: =IF(K144="-",0,K144) -> 0 | M144: =Table1013[[#This Row],[School]] -> - | N144: =D144+F144+H144+J144+L144 -> 0 | O144: =MAX(C144,E144,G144,I144,K144) -> 0 | P144: =IF(Q144=1,N144,IF(Q144=0,(N144-O144),"-")) -> - | Q144: =$L$1-Table1013[Competed Count] -> 4 | R144: =IF(Q144<2,"Yes","No") -> No | S144: =AND($C$1="Y",D144>0) -> FALSE | T144: =AND($E$1="Y",F144>0) -> FALSE | U144: =AND($G$1="Y",H144>0) -> FALSE | V144: =AND($I$1="Y",J144>0) -> FALSE | W144: =AND($K$1="Y",L144>0) -> FALSE | X144: =COUNTIF(Table1013[[#This Row],[Competed 1]:[Competed 5]],"=TRUE") -> 0
B145: - | C145: - | D145: =IF(C145="-",0,C145) -> 0 | E145: - | F145: =IF(E145="-",0,E145) -> 0 | G145: - | H145: =IF(G145="-",0,G145) -> 0 | I145: - | J145: =IF(I145="-",0,I145) -> 0 | K145: - | L145: =IF(K145="-",0,K145) -> 0 | M145: =Table1013[[#This Row],[School]] -> - | N145: =D145+F145+H145+J145+L145 -> 0 | O145: =MAX(C145,E145,G145,I145,K145) -> 0 | P145: =IF(Q145=1,N145,IF(Q145=0,(N145-O145),"-")) -> - | Q145: =$L$1-Table1013[Competed Count] -> 4 | R145: =IF(Q145<2,"Yes","No") -> No | S145: =AND($C$1="Y",D145>0) -> FALSE | T145: =AND($E$1="Y",F145>0) -> FALSE | U145: =AND($G$1="Y",H145>0) -> FALSE | V145: =AND($I$1="Y",J145>0) -> FALSE | W145: =AND($K$1="Y",L145>0) -> FALSE | X145: =COUNTIF(Table1013[[#This Row],[Competed 1]:[Competed 5]],"=TRUE") -> 0
B146: - | C146: - | D146: =IF(C146="-",0,C146) -> 0 | E146: - | F146: =IF(E146="-",0,E146) -> 0 | G146: - | H146: =IF(G146="-",0,G146) -> 0 | I146: - | J146: =IF(I146="-",0,I146) -> 0 | K146: - | L146: =IF(K146="-",0,K146) -> 0 | M146: =Table1013[[#This Row],[School]] -> - | N146: =D146+F146+H146+J146+L146 -> 0 | O146: =MAX(C146,E146,G146,I146,K146) -> 0 | P146: =IF(Q146=1,N146,IF(Q146=0,(N146-O146),"-")) -> - | Q146: =$L$1-Table1013[Competed Count] -> 4 | R146: =IF(Q146<2,"Yes","No") -> No | S146: =AND($C$1="Y",D146>0) -> FALSE | T146: =AND($E$1="Y",F146>0) -> FALSE | U146: =AND($G$1="Y",H146>0) -> FALSE | V146: =AND($I$1="Y",J146>0) -> FALSE | W146: =AND($K$1="Y",L146>0) -> FALSE | X146: =COUNTIF(Table1013[[#This Row],[Competed 1]:[Competed 5]],"=TRUE") -> 0
B147: - | C147: - | D147: =IF(C147="-",0,C147) -> 0 | E147: - | F147: =IF(E147="-",0,E147) -> 0 | G147: - | H147: =IF(G147="-",0,G147) -> 0 | I147: - | J147: =IF(I147="-",0,I147) -> 0 | K147: - | L147: =IF(K147="-",0,K147) -> 0 | M147: =Table1013[[#This Row],[School]] -> - | N147: =D147+F147+H147+J147+L147 -> 0 | O147: =MAX(C147,E147,G147,I147,K147) -> 0 | P147: =IF(Q147=1,N147,IF(Q147=0,(N147-O147),"-")) -> - | Q147: =$L$1-Table1013[Competed Count] -> 4 | R147: =IF(Q147<2,"Yes","No") -> No | S147: =AND($C$1="Y",D147>0) -> FALSE | T147: =AND($E$1="Y",F147>0) -> FALSE | U147: =AND($G$1="Y",H147>0) -> FALSE | V147: =AND($I$1="Y",J147>0) -> FALSE | W147: =AND($K$1="Y",L147>0) -> FALSE | X147: =COUNTIF(Table1013[[#This Row],[Competed 1]:[Competed 5]],"=TRUE") -> 0
B148: - | C148: - | D148: =IF(C148="-",0,C148) -> 0 | E148: - | F148: =IF(E148="-",0,E148) -> 0 | G148: - | H148: =IF(G148="-",0,G148) -> 0 | I148: - | J148: =IF(I148="-",0,I148) -> 0 | K148: - | L148: =IF(K148="-",0,K148) -> 0 | M148: =Table1013[[#This Row],[School]] -> - | N148: =D148+F148+H148+J148+L148 -> 0 | O148: =MAX(C148,E148,G148,I148,K148) -> 0 | P148: =IF(Q148=1,N148,IF(Q148=0,(N148-O148),"-")) -> - | Q148: =$L$1-Table1013[Competed Count] -> 4 | R148: =IF(Q148<2,"Yes","No") -> No | S148: =AND($C$1="Y",D148>0) -> FALSE | T148: =AND($E$1="Y",F148>0) -> FALSE | U148: =AND($G$1="Y",H148>0) -> FALSE | V148: =AND($I$1="Y",J148>0) -> FALSE | W148: =AND($K$1="Y",L148>0) -> FALSE | X148: =COUNTIF(Table1013[[#This Row],[Competed 1]:[Competed 5]],"=TRUE") -> 0
B149: - | C149: - | D149: =IF(C149="-",0,C149) -> 0 | E149: - | F149: =IF(E149="-",0,E149) -> 0 | G149: - | H149: =IF(G149="-",0,G149) -> 0 | I149: - | J149: =IF(I149="-",0,I149) -> 0 | K149: - | L149: =IF(K149="-",0,K149) -> 0 | M149: =Table1013[[#This Row],[School]] -> - | N149: =D149+F149+H149+J149+L149 -> 0 | O149: =MAX(C149,E149,G149,I149,K149) -> 0 | P149: =IF(Q149=1,N149,IF(Q149=0,(N149-O149),"-")) -> - | Q149: =$L$1-Table1013[Competed Count] -> 4 | R149: =IF(Q149<2,"Yes","No") -> No | S149: =AND($C$1="Y",D149>0) -> FALSE | T149: =AND($E$1="Y",F149>0) -> FALSE | U149: =AND($G$1="Y",H149>0) -> FALSE | V149: =AND($I$1="Y",J149>0) -> FALSE | W149: =AND($K$1="Y",L149>0) -> FALSE | X149: =COUNTIF(Table1013[[#This Row],[Competed 1]:[Competed 5]],"=TRUE") -> 0

Sheet JG
A1: Total Number of Runners | B1: Race Complete (Y/N) | C1: =Y7G!C1 -> Y | E1: =Y7G!E1 -> Y | G1: =Y7G!G1 -> Y | I1: =Y7G!I1 -> Y | K1: =Y7G!K1 -> N | L1: =COUNTIF(C1:K1,"=Y") -> 4 | R1: Total Eligible for League | T1: =IF(K1="Y",1,0) -> 0 | V1: =SUM(S1:T1) -> 0
A2: =COUNTA(A5:A300) -> 89 | B2: No of Finishers | C2: 79 | D2: =MAX(D5:D150) -> 79 | E2: 51 | F2: =MAX(F5:F150) -> 51 | G2: 50 | H2: =MAX(G5:G150) -> 50 | I2: 43 | J2: =MAX(I5:I150) -> 43 | L2: =MAX(K5:K150) -> 0 | R2: =COUNTIF(R5:R200,"Yes") -> 44
A3: Junior Girls | B3: Number of results recorded | C3: =COUNTIF(C5:C150,">0") -> 79 | E3: =COUNTIF(F5:F150,">0") -> 51 | G3: 50 | I3: =COUNTIF(J5:J150,">0") -> 43 | K3: 0
A4: Name | B4: School | C4: Race 1 | D4: Normalised result -1 | E4: Race 2 | F4: Normalised result -2 | G4: Race 3 | H4: Normalised result -3 | I4: Race 4 | J4: Normalised result -4 | K4: Race 5 | L4: Normalised result -5 | M4: School Duplicate | N4: Total (All Races) | O4: Lowest Place Finish | P4: Final Total | Q4: League contender? (No. of races - missed) | R4: Eligible For League Title | S4: Competed 1 | T4: Competed 2 | U4: Competed 3 | V4: Competed 4 | W4: Competed 5 | X4: Competed Count
A5: Katie M Parker | B5: Brookvale High School | C5: 3 | D5: =IF(C5="-",0,C5) -> 3 | E5: - | F5: =IF(E5="-",0,E5) -> 0 | G5: 2 | H5: =IF(G5="-",0,G5) -> 2 | I5: 1 | J5: =IF(I5="-",0,I5) -> 1 | K5: - | L5: =IF(K5="-",0,K5) -> 0 | M5: =Table1015[[#This Row],[School]] -> Brookvale High School | N5: =D5+F5+H5+J5+L5 -> 6 | O5: =MAX(C5,E5,G5,I5,K5) -> 3 | P5: =IF(Q5=1,N5,IF(Q5=0,(N5-O5),"-")) -> 6 | Q5: =$L$1-Table1015[Competed Count] -> 1 | R5: =IF(Q5<2,"Yes","No") -> Yes | S5: =AND($C$1="Y",D5>0) -> TRUE | T5: =AND($E$1="Y",F5>0) -> FALSE | U5: =AND($G$1="Y",H5>0) -> TRUE | V5: =AND($I$1="Y",J5>0) -> TRUE | W5: =AND($K$1="Y",L5>0) -> FALSE | X5: =COUNTIF(Table1015[[#This Row],[Competed 1]:[Competed 5]],"=TRUE") -> 3
A6: Henrietta Magill | B6: Manor High School | C6: 6 | D6: =IF(C6="-",0,C6) -> 6 | E6: - | F6: =IF(E6="-",0,E6) -> 0 | G6: 5 | H6: =IF(G6="-",0,G6) -> 5 | I6: 2 | J6: =IF(I6="-",0,I6) -> 2 | K6: - | L6: =IF(K6="-",0,K6) -> 0 | M6: =Table1015[[#This Row],[School]] -> Manor High School | N6: =D6+F6+H6+J6+L6 -> 13 | O6: =MAX(C6,E6,G6,I6,K6) -> 6 | P6: =IF(Q6=1,N6,IF(Q6=0,(N6-O6),"-")) -> 13 | Q6: =$L$1-Table1015[Competed Count] -> 1 | R6: =IF(Q6<2,"Yes","No") -> Yes | S6: =AND($C$1="Y",D6>0) -> TRUE | T6: =AND($E$1="Y",F6>0) -> FALSE | U6: =AND($G$1="Y",H6>0) -> TRUE | V6: =AND($I$1="Y",J6>0) -> TRUE | W6: =AND($K$1="Y",L6>0) -> FALSE | X6: =COUNTIF(Table1015[[#This Row],[Competed 1]:[Competed 5]],"=TRUE") -> 3
A7: Hollie Gamble | B7: Brookvale High School | C7: 4 | D7: =IF(C7="-",0,C7) -> 4 | E7: 2 | F7: =IF(E7="-",0,E7) -> 2 | G7: 4 | H7: =IF(G7="-",0,G7) -> 4 | I7: 3 | J7: =IF(I7="-",0,I7) -> 3 | K7: - | L7: =IF(K7="-",0,K7) -> 0 | M7: =Table1015[[#This Row],[School]] -> Brookvale High School | N7: =D7+F7+H7+J7+L7 -> 13 | O7: =MAX(C7,E7,G7,I7,K7) -> 4 | P7: =IF(Q7=1,N7,IF(Q7=0,(N7-O7),"-")) -> 9 | Q7: =$L$1-Table1015[Competed Count] -> 0 | R7: =IF(Q7<2,"Yes","No") -> Yes | S7: =AND($C$1="Y",D7>0) -> TRUE | T7: =AND($E$1="Y",F7>0) -> TRUE | U7: =AND($G$1="Y",H7>0) -> TRUE | V7: =AND($I$1="Y",J7>0) -> TRUE | W7: =AND($K$1="Y",L7>0) -> FALSE | X7: =COUNTIF(Table1015[[#This Row],[Competed 1]:[Competed 5]],"=TRUE") -> 4
A8: Rosie Timlock | B8: The Martin High School | C8: 7 | D8: =IF(C8="-",0,C8) -> 7 | E8: - | F8: =IF(E8="-",0,E8) -> 0 | G8: 6 | H8: =IF(G8="-",0,G8) -> 6 | I8: 4 | J8: =IF(I8="-",0,I8) -> 4 | K8: - | L8: =IF(K8="-",0,K8) -> 0 | M8: =Table1015[[#This Row],[School]] -> The Martin High School | N8: =D8+F8+H8+J8+L8 -> 17 | O8: =MAX(C8,E8,G8,I8,K8) -> 7 | P8: =IF(Q8=1,N8,IF(Q8=0,(N8-O8),"-")) -> 17 | Q8: =$L$1-Table1015[Competed Count] -> 1 | R8: =IF(Q8<2,"Yes","No") -> Yes | S8: =AND($C$1="Y",D8>0) -> TRUE | T8: =AND($E$1="Y",F8>0) -> FALSE | U8: =AND($G$1="Y",H8>0) -> TRUE | V8: =AND($I$1="Y",J8>0) -> TRUE | W8: =AND($K$1="Y",L8>0) -> FALSE | X8: =COUNTIF(Table1015[[#This Row],[Competed 1]:[Competed 5]],"=TRUE") -> 3
A9: Lexie McLoughlin | B9: The Cedars Academy | C9: 9 | D9: =IF(C9="-",0,C9) -> 9 | E9: - | F9: =IF(E9="-",0,E9) -> 0 | G9: 11 | H9: =IF(G9="-",0,G9) -> 11 | I9: 5 | J9: =IF(I9="-",0,I9) -> 5 | K9: - | L9: =IF(K9="-",0,K9) -> 0 | M9: =Table1015[[#This Row],[School]] -> The Cedars Academy | N9: =D9+F9+H9+J9+L9 -> 25 | O9: =MAX(C9,E9,G9,I9,K9) -> 11 | P9: =IF(Q9=1,N9,IF(Q9=0,(N9-O9),"-")) -> 25 | Q9: =$L$1-Table1015[Competed Count] -> 1 | R9: =IF(Q9<2,"Yes","No") -> Yes | S9: =AND($C$1="Y",D9>0) -> TRUE | T9: =AND($E$1="Y",F9>0) -> FALSE | U9: =AND($G$1="Y",H9>0) -> TRUE | V9: =AND($I$1="Y",J9>0) -> TRUE | W9: =AND($K$1="Y",L9>0) -> FALSE | X9: =COUNTIF(Table1015[[#This Row],[Competed 1]:[Competed 5]],"=TRUE") -> 3
A10: Rachel Nealon | B10: Brookvale High School | C10: 2 | D10: =IF(C10="-",0,C10) -> 2 | E10: 1 | F10: =IF(E10="-",0,E10) -> 1 | G10: 3 | H10: =IF(G10="-",0,G10) -> 3 | I10: 6 | J10: =IF(I10="-",0,I10) -> 6 | K10: - | L10: =IF(K10="-",0,K10) -> 0 | M10: =Table1015[[#This Row],[School]] -> Brookvale High School | N10: =D10+F10+H10+J10+L10 -> 12 | O10: =MAX(C10,E10,G10,I10,K10) -> 6 | P10: =IF(Q10=1,N10,IF(Q10=0,(N10-O10),"-")) -> 6 | Q10: =$L$1-Table1015[Competed Count] -> 0 | R10: =IF(Q10<2,"Yes","No") -> Yes | S10: =AND($C$1="Y",D10>0) -> TRUE | T10: =AND($E$1="Y",F10>0) -> TRUE | U10: =AND($G$1="Y",H10>0) -> TRUE | V10: =AND($I$1="Y",J10>0) -> TRUE | W10: =AND($K$1="Y",L10>0) -> FALSE | X10: =COUNTIF(Table1015[[#This Row],[Competed 1]:[Competed 5]],"=TRUE") -> 4
A11: Maya Stokes | B11: Castle Rock High School | C11: 5 | D11: =IF(C11="-",0,C11) -> 5 | E11: - | F11: =IF(E11="-",0,E11) -> 0 | G11: 8 | H11: =IF(G11="-",0,G11) -> 8 | I11: 7 | J11: =IF(I11="-",0,I11) -> 7 | K11: - | L11: =IF(K11="-",0,K11) -> 0 | M11: =Table1015[[#This Row],[School]] -> Castle Rock High School | N11: =D11+F11+H11+J11+L11 -> 20 | O11: =MAX(C11,E11,G11,I11,K11) -> 8 | P11: =IF(Q11=1,N11,IF(Q11=0,(N11-O11),"-")) -> 20 | Q11: =$L$1-Table1015[Competed Count] -> 1 | R11: =IF(Q11<2,"Yes","No") -> Yes | S11: =AND($C$1="Y",D11>0) -> TRUE | T11: =AND($E$1="Y",F11>0) -> FALSE | U11: =AND($G$1="Y",H11>0) -> TRUE | V11: =AND($I$1="Y",J11>0) -> TRUE | W11: =AND($K$1="Y",L11>0) -> FALSE | X11: =COUNTIF(Table1015[[#This Row],[Competed 1]:[Competed 5]],"=TRUE") -> 3
A12: Sophie Thorpe | B12: English Martyrs Catholic School | C12: 10 | D12: =IF(C12="-",0,C12) -> 10 | E12: - | F12: =IF(E12="-",0,E12) -> 0 | G12: 7 | H12: =IF(G12="-",0,G12) -> 7 | I12: 8 | J12: =IF(I12="-",0,I12) -> 8 | K12: - | L12: =IF(K12="-",0,K12) -> 0 | M12: =Table1015[[#This Row],[School]] -> English Martyrs Catholic School | N12: =D12+F12+H12+J12+L12 -> 25 | O12: =MAX(C12,E12,G12,I12,K12) -> 10 | P12: =IF(Q12=1,N12,IF(Q12=0,(N12-O12),"-")) -> 25 | Q12: =$L$1-Table1015[Competed Count] -> 1 | R12: =IF(Q12<2,"Yes","No") -> Yes | S12: =AND($C$1="Y",D12>0) -> TRUE | T12: =AND($E$1="Y",F12>0) -> FALSE | U12: =AND($G$1="Y",H12>0) -> TRUE | V12: =AND($I$1="Y",J12>0) -> TRUE | W12: =AND($K$1="Y",L12>0) -> FALSE | X12: =COUNTIF(Table1015[[#This Row],[Competed 1]:[Competed 5]],"=TRUE") -> 3
A13: Olivia Bonshor | B13: The Cedars Academy | C13: 8 | D13: =IF(C13="-",0,C13) -> 8 | E13: - | F13: =IF(E13="-",0,E13) -> 0 | G13: 9 | H13: =IF(G13="-",0,G13) -> 9 | I13: 9 | J13: =IF(I13="-",0,I13) -> 9 | K13: - | L13: =IF(K13="-",0,K13) -> 0 | M13: =Table1015[[#This Row],[School]] -> The Cedars Academy | N13: =D13+F13+H13+J13+L13 -> 26 | O13: =MAX(C13,E13,G13,I13,K13) -> 9 | P13: =IF(Q13=1,N13,IF(Q13=0,(N13-O13),"-")) -> 26 | Q13: =$L$1-Table1015[Competed Count] -> 1 | R13: =IF(Q13<2,"Yes","No") -> Yes | S13: =AND($C$1="Y",D13>0) -> TRUE | T13: =AND($E$1="Y",F13>0) -> FALSE | U13: =AND($G$1="Y",H13>0) -> TRUE | V13: =AND($I$1="Y",J13>0) -> TRUE | W13: =AND($K$1="Y",L13>0) -> FALSE | X13: =COUNTIF(Table1015[[#This Row],[Competed 1]:[Competed 5]],"=TRUE") -> 3
A14: Lizzie Clapp | B14: Welland Park Academy | C14: 12 | D14: =IF(C14="-",0,C14) -> 12 | E14: 4 | F14: =IF(E14="-",0,E14) -> 4 | G14: 15 | H14: =IF(G14="-",0,G14) -> 15 | I14: 10 | J14: =IF(I14="-",0,I14) -> 10 | K14: - | L14: =IF(K14="-",0,K14) -> 0 | M14: =Table1015[[#This Row],[School]] -> Welland Park Academy | N14: =D14+F14+H14+J14+L14 -> 41 | O14: =MAX(C14,E14,G14,I14,K14) -> 15 | P14: =IF(Q14=1,N14,IF(Q14=0,(N14-O14),"-")) -> 26 | Q14: =$L$1-Table1015[Competed Count] -> 0 | R14: =IF(Q14<2,"Yes","No") -> Yes | S14: =AND($C$1="Y",D14>0) -> TRUE | T14: =AND($E$1="Y",F14>0) -> TRUE | U14: =AND($G$1="Y",H14>0) -> TRUE | V14: =AND($I$1="Y",J14>0) -> TRUE | W14: =AND($K$1="Y",L14>0) -> FALSE | X14: =COUNTIF(Table1015[[#This Row],[Competed 1]:[Competed 5]],"=TRUE") -> 4
A15: Izzi Smith | B15: Thomas Estley CC | C15: 11 | D15: =IF(C15="-",0,C15) -> 11 | E15: - | F15: =IF(E15="-",0,E15) -> 0 | G15: 13 | H15: =IF(G15="-",0,G15) -> 13 | I15: 11 | J15: =IF(I15="-",0,I15) -> 11 | K15: - | L15: =IF(K15="-",0,K15) -> 0 | M15: =Table1015[[#This Row],[School]] -> Thomas Estley CC | N15: =D15+F15+H15+J15+L15 -> 35 | O15: =MAX(C15,E15,G15,I15,K15) -> 13 | P15: =IF(Q15=1,N15,IF(Q15=0,(N15-O15),"-")) -> 35 | Q15: =$L$1-Table1015[Competed Count] -> 1 | R15: =IF(Q15<2,"Yes","No") -> Yes | S15: =AND($C$1="Y",D15>0) -> TRUE | T15: =AND($E$1="Y",F15>0) -> FALSE | U15: =AND($G$1="Y",H15>0) -> TRUE | V15: =AND($I$1="Y",J15>0) -> TRUE | W15: =AND($K$1="Y",L15>0) -> FALSE | X15: =COUNTIF(Table1015[[#This Row],[Competed 1]:[Competed 5]],"=TRUE") -> 3
A16: Rohan Finch | B16: Welland Park Academy | C16: 21 | D16: =IF(C16="-",0,C16) -> 21 | E16: 7 | F16: =IF(E16="-",0,E16) -> 7 | G16: 17 | H16: =IF(G16="-",0,G16) -> 17 | I16: 12 | J16: =IF(I16="-",0,I16) -> 12 | K16: - | L16: =IF(K16="-",0,K16) -> 0 | M16: =Table1015[[#This Row],[School]] -> Welland Park Academy | N16: =D16+F16+H16+J16+L16 -> 57 | O16: =MAX(C16,E16,G16,I16,K16) -> 21 | P16: =IF(Q16=1,N16,IF(Q16=0,(N16-O16),"-")) -> 36 | Q16: =$L$1-Table1015[Competed Count] -> 0 | R16: =IF(Q16<2,"Yes","No") -> Yes | S16: =AND($C$1="Y",D16>0) -> TRUE | T16: =AND($E$1="Y",F16>0) -> TRUE | U16: =AND($G$1="Y",H16>0) -> TRUE | V16: =AND($I$1="Y",J16>0) -> TRUE | W16: =AND($K$1="Y",L16>0) -> FALSE | X16: =COUNTIF(Table1015[[#This Row],[Competed 1]:[Competed 5]],"=TRUE") -> 4
A17: Beth Wallis | B17: Welland Park Academy | C17: 20 | D17: =IF(C17="-",0,C17) -> 20 | E17: 15 | F17: =IF(E17="-",0,E17) -> 15 | G17: 22 | H17: =IF(G17="-",0,G17) -> 22 | I17: 13 | J17: =IF(I17="-",0,I17) -> 13 | K17: - | L17: =IF(K17="-",0,K17) -> 0 | M17: =Table1015[[#This Row],[School]] -> Welland Park Academy | N17: =D17+F17+H17+J17+L17 -> 70 | O17: =MAX(C17,E17,G17,I17,K17) -> 22 | P17: =IF(Q17=1,N17,IF(Q17=0,(N17-O17),"-")) -> 48 | Q17: =$L$1-Table1015[Competed Count] -> 0 | R17: =IF(Q17<2,"Yes","No") -> Yes | S17: =AND($C$1="Y",D17>0) -> TRUE | T17: =AND($E$1="Y",F17>0) -> TRUE | U17: =AND($G$1="Y",H17>0) -> TRUE | V17: =AND($I$1="Y",J17>0) -> TRUE | W17: =AND($K$1="Y",L17>0) -> FALSE | X17: =COUNTIF(Table1015[[#This Row],[Competed 1]:[Competed 5]],"=TRUE") -> 4
A18: Charlotte Perry | B18: The Market Bosworth School | C18: 30 | D18: =IF(C18="-",0,C18) -> 30 | E18: 12 | F18: =IF(E18="-",0,E18) -> 12 | G18: - | H18: =IF(G18="-",0,G18) -> 0 | I18: 14 | J18: =IF(I18="-",0,I18) -> 14 | K18: - | L18: =IF(K18="-",0,K18) -> 0 | M18: =Table1015[[#This Row],[School]] -> The Market Bosworth School | N18: =D18+F18+H18+J18+L18 -> 56 | O18: =MAX(C18,E18,G18,I18,K18) -> 30 | P18: =IF(Q18=1,N18,IF(Q18=0,(N18-O18),"-")) -> 56 | Q18: =$L$1-Table1015[Competed Count] -> 1 | R18: =IF(Q18<2,"Yes","No") -> Yes | S18: =AND($C$1="Y",D18>0) -> TRUE | T18: =AND($E$1="Y",F18>0) -> TRUE | U18: =AND($G$1="Y",H18>0) -> FALSE | V18: =AND($I$1="Y",J18>0) -> TRUE | W18: =AND($K$1="Y",L18>0) -> FALSE | X18: =COUNTIF(Table1015[[#This Row],[Competed 1]:[Competed 5]],"=TRUE") -> 3
A19: Katie I Parker | B19: Brookvale High School | C19: 29 | D19: =IF(C19="-",0,C19) -> 29 | E19: 22 | F19: =IF(E19="-",0,E19) -> 22 | G19: 24 | H19: =IF(G19="-",0,G19) -> 24 | I19: 15 | J19: =IF(I19="-",0,I19) -> 15 | K19: - | L19: =IF(K19="-",0,K19) -> 0 | M19: =Table1015[[#This Row],[School]] -> Brookvale High School | N19: =D19+F19+H19+J19+L19 -> 90 | O19: =MAX(C19,E19,G19,I19,K19) -> 29 | P19: =IF(Q19=1,N19,IF(Q19=0,(N19-O19),"-")) -> 61 | Q19: =$L$1-Table1015[Competed Count] -> 0 | R19: =IF(Q19<2,"Yes","No") -> Yes | S19: =AND($C$1="Y",D19>0) -> TRUE | T19: =AND($E$1="Y",F19>0) -> TRUE | U19: =AND($G$1="Y",H19>0) -> TRUE | V19: =AND($I$1="Y",J19>0) -> TRUE | W19: =AND($K$1="Y",L19>0) -> FALSE | X19: =COUNTIF(Table1015[[#This Row],[Competed 1]:[Competed 5]],"=TRUE") -> 4
A20: Sophie Perry | B20: The Market Bosworth School | C20: 31 | D20: =IF(C20="-",0,C20) -> 31 | E20: 24 | F20: =IF(E20="-",0,E20) -> 24 | G20: 20 | H20: =IF(G20="-",0,G20) -> 20 | I20: 16 | J20: =IF(I20="-",0,I20) -> 16 | K20: - | L20: =IF(K20="-",0,K20) -> 0 | M20: =Table1015[[#This Row],[School]] -> The Market Bosworth School | N20: =D20+F20+H20+J20+L20 -> 91 | O20: =MAX(C20,E20,G20,I20,K20) -> 31 | P20: =IF(Q20=1,N20,IF(Q20=0,(N20-O20),"-")) -> 60 | Q20: =$L$1-Table1015[Competed Count] -> 0 | R20: =IF(Q20<2,"Yes","No") -> Yes | S20: =AND($C$1="Y",D20>0) -> TRUE | T20: =AND($E$1="Y",F20>0) -> TRUE | U20: =AND($G$1="Y",H20>0) -> TRUE | V20: =AND($I$1="Y",J20>0) -> TRUE | W20: =AND($K$1="Y",L20>0) -> FALSE | X20: =COUNTIF(Table1015[[#This Row],[Competed 1]:[Competed 5]],"=TRUE") -> 4
A21: Sophie Ward | B21: Kibworth School | C21: 35 | D21: =IF(C21="-",0,C21) -> 35 | E21: 11 | F21: =IF(E21="-",0,E21) -> 11 | G21: 36 | H21: =IF(G21="-",0,G21) -> 36 | I21: 17 | J21: =IF(I21="-",0,I21) -> 17 | K21: - | L21: =IF(K21="-",0,K21) -> 0 | M21: =Table1015[[#This Row],[School]] -> Kibworth School | N21: =D21+F21+H21+J21+L21 -> 99 | O21: =MAX(C21,E21,G21,I21,K21) -> 36 | P21: =IF(Q21=1,N21,IF(Q21=0,(N21-O21),"-")) -> 63 | Q21: =$L$1-Table1015[Competed Count] -> 0 | R21: =IF(Q21<2,"Yes","No") -> Yes | S21: =AND($C$1="Y",D21>0) -> TRUE | T21: =AND($E$1="Y",F21>0) -> TRUE | U21: =AND($G$1="Y",H21>0) -> TRUE | V21: =AND($I$1="Y",J21>0) -> TRUE | W21: =AND($K$1="Y",L21>0) -> FALSE | X21: =COUNTIF(Table1015[[#This Row],[Competed 1]:[Competed 5]],"=TRUE") -> 4
A22: Hannah Smith | B22: Uppingham CC | C22: 34 | D22: =IF(C22="-",0,C22) -> 34 | E22: 16 | F22: =IF(E22="-",0,E22) -> 16 | G22: 18 | H22: =IF(G22="-",0,G22) -> 18 | I22: 18 | J22: =IF(I22="-",0,I22) -> 18 | K22: - | L22: =IF(K22="-",0,K22) -> 0 | M22: =Table1015[[#This Row],[School]] -> Uppingham CC | N22: =D22+F22+H22+J22+L22 -> 86 | O22: =MAX(C22,E22,G22,I22,K22) -> 34 | P22: =IF(Q22=1,N22,IF(Q22=0,(N22-O22),"-")) -> 52 | Q22: =$L$1-Table1015[Competed Count] -> 0 | R22: =IF(Q22<2,"Yes","No") -> Yes | S22: =AND($C$1="Y",D22>0) -> TRUE | T22: =AND($E$1="Y",F22>0) -> TRUE | U22: =AND($G$1="Y",H22>0) -> TRUE | V22: =AND($I$1="Y",J22>0) -> TRUE | W22: =AND($K$1="Y",L22>0) -> FALSE | X22: =COUNTIF(Table1015[[#This Row],[Competed 1]:[Competed 5]],"=TRUE") -> 4
A23: Aoife Brotherton | B23: St Pauls Catholic School | C23: 27 | D23: =IF(C23="-",0,C23) -> 27 | E23: 9 | F23: =IF(E23="-",0,E23) -> 9 | G23: 26 | H23: =IF(G23="-",0,G23) -> 26 | I23: 19 | J23: =IF(I23="-",0,I23) -> 19 | K23: - | L23: =IF(K23="-",0,K23) -> 0 | M23: =Table1015[[#This Row],[School]] -> St Pauls Catholic School | N23: =D23+F23+H23+J23+L23 -> 81 | O23: =MAX(C23,E23,G23,I23,K23) -> 27 | P23: =IF(Q23=1,N23,IF(Q23=0,(N23-O23),"-")) -> 54 | Q23: =$L$1-Table1015[Competed Count] -> 0 | R23: =IF(Q23<2,"Yes","No") -> Yes | S23: =AND($C$1="Y",D23>0) -> TRUE | T23: =AND($E$1="Y",F23>0) -> TRUE | U23: =AND($G$1="Y",H23>0) -> TRUE | V23: =AND($I$1="Y",J23>0) -> TRUE | W23: =AND($K$1="Y",L23>0) -> FALSE | X23: =COUNTIF(Table1015[[#This Row],[Competed 1]:[Competed 5]],"=TRUE") -> 4
A24: Isla Stewart | B24: De Lisle College | C24: 23 | D24: =IF(C24="-",0,C24) -> 23 | E24: - | F24: =IF(E24="-",0,E24) -> 0 | G24: 31 | H24: =IF(G24="-",0,G24) -> 31 | I24: 20 | J24: =IF(I24="-",0,I24) -> 20 | K24: - | L24: =IF(K24="-",0,K24) -> 0 | M24: =Table1015[[#This Row],[School]] -> De Lisle College | N24: =D24+F24+H24+J24+L24 -> 74 | O24: =MAX(C24,E24,G24,I24,K24) -> 31 | P24: =IF(Q24=1,N24,IF(Q24=0,(N24-O24),"-")) -> 74 | Q24: =$L$1-Table1015[Competed Count] -> 1 | R24: =IF(Q24<2,"Yes","No") -> Yes | S24: =AND($C$1="Y",D24>0) -> TRUE | T24: =AND($E$1="Y",F24>0) -> FALSE | U24: =AND($G$1="Y",H24>0) -> TRUE | V24: =AND($I$1="Y",J24>0) -> TRUE | W24: =AND($K$1="Y",L24>0) -> FALSE | X24: =COUNTIF(Table1015[[#This Row],[Competed 1]:[Competed 5]],"=TRUE") -> 3
A25: Tameika Clarke | B25: Thomas Estley CC | C25: 25 | D25: =IF(C25="-",0,C25) -> 25 | E25: 14 | F25: =IF(E25="-",0,E25) -> 14 | G25: 30 | H25: =IF(G25="-",0,G25) -> 30 | I25: 21 | J25: =IF(I25="-",0,I25) -> 21 | K25: - | L25: =IF(K25="-",0,K25) -> 0 | M25: =Table1015[[#This Row],[School]] -> Thomas Estley CC | N25: =D25+F25+H25+J25+L25 -> 90 | O25: =MAX(C25,E25,G25,I25,K25) -> 30 | P25: =IF(Q25=1,N25,IF(Q25=0,(N25-O25),"-")) -> 60 | Q25: =$L$1-Table1015[Competed Count] -> 0 | R25: =IF(Q25<2,"Yes","No") -> Yes | S25: =AND($C$1="Y",D25>0) -> TRUE | T25: =AND($E$1="Y",F25>0) -> TRUE | U25: =AND($G$1="Y",H25>0) -> TRUE | V25: =AND($I$1="Y",J25>0) -> TRUE | W25: =AND($K$1="Y",L25>0) -> FALSE | X25: =COUNTIF(Table1015[[#This Row],[Competed 1]:[Competed 5]],"=TRUE") -> 4
A26: Elise Cook-Sutton | B26: St Martins Catholic Academy | C26: 15 | D26: =IF(C26="-",0,C26) -> 15 | E26: 8 | F26: =IF(E26="-",0,E26) -> 8 | G26: 16 | H26: =IF(G26="-",0,G26) -> 16 | I26: 22 | J26: =IF(I26="-",0,I26) -> 22 | K26: - | L26: =IF(K26="-",0,K26) -> 0 | M26: =Table1015[[#This Row],[School]] -> St Martins Catholic Academy | N26: =D26+F26+H26+J26+L26 -> 61 | O26: =MAX(C26,E26,G26,I26,K26) -> 22 | P26: =IF(Q26=1,N26,IF(Q26=0,(N26-O26),"-")) -> 39 | Q26: =$L$1-Table1015[Competed Count] -> 0 | R26: =IF(Q26<2,"Yes","No") -> Yes | S26: =AND($C$1="Y",D26>0) -> TRUE | T26: =AND($E$1="Y",F26>0) -> TRUE | U26: =AND($G$1="Y",H26>0) -> TRUE | V26: =AND($I$1="Y",J26>0) -> TRUE | W26: =AND($K$1="Y",L26>0) -> FALSE | X26: =COUNTIF(Table1015[[#This Row],[Competed 1]:[Competed 5]],"=TRUE") -> 4
A27: Mar Ruiz-Monserrat | B27: Woodbrook Vale School | C27: 48 | D27: =IF(C27="-",0,C27) -> 48 | E27: 23 | F27: =IF(E27="-",0,E27) -> 23 | G27: 28 | H27: =IF(G27="-",0,G27) -> 28 | I27: 23 | J27: =IF(I27="-",0,I27) -> 23 | K27: - | L27: =IF(K27="-",0,K27) -> 0 | M27: =Table1015[[#This Row],[School]] -> Woodbrook Vale School | N27: =D27+F27+H27+J27+L27 -> 122 | O27: =MAX(C27,E27,G27,I27,K27) -> 48 | P27: =IF(Q27=1,N27,IF(Q27=0,(N27-O27),"-")) -> 74 | Q27: =$L$1-Table1015[Competed Count] -> 0 | R27: =IF(Q27<2,"Yes","No") -> Yes | S27: =AND($C$1="Y",D27>0) -> TRUE | T27: =AND($E$1="Y",F27>0) -> TRUE | U27: =AND($G$1="Y",H27>0) -> TRUE | V27: =AND($I$1="Y",J27>0) -> TRUE | W27: =AND($K$1="Y",L27>0) -> FALSE | X27: =COUNTIF(Table1015[[#This Row],[Competed 1]:[Competed 5]],"=TRUE") -> 4
A28: Rebecca Fields | B28: John Ferneley College | C28: 46 | D28: =IF(C28="-",0,C28) -> 46 | E28: 29 | F28: =IF(E28="-",0,E28) -> 29 | G28: 35 | H28: =IF(G28="-",0,G28) -> 35 | I28: 24 | J28: =IF(I28="-",0,I28) -> 24 | K28: - | L28: =IF(K28="-",0,K28) -> 0 | M28: =Table1015[[#This Row],[School]] -> John Ferneley College | N28: =D28+F28+H28+J28+L28 -> 134 | O28: =MAX(C28,E28,G28,I28,K28) -> 46 | P28: =IF(Q28=1,N28,IF(Q28=0,(N28-O28),"-")) -> 88 | Q28: =$L$1-Table1015[Competed Count] -> 0 | R28: =IF(Q28<2,"Yes","No") -> Yes | S28: =AND($C$1="Y",D28>0) -> TRUE | T28: =AND($E$1="Y",F28>0) -> TRUE | U28: =AND($G$1="Y",H28>0) -> TRUE | V28: =AND($I$1="Y",J28>0) -> TRUE | W28: =AND($K$1="Y",L28>0) -> FALSE | X28: =COUNTIF(Table1015[[#This Row],[Competed 1]:[Competed 5]],"=TRUE") -> 4
A29: Zara Montgomery | B29: Lutterworth High School | C29: 42 | D29: =IF(C29="-",0,C29) -> 42 | E29: 28 | F29: =IF(E29="-",0,E29) -> 28 | G29: 44 | H29: =IF(G29="-",0,G29) -> 44 | I29: 25 | J29: =IF(I29="-",0,I29) -> 25 | K29: - | L29: =IF(K29="-",0,K29) -> 0 | M29: =Table1015[[#This Row],[School]] -> Lutterworth High School | N29: =D29+F29+H29+J29+L29 -> 139 | O29: =MAX(C29,E29,G29,I29,K29) -> 44 | P29: =IF(Q29=1,N29,IF(Q29=0,(N29-O29),"-")) -> 95 | Q29: =$L$1-Table1015[Competed Count] -> 0 | R29: =IF(Q29<2,"Yes","No") -> Yes | S29: =AND($C$1="Y",D29>0) -> TRUE | T29: =AND($E$1="Y",F29>0) -> TRUE | U29: =AND($G$1="Y",H29>0) -> TRUE | V29: =AND($I$1="Y",J29>0) -> TRUE | W29: =AND($K$1="Y",L29>0) -> FALSE | X29: =COUNTIF(Table1015[[#This Row],[Competed 1]:[Competed 5]],"=TRUE") -> 4
A30: Eleanor Wells | B30: Manor High School | C30: 33 | D30: =IF(C30="-",0,C30) -> 33 | E30: - | F30: =IF(E30="-",0,E30) -> 0 | G30: 27 | H30: =IF(G30="-",0,G30) -> 27 | I30: 26 | J30: =IF(I30="-",0,I30) -> 26 | K30: - | L30: =IF(K30="-",0,K30) -> 0 | M30: =Table1015[[#This Row],[School]] -> Manor High School | N30: =D30+F30+H30+J30+L30 -> 86 | O30: =MAX(C30,E30,G30,I30,K30) -> 33 | P30: =IF(Q30=1,N30,IF(Q30=0,(N30-O30),"-")) -> 86 | Q30: =$L$1-Table1015[Competed Count] -> 1 | R30: =IF(Q30<2,"Yes","No") -> Yes | S30: =AND($C$1="Y",D30>0) -> TRUE | T30: =AND($E$1="Y",F30>0) -> FALSE | U30: =AND($G$1="Y",H30>0) -> TRUE | V30: =AND($I$1="Y",J30>0) -> TRUE | W30: =AND($K$1="Y",L30>0) -> FALSE | X30: =COUNTIF(Table1015[[#This Row],[Competed 1]:[Competed 5]],"=TRUE") -> 3
A31: Ravenn Cook | B31: Woodbrook Vale School | C31: - | D31: =IF(C31="-",0,C31) -> 0 | E31: - | F31: =IF(E31="-",0,E31) -> 0 | G31: 25 | H31: =IF(G31="-",0,G31) -> 25 | I31: 27 | J31: =IF(I31="-",0,I31) -> 27 | K31: - | L31: =IF(K31="-",0,K31) -> 0 | M31: =Table1015[[#This Row],[School]] -> Woodbrook Vale School | N31: =D31+F31+H31+J31+L31 -> 52 | O31: =MAX(C31,E31,G31,I31,K31) -> 27 | P31: =IF(Q31=1,N31,IF(Q31=0,(N31-O31),"-")) -> - | Q31: =$L$1-Table1015[Competed Count] -> 2 | R31: =IF(Q31<2,"Yes","No") -> No | S31: =AND($C$1="Y",D31>0) -> FALSE | T31: =AND($E$1="Y",F31>0) -> FALSE | U31: =AND($G$1="Y",H31>0) -> TRUE | V31: =AND($I$1="Y",J31>0) -> TRUE | W31: =AND($K$1="Y",L31>0) -> FALSE | X31: =COUNTIF(Table1015[[#This Row],[Competed 1]:[Competed 5]],"=TRUE") -> 2
A32: Emma Painter | B32: Thomas Estley CC | C32: 39 | D32: =IF(C32="-",0,C32) -> 39 | E32: - | F32: =IF(E32="-",0,E32) -> 0 | G32: - | H32: =IF(G32="-",0,G32) -> 0 | I32: 28 | J32: =IF(I32="-",0,I32) -> 28 | K32: - | L32: =IF(K32="-",0,K32) -> 0 | M32: =Table1015[[#This Row],[School]] -> Thomas Estley CC | N32: =D32+F32+H32+J32+L32 -> 67 | O32: =MAX(C32,E32,G32,I32,K32) -> 39 | P32: =IF(Q32=1,N32,IF(Q32=0,(N32-O32),"-")) -> - | Q32: =$L$1-Table1015[Competed Count] -> 2 | R32: =IF(Q32<2,"Yes","No") -> No | S32: =AND($C$1="Y",D32>0) -> TRUE | T32: =AND($E$1="Y",F32>0) -> FALSE | U32: =AND($G$1="Y",H32>0) -> FALSE | V32: =AND($I$1="Y",J32>0) -> TRUE | W32: =AND($K$1="Y",L32>0) -> FALSE | X32: =COUNTIF(Table1015[[#This Row],[Competed 1]:[Competed 5]],"=TRUE") -> 2
A33: Grace Perkins | B33: Castle Donington CC | C33: 54 | D33: =IF(C33="-",0,C33) -> 54 | E33: - | F33: =IF(E33="-",0,E33) -> 0 | G33: 39 | H33: =IF(G33="-",0,G33) -> 39 | I33: 29 | J33: =IF(I33="-",0,I33) -> 29 | K33: - | L33: =IF(K33="-",0,K33) -> 0 | M33: =Table1015[[#This Row],[School]] -> Castle Donington CC | N33: =D33+F33+H33+J33+L33 -> 122 | O33: =MAX(C33,E33,G33,I33,K33) -> 54 | P33: =IF(Q33=1,N33,IF(Q33=0,(N33-O33),"-")) -> 122 | Q33: =$L$1-Table1015[Competed Count] -> 1 | R33: =IF(Q33<2,"Yes","No") -> Yes | S33: =AND($C$1="Y",D33>0) -> TRUE | T33: =AND($E$1="Y",F33>0) -> FALSE | U33: =AND($G$1="Y",H33>0) -> TRUE | V33: =AND($I$1="Y",J33>0) -> TRUE | W33: =AND($K$1="Y",L33>0) -> FALSE | X33: =COUNTIF(Table1015[[#This Row],[Competed 1]:[Competed 5]],"=TRUE") -> 3
A34: Kerrie Christie | B34: Lutterworth High School | C34: 50 | D34: =IF(C34="-",0,C34) -> 50 | E34: 37 | F34: =IF(E34="-",0,E34) -> 37 | G34: 40 | H34: =IF(G34="-",0,G34) -> 40 | I34: 30 | J34: =IF(I34="-",0,I34) -> 30 | K34: - | L34: =IF(K34="-",0,K34) -> 0 | M34: =Table1015[[#This Row],[School]] -> Lutterworth High School | N34: =D34+F34+H34+J34+L34 -> 157 | O34: =MAX(C34,E34,G34,I34,K34) -> 50 | P34: =IF(Q34=1,N34,IF(Q34=0,(N34-O34),"-")) -> 107 | Q34: =$L$1-Table1015[Competed Count] -> 0 | R34: =IF(Q34<2,"Yes","No") -> Yes | S34: =AND($C$1="Y",D34>0) -> TRUE | T34: =AND($E$1="Y",F34>0) -> TRUE | U34: =AND($G$1="Y",H34>0) -> TRUE | V34: =AND($I$1="Y",J34>0) -> TRUE | W34: =AND($K$1="Y",L34>0) -> FALSE | X34: =COUNTIF(Table1015[[#This Row],[Competed 1]:[Competed 5]],"=TRUE") -> 4
A35: Sian Edwards | B35: Lutterworth High School | C35: 47 | D35: =IF(C35="-",0,C35) -> 47 | E35: 25 | F35: =IF(E35="-",0,E35) -> 25 | G35: 34 | H35: =IF(G35="-",0,G35) -> 34 | I35: 31 | J35: =IF(I35="-",0,I35) -> 31 | K35: - | L35: =IF(K35="-",0,K35) -> 0 | M35: =Table1015[[#This Row],[School]] -> Lutterworth High School | N35: =D35+F35+H35+J35+L35 -> 137 | O35: =MAX(C35,E35,G35,I35,K35) -> 47 | P35: =IF(Q35=1,N35,IF(Q35=0,(N35-O35),"-")) -> 90 | Q35: =$L$1-Table1015[Competed Count] -> 0 | R35: =IF(Q35<2,"Yes","No") -> Yes | S35: =AND($C$1="Y",D35>0) -> TRUE | T35: =AND($E$1="Y",F35>0) -> TRUE | U35: =AND($G$1="Y",H35>0) -> TRUE | V35: =AND($I$1="Y",J35>0) -> TRUE | W35: =AND($K$1="Y",L35>0) -> FALSE | X35: =COUNTIF(Table1015[[#This Row],[Competed 1]:[Competed 5]],"=TRUE") -> 4
A36: Nancy Howe | B36: John Ferneley College | C36: 49 | D36: =IF(C36="-",0,C36) -> 49 | E36: 34 | F36: =IF(E36="-",0,E36) -> 34 | G36: 41 | H36: =IF(G36="-",0,G36) -> 41 | I36: 32 | J36: =IF(I36="-",0,I36) -> 32 | K36: - | L36: =IF(K36="-",0,K36) -> 0 | M36: =Table1015[[#This Row],[School]] -> John Ferneley College | N36: =D36+F36+H36+J36+L36 -> 156 | O36: =MAX(C36,E36,G36,I36,K36) -> 49 | P36: =IF(Q36=1,N36,IF(Q36=0,(N36-O36),"-")) -> 107 | Q36: =$L$1-Table1015[Competed Count] -> 0 | R36: =IF(Q36<2,"Yes","No") -> Yes | S36: =AND($C$1="Y",D36>0) -> TRUE | T36: =AND($E$1="Y",F36>0) -> TRUE | U36: =AND($G$1="Y",H36>0) -> TRUE | V36: =AND($I$1="Y",J36>0) -> TRUE | W36: =AND($K$1="Y",L36>0) -> FALSE | X36: =COUNTIF(Table1015[[#This Row],[Competed 1]:[Competed 5]],"=TRUE") -> 4
A37: Alex Jordan | B37: St Pauls Catholic School | C37: 40 | D37: =IF(C37="-",0,C37) -> 40 | E37: 33 | F37: =IF(E37="-",0,E37) -> 33 | G37: - | H37: =IF(G37="-",0,G37) -> 0 | I37: 33 | J37: =IF(I37="-",0,I37) -> 33 | K37: - | L37: =IF(K37="-",0,K37) -> 0 | M37: =Table1015[[#This Row],[School]] -> St Pauls Catholic School | N37: =D37+F37+H37+J37+L37 -> 106 | O37: =MAX(C37,E37,G37,I37,K37) -> 40 | P37: =IF(Q37=1,N37,IF(Q37=0,(N37-O37),"-")) -> 106 | Q37: =$L$1-Table1015[Competed Count] -> 1 | R37: =IF(Q37<2,"Yes","No") -> Yes | S37: =AND($C$1="Y",D37>0) -> TRUE | T37: =AND($E$1="Y",F37>0) -> TRUE | U37: =AND($G$1="Y",H37>0) -> FALSE | V37: =AND($I$1="Y",J37>0) -> TRUE | W37: =AND($K$1="Y",L37>0) -> FALSE | X37: =COUNTIF(Table1015[[#This Row],[Competed 1]:[Competed 5]],"=TRUE") -> 3
A38: Zuzanna Dubowska | B38: St Pauls Catholic School | C38: 64 | D38: =IF(C38="-",0,C38) -> 64 | E38: 38 | F38: =IF(E38="-",0,E38) -> 38 | G38: 43 | H38: =IF(G38="-",0,G38) -> 43 | I38: 34 | J38: =IF(I38="-",0,I38) -> 34 | K38: - | L38: =IF(K38="-",0,K38) -> 0 | M38: =Table1015[[#This Row],[School]] -> St Pauls Catholic School | N38: =D38+F38+H38+J38+L38 -> 179 | O38: =MAX(C38,E38,G38,I38,K38) -> 64 | P38: =IF(Q38=1,N38,IF(Q38=0,(N38-O38),"-")) -> 115 | Q38: =$L$1-Table1015[Competed Count] -> 0 | R38: =IF(Q38<2,"Yes","No") -> Yes | S38: =AND($C$1="Y",D38>0) -> TRUE | T38: =AND($E$1="Y",F38>0) -> TRUE | U38: =AND($G$1="Y",H38>0) -> TRUE | V38: =AND($I$1="Y",J38>0) -> TRUE | W38: =AND($K$1="Y",L38>0) -> FALSE | X38: =COUNTIF(Table1015[[#This Row],[Competed 1]:[Competed 5]],"=TRUE") -> 4
A39: Isola Earp | B39: Lutterworth College | C39: 43 | D39: =IF(C39="-",0,C39) -> 43 | E39: 35 | F39: =IF(E39="-",0,E39) -> 35 | G39: - | H39: =IF(G39="-",0,G39) -> 0 | I39: 35 | J39: =IF(I39="-",0,I39) -> 35 | K39: - | L39: =IF(K39="-",0,K39) -> 0 | M39: =Table1015[[#This Row],[School]] -> Lutterworth College | N39: =D39+F39+H39+J39+L39 -> 113 | O39: =MAX(C39,E39,G39,I39,K39) -> 43 | P39: =IF(Q39=1,N39,IF(Q39=0,(N39-O39),"-")) -> 113 | Q39: =$L$1-Table1015[Competed Count] -> 1 | R39: =IF(Q39<2,"Yes","No") -> Yes | S39: =AND($C$1="Y",D39>0) -> TRUE | T39: =AND($E$1="Y",F39>0) -> TRUE | U39: =AND($G$1="Y",H39>0) -> FALSE | V39: =AND($I$1="Y",J39>0) -> TRUE | W39: =AND($K$1="Y",L39>0) -> FALSE | X39: =COUNTIF(Table1015[[#This Row],[Competed 1]:[Competed 5]],"=TRUE") -> 3
A40: Ella Worthey | B40: Welland Park Academy | C40: 51 | D40: =IF(C40="-",0,C40) -> 51 | E40: 45 | F40: =IF(E40="-",0,E40) -> 45 | G40: 38 | H40: =IF(G40="-",0,G40) -> 38 | I40: 36 | J40: =IF(I40="-",0,I40) -> 36 | K40: - | L40: =IF(K40="-",0,K40) -> 0 | M40: =Table1015[[#This Row],[School]] -> Welland Park Academy | N40: =D40+F40+H40+J40+L40 -> 170 | O40: =MAX(C40,E40,G40,I40,K40) -> 51 | P40: =IF(Q40=1,N40,IF(Q40=0,(N40-O40),"-")) -> 119 | Q40: =$L$1-Table1015[Competed Count] -> 0 | R40: =IF(Q40<2,"Yes","No") -> Yes | S40: =AND($C$1="Y",D40>0) -> TRUE | T40: =AND($E$1="Y",F40>0) -> TRUE | U40: =AND($G$1="Y",H40>0) -> TRUE | V40: =AND($I$1="Y",J40>0) -> TRUE | W40: =AND($K$1="Y",L40>0) -> FALSE | X40: =COUNTIF(Table1015[[#This Row],[Competed 1]:[Competed 5]],"=TRUE") -> 4
A41: Chloe Burgess | B41: Redmoor Academy | C41: 45 | D41: =IF(C41="-",0,C41) -> 45 | E41: 36 | F41: =IF(E41="-",0,E41) -> 36 | G41: 45 | H41: =IF(G41="-",0,G41) -> 45 | I41: 37 | J41: =IF(I41="-",0,I41) -> 37 | K41: - | L41: =IF(K41="-",0,K41) -> 0 | M41: =Table1015[[#This Row],[School]] -> Redmoor Academy | N41: =D41+F41+H41+J41+L41 -> 163 | O41: =MAX(C41,E41,G41,I41,K41) -> 45 | P41: =IF(Q41=1,N41,IF(Q41=0,(N41-O41),"-")) -> 118 | Q41: =$L$1-Table1015[Competed Count] -> 0 | R41: =IF(Q41<2,"Yes","No") -> Yes | S41: =AND($C$1="Y",D41>0) -> TRUE | T41: =AND($E$1="Y",F41>0) -> TRUE | U41: =AND($G$1="Y",H41>0) -> TRUE | V41: =AND($I$1="Y",J41>0) -> TRUE | W41: =AND($K$1="Y",L41>0) -> FALSE | X41: =COUNTIF(Table1015[[#This Row],[Competed 1]:[Competed 5]],"=TRUE") -> 4
A42: Ella Clarke | B42: Lutterworth High School | C42: - | D42: =IF(C42="-",0,C42) -> 0 | E42: - | F42: =IF(E42="-",0,E42) -> 0 | G42: - | H42: =IF(G42="-",0,G42) -> 0 | I42: 38 | J42: =IF(I42="-",0,I42) -> 38 | K42: - | L42: =IF(K42="-",0,K42) -> 0 | M42: =Table1015[[#This Row],[School]] -> Lutterworth High School | N42: =D42+F42+H42+J42+L42 -> 38 | O42: =MAX(C42,E42,G42,I42,K42) -> 38 | P42: =IF(Q42=1,N42,IF(Q42=0,(N42-O42),"-")) -> - | Q42: =$L$1-Table1015[Competed Count] -> 3 | R42: =IF(Q42<2,"Yes","No") -> No | S42: =AND($C$1="Y",D42>0) -> FALSE | T42: =AND($E$1="Y",F42>0) -> FALSE | U42: =AND($G$1="Y",H42>0) -> FALSE | V42: =AND($I$1="Y",J42>0) -> TRUE | W42: =AND($K$1="Y",L42>0) -> FALSE | X42: =COUNTIF(Table1015[[#This Row],[Competed 1]:[Competed 5]],"=TRUE") -> 1
A43: Isabelle Wilebore | B43: Redmoor Academy | C43: 69 | D43: =IF(C43="-",0,C43) -> 69 | E43: 47 | F43: =IF(E43="-",0,E43) -> 47 | G43: 47 | H43: =IF(G43="-",0,G43) -> 47 | I43: 39 | J43: =IF(I43="-",0,I43) -> 39 | K43: - | L43: =IF(K43="-",0,K43) -> 0 | M43: =Table1015[[#This Row],[School]] -> Redmoor Academy | N43: =D43+F43+H43+J43+L43 -> 202 | O43: =MAX(C43,E43,G43,I43,K43) -> 69 | P43: =IF(Q43=1,N43,IF(Q43=0,(N43-O43),"-")) -> 133 | Q43: =$L$1-Table1015[Competed Count] -> 0 | R43: =IF(Q43<2,"Yes","No") -> Yes | S43: =AND($C$1="Y",D43>0) -> TRUE | T43: =AND($E$1="Y",F43>0) -> TRUE | U43: =AND($G$1="Y",H43>0) -> TRUE | V43: =AND($I$1="Y",J43>0) -> TRUE | W43: =AND($K$1="Y",L43>0) -> FALSE | X43: =COUNTIF(Table1015[[#This Row],[Competed 1]:[Competed 5]],"=TRUE") -> 4
A44: Jess Fraser | B44: De Lisle College | C44: 70 | D44: =IF(C44="-",0,C44) -> 70 | E44: 49 | F44: =IF(E44="-",0,E44) -> 49 | G44: - | H44: =IF(G44="-",0,G44) -> 0 | I44: 40 | J44: =IF(I44="-",0,I44) -> 40 | K44: - | L44: =IF(K44="-",0,K44) -> 0 | M44: =Table1015[[#This Row],[School]] -> De Lisle College | N44: =D44+F44+H44+J44+L44 -> 159 | O44: =MAX(C44,E44,G44,I44,K44) -> 70 | P44: =IF(Q44=1,N44,IF(Q44=0,(N44-O44),"-")) -> 159 | Q44: =$L$1-Table1015[Competed Count] -> 1 | R44: =IF(Q44<2,"Yes","No") -> Yes | S44: =AND($C$1="Y",D44>0) -> TRUE | T44: =AND($E$1="Y",F44>0) -> TRUE | U44: =AND($G$1="Y",H44>0) -> FALSE | V44: =AND($I$1="Y",J44>0) -> TRUE | W44: =AND($K$1="Y",L44>0) -> FALSE | X44: =COUNTIF(Table1015[[#This Row],[Competed 1]:[Competed 5]],"=TRUE") -> 3
A45: Evie Anderson | B45: Welland Park Academy | C45: 72 | D45: =IF(C45="-",0,C45) -> 72 | E45: 48 | F45: =IF(E45="-",0,E45) -> 48 | G45: 48 | H45: =IF(G45="-",0,G45) -> 48 | I45: 41 | J45: =IF(I45="-",0,I45) -> 41 | K45: - | L45: =IF(K45="-",0,K45) -> 0 | M45: =Table1015[[#This Row],[School]] -> Welland Park Academy | N45: =D45+F45+H45+J45+L45 -> 209 | O45: =MAX(C45,E45,G45,I45,K45) -> 72 | P45: =IF(Q45=1,N45,IF(Q45=0,(N45-O45),"-")) -> 137 | Q45: =$L$1-Table1015[Competed Count] -> 0 | R45: =IF(Q45<2,"Yes","No") -> Yes | S45: =AND($C$1="Y",D45>0) -> TRUE | T45: =AND($E$1="Y",F45>0) -> TRUE | U45: =AND($G$1="Y",H45>0) -> TRUE | V45: =AND($I$1="Y",J45>0) -> TRUE | W45: =AND($K$1="Y",L45>0) -> FALSE | X45: =COUNTIF(Table1015[[#This Row],[Competed 1]:[Competed 5]],"=TRUE") -> 4
A46: Emma Christie | B46: Lutterworth College | C46: 67 | D46: =IF(C46="-",0,C46) -> 67 | E46: 44 | F46: =IF(E46="-",0,E46) -> 44 | G46: 49 | H46: =IF(G46="-",0,G46) -> 49 | I46: 42 | J46: =IF(I46="-",0,I46) -> 42 | K46: - | L46: =IF(K46="-",0,K46) -> 0 | M46: =Table1015[[#This Row],[School]] -> Lutterworth College | N46: =D46+F46+H46+J46+L46 -> 202 | O46: =MAX(C46,E46,G46,I46,K46) -> 67 | P46: =IF(Q46=1,N46,IF(Q46=0,(N46-O46),"-")) -> 135 | Q46: =$L$1-Table1015[Competed Count] -> 0 | R46: =IF(Q46<2,"Yes","No") -> Yes | S46: =AND($C$1="Y",D46>0) -> TRUE | T46: =AND($E$1="Y",F46>0) -> TRUE | U46: =AND($G$1="Y",H46>0) -> TRUE | V46: =AND($I$1="Y",J46>0) -> TRUE | W46: =AND($K$1="Y",L46>0) -> FALSE | X46: =COUNTIF(Table1015[[#This Row],[Competed 1]:[Competed 5]],"=TRUE") -> 4
A47: Jasmine Morton | B47: Redmoor Academy | C47: - | D47: =IF(C47="-",0,C47) -> 0 | E47: - | F47: =IF(E47="-",0,E47) -> 0 | G47: 50 | H47: =IF(G47="-",0,G47) -> 50 | I47: 43 | J47: =IF(I47="-",0,I47) -> 43 | K47: - | L47: =IF(K47="-",0,K47) -> 0 | M47: =Table1015[[#This Row],[School]] -> Redmoor Academy | N47: =D47+F47+H47+J47+L47 -> 93 | O47: =MAX(C47,E47,G47,I47,K47) -> 50 | P47: =IF(Q47=1,N47,IF(Q47=0,(N47-O47),"-")) -> - | Q47: =$L$1-Table1015[Competed Count] -> 2 | R47: =IF(Q47<2,"Yes","No") -> No | S47: =AND($C$1="Y",D47>0) -> FALSE | T47: =AND($E$1="Y",F47>0) -> FALSE | U47: =AND($G$1="Y",H47>0) -> TRUE | V47: =AND($I$1="Y",J47>0) -> TRUE | W47: =AND($K$1="Y",L47>0) -> FALSE | X47: =COUNTIF(Table1015[[#This Row],[Competed 1]:[Competed 5]],"=TRUE") -> 2
A48: Indie King | B48: Loughborough High School | C48: 1 | D48: =IF(C48="-",0,C48) -> 1 | E48: - | F48: =IF(E48="-",0,E48) -> 0 | G48: 1 | H48: =IF(G48="-",0,G48) -> 1 | I48: - | J48: =IF(I48="-",0,I48) -> 0 | K48: - | L48: =IF(K48="-",0,K48) -> 0 | M48: =Table1015[[#This Row],[School]] -> Loughborough High School | N48: =D48+F48+H48+J48+L48 -> 2 | O48: =MAX(C48,E48,G48,I48,K48) -> 1 | P48: =IF(Q48=1,N48,IF(Q48=0,(N48-O48),"-")) -> - | Q48: =$L$1-Table1015[Competed Count] -> 2 | R48: =IF(Q48<2,"Yes","No") -> No | S48: =AND($C$1="Y",D48>0) -> TRUE | T48: =AND($E$1="Y",F48>0) -> FALSE | U48: =AND($G$1="Y",H48>0) -> TRUE | V48: =AND($I$1="Y",J48>0) -> FALSE | W48: =AND($K$1="Y",L48>0) -> FALSE | X48: =COUNTIF(Table1015[[#This Row],[Competed 1]:[Competed 5]],"=TRUE") -> 2
A49: Alice Walton | B49: Loughborough High School | C49: 16 | D49: =IF(C49="-",0,C49) -> 16 | E49: 5 | F49: =IF(E49="-",0,E49) -> 5 | G49: 10 | H49: =IF(G49="-",0,G49) -> 10 | I49: - | J49: =IF(I49="-",0,I49) -> 0 | K49: - | L49: =IF(K49="-",0,K49) -> 0 | M49: =Table1015[[#This Row],[School]] -> Loughborough High School | N49: =D49+F49+H49+J49+L49 -> 31 | O49: =MAX(C49,E49,G49,I49,K49) -> 16 | P49: =IF(Q49=1,N49,IF(Q49=0,(N49-O49),"-")) -> 31 | Q49: =$L$1-Table1015[Competed Count] -> 1 | R49: =IF(Q49<2,"Yes","No") -> Yes | S49: =AND($C$1="Y",D49>0) -> TRUE | T49: =AND($E$1="Y",F49>0) -> TRUE | U49: =AND($G$1="Y",H49>0) -> TRUE | V49: =AND($I$1="Y",J49>0) -> FALSE | W49: =AND($K$1="Y",L49>0) -> FALSE | X49: =COUNTIF(Table1015[[#This Row],[Competed 1]:[Competed 5]],"=TRUE") -> 3
A50: Gemma Newport | B50: Woodbrook Vale School | C50: 13 | D50: =IF(C50="-",0,C50) -> 13 | E50: - | F50: =IF(E50="-",0,E50) -> 0 | G50: 12 | H50: =IF(G50="-",0,G50) -> 12 | I50: - | J50: =IF(I50="-",0,I50) -> 0 | K50: - | L50: =IF(K50="-",0,K50) -> 0 | M50: =Table1015[[#This Row],[School]] -> Woodbrook Vale School | N50: =D50+F50+H50+J50+L50 -> 25 | O50: =MAX(C50,E50,G50,I50,K50) -> 13 | P50: =IF(Q50=1,N50,IF(Q50=0,(N50-O50),"-")) -> - | Q50: =$L$1-Table1015[Competed Count] -> 2 | R50: =IF(Q50<2,"Yes","No") -> No | S50: =AND($C$1="Y",D50>0) -> TRUE | T50: =AND($E$1="Y",F50>0) -> FALSE | U50: =AND($G$1="Y",H50>0) -> TRUE | V50: =AND($I$1="Y",J50>0) -> FALSE | W50: =AND($K$1="Y",L50>0) -> FALSE | X50: =COUNTIF(Table1015[[#This Row],[Competed 1]:[Competed 5]],"=TRUE") -> 2
A51: Flora Miskin-Young | B51: Wreake Valley Academy | C51: 14 | D51: =IF(C51="-",0,C51) -> 14 | E51: - | F51: =IF(E51="-",0,E51) -> 0 | G51: 14 | H51: =IF(G51="-",0,G51) -> 14 | I51: - | J51: =IF(I51="-",0,I51) -> 0 | K51: - | L51: =IF(K51="-",0,K51) -> 0 | M51: =Table1015[[#This Row],[School]] -> Wreake Valley Academy | N51: =D51+F51+H51+J51+L51 -> 28 | O51: =MAX(C51,E51,G51,I51,K51) -> 14 | P51: =IF(Q51=1,N51,IF(Q51=0,(N51-O51),"-")) -> - | Q51: =$L$1-Table1015[Competed Count] -> 2 | R51: =IF(Q51<2,"Yes","No") -> No | S51: =AND($C$1="Y",D51>0) -> TRUE | T51: =AND($E$1="Y",F51>0) -> FALSE | U51: =AND($G$1="Y",H51>0) -> TRUE | V51: =AND($I$1="Y",J51>0) -> FALSE | W51: =AND($K$1="Y",L51>0) -> FALSE | X51: =COUNTIF(Table1015[[#This Row],[Competed 1]:[Competed 5]],"=TRUE") -> 2
A52: Hattie Jones | B52: Loughborough High School | C52: 36 | D52: =IF(C52="-",0,C52) -> 36 | E52: 32 | F52: =IF(E52="-",0,E52) -> 32 | G52: 19 | H52: =IF(G52="-",0,G52) -> 19 | I52: - | J52: =IF(I52="-",0,I52) -> 0 | K52: - | L52: =IF(K52="-",0,K52) -> 0 | M52: =Table1015[[#This Row],[School]] -> Loughborough High School | N52: =D52+F52+H52+J52+L52 -> 87 | O52: =MAX(C52,E52,G52,I52,K52) -> 36 | P52: =IF(Q52=1,N52,IF(Q52=0,(N52-O52),"-")) -> 87 | Q52: =$L$1-Table1015[Competed Count] -> 1 | R52: =IF(Q52<2,"Yes","No") -> Yes | S52: =AND($C$1="Y",D52>0) -> TRUE | T52: =AND($E$1="Y",F52>0) -> TRUE | U52: =AND($G$1="Y",H52>0) -> TRUE | V52: =AND($I$1="Y",J52>0) -> FALSE | W52: =AND($K$1="Y",L52>0) -> FALSE | X52: =COUNTIF(Table1015[[#This Row],[Competed 1]:[Competed 5]],"=TRUE") -> 3
A53: Naomi Clarke-Myers | B53: Sir Jonathon North CC | C53: 19 | D53: =IF(C53="-",0,C53) -> 19 | E53: - | F53: =IF(E53="-",0,E53) -> 0 | G53: 21 | H53: =IF(G53="-",0,G53) -> 21 | I53: - | J53: =IF(I53="-",0,I53) -> 0 | K53: - | L53: =IF(K53="-",0,K53) -> 0 | M53: =Table1015[[#This Row],[School]] -> Sir Jonathon North CC | N53: =D53+F53+H53+J53+L53 -> 40 | O53: =MAX(C53,E53,G53,I53,K53) -> 21 | P53: =IF(Q53=1,N53,IF(Q53=0,(N53-O53),"-")) -> - | Q53: =$L$1-Table1015[Competed Count] -> 2 | R53: =IF(Q53<2,"Yes","No") -> No | S53: =AND($C$1="Y",D53>0) -> TRUE | T53: =AND($E$1="Y",F53>0) -> FALSE | U53: =AND($G$1="Y",H53>0) -> TRUE | V53: =AND($I$1="Y",J53>0) -> FALSE | W53: =AND($K$1="Y",L53>0) -> FALSE | X53: =COUNTIF(Table1015[[#This Row],[Competed 1]:[Competed 5]],"=TRUE") -> 2
A54: Bethany Potter | B54: Loughborough High School | C54: - | D54: =IF(C54="-",0,C54) -> 0 | E54: 21 | F54: =IF(E54="-",0,E54) -> 21 | G54: 23 | H54: =IF(G54="-",0,G54) -> 23 | I54: - | J54: =IF(I54="-",0,I54) -> 0 | K54: - | L54: =IF(K54="-",0,K54) -> 0 | M54: =Table1015[[#This Row],[School]] -> Loughborough High School | N54: =D54+F54+H54+J54+L54 -> 44 | O54: =MAX(C54,E54,G54,I54,K54) -> 23 | P54: =IF(Q54=1,N54,IF(Q54=0,(N54-O54),"-")) -> - | Q54: =$L$1-Table1015[Competed Count] -> 2 | R54: =IF(Q54<2,"Yes","No") -> No | S54: =AND($C$1="Y",D54>0) -> FALSE | T54: =AND($E$1="Y",F54>0) -> TRUE | U54: =AND($G$1="Y",H54>0) -> TRUE | V54: =AND($I$1="Y",J54>0) -> FALSE | W54: =AND($K$1="Y",L54>0) -> FALSE | X54: =COUNTIF(Table1015[[#This Row],[Competed 1]:[Competed 5]],"=TRUE") -> 2
A55: Charlotte Carp | B55: Loughborough High School | C55: 26 | D55: =IF(C55="-",0,C55) -> 26 | E55: 17 | F55: =IF(E55="-",0,E55) -> 17 | G55: 29 | H55: =IF(G55="-",0,G55) -> 29 | I55: - | J55: =IF(I55="-",0,I55) -> 0 | K55: - | L55: =IF(K55="-",0,K55) -> 0 | M55: =Table1015[[#This Row],[School]] -> Loughborough High School | N55: =D55+F55+H55+J55+L55 -> 72 | O55: =MAX(C55,E55,G55,I55,K55) -> 29 | P55: =IF(Q55=1,N55,IF(Q55=0,(N55-O55),"-")) -> 72 | Q55: =$L$1-Table1015[Competed Count] -> 1 | R55: =IF(Q55<2,"Yes","No") -> Yes | S55: =AND($C$1="Y",D55>0) -> TRUE | T55: =AND($E$1="Y",F55>0) -> TRUE | U55: =AND($G$1="Y",H55>0) -> TRUE | V55: =AND($I$1="Y",J55>0) -> FALSE | W55: =AND($K$1="Y",L55>0) -> FALSE | X55: =COUNTIF(Table1015[[#This Row],[Competed 1]:[Competed 5]],"=TRUE") -> 3
A56: Alice Burton | B56: Catmose College | C56: 44 | D56: =IF(C56="-",0,C56) -> 44 | E56: 31 | F56: =IF(E56="-",0,E56) -> 31 | G56: 32 | H56: =IF(G56="-",0,G56) -> 32 | I56: - | J56: =IF(I56="-",0,I56) -> 0 | K56: - | L56: =IF(K56="-",0,K56) -> 0 | M56: =Table1015[[#This Row],[School]] -> Catmose College | N56: =D56+F56+H56+J56+L56 -> 107 | O56: =MAX(C56,E56,G56,I56,K56) -> 44 | P56: =IF(Q56=1,N56,IF(Q56=0,(N56-O56),"-")) -> 107 | Q56: =$L$1-Table1015[Competed Count] -> 1 | R56: =IF(Q56<2,"Yes","No") -> Yes | S56: =AND($C$1="Y",D56>0) -> TRUE | T56: =AND($E$1="Y",F56>0) -> TRUE | U56: =AND($G$1="Y",H56>0) -> TRUE | V56: =AND($I$1="Y",J56>0) -> FALSE | W56: =AND($K$1="Y",L56>0) -> FALSE | X56: =COUNTIF(Table1015[[#This Row],[Competed 1]:[Competed 5]],"=TRUE") -> 3
A57: Mia Channell | B57: Countesthorpe Leysland CC | C57: 52 | D57: =IF(C57="-",0,C57) -> 52 | E57: - | F57: =IF(E57="-",0,E57) -> 0 | G57: 33 | H57: =IF(G57="-",0,G57) -> 33 | I57: - | J57: =IF(I57="-",0,I57) -> 0 | K57: - | L57: =IF(K57="-",0,K57) -> 0 | M57: =Table1015[[#This Row],[School]] -> Countesthorpe Leysland CC | N57: =D57+F57+H57+J57+L57 -> 85 | O57: =MAX(C57,E57,G57,I57,K57) -> 52 | P57: =IF(Q57=1,N57,IF(Q57=0,(N57-O57),"-")) -> - | Q57: =$L$1-Table1015[Competed Count] -> 2 | R57: =IF(Q57<2,"Yes","No") -> No | S57: =AND($C$1="Y",D57>0) -> TRUE | T57: =AND($E$1="Y",F57>0) -> FALSE | U57: =AND($G$1="Y",H57>0) -> TRUE | V57: =AND($I$1="Y",J57>0) -> FALSE | W57: =AND($K$1="Y",L57>0) -> FALSE | X57: =COUNTIF(Table1015[[#This Row],[Competed 1]:[Competed 5]],"=TRUE") -> 2
A58: Anya Ibbottson | B58: St Martins Catholic Academy | C58: - | D58: =IF(C58="-",0,C58) -> 0 | E58: 20 | F58: =IF(E58="-",0,E58) -> 20 | G58: 37 | H58: =IF(G58="-",0,G58) -> 37 | I58: - | J58: =IF(I58="-",0,I58) -> 0 | K58: - | L58: =IF(K58="-",0,K58) -> 0 | M58: =Table1015[[#This Row],[School]] -> St Martins Catholic Academy | N58: =D58+F58+H58+J58+L58 -> 57 | O58: =MAX(C58,E58,G58,I58,K58) -> 37 | P58: =IF(Q58=1,N58,IF(Q58=0,(N58-O58),"-")) -> - | Q58: =$L$1-Table1015[Competed Count] -> 2 | R58: =IF(Q58<2,"Yes","No") -> No | S58: =AND($C$1="Y",D58>0) -> FALSE | T58: =AND($E$1="Y",F58>0) -> TRUE | U58: =AND($G$1="Y",H58>0) -> TRUE | V58: =AND($I$1="Y",J58>0) -> FALSE | W58: =AND($K$1="Y",L58>0) -> FALSE | X58: =COUNTIF(Table1015[[#This Row],[Competed 1]:[Competed 5]],"=TRUE") -> 2
A59: Jenny Sharpe | B59: John Ferneley College | C59: - | D59: =IF(C59="-",0,C59) -> 0 | E59: - | F59: =IF(E59="-",0,E59) -> 0 | G59: 42 | H59: =IF(G59="-",0,G59) -> 42 | I59: - | J59: =IF(I59="-",0,I59) -> 0 | K59: - | L59: =IF(K59="-",0,K59) -> 0 | M59: =Table1015[[#This Row],[School]] -> John Ferneley College | N59: =D59+F59+H59+J59+L59 -> 42 | O59: =MAX(C59,E59,G59,I59,K59) -> 42 | P59: =IF(Q59=1,N59,IF(Q59=0,(N59-O59),"-")) -> - | Q59: =$L$1-Table1015[Competed Count] -> 3 | R59: =IF(Q59<2,"Yes","No") -> No | S59: =AND($C$1="Y",D59>0) -> FALSE | T59: =AND($E$1="Y",F59>0) -> FALSE | U59: =AND($G$1="Y",H59>0) -> TRUE | V59: =AND($I$1="Y",J59>0) -> FALSE | W59: =AND($K$1="Y",L59>0) -> FALSE | X59: =COUNTIF(Table1015[[#This Row],[Competed 1]:[Competed 5]],"=TRUE") -> 1
A60: Maeve Stretton | B60: Brookvale High School | C60: 65 | D60: =IF(C60="-",0,C60) -> 65 | E60: 40 | F60: =IF(E60="-",0,E60) -> 40 | G60: 46 | H60: =IF(G60="-",0,G60) -> 46 | I60: - | J60: =IF(I60="-",0,I60) -> 0 | K60: - | L60: =IF(K60="-",0,K60) -> 0 | M60: =Table1015[[#This Row],[School]] -> Brookvale High School | N60: =D60+F60+H60+J60+L60 -> 151 | O60: =MAX(C60,E60,G60,I60,K60) -> 65 | P60: =IF(Q60=1,N60,IF(Q60=0,(N60-O60),"-")) -> 151 | Q60: =$L$1-Table1015[Competed Count] -> 1 | R60: =IF(Q60<2,"Yes","No") -> Yes | S60: =AND($C$1="Y",D60>0) -> TRUE | T60: =AND($E$1="Y",F60>0) -> TRUE | U60: =AND($G$1="Y",H60>0) -> TRUE | V60: =AND($I$1="Y",J60>0) -> FALSE | W60: =AND($K$1="Y",L60>0) -> FALSE | X60: =COUNTIF(Table1015[[#This Row],[Competed 1]:[Competed 5]],"=TRUE") -> 3
A61: Carys O'Reilly | B61: St Martins Catholic Academy | C61: 18 | D61: =IF(C61="-",0,C61) -> 18 | E61: 3 | F61: =IF(E61="-",0,E61) -> 3 | G61: - | H61: =IF(G61="-",0,G61) -> 0 | I61: - | J61: =IF(I61="-",0,I61) -> 0 | K61: - | L61: =IF(K61="-",0,K61) -> 0 | M61: =Table1015[[#This Row],[School]] -> St Martins Catholic Academy | N61: =D61+F61+H61+J61+L61 -> 21 | O61: =MAX(C61,E61,G61,I61,K61) -> 18 | P61: =IF(Q61=1,N61,IF(Q61=0,(N61-O61),"-")) -> - | Q61: =$L$1-Table1015[Competed Count] -> 2 | R61: =IF(Q61<2,"Yes","No") -> No | S61: =AND($C$1="Y",D61>0) -> TRUE | T61: =AND($E$1="Y",F61>0) -> TRUE | U61: =AND($G$1="Y",H61>0) -> FALSE | V61: =AND($I$1="Y",J61>0) -> FALSE | W61: =AND($K$1="Y",L61>0) -> FALSE | X61: =COUNTIF(Table1015[[#This Row],[Competed 1]:[Competed 5]],"=TRUE") -> 2
A62: Eva Walters | B62: Thomas Estley CC | C62: 17 | D62: =IF(C62="-",0,C62) -> 17 | E62: 6 | F62: =IF(E62="-",0,E62) -> 6 | G62: - | H62: =IF(G62="-",0,G62) -> 0 | I62: - | J62: =IF(I62="-",0,I62) -> 0 | K62: - | L62: =IF(K62="-",0,K62) -> 0 | M62: =Table1015[[#This Row],[School]] -> Thomas Estley CC | N62: =D62+F62+H62+J62+L62 -> 23 | O62: =MAX(C62,E62,G62,I62,K62) -> 17 | P62: =IF(Q62=1,N62,IF(Q62=0,(N62-O62),"-")) -> - | Q62: =$L$1-Table1015[Competed Count] -> 2 | R62: =IF(Q62<2,"Yes","No") -> No | S62: =AND($C$1="Y",D62>0) -> TRUE | T62: =AND($E$1="Y",F62>0) -> TRUE | U62: =AND($G$1="Y",H62>0) -> FALSE | V62: =AND($I$1="Y",J62>0) -> FALSE | W62: =AND($K$1="Y",L62>0) -> FALSE | X62: =COUNTIF(Table1015[[#This Row],[Competed 1]:[Competed 5]],"=TRUE") -> 2
A63: Isabelle Parker | B63: Wigston Academy | C63: - | D63: =IF(C63="-",0,C63) -> 0 | E63: 10 | F63: =IF(E63="-",0,E63) -> 10 | G63: - | H63: =IF(G63="-",0,G63) -> 0 | I63: - | J63: =IF(I63="-",0,I63) -> 0 | K63: - | L63: =IF(K63="-",0,K63) -> 0 | M63: =Table1015[[#This Row],[School]] -> Wigston Academy | N63: =D63+F63+H63+J63+L63 -> 10 | O63: =MAX(C63,E63,G63,I63,K63) -> 10 | P63: =IF(Q63=1,N63,IF(Q63=0,(N63-O63),"-")) -> - | Q63: =$L$1-Table1015[Competed Count] -> 3 | R63: =IF(Q63<2,"Yes","No") -> No | S63: =AND($C$1="Y",D63>0) -> FALSE | T63: =AND($E$1="Y",F63>0) -> TRUE | U63: =AND($G$1="Y",H63>0) -> FALSE | V63: =AND($I$1="Y",J63>0) -> FALSE | W63: =AND($K$1="Y",L63>0) -> FALSE | X63: =COUNTIF(Table1015[[#This Row],[Competed 1]:[Competed 5]],"=TRUE") -> 1
A64: Georgia Gilbert | B64: Catmose College | C64: - | D64: =IF(C64="-",0,C64) -> 0 | E64: 13 | F64: =IF(E64="-",0,E64) -> 13 | G64: - | H64: =IF(G64="-",0,G64) -> 0 | I64: - | J64: =IF(I64="-",0,I64) -> 0 | K64: - | L64: =IF(K64="-",0,K64) -> 0 | M64: =Table1015[[#This Row],[School]] -> Catmose College | N64: =D64+F64+H64+J64+L64 -> 13 | O64: =MAX(C64,E64,G64,I64,K64) -> 13 | P64: =IF(Q64=1,N64,IF(Q64=0,(N64-O64),"-")) -> - | Q64: =$L$1-Table1015[Competed Count] -> 3 | R64: =IF(Q64<2,"Yes","No") -> No | S64: =AND($C$1="Y",D64>0) -> FALSE | T64: =AND($E$1="Y",F64>0) -> TRUE | U64: =AND($G$1="Y",H64>0) -> FALSE | V64: =AND($I$1="Y",J64>0) -> FALSE | W64: =AND($K$1="Y",L64>0) -> FALSE | X64: =COUNTIF(Table1015[[#This Row],[Competed 1]:[Competed 5]],"=TRUE") -> 1
A65: Rosie Pearman | B65: Manor High School | C65: 24 | D65: =IF(C65="-",0,C65) -> 24 | E65: 18 | F65: =IF(E65="-",0,E65) -> 18 | G65: - | H65: =IF(G65="-",0,G65) -> 0 | I65: - | J65: =IF(I65="-",0,I65) -> 0 | K65: - | L65: =IF(K65="-",0,K65) -> 0 | M65: =Table1015[[#This Row],[School]] -> Manor High School | N65: =D65+F65+H65+J65+L65 -> 42 | O65: =MAX(C65,E65,G65,I65,K65) -> 24 | P65: =IF(Q65=1,N65,IF(Q65=0,(N65-O65),"-")) -> - | Q65: =$L$1-Table1015[Competed Count] -> 2 | R65: =IF(Q65<2,"Yes","No") -> No | S65: =AND($C$1="Y",D65>0) -> TRUE | T65: =AND($E$1="Y",F65>0) -> TRUE | U65: =AND($G$1="Y",H65>0) -> FALSE | V65: =AND($I$1="Y",J65>0) -> FALSE | W65: =AND($K$1="Y",L65>0) -> FALSE | X65: =COUNTIF(Table1015[[#This Row],[Competed 1]:[Competed 5]],"=TRUE") -> 2
A66: Charlotte Lethbridge | B66: De Lisle College | C66: 28 | D66: =IF(C66="-",0,C66) -> 28 | E66: 19 | F66: =IF(E66="-",0,E66) -> 19 | G66: - | H66: =IF(G66="-",0,G66) -> 0 | I66: - | J66: =IF(I66="-",0,I66) -> 0 | K66: - | L66: =IF(K66="-",0,K66) -> 0 | M66: =Table1015[[#This Row],[School]] -> De Lisle College | N66: =D66+F66+H66+J66+L66 -> 47 | O66: =MAX(C66,E66,G66,I66,K66) -> 28 | P66: =IF(Q66=1,N66,IF(Q66=0,(N66-O66),"-")) -> - | Q66: =$L$1-Table1015[Competed Count] -> 2 | R66: =IF(Q66<2,"Yes","No") -> No | S66: =AND($C$1="Y",D66>0) -> TRUE | T66: =AND($E$1="Y",F66>0) -> TRUE | U66: =AND($G$1="Y",H66>0) -> FALSE | V66: =AND($I$1="Y",J66>0) -> FALSE | W66: =AND($K$1="Y",L66>0) -> FALSE | X66: =COUNTIF(Table1015[[#This Row],[Competed 1]:[Competed 5]],"=TRUE") -> 2
A67: Annie Dudin | B67: Catmose College | C67: - | D67: =IF(C67="-",0,C67) -> 0 | E67: 26 | F67: =IF(E67="-",0,E67) -> 26 | G67: - | H67: =IF(G67="-",0,G67) -> 0 | I67: - | J67: =IF(I67="-",0,I67) -> 0 | K67: - | L67: =IF(K67="-",0,K67) -> 0 | M67: =Table1015[[#This Row],[School]] -> Catmose College | N67: =D67+F67+H67+J67+L67 -> 26 | O67: =MAX(C67,E67,G67,I67,K67) -> 26 | P67: =IF(Q67=1,N67,IF(Q67=0,(N67-O67),"-")) -> - | Q67: =$L$1-Table1015[Competed Count] -> 3 | R67: =IF(Q67<2,"Yes","No") -> No | S67: =AND($C$1="Y",D67>0) -> FALSE | T67: =AND($E$1="Y",F67>0) -> TRUE | U67: =AND($G$1="Y",H67>0) -> FALSE | V67: =AND($I$1="Y",J67>0) -> FALSE | W67: =AND($K$1="Y",L67>0) -> FALSE | X67: =COUNTIF(Table1015[[#This Row],[Competed 1]:[Competed 5]],"=TRUE") -> 1
A68: Hannah Brown | B68: Hinckley Academy | C68: 32 | D68: =IF(C68="-",0,C68) -> 32 | E68: 27 | F68: =IF(E68="-",0,E68) -> 27 | G68: - | H68: =IF(G68="-",0,G68) -> 0 | I68: - | J68: =IF(I68="-",0,I68) -> 0 | K68: - | L68: =IF(K68="-",0,K68) -> 0 | M68: =Table1015[[#This Row],[School]] -> Hinckley Academy | N68: =D68+F68+H68+J68+L68 -> 59 | O68: =MAX(C68,E68,G68,I68,K68) -> 32 | P68: =IF(Q68=1,N68,IF(Q68=0,(N68-O68),"-")) -> - | Q68: =$L$1-Table1015[Competed Count] -> 2 | R68: =IF(Q68<2,"Yes","No") -> No | S68: =AND($C$1="Y",D68>0) -> TRUE | T68: =AND($E$1="Y",F68>0) -> TRUE | U68: =AND($G$1="Y",H68>0) -> FALSE | V68: =AND($I$1="Y",J68>0) -> FALSE | W68: =AND($K$1="Y",L68>0) -> FALSE | X68: =COUNTIF(Table1015[[#This Row],[Competed 1]:[Competed 5]],"=TRUE") -> 2
A69: Beth Pugh | B69: St Martins Catholic Academy | C69: 56 | D69: =IF(C69="-",0,C69) -> 56 | E69: 30 | F69: =IF(E69="-",0,E69) -> 30 | G69: - | H69: =IF(G69="-",0,G69) -> 0 | I69: - | J69: =IF(I69="-",0,I69) -> 0 | K69: - | L69: =IF(K69="-",0,K69) -> 0 | M69: =Table1015[[#This Row],[School]] -> St Martins Catholic Academy | N69: =D69+F69+H69+J69+L69 -> 86 | O69: =MAX(C69,E69,G69,I69,K69) -> 56 | P69: =IF(Q69=1,N69,IF(Q69=0,(N69-O69),"-")) -> - | Q69: =$L$1-Table1015[Competed Count] -> 2 | R69: =IF(Q69<2,"Yes","No") -> No | S69: =AND($C$1="Y",D69>0) -> TRUE | T69: =AND($E$1="Y",F69>0) -> TRUE | U69: =AND($G$1="Y",H69>0) -> FALSE | V69: =AND($I$1="Y",J69>0) -> FALSE | W69: =AND($K$1="Y",L69>0) -> FALSE | X69: =COUNTIF(Table1015[[#This Row],[Competed 1]:[Competed 5]],"=TRUE") -> 2
A70: Isobelle Andrews | B70: Catmose College | C70: 60 | D70: =IF(C70="-",0,C70) -> 60 | E70: 39 | F70: =IF(E70="-",0,E70) -> 39 | G70: - | H70: =IF(G70="-",0,G70) -> 0 | I70: - | J70: =IF(I70="-",0,I70) -> 0 | K70: - | L70: =IF(K70="-",0,K70) -> 0 | M70: =Table1015[[#This Row],[School]] -> Catmose College | N70: =D70+F70+H70+J70+L70 -> 99 | O70: =MAX(C70,E70,G70,I70,K70) -> 60 | P70: =IF(Q70=1,N70,IF(Q70=0,(N70-O70),"-")) -> - | Q70: =$L$1-Table1015[Competed Count] -> 2 | R70: =IF(Q70<2,"Yes","No") -> No | S70: =AND($C$1="Y",D70>0) -> TRUE | T70: =AND($E$1="Y",F70>0) -> TRUE | U70: =AND($G$1="Y",H70>0) -> FALSE | V70: =AND($I$1="Y",J70>0) -> FALSE | W70: =AND($K$1="Y",L70>0) -> FALSE | X70: =COUNTIF(Table1015[[#This Row],[Competed 1]:[Competed 5]],"=TRUE") -> 2
A71: Grace Pugh | B71: St Martins Catholic Academy | C71: 57 | D71: =IF(C71="-",0,C71) -> 57 | E71: 41 | F71: =IF(E71="-",0,E71) -> 41 | G71: - | H71: =IF(G71="-",0,G71) -> 0 | I71: - | J71: =IF(I71="-",0,I71) -> 0 | K71: - | L71: =IF(K71="-",0,K71) -> 0 | M71: =Table1015[[#This Row],[School]] -> St Martins Catholic Academy | N71: =D71+F71+H71+J71+L71 -> 98 | O71: =MAX(C71,E71,G71,I71,K71) -> 57 | P71: =IF(Q71=1,N71,IF(Q71=0,(N71-O71),"-")) -> - | Q71: =$L$1-Table1015[Competed Count] -> 2 | R71: =IF(Q71<2,"Yes","No") -> No | S71: =AND($C$1="Y",D71>0) -> TRUE | T71: =AND($E$1="Y",F71>0) -> TRUE | U71: =AND($G$1="Y",H71>0) -> FALSE | V71: =AND($I$1="Y",J71>0) -> FALSE | W71: =AND($K$1="Y",L71>0) -> FALSE | X71: =COUNTIF(Table1015[[#This Row],[Competed 1]:[Competed 5]],"=TRUE") -> 2
A72: Ellie Broadbent | B72: Lutterworth High School | C72: 63 | D72: =IF(C72="-",0,C72) -> 63 | E72: 42 | F72: =IF(E72="-",0,E72) -> 42 | G72: - | H72: =IF(G72="-",0,G72) -> 0 | I72: - | J72: =IF(I72="-",0,I72) -> 0 | K72: - | L72: =IF(K72="-",0,K72) -> 0 | M72: =Table1015[[#This Row],[School]] -> Lutterworth High School | N72: =D72+F72+H72+J72+L72 -> 105 | O72: =MAX(C72,E72,G72,I72,K72) -> 63 | P72: =IF(Q72=1,N72,IF(Q72=0,(N72-O72),"-")) -> - | Q72: =$L$1-Table1015[Competed Count] -> 2 | R72: =IF(Q72<2,"Yes","No") -> No | S72: =AND($C$1="Y",D72>0) -> TRUE | T72: =AND($E$1="Y",F72>0) -> TRUE | U72: =AND($G$1="Y",H72>0) -> FALSE | V72: =AND($I$1="Y",J72>0) -> FALSE | W72: =AND($K$1="Y",L72>0) -> FALSE | X72: =COUNTIF(Table1015[[#This Row],[Competed 1]:[Competed 5]],"=TRUE") -> 2
A73: Lucy Twittey | B73: John Ferneley College | C73: 62 | D73: =IF(C73="-",0,C73) -> 62 | E73: 43 | F73: =IF(E73="-",0,E73) -> 43 | G73: - | H73: =IF(G73="-",0,G73) -> 0 | I73: - | J73: =IF(I73="-",0,I73) -> 0 | K73: - | L73: =IF(K73="-",0,K73) -> 0 | M73: =Table1015[[#This Row],[School]] -> John Ferneley College | N73: =D73+F73+H73+J73+L73 -> 105 | O73: =MAX(C73,E73,G73,I73,K73) -> 62 | P73: =IF(Q73=1,N73,IF(Q73=0,(N73-O73),"-")) -> - | Q73: =$L$1-Table1015[Competed Count] -> 2 | R73: =IF(Q73<2,"Yes","No") -> No | S73: =AND($C$1="Y",D73>0) -> TRUE | T73: =AND($E$1="Y",F73>0) -> TRUE | U73: =AND($G$1="Y",H73>0) -> FALSE | V73: =AND($I$1="Y",J73>0) -> FALSE | W73: =AND($K$1="Y",L73>0) -> FALSE | X73: =COUNTIF(Table1015[[#This Row],[Competed 1]:[Competed 5]],"=TRUE") -> 2
A74: Kate Bradshaw | B74: Thomas Estley CC | C74: 66 | D74: =IF(C74="-",0,C74) -> 66 | E74: 46 | F74: =IF(E74="-",0,E74) -> 46 | G74: - | H74: =IF(G74="-",0,G74) -> 0 | I74: - | J74: =IF(I74="-",0,I74) -> 0 | K74: - | L74: =IF(K74="-",0,K74) -> 0 | M74: =Table1015[[#This Row],[School]] -> Thomas Estley CC | N74: =D74+F74+H74+J74+L74 -> 112 | O74: =MAX(C74,E74,G74,I74,K74) -> 66 | P74: =IF(Q74=1,N74,IF(Q74=0,(N74-O74),"-")) -> - | Q74: =$L$1-Table1015[Competed Count] -> 2 | R74: =IF(Q74<2,"Yes","No") -> No | S74: =AND($C$1="Y",D74>0) -> TRUE | T74: =AND($E$1="Y",F74>0) -> TRUE | U74: =AND($G$1="Y",H74>0) -> FALSE | V74: =AND($I$1="Y",J74>0) -> FALSE | W74: =AND($K$1="Y",L74>0) -> FALSE | X74: =COUNTIF(Table1015[[#This Row],[Competed 1]:[Competed 5]],"=TRUE") -> 2
A75: Aisha Amos Howell | B75: Kibworth School | C75: 68 | D75: =IF(C75="-",0,C75) -> 68 | E75: 50 | F75: =IF(E75="-",0,E75) -> 50 | G75: - | H75: =IF(G75="-",0,G75) -> 0 | I75: - | J75: =IF(I75="-",0,I75) -> 0 | K75: - | L75: =IF(K75="-",0,K75) -> 0 | M75: =Table1015[[#This Row],[School]] -> Kibworth School | N75: =D75+F75+H75+J75+L75 -> 118 | O75: =MAX(C75,E75,G75,I75,K75) -> 68 | P75: =IF(Q75=1,N75,IF(Q75=0,(N75-O75),"-")) -> - | Q75: =$L$1-Table1015[Competed Count] -> 2 | R75: =IF(Q75<2,"Yes","No") -> No | S75: =AND($C$1="Y",D75>0) -> TRUE | T75: =AND($E$1="Y",F75>0) -> TRUE | U75: =AND($G$1="Y",H75>0) -> FALSE | V75: =AND($I$1="Y",J75>0) -> FALSE | W75: =AND($K$1="Y",L75>0) -> FALSE | X75: =COUNTIF(Table1015[[#This Row],[Competed 1]:[Competed 5]],"=TRUE") -> 2
A76: Danielle Baxter | B76: De Lisle College | C76: - | D76: =IF(C76="-",0,C76) -> 0 | E76: 51 | F76: =IF(E76="-",0,E76) -> 51 | G76: - | H76: =IF(G76="-",0,G76) -> 0 | I76: - | J76: =IF(I76="-",0,I76) -> 0 | K76: - | L76: =IF(K76="-",0,K76) -> 0 | M76: =Table1015[[#This Row],[School]] -> De Lisle College | N76: =D76+F76+H76+J76+L76 -> 51 | O76: =MAX(C76,E76,G76,I76,K76) -> 51 | P76: =IF(Q76=1,N76,IF(Q76=0,(N76-O76),"-")) -> - | Q76: =$L$1-Table1015[Competed Count] -> 3 | R76: =IF(Q76<2,"Yes","No") -> No | S76: =AND($C$1="Y",D76>0) -> FALSE | T76: =AND($E$1="Y",F76>0) -> TRUE | U76: =AND($G$1="Y",H76>0) -> FALSE | V76: =AND($I$1="Y",J76>0) -> FALSE | W76: =AND($K$1="Y",L76>0) -> FALSE | X76: =COUNTIF(Table1015[[#This Row],[Competed 1]:[Competed 5]],"=TRUE") -> 1
A77: Samantha Dyson | B77: The Market Bosworth School | C77: 22 | D77: =IF(C77="-",0,C77) -> 22 | E77: - | F77: =IF(E77="-",0,E77) -> 0 | G77: - | H77: =IF(G77="-",0,G77) -> 0 | I77: - | J77: =IF(I77="-",0,I77) -> 0 | K77: - | L77: =IF(K77="-",0,K77) -> 0 | M77: =Table1015[[#This Row],[School]] -> The Market Bosworth School | N77: =D77+F77+H77+J77+L77 -> 22 | O77: =MAX(C77,E77,G77,I77,K77) -> 22 | P77: =IF(Q77=1,N77,IF(Q77=0,(N77-O77),"-")) -> - | Q77: =$L$1-Table1015[Competed Count] -> 3 | R77: =IF(Q77<2,"Yes","No") -> No | S77: =AND($C$1="Y",D77>0) -> TRUE | T77: =AND($E$1="Y",F77>0) -> FALSE | U77: =AND($G$1="Y",H77>0) -> FALSE | V77: =AND($I$1="Y",J77>0) -> FALSE | W77: =AND($K$1="Y",L77>0) -> FALSE | X77: =COUNTIF(Table1015[[#This Row],[Competed 1]:[Competed 5]],"=TRUE") -> 1
A78: Imogen Here | B78: Rawlins Academy | C78: 37 | D78: =IF(C78="-",0,C78) -> 37 | E78: - | F78: =IF(E78="-",0,E78) -> 0 | G78: - | H78: =IF(G78="-",0,G78) -> 0 | I78: - | J78: =IF(I78="-",0,I78) -> 0 | K78: - | L78: =IF(K78="-",0,K78) -> 0 | M78: =Table1015[[#This Row],[School]] -> Rawlins Academy | N78: =D78+F78+H78+J78+L78 -> 37 | O78: =MAX(C78,E78,G78,I78,K78) -> 37 | P78: =IF(Q78=1,N78,IF(Q78=0,(N78-O78),"-")) -> - | Q78: =$L$1-Table1015[Competed Count] -> 3 | R78: =IF(Q78<2,"Yes","No") -> No | S78: =AND($C$1="Y",D78>0) -> TRUE | T78: =AND($E$1="Y",F78>0) -> FALSE | U78: =AND($G$1="Y",H78>0) -> FALSE | V78: =AND($I$1="Y",J78>0) -> FALSE | W78: =AND($K$1="Y",L78>0) -> FALSE | X78: =COUNTIF(Table1015[[#This Row],[Competed 1]:[Competed 5]],"=TRUE") -> 1
A79: Mia Champneys-Davies | B79: Shepshed High School | C79: 38 | D79: =IF(C79="-",0,C79) -> 38 | E79: - | F79: =IF(E79="-",0,E79) -> 0 | G79: - | H79: =IF(G79="-",0,G79) -> 0 | I79: - | J79: =IF(I79="-",0,I79) -> 0 | K79: - | L79: =IF(K79="-",0,K79) -> 0 | M79: =Table1015[[#This Row],[School]] -> Shepshed High School | N79: =D79+F79+H79+J79+L79 -> 38 | O79: =MAX(C79,E79,G79,I79,K79) -> 38 | P79: =IF(Q79=1,N79,IF(Q79=0,(N79-O79),"-")) -> - | Q79: =$L$1-Table1015[Competed Count] -> 3 | R79: =IF(Q79<2,"Yes","No") -> No | S79: =AND($C$1="Y",D79>0) -> TRUE | T79: =AND($E$1="Y",F79>0) -> FALSE | U79: =AND($G$1="Y",H79>0) -> FALSE | V79: =AND($I$1="Y",J79>0) -> FALSE | W79: =AND($K$1="Y",L79>0) -> FALSE | X79: =COUNTIF(Table1015[[#This Row],[Competed 1]:[Competed 5]],"=TRUE") -> 1
A80: Megan Webster | B80: Woodbrook Vale School | C80: 41 | D80: =IF(C80="-",0,C80) -> 41 | E80: - | F80: =IF(E80="-",0,E80) -> 0 | G80: - | H80: =IF(G80="-",0,G80) -> 0 | I80: - | J80: =IF(I80="-",0,I80) -> 0 | K80: - | L80: =IF(K80="-",0,K80) -> 0 | M80: =Table1015[[#This Row],[School]] -> Woodbrook Vale School | N80: =D80+F80+H80+J80+L80 -> 41 | O80: =MAX(C80,E80,G80,I80,K80) -> 41 | P80: =IF(Q80=1,N80,IF(Q80=0,(N80-O80),"-")) -> - | Q80: =$L$1-Table1015[Competed Count] -> 3 | R80: =IF(Q80<2,"Yes","No") -> No | S80: =AND($C$1="Y",D80>0) -> TRUE | T80: =AND($E$1="Y",F80>0) -> FALSE | U80: =AND($G$1="Y",H80>0) -> FALSE | V80: =AND($I$1="Y",J80>0) -> FALSE | W80: =AND($K$1="Y",L80>0) -> FALSE | X80: =COUNTIF(Table1015[[#This Row],[Competed 1]:[Competed 5]],"=TRUE") -> 1
A81: Emily Buckler | B81: Lutterworth College | C81: 53 | D81: =IF(C81="-",0,C81) -> 53 | E81: - | F81: =IF(E81="-",0,E81) -> 0 | G81: - | H81: =IF(G81="-",0,G81) -> 0 | I81: - | J81: =IF(I81="-",0,I81) -> 0 | K81: - | L81: =IF(K81="-",0,K81) -> 0 | M81: =Table1015[[#This Row],[School]] -> Lutterworth College | N81: =D81+F81+H81+J81+L81 -> 53 | O81: =MAX(C81,E81,G81,I81,K81) -> 53 | P81: =IF(Q81=1,N81,IF(Q81=0,(N81-O81),"-")) -> - | Q81: =$L$1-Table1015[Competed Count] -> 3 | R81: =IF(Q81<2,"Yes","No") -> No | S81: =AND($C$1="Y",D81>0) -> TRUE | T81: =AND($E$1="Y",F81>0) -> FALSE | U81: =AND($G$1="Y",H81>0) -> FALSE | V81: =AND($I$1="Y",J81>0) -> FALSE | W81: =AND($K$1="Y",L81>0) -> FALSE | X81: =COUNTIF(Table1015[[#This Row],[Competed 1]:[Competed 5]],"=TRUE") -> 1
A82: Maddie Silver | B82: St Martins Catholic Academy | C82: 55 | D82: =IF(C82="-",0,C82) -> 55 | E82: - | F82: =IF(E82="-",0,E82) -> 0 | G82: - | H82: =IF(G82="-",0,G82) -> 0 | I82: - | J82: =IF(I82="-",0,I82) -> 0 | K82: - | L82: =IF(K82="-",0,K82) -> 0 | M82: =Table1015[[#This Row],[School]] -> St Martins Catholic Academy | N82: =D82+F82+H82+J82+L82 -> 55 | O82: =MAX(C82,E82,G82,I82,K82) -> 55 | P82: =IF(Q82=1,N82,IF(Q82=0,(N82-O82),"-")) -> - | Q82: =$L$1-Table1015[Competed Count] -> 3 | R82: =IF(Q82<2,"Yes","No") -> No | S82: =AND($C$1="Y",D82>0) -> TRUE | T82: =AND($E$1="Y",F82>0) -> FALSE | U82: =AND($G$1="Y",H82>0) -> FALSE | V82: =AND($I$1="Y",J82>0) -> FALSE | W82: =AND($K$1="Y",L82>0) -> FALSE | X82: =COUNTIF(Table1015[[#This Row],[Competed 1]:[Competed 5]],"=TRUE") -> 1
A83: Honey Muak-Walton | B83: The Martin High School | C83: 58 | D83: =IF(C83="-",0,C83) -> 58 | E83: - | F83: =IF(E83="-",0,E83) -> 0 | G83: - | H83: =IF(G83="-",0,G83) -> 0 | I83: - | J83: =IF(I83="-",0,I83) -> 0 | K83: - | L83: =IF(K83="-",0,K83) -> 0 | M83: =Table1015[[#This Row],[School]] -> The Martin High School | N83: =D83+F83+H83+J83+L83 -> 58 | O83: =MAX(C83,E83,G83,I83,K83) -> 58 | P83: =IF(Q83=1,N83,IF(Q83=0,(N83-O83),"-")) -> - | Q83: =$L$1-Table1015[Competed Count] -> 3 | R83: =IF(Q83<2,"Yes","No") -> No | S83: =AND($C$1="Y",D83>0) -> TRUE | T83: =AND($E$1="Y",F83>0) -> FALSE | U83: =AND($G$1="Y",H83>0) -> FALSE | V83: =AND($I$1="Y",J83>0) -> FALSE | W83: =AND($K$1="Y",L83>0) -> FALSE | X83: =COUNTIF(Table1015[[#This Row],[Competed 1]:[Competed 5]],"=TRUE") -> 1
A84: Maddie Furr | B84: Manor High School | C84: 59 | D84: =IF(C84="-",0,C84) -> 59 | E84: - | F84: =IF(E84="-",0,E84) -> 0 | G84: - | H84: =IF(G84="-",0,G84) -> 0 | I84: - | J84: =IF(I84="-",0,I84) -> 0 | K84: - | L84: =IF(K84="-",0,K84) -> 0 | M84: =Table1015[[#This Row],[School]] -> Manor High School | N84: =D84+F84+H84+J84+L84 -> 59 | O84: =MAX(C84,E84,G84,I84,K84) -> 59 | P84: =IF(Q84=1,N84,IF(Q84=0,(N84-O84),"-")) -> - | Q84: =$L$1-Table1015[Competed Count] -> 3 | R84: =IF(Q84<2,"Yes","No") -> No | S84: =AND($C$1="Y",D84>0) -> TRUE | T84: =AND($E$1="Y",F84>0) -> FALSE | U84: =AND($G$1="Y",H84>0) -> FALSE | V84: =AND($I$1="Y",J84>0) -> FALSE | W84: =AND($K$1="Y",L84>0) -> FALSE | X84: =COUNTIF(Table1015[[#This Row],[Competed 1]:[Competed 5]],"=TRUE") -> 1
A85: Cerys Andrew | B85: St Pauls Catholic School | C85: 61 | D85: =IF(C85="-",0,C85) -> 61 | E85: - | F85: =IF(E85="-",0,E85) -> 0 | G85: - | H85: =IF(G85="-",0,G85) -> 0 | I85: - | J85: =IF(I85="-",0,I85) -> 0 | K85: - | L85: =IF(K85="-",0,K85) -> 0 | M85: =Table1015[[#This Row],[School]] -> St Pauls Catholic School | N85: =D85+F85+H85+J85+L85 -> 61 | O85: =MAX(C85,E85,G85,I85,K85) -> 61 | P85: =IF(Q85=1,N85,IF(Q85=0,(N85-O85),"-")) -> - | Q85: =$L$1-Table1015[Competed Count] -> 3 | R85: =IF(Q85<2,"Yes","No") -> No | S85: =AND($C$1="Y",D85>0) -> TRUE | T85: =AND($E$1="Y",F85>0) -> FALSE | U85: =AND($G$1="Y",H85>0) -> FALSE | V85: =AND($I$1="Y",J85>0) -> FALSE | W85: =AND($K$1="Y",L85>0) -> FALSE | X85: =COUNTIF(Table1015[[#This Row],[Competed 1]:[Competed 5]],"=TRUE") -> 1
A86: Audrey Soubeman-Box | B86: Uppingham CC | C86: 71 | D86: =IF(C86="-",0,C86) -> 71 | E86: - | F86: =IF(E86="-",0,E86) -> 0 | G86: - | H86: =IF(G86="-",0,G86) -> 0 | I86: - | J86: =IF(I86="-",0,I86) -> 0 | K86: - | L86: =IF(K86="-",0,K86) -> 0 | M86: =Table1015[[#This Row],[School]] -> Uppingham CC | N86: =D86+F86+H86+J86+L86 -> 71 | O86: =MAX(C86,E86,G86,I86,K86) -> 71 | P86: =IF(Q86=1,N86,IF(Q86=0,(N86-O86),"-")) -> - | Q86: =$L$1-Table1015[Competed Count] -> 3 | R86: =IF(Q86<2,"Yes","No") -> No | S86: =AND($C$1="Y",D86>0) -> TRUE | T86: =AND($E$1="Y",F86>0) -> FALSE | U86: =AND($G$1="Y",H86>0) -> FALSE | V86: =AND($I$1="Y",J86>0) -> FALSE | W86: =AND($K$1="Y",L86>0) -> FALSE | X86: =COUNTIF(Table1015[[#This Row],[Competed 1]:[Competed 5]],"=TRUE") -> 1
A87: Shreya Patel | B87: Crown Hills CC | C87: 73 | D87: =IF(C87="-",0,C87) -> 73 | E87: - | F87: =IF(E87="-",0,E87) -> 0 | G87: - | H87: =IF(G87="-",0,G87) -> 0 | I87: - | J87: =IF(I87="-",0,I87) -> 0 | K87: - | L87: =IF(K87="-",0,K87) -> 0 | M87: =Table1015[[#This Row],[School]] -> Crown Hills CC | N87: =D87+F87+H87+J87+L87 -> 73 | O87: =MAX(C87,E87,G87,I87,K87) -> 73 | P87: =IF(Q87=1,N87,IF(Q87=0,(N87-O87),"-")) -> - | Q87: =$L$1-Table1015[Competed Count] -> 3 | R87: =IF(Q87<2,"Yes","No") -> No | S87: =AND($C$1="Y",D87>0) -> TRUE | T87: =AND($E$1="Y",F87>0) -> FALSE | U87: =AND($G$1="Y",H87>0) -> FALSE | V87: =AND($I$1="Y",J87>0) -> FALSE | W87: =AND($K$1="Y",L87>0) -> FALSE | X87: =COUNTIF(Table1015[[#This Row],[Competed 1]:[Competed 5]],"=TRUE") -> 1
A88: Kaushika Vimu | B88: Crown Hills CC | C88: 74 | D88: =IF(C88="-",0,C88) -> 74 | E88: - | F88: =IF(E88="-",0,E88) -> 0 | G88: - | H88: =IF(G88="-",0,G88) -> 0 | I88: - | J88: =IF(I88="-",0,I88) -> 0 | K88: - | L88: =IF(K88="-",0,K88) -> 0 | M88: =Table1015[[#This Row],[School]] -> Crown Hills CC | N88: =D88+F88+H88+J88+L88 -> 74 | O88: =MAX(C88,E88,G88,I88,K88) -> 74 | P88: =IF(Q88=1,N88,IF(Q88=0,(N88-O88),"-")) -> - | Q88: =$L$1-Table1015[Competed Count] -> 3 | R88: =IF(Q88<2,"Yes","No") -> No | S88: =AND($C$1="Y",D88>0) -> TRUE | T88: =AND($E$1="Y",F88>0) -> FALSE | U88: =AND($G$1="Y",H88>0) -> FALSE | V88: =AND($I$1="Y",J88>0) -> FALSE | W88: =AND($K$1="Y",L88>0) -> FALSE | X88: =COUNTIF(Table1015[[#This Row],[Competed 1]:[Competed 5]],"=TRUE") -> 1
A89: Mishrta Nanj | B89: Crown Hills CC | C89: 75 | D89: =IF(C89="-",0,C89) -> 75 | E89: - | F89: =IF(E89="-",0,E89) -> 0 | G89: - | H89: =IF(G89="-",0,G89) -> 0 | I89: - | J89: =IF(I89="-",0,I89) -> 0 | K89: - | L89: =IF(K89="-",0,K89) -> 0 | M89: =Table1015[[#This Row],[School]] -> Crown Hills CC | N89: =D89+F89+H89+J89+L89 -> 75 | O89: =MAX(C89,E89,G89,I89,K89) -> 75 | P89: =IF(Q89=1,N89,IF(Q89=0,(N89-O89),"-")) -> - | Q89: =$L$1-Table1015[Competed Count] -> 3 | R89: =IF(Q89<2,"Yes","No") -> No | S89: =AND($C$1="Y",D89>0) -> TRUE | T89: =AND($E$1="Y",F89>0) -> FALSE | U89: =AND($G$1="Y",H89>0) -> FALSE | V89: =AND($I$1="Y",J89>0) -> FALSE | W89: =AND($K$1="Y",L89>0) -> FALSE | X89: =COUNTIF(Table1015[[#This Row],[Competed 1]:[Competed 5]],"=TRUE") -> 1
A90: Jashvanti Shantilal | B90: Crown Hills CC | C90: 76 | D90: =IF(C90="-",0,C90) -> 76 | E90: - | F90: =IF(E90="-",0,E90) -> 0 | G90: - | H90: =IF(G90="-",0,G90) -> 0 | I90: - | J90: =IF(I90="-",0,I90) -> 0 | K90: - | L90: =IF(K90="-",0,K90) -> 0 | M90: =Table1015[[#This Row],[School]] -> Crown Hills CC | N90: =D90+F90+H90+J90+L90 -> 76 | O90: =MAX(C90,E90,G90,I90,K90) -> 76 | P90: =IF(Q90=1,N90,IF(Q90=0,(N90-O90),"-")) -> - | Q90: =$L$1-Table1015[Competed Count] -> 3 | R90: =IF(Q90<2,"Yes","No") -> No | S90: =AND($C$1="Y",D90>0) -> TRUE | T90: =AND($E$1="Y",F90>0) -> FALSE | U90: =AND($G$1="Y",H90>0) -> FALSE | V90: =AND($I$1="Y",J90>0) -> FALSE | W90: =AND($K$1="Y",L90>0) -> FALSE | X90: =COUNTIF(Table1015[[#This Row],[Competed 1]:[Competed 5]],"=TRUE") -> 1
A91: Kinjal Vinudkumar | B91: Crown Hills CC | C91: 77 | D91: =IF(C91="-",0,C91) -> 77 | E91: - | F91: =IF(E91="-",0,E91) -> 0 | G91: - | H91: =IF(G91="-",0,G91) -> 0 | I91: - | J91: =IF(I91="-",0,I91) -> 0 | K91: - | L91: =IF(K91="-",0,K91) -> 0 | M91: =Table1015[[#This Row],[School]] -> Crown Hills CC | N91: =D91+F91+H91+J91+L91 -> 77 | O91: =MAX(C91,E91,G91,I91,K91) -> 77 | P91: =IF(Q91=1,N91,IF(Q91=0,(N91-O91),"-")) -> - | Q91: =$L$1-Table1015[Competed Count] -> 3 | R91: =IF(Q91<2,"Yes","No") -> No | S91: =AND($C$1="Y",D91>0) -> TRUE | T91: =AND($E$1="Y",F91>0) -> FALSE | U91: =AND($G$1="Y",H91>0) -> FALSE | V91: =AND($I$1="Y",J91>0) -> FALSE | W91: =AND($K$1="Y",L91>0) -> FALSE | X91: =COUNTIF(Table1015[[#This Row],[Competed 1]:[Competed 5]],"=TRUE") -> 1
A92: Vaisbali Parshotam | B92: Crown Hills CC | C92: 78 | D92: =IF(C92="-",0,C92) -> 78 | E92: - | F92: =IF(E92="-",0,E92) -> 0 | G92: - | H92: =IF(G92="-",0,G92) -> 0 | I92: - | J92: =IF(I92="-",0,I92) -> 0 | K92: - | L92: =IF(K92="-",0,K92) -> 0 | M92: =Table1015[[#This Row],[School]] -> Crown Hills CC | N92: =D92+F92+H92+J92+L92 -> 78 | O92: =MAX(C92,E92,G92,I92,K92) -> 78 | P92: =IF(Q92=1,N92,IF(Q92=0,(N92-O92),"-")) -> - | Q92: =$L$1-Table1015[Competed Count] -> 3 | R92: =IF(Q92<2,"Yes","No") -> No | S92: =AND($C$1="Y",D92>0) -> TRUE | T92: =AND($E$1="Y",F92>0) -> FALSE | U92: =AND($G$1="Y",H92>0) -> FALSE | V92: =AND($I$1="Y",J92>0) -> FALSE | W92: =AND($K$1="Y",L92>0) -> FALSE | X92: =COUNTIF(Table1015[[#This Row],[Competed 1]:[Competed 5]],"=TRUE") -> 1
A93: Alice Vikas | B93: Crown Hills CC | C93: 79 | D93: =IF(C93="-",0,C93) -> 79 | E93: - | F93: =IF(E93="-",0,E93) -> 0 | G93: - | H93: =IF(G93="-",0,G93) -> 0 | I93: - | J93: =IF(I93="-",0,I93) -> 0 | K93: - | L93: =IF(K93="-",0,K93) -> 0 | M93: =Table1015[[#This Row],[School]] -> Crown Hills CC | N93: =D93+F93+H93+J93+L93 -> 79 | O93: =MAX(C93,E93,G93,I93,K93) -> 79 | P93: =IF(Q93=1,N93,IF(Q93=0,(N93-O93),"-")) -> - | Q93: =$L$1-Table1015[Competed Count] -> 3 | R93: =IF(Q93<2,"Yes","No") -> No | S93: =AND($C$1="Y",D93>0) -> TRUE | T93: =AND($E$1="Y",F93>0) -> FALSE | U93: =AND($G$1="Y",H93>0) -> FALSE | V93: =AND($I$1="Y",J93>0) -> FALSE | W93: =AND($K$1="Y",L93>0) -> FALSE | X93: =COUNTIF(Table1015[[#This Row],[Competed 1]:[Competed 5]],"=TRUE") -> 1
B94: - | C94: - | D94: =IF(C94="-",0,C94) -> 0 | E94: - | F94: =IF(E94="-",0,E94) -> 0 | G94: - | H94: =IF(G94="-",0,G94) -> 0 | I94: - | J94: =IF(I94="-",0,I94) -> 0 | K94: - | L94: =IF(K94="-",0,K94) -> 0 | M94: =Table1015[[#This Row],[School]] -> - | N94: =D94+F94+H94+J94+L94 -> 0 | O94: =MAX(C94,E94,G94,I94,K94) -> 0 | P94: =IF(Q94=1,N94,IF(Q94=0,(N94-O94),"-")) -> - | Q94: =$L$1-Table1015[Competed Count] -> 4 | R94: =IF(Q94<2,"Yes","No") -> No | S94: =AND($C$1="Y",D94>0) -> FALSE | T94: =AND($E$1="Y",F94>0) -> FALSE | U94: =AND($G$1="Y",H94>0) -> FALSE | V94: =AND($I$1="Y",J94>0) -> FALSE | W94: =AND($K$1="Y",L94>0) -> FALSE | X94: =COUNTIF(Table1015[[#This Row],[Competed 1]:[Competed 5]],"=TRUE") -> 0
B95: - | C95: - | D95: =IF(C95="-",0,C95) -> 0 | E95: - | F95: =IF(E95="-",0,E95) -> 0 | G95: - | H95: =IF(G95="-",0,G95) -> 0 | I95: - | J95: =IF(I95="-",0,I95) -> 0 | K95: - | L95: =IF(K95="-",0,K95) -> 0 | M95: =Table1015[[#This Row],[School]] -> - | N95: =D95+F95+H95+J95+L95 -> 0 | O95: =MAX(C95,E95,G95,I95,K95) -> 0 | P95: =IF(Q95=1,N95,IF(Q95=0,(N95-O95),"-")) -> - | Q95: =$L$1-Table1015[Competed Count] -> 4 | R95: =IF(Q95<2,"Yes","No") -> No | S95: =AND($C$1="Y",D95>0) -> FALSE | T95: =AND($E$1="Y",F95>0) -> FALSE | U95: =AND($G$1="Y",H95>0) -> FALSE | V95: =AND($I$1="Y",J95>0) -> FALSE | W95: =AND($K$1="Y",L95>0) -> FALSE | X95: =COUNTIF(Table1015[[#This Row],[Competed 1]:[Competed 5]],"=TRUE") -> 0
B96: - | C96: - | D96: =IF(C96="-",0,C96) -> 0 | E96: - | F96: =IF(E96="-",0,E96) -> 0 | G96: - | H96: =IF(G96="-",0,G96) -> 0 | I96: - | J96: =IF(I96="-",0,I96) -> 0 | K96: - | L96: =IF(K96="-",0,K96) -> 0 | M96: =Table1015[[#This Row],[School]] -> - | N96: =D96+F96+H96+J96+L96 -> 0 | O96: =MAX(C96,E96,G96,I96,K96) -> 0 | P96: =IF(Q96=1,N96,IF(Q96=0,(N96-O96),"-")) -> - | Q96: =$L$1-Table1015[Competed Count] -> 4 | R96: =IF(Q96<2,"Yes","No") -> No | S96: =AND($C$1="Y",D96>0) -> FALSE | T96: =AND($E$1="Y",F96>0) -> FALSE | U96: =AND($G$1="Y",H96>0) -> FALSE | V96: =AND($I$1="Y",J96>0) -> FALSE | W96: =AND($K$1="Y",L96>0) -> FALSE | X96: =COUNTIF(Table1015[[#This Row],[Competed 1]:[Competed 5]],"=TRUE") -> 0
B97: - | C97: - | D97: =IF(C97="-",0,C97) -> 0 | E97: - | F97: =IF(E97="-",0,E97) -> 0 | G97: - | H97: =IF(G97="-",0,G97) -> 0 | I97: - | J97: =IF(I97="-",0,I97) -> 0 | K97: - | L97: =IF(K97="-",0,K97) -> 0 | M97: =Table1015[[#This Row],[School]] -> - | N97: =D97+F97+H97+J97+L97 -> 0 | O97: =MAX(C97,E97,G97,I97,K97) -> 0 | P97: =IF(Q97=1,N97,IF(Q97=0,(N97-O97),"-")) -> - | Q97: =$L$1-Table1015[Competed Count] -> 4 | R97: =IF(Q97<2,"Yes","No") -> No | S97: =AND($C$1="Y",D97>0) -> FALSE | T97: =AND($E$1="Y",F97>0) -> FALSE | U97: =AND($G$1="Y",H97>0) -> FALSE | V97: =AND($I$1="Y",J97>0) -> FALSE | W97: =AND($K$1="Y",L97>0) -> FALSE | X97: =COUNTIF(Table1015[[#This Row],[Competed 1]:[Competed 5]],"=TRUE") -> 0
